{"text_format":"1","workbook":"xlsx","n_sheets":7,"sheets":["Encodage réponses Es","Résultats","Bilan","Résultats classe","Info","indicateurs réussite","Tableaux apprentissages"],"not_rendered":{"charts":3,"images":8,"macros":1,"external_links":0,"defined_names":8,"comments":0,"pivot_tables":0},"unopened":[],"bounds":{"document_bytes":16777216,"sheet_cells":100000,"rows_first":2000,"rows_last":500,"rows_between":2000,"halvings":0,"cell_chars":16384,"cell_head_chars":4096},"cells_cut":0,"cells_raw":0,"read":"whole","date_system":"1900"}

{"sheet":"Encodage réponses Es","index":0,"n_rows":46,"n_cols":49,"rows_kept":46,"cut":false,"hidden":false,"merged":[[0,1,0,8],[36,1,37,5],[0,48,1,48],[35,41,35,47],[0,28,0,31],[0,32,0,34],[0,42,0,44],[0,45,0,47],[45,1,46,5],[1,8,2,8],[39,0,40,0],[36,0,37,0],[39,1,40,5],[34,0,35,5],[42,1,43,5],[1,3,1,7]]}
["École",null,null,null,null,null,null,null,null,1,2,3,4,5,6,7,8,9,10,11,12,13,14,15,16,17,18,19,1,null,null,null,2,null,null,3,4,5,6,7,8,9,10,null,null,11,null,null,"Rem"]
["N° FASE \nÉcole","N° FASE \nImplantation","Classe","Élèves",null,null,null,null,"Élèves absents à la totalité de l'épreuve",null,null,null,null,null,null,null,null,null,null,null,null,null,null,null,null,null,null,null,"a","b","c","d","a","b","c",null,null,null,null,null,null,null,"a","b","c","a","b","c"]
[null,null,null,null,"NOM","Prénom","Catégorie",null,null,7,1,1,1,3,2,3,1,1,1,2,2,7,1,1,1,1,1,3,2,1,1,1,2,1,3,3,3,3,2,4,1,6,1,1,1,1,1,2,"a / !"]
[{"$f":"$A3","v":0},{"$f":"$B3","v":0},{"$f":"$C3","v":0},1,null,null,null,{"$f":"IF(AND(E4<>\"\",G4=\"\"),\"A compléter!\",\"\")","v":""},null,null,null,null,null,null,null,null,null,null,null,null,null,null,null,null,null,null,null,null,null,null,null,null,null,null,null,null,null,null,null,null,null,null,null,null,null,null,null,null,{"$f":"IF(COUNTA(I4:AV4)=0,\"\",IF(OR(I4=\"a\",I4=\"A\"),\"a\",IF(COUNTA(J4:AV4)<39,\"!\",IF(OR(COUNTIF(J4:AV4,\"a\")>0,COUNTIF(J4:AV4,\"A\")>0),\"a\",\"\"))))","v":""}]
[{"$f":"$A4","v":0},{"$f":"$B4","v":0},{"$f":"$C4","v":0},2,null,null,null,{"$f":"IF(AND(E5<>\"\",G5=\"\"),\"A compléter!\",\"\")","v":""},null,null,null,null,null,null,null,null,null,null,null,null,null,null,null,null,null,null,null,null,null,null,null,null,null,null,null,null,null,null,null,null,null,null,null,null,null,null,null,null,{"$f":"IF(COUNTA(I5:AV5)=0,\"\",IF(OR(I5=\"a\",I5=\"A\"),\"a\",IF(COUNTA(J5:AV5)<35,\"!\",IF(OR(COUNTIF(J5:AV5,\"a\")>0,COUNTIF(J5:AV5,\"A\")>0),\"a\",\"\"))))","v":""}]
[0,0,0,3,null,null,null,{"$f":"IF(AND(E6<>\"\",G6=\"\"),\"A compléter!\",\"\")","v":""},null,null,null,null,null,null,null,null,null,null,null,null,null,null,null,null,null,null,null,null,null,null,null,null,null,null,null,null,null,null,null,null,null,null,null,null,null,null,null,null,""]
[0,0,0,4,null,null,null,{"$f":"IF(AND(E7<>\"\",G7=\"\"),\"A compléter!\",\"\")","v":""},null,null,null,null,null,null,null,null,null,null,null,null,null,null,null,null,null,null,null,null,null,null,null,null,null,null,null,null,null,null,null,null,null,null,null,null,null,null,null,null,""]
[0,0,0,5,null,null,null,{"$f":"IF(AND(E8<>\"\",G8=\"\"),\"A compléter!\",\"\")","v":""},null,null,null,null,null,null,null,null,null,null,null,null,null,null,null,null,null,null,null,null,null,null,null,null,null,null,null,null,null,null,null,null,null,null,null,null,null,null,null,null,""]
[0,0,0,6,null,null,null,"",null,null,null,null,null,null,null,null,null,null,null,null,null,null,null,null,null,null,null,null,null,null,null,null,null,null,null,null,null,null,null,null,null,null,null,null,null,null,null,null,""]
[0,0,0,7,null,null,null,"",null,null,null,null,null,null,null,null,null,null,null,null,null,null,null,null,null,null,null,null,null,null,null,null,null,null,null,null,null,null,null,null,null,null,null,null,null,null,null,null,""]
[0,0,0,8,null,null,null,{"$f":"IF(AND(E11<>\"\",G11=\"\"),\"A compléter!\",\"\")","v":""},null,null,null,null,null,null,null,null,null,null,null,null,null,null,null,null,null,null,null,null,null,null,null,null,null,null,null,null,null,null,null,null,null,null,null,null,null,null,null,null,""]
[0,0,0,9,null,null,null,{"$f":"IF(AND(E12<>\"\",G12=\"\"),\"A compléter!\",\"\")","v":""},null,null,null,null,null,null,null,null,null,null,null,null,null,null,null,null,null,null,null,null,null,null,null,null,null,null,null,null,null,null,null,null,null,null,null,null,null,null,null,null,""]
[0,0,0,10,null,null,null,null,null,null,null,null,null,null,null,null,null,null,null,null,null,null,null,null,null,null,null,null,null,null,null,null,null,null,null,null,null,null,null,null,null,null,null,null,null,null,null,null,""]
[0,0,0,11,null,null,null,{"$f":"IF(AND(E14<>\"\",G14=\"\"),\"A compléter!\",\"\")","v":""},null,null,null,null,null,null,null,null,null,null,null,null,null,null,null,null,null,null,null,null,null,null,null,null,null,null,null,null,null,null,null,null,null,null,null,null,null,null,null,null,""]
[0,0,0,12,null,null,null,"",null,null,null,null,null,null,null,null,null,null,null,null,null,null,null,null,null,null,null,null,null,null,null,null,null,null,null,null,null,null,null,null,null,null,null,null,null,null,null,null,""]
[0,0,0,13,null,null,null,"",null,null,null,null,null,null,null,null,null,null,null,null,null,null,null,null,null,null,null,null,null,null,null,null,null,null,null,null,null,null,null,null,null,null,null,null,null,null,null,null,""]
[0,0,0,14,null,null,null,"",null,null,null,null,null,null,null,null,null,null,null,null,null,null,null,null,null,null,null,null,null,null,null,null,null,null,null,null,null,null,null,null,null,null,null,null,null,null,null,null,""]
[0,0,0,15,null,null,null,{"$f":"IF(AND(E18<>\"\",G18=\"\"),\"A compléter!\",\"\")","v":""},null,null,null,null,null,null,null,null,null,null,null,null,null,null,null,null,null,null,null,null,null,null,null,null,null,null,null,null,null,null,null,null,null,null,null,null,null,null,null,null,""]
[0,0,0,16,null,null,null,"",null,null,null,null,null,null,null,null,null,null,null,null,null,null,null,null,null,null,null,null,null,null,null,null,null,null,null,null,null,null,null,null,null,null,null,null,null,null,null,null,""]
[0,0,0,17,null,null,null,"",null,null,null,null,null,null,null,null,null,null,null,null,null,null,null,null,null,null,null,null,null,null,null,null,null,null,null,null,null,null,null,null,null,null,null,null,null,null,null,null,""]
[0,0,0,18,null,null,null,"",null,null,null,null,null,null,null,null,null,null,null,null,null,null,null,null,null,null,null,null,null,null,null,null,null,null,null,null,null,null,null,null,null,null,null,null,null,null,null,null,""]
[0,0,0,19,null,null,null,"",null,null,null,null,null,null,null,null,null,null,null,null,null,null,null,null,null,null,null,null,null,null,null,null,null,null,null,null,null,null,null,null,null,null,null,null,null,null,null,null,""]
[0,0,0,20,null,null,null,"",null,null,null,null,null,null,null,null,null,null,null,null,null,null,null,null,null,null,null,null,null,null,null,null,null,null,null,null,null,null,null,null,null,null,null,null,null,null,null,null,""]
[0,0,0,21,null,null,null,{"$f":"IF(AND(E24<>\"\",G24=\"\"),\"A compléter!\",\"\")","v":""},null,null,null,null,null,null,null,null,null,null,null,null,null,null,null,null,null,null,null,null,null,null,null,null,null,null,null,null,null,null,null,null,null,null,null,null,null,null,null,null,""]
[0,0,0,22,null,null,null,{"$f":"IF(AND(E25<>\"\",G25=\"\"),\"A compléter!\",\"\")","v":""},null,null,null,null,null,null,null,null,null,null,null,null,null,null,null,null,null,null,null,null,null,null,null,null,null,null,null,null,null,null,null,null,null,null,null,null,null,null,null,null,""]
[0,0,0,23,null,null,null,{"$f":"IF(AND(E26<>\"\",G26=\"\"),\"A compléter!\",\"\")","v":""},null,null,null,null,null,null,null,null,null,null,null,null,null,null,null,null,null,null,null,null,null,null,null,null,null,null,null,null,null,null,null,null,null,null,null,null,null,null,null,null,""]
[0,0,0,24,null,null,null,"",null,null,null,null,null,null,null,null,null,null,null,null,null,null,null,null,null,null,null,null,null,null,null,null,null,null,null,null,null,null,null,null,null,null,null,null,null,null,null,null,""]
[0,0,0,25,null,null,null,{"$f":"IF(AND(E28<>\"\",G28=\"\"),\"A compléter!\",\"\")","v":""},null,null,null,null,null,null,null,null,null,null,null,null,null,null,null,null,null,null,null,null,null,null,null,null,null,null,null,null,null,null,null,null,null,null,null,null,null,null,null,null,""]
[0,0,0,26,null,null,null,{"$f":"IF(AND(E29<>\"\",G29=\"\"),\"A compléter!\",\"\")","v":""},null,null,null,null,null,null,null,null,null,null,null,null,null,null,null,null,null,null,null,null,null,null,null,null,null,null,null,null,null,null,null,null,null,null,null,null,null,null,null,null,""]
[0,0,0,27,null,null,null,"",null,null,null,null,null,null,null,null,null,null,null,null,null,null,null,null,null,null,null,null,null,null,null,null,null,null,null,null,null,null,null,null,null,null,null,null,null,null,null,null,""]
[0,0,0,28,null,null,null,"",null,null,null,null,null,null,null,null,null,null,null,null,null,null,null,null,null,null,null,null,null,null,null,null,null,null,null,null,null,null,null,null,null,null,null,null,null,null,null,null,""]
[0,0,0,29,null,null,null,"",null,null,null,null,null,null,null,null,null,null,null,null,null,null,null,null,null,null,null,null,null,null,null,null,null,null,null,null,null,null,null,null,null,null,null,null,null,null,null,null,""]
[0,0,0,30,null,null,null,"",null,null,null,null,null,null,null,null,null,null,null,null,null,null,null,null,null,null,null,null,null,null,null,null,null,null,null,null,null,null,null,null,null,null,null,null,null,null,null,null,""]
[]
["Légende"]
[null,null,null,null,null,null,null,null,null,null,null,null,null,null,null,null,null,null,null,null,null,null,null,null,null,null,null,null,null,null,null,null,null,null,null,null,null,null,null,null,null,{"$f":"IF(AW36>1,\"Nombre de lignes à compléter : \",IF(AW36=1,\"1 ligne à compléter\",\"\"))","v":""},null,null,null,null,null,null,{"$f":"COUNTIF(AW4:AW33,\"!\")","v":0}]
[null,"Item se rapportant à la formation géographique"]
[]
[]
[null,"Item se rapportant à la formation historique"]
[]
[]
[]
[]
[]
[null,null,null,null,null,null," "]

{"sheet":"Résultats","index":1,"n_rows":52,"n_cols":63,"rows_kept":52,"cut":false,"hidden":false,"merged":[[35,27,35,28],[1,18,1,22],[1,27,1,31],[1,37,1,38],[1,32,1,36],[1,40,1,43],[1,48,1,49],[1,44,1,46],[35,60,35,61],[33,60,33,61],[28,60,28,61],[29,60,29,61],[30,60,30,61],[31,60,31,61],[32,60,32,61],[23,60,23,61],[24,60,24,61],[25,60,25,61],[26,60,26,61],[27,60,27,61],[32,27,32,28],[33,27,33,28],[4,60,4,61],[5,60,5,61],[6,60,6,61],[7,60,7,61],[8,60,8,61],[9,60,9,61],[10,60,10,61],[11,60,11,61],[12,60,12,61],[13,60,13,61],[14,60,14,61],[15,60,15,61],[8,27,8,28],[9,27,9,28],[10,27,10,28],[11,27,11,28],[16,60,16,61],[17,60,17,61],[27,27,27,28],[28,27,28,28],[29,27,29,28],[26,27,26,28],[17,27,17,28],[18,27,18,28],[19,27,19,28],[20,27,20,28],[21,27,21,28],[18,60,18,61],[19,60,19,61],[20,60,20,61],[21,60,21,61],[22,60,22,61],[0,40,0,50],[0,51,0,62],[1,51,1,52],[1,53,1,59],[1,60,1,61],[2,60,2,61],[1,50,3,50],[49,0,50,1],[49,2,50,7],[0,4,1,7],[2,7,3,7],[43,0,44,1],[37,0,38,4],[2,4,2,6],[43,2,44,7],[40,2,41,7],[46,2,47,7],[46,0,47,1],[40,0,41,1],[1,62,3,62],[5,8,33,8],[3,60,3,61],[12,27,12,28],[13,27,13,28],[51,8,51,9],[0,14,2,15],[0,9,2,10],[0,12,2,13],[0,8,3,8],[0,27,0,39],[1,39,3,39],[0,18,0,26],[1,26,3,26],[2,27,2,28],[3,27,3,28],[4,27,4,28],[5,27,5,28],[6,27,6,28],[30,27,30,28],[31,27,31,28],[22,27,22,28],[23,27,23,28],[24,27,24,28],[25,27,25,28],[14,27,14,28],[15,27,15,28],[16,27,16,28],[7,27,7,28]]}
["N° FASE\nÉcole","N° FASE\nImplantation",{"$f":"'Encodage réponses Es'!C2","v":"Classe"},null,"                       Domaines       ",null,null,null,null,"EDM",null,null,"Volet géographique",null,"Volet historique",null,null,null,"Savoir-faire géographiques: utliliser/lire",null,null,null,null,null,null,null,null,"Savoirs géographiques",null,null,null,null,null,null,null,null,null,null,null,null,"Savoir-faire historiques: utiliser/lire",null,null,null,null,null,null,null,null,null,null,"Savoirs historiques"]
[{"$f":"'Encodage réponses Es'!A3","v":0},{"$f":"'Encodage réponses Es'!B3","v":0},{"$f":"'Encodage réponses Es'!C3","v":0},null,null,null,null,null,null,null,null,null,null,null,null,null,null,null,"des repères spatiaux",null,null,null,null,"des repr. de l'espace","Localiser un espace","Lire une image",{"$f":"SUM(S4:Z4)","v":19},"Composantes du paysage",null,null,null,null,"Milieux naturels",null,null,null,null,"Interactions hommes-espace",null,{"$f":"SUM(AB4:AM4)","v":21},"des repères du temps",null,null,null,"des représent. du temps",null,null,"une trace du passé","Expl. Sources",null,{"$f":"SUM(AO4:AX4)","v":18},"Organisation du temps",null,"Mode de vie des gens à une époque déterminée",null,null,null,null,null,null,"Nature trace passé",null,{"$f":"SUM(AZ4:BI4)","v":22}]
[null,null,null,null,"Élèves",null,null,"Élèves absents à la totalité de l'épreuve",null,null,null,null,null,null,null,null,null,"Items",1,2,4,5,10,3,6,19,null,13,null,15,16,17,7,8,9,12,14,11,18,null,"1b","1c",5,"11c","1a","10b","10c","2b","2c",3,null,"1d","9","4","6","7","8","10a","11a","11b","2a"]
[null,null,null,null,"Nom","Prénom","Catégorie",null,null,{"$f":"M4+O4","v":80},"%",null,{"$f":"SUM(AA2,AN2)","v":40},"%",{"$f":"SUM(AY2,BK2)","v":40},"%",null,"Maxima",7,1,1,3,{"$f":"IF('Encodage réponses Es'!M3=\"\",\"\",'Encodage réponses Es'!M3)","v":1},1,{"$f":"IF('Encodage réponses Es'!O3=\"\",\"\",'Encodage réponses Es'!O3)","v":2},3,null,7,null,{"$f":"IF('Encodage réponses Es'!S3=\"\",\"\",'Encodage réponses Es'!S3)","v":1},1,1,3,1,1,2,1,2,{"$f":"IF('Encodage réponses Es'!AA3=\"\",\"\",'Encodage réponses Es'!AA3)","v":1},null,1,1,3,2,2,1,1,1,3,3,null,1,6,3,2,4,1,{"$f":"IF('Encodage réponses Es'!AO3=\"\",\"\",'Encodage réponses Es'!AO3)","v":1},1,1,2]
[{"$f":"IF('Encodage réponses Es'!A4=\"\",\"\",'Encodage réponses Es'!A4)","v":0},{"$f":"IF('Encodage réponses Es'!B4=\"\",\"\",'Encodage réponses Es'!B4)","v":0},{"$f":"IF('Encodage réponses Es'!C4=\"\",\"\",'Encodage réponses Es'!C4)","v":0},{"$f":"'Encodage réponses Es'!D4","v":1},{"$f":"IF('Encodage réponses Es'!E4=\"\",\"\",'Encodage réponses Es'!E4)","v":""},{"$f":"IF('Encodage réponses Es'!F4=\"\",\"\",'Encodage réponses Es'!F4)","v":""},{"$f":"IF('Encodage réponses Es'!G4=\"\",\"\",'Encodage réponses Es'!G4)","v":""},{"$f":"IF('Encodage réponses Es'!I4=\"\",\"\",'Encodage réponses Es'!I4)","v":""},null,{"$f":"IF('Encodage réponses Es'!AW4=\"!\",\"Incomplet\",IF(AND(SUM('Encodage réponses Es'!J4:AV4)>=$J$4/2,'Encodage réponses Es'!AW4=\"a\"),SUM('Encodage réponses Es'!J4:AV4),IF(AND(SUM('Encodage réponses Es'!J4:AV4)<$J$4/2,'Encodage réponses Es'!AW4=\"a\"),\"Absent(e)\",IF(COUNTBLANK('Encodage réponses Es'!J4:AV4)=39,\"\",SUM('Encodage réponses Es'!J4:AV4)))))","v":""},{"$f":"IF(J5=\"\",\"\",IF(J5=\"Absent(e)\",\"Absent(e)\",IF(J5=\"Incomplet\",\"Incomplet\",J5/$J$4)))","v":""},null,{"$f":"IF(AND(AA5=\"\",AN5=\"\"),\"\",IF(OR(AA5=\"Incomplet\",AN5=\"Incomplet\"),\"Incomplet\",IF(OR(AA5=\"Absent(e)\",AN5=\"Absent(e)\"),\"Absent(e)\",SUMIF(AA5,\"<>\"\"\")+SUMIF(AN5,\"<>\"\"\"))))","v":""},{"$f":"IF(M5=\"\",\"\",IF(M5=\"Absent(e)\",\"Absent(e)\",IF(M5=\"Incomplet\",\"Incomplet\",M5/$M$4)))","v":""},{"$f":"IF(AND(AY5=\"\",AP5=\"\"),\"\",IF(OR(AY5=\"Incomplet\",BK5=\"Incomplet\"),\"Incomplet\",IF(OR(AY5=\"Absent(e)\",BK5=\"Absent(e)\"),\"Absent(e)\",SUMIF(AY5,\"<>\"\"\")+SUMIF(BK5,\"<>\"\"\"))))","v":""},{"$f":"IF(O5=\"\",\"\",IF(O5=\"Absent(e)\",\"Absent(e)\",IF(O5=\"Incomplet\",\"Incomplet\",O5/$O$4)))","v":""},null,null,{"$f":"IF('Encodage réponses Es'!J4=\"\",\"\",'Encodage réponses Es'!J4)","v":""},{"$f":"IF('Encodage réponses Es'!K4=\"\",\"\",'Encodage réponses Es'!K4)","v":""},{"$f":"IF('Encodage réponses Es'!M4=\"\",\"\",'Encodage réponses Es'!M4)","v":""},{"$f":"IF('Encodage réponses Es'!N4=\"\",\"\",'Encodage réponses Es'!N4)","v":""},{"$f":"IF('Encodage réponses Es'!S4=\"\",\"\",'Encodage réponses Es'!S4)","v":""},{"$f":"IF('Encodage réponses Es'!L4=\"\",\"\",'Encodage réponses Es'!L4)","v":""},{"$f":"IF('Encodage réponses Es'!O4=\"\",\"\",'Encodage réponses Es'!O4)","v":""},{"$f":"IF('Encodage réponses Es'!AB4=\"\",\"\",'Encodage réponses Es'!AB4)","v":""},{"$f":"IF(AND(COUNTBLANK('Encodage réponses Es'!J4:P4)>0,'Encodage réponses Es'!$AW4=\"!\"),\"Incomplet\",IF(OR(COUNTIF(S5:Z5,\"a\")>0,COUNTIF(S5:Z5,\"A\")>0),\"Absent(e)\",IF(COUNT(S5:Z5)=0,\"\",SUM(S5:Z5))))","v":""},{"$f":"IF('Encodage réponses Es'!V4=\"\",\"\",'Encodage réponses Es'!V4)","v":""},null,{"$f":"IF('Encodage réponses Es'!X4=\"\",\"\",'Encodage réponses Es'!X4)","v":""},{"$f":"IF('Encodage réponses Es'!Y4=\"\",\"\",'Encodage réponses Es'!Y4)","v":""},{"$f":"IF('Encodage réponses Es'!Z4=\"\",\"\",'Encodage réponses Es'!Z4)","v":""},{"$f":"IF('Encodage réponses Es'!P4=\"\",\"\",'Encodage réponses Es'!P4)","v":""},{"$f":"IF('Encodage réponses Es'!Q4=\"\",\"\",'Encodage réponses Es'!Q4)","v":""},{"$f":"IF('Encodage réponses Es'!R4=\"\",\"\",'Encodage réponses Es'!R4)","v":""},{"$f":"IF('Encodage réponses Es'!U4=\"\",\"\",'Encodage réponses Es'!U4)","v":""},{"$f":"IF('Encodage réponses Es'!W4=\"\",\"\",'Encodage réponses Es'!W4)","v":""},{"$f":"IF('Encodage réponses Es'!K4=\"\",\"\",'Encodage réponses Es'!K4)","v":""},{"$f":"IF('Encodage réponses Es'!AA4=\"\",\"\",'Encodage réponses Es'!AA4)","v":""},{"$f":"IF(AND(COUNTBLANK('Encodage réponses Es'!Q4:X4)>0,'Encodage réponses Es'!$AW4=\"!\"),\"Incomplet\",IF(OR(COUNTIF(AB5:AM5,\"a\")>0,COUNTIF(AB5:AM5,\"A\")>0),\"Absent(e)\",IF(COUNT(AB5:AM5)=0,\"\",SUM(AB5:AM5))))","v":""},{"$f":"IF('Encodage réponses Es'!AD4=\"\",\"\",'Encodage réponses Es'!AD4)","v":""},{"$f":"IF('Encodage réponses Es'!AE4=\"\",\"\",'Encodage réponses Es'!AE4)","v":""},{"$f":"IF('Encodage réponses Es'!AL4=\"\",\"\",'Encodage réponses Es'!AL4)","v":""},{"$f":"IF('Encodage réponses Es'!AV4=\"\",\"\",'Encodage réponses Es'!AV4)","v":""},{"$f":"IF('Encodage réponses Es'!AC4=\"\",\"\",'Encodage réponses Es'!AC4)","v":""},{"$f":"IF('Encodage réponses Es'!AR4=\"\",\"\",'Encodage réponses Es'!AR4)","v":""},{"$f":"IF('Encodage réponses Es'!AS4=\"\",\"\",'Encodage réponses Es'!AS4)","v":""},{"$f":"IF('Encodage réponses Es'!AH4=\"\",\"\",'Encodage réponses Es'!AH4)","v":""},{"$f":"IF('Encodage réponses Es'!AI4=\"\",\"\",'Encodage réponses Es'!AI4)","v":""},{"$f":"IF('Encodage réponses Es'!AJ4=\"\",\"\",'Encodage réponses Es'!AJ4)","v":""},{"$f":"IF(AND(COUNTBLANK('Encodage réponses Es'!Y4:AE4)>0,'Encodage réponses Es'!$AW4=\"!\"),\"Incomplet\",IF(OR(COUNTIF(AO5:AX5,\"a\")>0,COUNTIF(AO5:AX5,\"A\")>0),\"Absent(e)\",IF(COUNT(AO5:AX5)=0,\"\",SUM(AO5:AX5))))","v":""},{"$f":"IF('Encodage réponses Es'!AF4=\"\",\"\",'Encodage réponses Es'!AF4)","v":""},{"$f":"IF('Encodage réponses Es'!AP4=\"\",\"\",'Encodage réponses Es'!AP4)","v":""},{"$f":"IF('Encodage réponses Es'!AK4=\"\",\"\",'Encodage réponses Es'!AK4)","v":""},{"$f":"IF('Encodage réponses Es'!AM4=\"\",\"\",'Encodage réponses Es'!AM4)","v":""},{"$f":"IF('Encodage réponses Es'!AN4=\"\",\"\",'Encodage réponses Es'!AN4)","v":""},{"$f":"IF('Encodage réponses Es'!AO4=\"\",\"\",'Encodage réponses Es'!AO4)","v":""},{"$f":"IF('Encodage réponses Es'!AQ4=\"\",\"\",'Encodage réponses Es'!AQ4)","v":""},{"$f":"IF('Encodage réponses Es'!AT4=\"\",\"\",'Encodage réponses Es'!AT4)","v":""},{"$f":"IF('Encodage réponses Es'!AU4=\"\",\"\",'Encodage réponses Es'!AUS4)","v":""},{"$f":"IF('Encodage réponses Es'!AG4=\"\",\"\",'Encodage réponses Es'!AG4)","v":""},null,{"$f":"IF(AND(COUNTBLANK('Encodage réponses Es'!AF4:AH4)>0,'Encodage réponses Es'!$AW4=\"!\"),\"Incomplet\",IF(OR(COUNTIF(AZ5:BJ5,\"a\")>0,COUNTIF(AZ5:BJ5,\"A\")>0),\"Absent(e)\",IF(COUNT(AZ5:BJ5)=0,\"\",SUM(AZ5:BJ5))))","v":""}]
[{"$f":"IF('Encodage réponses Es'!A5=\"\",\"\",'Encodage réponses Es'!A5)","v":0},{"$f":"IF('Encodage réponses Es'!B5=\"\",\"\",'Encodage réponses Es'!B5)","v":0},{"$f":"IF('Encodage réponses Es'!C5=\"\",\"\",'Encodage réponses Es'!C5)","v":0},2,{"$f":"IF('Encodage réponses Es'!E5=\"\",\"\",'Encodage réponses Es'!E5)","v":""},{"$f":"IF('Encodage réponses Es'!F5=\"\",\"\",'Encodage réponses Es'!F5)","v":""},{"$f":"IF('Encodage réponses Es'!G5=\"\",\"\",'Encodage réponses Es'!G5)","v":""},{"$f":"IF('Encodage réponses Es'!I5=\"\",\"\",'Encodage réponses Es'!I5)","v":""},null,{"$f":"IF('Encodage réponses Es'!AW5=\"!\",\"Incomplet\",IF(AND(SUM('Encodage réponses Es'!J5:AV5)>=$J$4/2,'Encodage réponses Es'!AW5=\"a\"),SUM('Encodage réponses Es'!J5:AV5),IF(AND(SUM('Encodage réponses Es'!J5:AV5)<$J$4/2,'Encodage réponses Es'!AW5=\"a\"),\"Absent(e)\",IF(COUNTBLANK('Encodage réponses Es'!J5:AV5)=39,\"\",SUM('Encodage réponses Es'!J5:AV5)))))","v":""},{"$f":"IF(J6=\"\",\"\",IF(J6=\"Absent(e)\",\"Absent(e)\",IF(J6=\"Incomplet\",\"Incomplet\",J6/$J$4)))","v":""},null,"",{"$f":"IF(M6=\"\",\"\",IF(M6=\"Absent(e)\",\"Absent(e)\",IF(M6=\"Incomplet\",\"Incomplet\",M6/$M$4)))","v":""},"",{"$f":"IF(O6=\"\",\"\",IF(O6=\"Absent(e)\",\"Absent(e)\",IF(O6=\"Incomplet\",\"Incomplet\",O6/$O$4)))","v":""},null,null,{"$f":"IF('Encodage réponses Es'!J5=\"\",\"\",'Encodage réponses Es'!J5)","v":""},{"$f":"IF('Encodage réponses Es'!K5=\"\",\"\",'Encodage réponses Es'!K5)","v":""},{"$f":"IF('Encodage réponses Es'!M5=\"\",\"\",'Encodage réponses Es'!M5)","v":""},{"$f":"IF('Encodage réponses Es'!N5=\"\",\"\",'Encodage réponses Es'!N5)","v":""},{"$f":"IF('Encodage réponses Es'!S5=\"\",\"\",'Encodage réponses Es'!S5)","v":""},{"$f":"IF('Encodage réponses Es'!L5=\"\",\"\",'Encodage réponses Es'!L5)","v":""},{"$f":"IF('Encodage réponses Es'!O5=\"\",\"\",'Encodage réponses Es'!O5)","v":""},{"$f":"IF('Encodage réponses Es'!AB5=\"\",\"\",'Encodage réponses Es'!AB5)","v":""},{"$f":"IF(AND(COUNTBLANK('Encodage réponses Es'!J5:P5)>0,'Encodage réponses Es'!$AW5=\"!\"),\"Incomplet\",IF(OR(COUNTIF(S6:Z6,\"a\")>0,COUNTIF(S6:Z6,\"A\")>0),\"Absent(e)\",IF(COUNT(S6:Z6)=0,\"\",SUM(S6:Z6))))","v":""},{"$f":"IF('Encodage réponses Es'!V5=\"\",\"\",'Encodage réponses Es'!V5)","v":""},null,{"$f":"IF('Encodage réponses Es'!X5=\"\",\"\",'Encodage réponses Es'!X5)","v":""},{"$f":"IF('Encodage réponses Es'!Y5=\"\",\"\",'Encodage réponses Es'!Y5)","v":""},{"$f":"IF('Encodage réponses Es'!Z5=\"\",\"\",'Encodage réponses Es'!Z5)","v":""},{"$f":"IF('Encodage réponses Es'!P5=\"\",\"\",'Encodage réponses Es'!P5)","v":""},{"$f":"IF('Encodage réponses Es'!Q5=\"\",\"\",'Encodage réponses Es'!Q5)","v":""},{"$f":"IF('Encodage réponses Es'!R5=\"\",\"\",'Encodage réponses Es'!R5)","v":""},{"$f":"IF('Encodage réponses Es'!U5=\"\",\"\",'Encodage réponses Es'!U5)","v":""},{"$f":"IF('Encodage réponses Es'!W5=\"\",\"\",'Encodage réponses Es'!W5)","v":""},{"$f":"IF('Encodage réponses Es'!K5=\"\",\"\",'Encodage réponses Es'!K5)","v":""},{"$f":"IF('Encodage réponses Es'!AA5=\"\",\"\",'Encodage réponses Es'!AA5)","v":""},{"$f":"IF(AND(COUNTBLANK('Encodage réponses Es'!Q5:X5)>0,'Encodage réponses Es'!$AW5=\"!\"),\"Incomplet\",IF(OR(COUNTIF(AB6:AM6,\"a\")>0,COUNTIF(AB6:AM6,\"A\")>0),\"Absent(e)\",IF(COUNT(AB6:AM6)=0,\"\",SUM(AB6:AM6))))","v":""},{"$f":"IF('Encodage réponses Es'!AD5=\"\",\"\",'Encodage réponses Es'!AD5)","v":""},{"$f":"IF('Encodage réponses Es'!AE5=\"\",\"\",'Encodage réponses Es'!AE5)","v":""},{"$f":"IF('Encodage réponses Es'!AL5=\"\",\"\",'Encodage réponses Es'!AL5)","v":""},{"$f":"IF('Encodage réponses Es'!AV5=\"\",\"\",'Encodage réponses Es'!AV5)","v":""},{"$f":"IF('Encodage réponses Es'!AC5=\"\",\"\",'Encodage réponses Es'!AC5)","v":""},{"$f":"IF('Encodage réponses Es'!AR5=\"\",\"\",'Encodage réponses Es'!AR5)","v":""},{"$f":"IF('Encodage réponses Es'!AS5=\"\",\"\",'Encodage réponses Es'!AS5)","v":""},{"$f":"IF('Encodage réponses Es'!AH5=\"\",\"\",'Encodage réponses Es'!AH5)","v":""},{"$f":"IF('Encodage réponses Es'!AI5=\"\",\"\",'Encodage réponses Es'!AI5)","v":""},{"$f":"IF('Encodage réponses Es'!AJ5=\"\",\"\",'Encodage réponses Es'!AJ5)","v":""},{"$f":"IF(AND(COUNTBLANK('Encodage réponses Es'!Y5:AE5)>0,'Encodage réponses Es'!$AW5=\"!\"),\"Incomplet\",IF(OR(COUNTIF(AO6:AX6,\"a\")>0,COUNTIF(AO6:AX6,\"A\")>0),\"Absent(e)\",IF(COUNT(AO6:AX6)=0,\"\",SUM(AO6:AX6))))","v":""},{"$f":"IF('Encodage réponses Es'!AF5=\"\",\"\",'Encodage réponses Es'!AF5)","v":""},{"$f":"IF('Encodage réponses Es'!AP5=\"\",\"\",'Encodage réponses Es'!AP5)","v":""},{"$f":"IF('Encodage réponses Es'!AK5=\"\",\"\",'Encodage réponses Es'!AK5)","v":""},{"$f":"IF('Encodage réponses Es'!AM5=\"\",\"\",'Encodage réponses Es'!AM5)","v":""},{"$f":"IF('Encodage réponses Es'!AN5=\"\",\"\",'Encodage réponses Es'!AN5)","v":""},{"$f":"IF('Encodage réponses Es'!AO5=\"\",\"\",'Encodage réponses Es'!AO5)","v":""},{"$f":"IF('Encodage réponses Es'!AQ5=\"\",\"\",'Encodage réponses Es'!AQ5)","v":""},{"$f":"IF('Encodage réponses Es'!AT5=\"\",\"\",'Encodage réponses Es'!AT5)","v":""},{"$f":"IF('Encodage réponses Es'!AU5=\"\",\"\",'Encodage réponses Es'!AUS5)","v":""},{"$f":"IF('Encodage réponses Es'!AG5=\"\",\"\",'Encodage réponses Es'!AG5)","v":""},null,{"$f":"IF(AND(COUNTBLANK('Encodage réponses Es'!AF5:AH5)>0,'Encodage réponses Es'!$AW5=\"!\"),\"Incomplet\",IF(OR(COUNTIF(AZ6:BJ6,\"a\")>0,COUNTIF(AZ6:BJ6,\"A\")>0),\"Absent(e)\",IF(COUNT(AZ6:BJ6)=0,\"\",SUM(AZ6:BJ6))))","v":""}]
[{"$f":"IF('Encodage réponses Es'!A6=\"\",\"\",'Encodage réponses Es'!A6)","v":0},{"$f":"IF('Encodage réponses Es'!B6=\"\",\"\",'Encodage réponses Es'!B6)","v":0},{"$f":"IF('Encodage réponses Es'!C6=\"\",\"\",'Encodage réponses Es'!C6)","v":0},3,{"$f":"IF('Encodage réponses Es'!E6=\"\",\"\",'Encodage réponses Es'!E6)","v":""},{"$f":"IF('Encodage réponses Es'!F6=\"\",\"\",'Encodage réponses Es'!F6)","v":""},{"$f":"IF('Encodage réponses Es'!G6=\"\",\"\",'Encodage réponses Es'!G6)","v":""},{"$f":"IF('Encodage réponses Es'!I6=\"\",\"\",'Encodage réponses Es'!I6)","v":""},null,{"$f":"IF('Encodage réponses Es'!AW6=\"!\",\"Incomplet\",IF(AND(SUM('Encodage réponses Es'!J6:AV6)>=$J$4/2,'Encodage réponses Es'!AW6=\"a\"),SUM('Encodage réponses Es'!J6:AV6),IF(AND(SUM('Encodage réponses Es'!J6:AV6)<$J$4/2,'Encodage réponses Es'!AW6=\"a\"),\"Absent(e)\",IF(COUNTBLANK('Encodage réponses Es'!J6:AV6)=39,\"\",SUM('Encodage réponses Es'!J6:AV6)))))","v":""},"",null,"","","","",null,null,{"$f":"IF('Encodage réponses Es'!J6=\"\",\"\",'Encodage réponses Es'!J6)","v":""},{"$f":"IF('Encodage réponses Es'!K6=\"\",\"\",'Encodage réponses Es'!K6)","v":""},{"$f":"IF('Encodage réponses Es'!M6=\"\",\"\",'Encodage réponses Es'!M6)","v":""},{"$f":"IF('Encodage réponses Es'!N6=\"\",\"\",'Encodage réponses Es'!N6)","v":""},{"$f":"IF('Encodage réponses Es'!S6=\"\",\"\",'Encodage réponses Es'!S6)","v":""},{"$f":"IF('Encodage réponses Es'!L6=\"\",\"\",'Encodage réponses Es'!L6)","v":""},{"$f":"IF('Encodage réponses Es'!O6=\"\",\"\",'Encodage réponses Es'!O6)","v":""},{"$f":"IF('Encodage réponses Es'!AB6=\"\",\"\",'Encodage réponses Es'!AB6)","v":""},{"$f":"IF(AND(COUNTBLANK('Encodage réponses Es'!J6:P6)>0,'Encodage réponses Es'!$AW6=\"!\"),\"Incomplet\",IF(OR(COUNTIF(S7:Z7,\"a\")>0,COUNTIF(S7:Z7,\"A\")>0),\"Absent(e)\",IF(COUNT(S7:Z7)=0,\"\",SUM(S7:Z7))))","v":""},{"$f":"IF('Encodage réponses Es'!V6=\"\",\"\",'Encodage réponses Es'!V6)","v":""},null,{"$f":"IF('Encodage réponses Es'!X6=\"\",\"\",'Encodage réponses Es'!X6)","v":""},{"$f":"IF('Encodage réponses Es'!Y6=\"\",\"\",'Encodage réponses Es'!Y6)","v":""},{"$f":"IF('Encodage réponses Es'!Z6=\"\",\"\",'Encodage réponses Es'!Z6)","v":""},{"$f":"IF('Encodage réponses Es'!P6=\"\",\"\",'Encodage réponses Es'!P6)","v":""},{"$f":"IF('Encodage réponses Es'!Q6=\"\",\"\",'Encodage réponses Es'!Q6)","v":""},{"$f":"IF('Encodage réponses Es'!R6=\"\",\"\",'Encodage réponses Es'!R6)","v":""},{"$f":"IF('Encodage réponses Es'!U6=\"\",\"\",'Encodage réponses Es'!U6)","v":""},{"$f":"IF('Encodage réponses Es'!W6=\"\",\"\",'Encodage réponses Es'!W6)","v":""},{"$f":"IF('Encodage réponses Es'!K6=\"\",\"\",'Encodage réponses Es'!K6)","v":""},{"$f":"IF('Encodage réponses Es'!AA6=\"\",\"\",'Encodage réponses Es'!AA6)","v":""},{"$f":"IF(AND(COUNTBLANK('Encodage réponses Es'!Q6:X6)>0,'Encodage réponses Es'!$AW6=\"!\"),\"Incomplet\",IF(OR(COUNTIF(AB7:AM7,\"a\")>0,COUNTIF(AB7:AM7,\"A\")>0),\"Absent(e)\",IF(COUNT(AB7:AM7)=0,\"\",SUM(AB7:AM7))))","v":""},{"$f":"IF('Encodage réponses Es'!AD6=\"\",\"\",'Encodage réponses Es'!AD6)","v":""},{"$f":"IF('Encodage réponses Es'!AE6=\"\",\"\",'Encodage réponses Es'!AE6)","v":""},{"$f":"IF('Encodage réponses Es'!AL6=\"\",\"\",'Encodage réponses Es'!AL6)","v":""},{"$f":"IF('Encodage réponses Es'!AV6=\"\",\"\",'Encodage réponses Es'!AV6)","v":""},{"$f":"IF('Encodage réponses Es'!AC6=\"\",\"\",'Encodage réponses Es'!AC6)","v":""},{"$f":"IF('Encodage réponses Es'!AR6=\"\",\"\",'Encodage réponses Es'!AR6)","v":""},{"$f":"IF('Encodage réponses Es'!AS6=\"\",\"\",'Encodage réponses Es'!AS6)","v":""},{"$f":"IF('Encodage réponses Es'!AH6=\"\",\"\",'Encodage réponses Es'!AH6)","v":""},{"$f":"IF('Encodage réponses Es'!AI6=\"\",\"\",'Encodage réponses Es'!AI6)","v":""},{"$f":"IF('Encodage réponses Es'!AJ6=\"\",\"\",'Encodage réponses Es'!AJ6)","v":""},{"$f":"IF(AND(COUNTBLANK('Encodage réponses Es'!Y6:AE6)>0,'Encodage réponses Es'!$AW6=\"!\"),\"Incomplet\",IF(OR(COUNTIF(AO7:AX7,\"a\")>0,COUNTIF(AO7:AX7,\"A\")>0),\"Absent(e)\",IF(COUNT(AO7:AX7)=0,\"\",SUM(AO7:AX7))))","v":""},{"$f":"IF('Encodage réponses Es'!AF6=\"\",\"\",'Encodage réponses Es'!AF6)","v":""},{"$f":"IF('Encodage réponses Es'!AP6=\"\",\"\",'Encodage réponses Es'!AP6)","v":""},{"$f":"IF('Encodage réponses Es'!AK6=\"\",\"\",'Encodage réponses Es'!AK6)","v":""},{"$f":"IF('Encodage réponses Es'!AM6=\"\",\"\",'Encodage réponses Es'!AM6)","v":""},{"$f":"IF('Encodage réponses Es'!AN6=\"\",\"\",'Encodage réponses Es'!AN6)","v":""},{"$f":"IF('Encodage réponses Es'!AO6=\"\",\"\",'Encodage réponses Es'!AO6)","v":""},{"$f":"IF('Encodage réponses Es'!AQ6=\"\",\"\",'Encodage réponses Es'!AQ6)","v":""},{"$f":"IF('Encodage réponses Es'!AT6=\"\",\"\",'Encodage réponses Es'!AT6)","v":""},{"$f":"IF('Encodage réponses Es'!AU6=\"\",\"\",'Encodage réponses Es'!AUS6)","v":""},{"$f":"IF('Encodage réponses Es'!AG6=\"\",\"\",'Encodage réponses Es'!AG6)","v":""},null,{"$f":"IF(AND(COUNTBLANK('Encodage réponses Es'!AF6:AH6)>0,'Encodage réponses Es'!$AW6=\"!\"),\"Incomplet\",IF(OR(COUNTIF(AZ7:BJ7,\"a\")>0,COUNTIF(AZ7:BJ7,\"A\")>0),\"Absent(e)\",IF(COUNT(AZ7:BJ7)=0,\"\",SUM(AZ7:BJ7))))","v":""}]
[{"$f":"IF('Encodage réponses Es'!A7=\"\",\"\",'Encodage réponses Es'!A7)","v":0},{"$f":"IF('Encodage réponses Es'!B7=\"\",\"\",'Encodage réponses Es'!B7)","v":0},{"$f":"IF('Encodage réponses Es'!C7=\"\",\"\",'Encodage réponses Es'!C7)","v":0},4,{"$f":"IF('Encodage réponses Es'!E7=\"\",\"\",'Encodage réponses Es'!E7)","v":""},{"$f":"IF('Encodage réponses Es'!F7=\"\",\"\",'Encodage réponses Es'!F7)","v":""},{"$f":"IF('Encodage réponses Es'!G7=\"\",\"\",'Encodage réponses Es'!G7)","v":""},{"$f":"IF('Encodage réponses Es'!I7=\"\",\"\",'Encodage réponses Es'!I7)","v":""},null,{"$f":"IF('Encodage réponses Es'!AW7=\"!\",\"Incomplet\",IF(AND(SUM('Encodage réponses Es'!J7:AV7)>=$J$4/2,'Encodage réponses Es'!AW7=\"a\"),SUM('Encodage réponses Es'!J7:AV7),IF(AND(SUM('Encodage réponses Es'!J7:AV7)<$J$4/2,'Encodage réponses Es'!AW7=\"a\"),\"Absent(e)\",IF(COUNTBLANK('Encodage réponses Es'!J7:AV7)=39,\"\",SUM('Encodage réponses Es'!J7:AV7)))))","v":""},"",null,"","","","",null,null,{"$f":"IF('Encodage réponses Es'!J7=\"\",\"\",'Encodage réponses Es'!J7)","v":""},{"$f":"IF('Encodage réponses Es'!K7=\"\",\"\",'Encodage réponses Es'!K7)","v":""},{"$f":"IF('Encodage réponses Es'!M7=\"\",\"\",'Encodage réponses Es'!M7)","v":""},{"$f":"IF('Encodage réponses Es'!N7=\"\",\"\",'Encodage réponses Es'!N7)","v":""},{"$f":"IF('Encodage réponses Es'!S7=\"\",\"\",'Encodage réponses Es'!S7)","v":""},{"$f":"IF('Encodage réponses Es'!L7=\"\",\"\",'Encodage réponses Es'!L7)","v":""},{"$f":"IF('Encodage réponses Es'!O7=\"\",\"\",'Encodage réponses Es'!O7)","v":""},{"$f":"IF('Encodage réponses Es'!AB7=\"\",\"\",'Encodage réponses Es'!AB7)","v":""},{"$f":"IF(AND(COUNTBLANK('Encodage réponses Es'!J7:P7)>0,'Encodage réponses Es'!$AW7=\"!\"),\"Incomplet\",IF(OR(COUNTIF(S8:Z8,\"a\")>0,COUNTIF(S8:Z8,\"A\")>0),\"Absent(e)\",IF(COUNT(S8:Z8)=0,\"\",SUM(S8:Z8))))","v":""},{"$f":"IF('Encodage réponses Es'!V7=\"\",\"\",'Encodage réponses Es'!V7)","v":""},null,{"$f":"IF('Encodage réponses Es'!X7=\"\",\"\",'Encodage réponses Es'!X7)","v":""},{"$f":"IF('Encodage réponses Es'!Y7=\"\",\"\",'Encodage réponses Es'!Y7)","v":""},{"$f":"IF('Encodage réponses Es'!Z7=\"\",\"\",'Encodage réponses Es'!Z7)","v":""},{"$f":"IF('Encodage réponses Es'!P7=\"\",\"\",'Encodage réponses Es'!P7)","v":""},{"$f":"IF('Encodage réponses Es'!Q7=\"\",\"\",'Encodage réponses Es'!Q7)","v":""},{"$f":"IF('Encodage réponses Es'!R7=\"\",\"\",'Encodage réponses Es'!R7)","v":""},{"$f":"IF('Encodage réponses Es'!U7=\"\",\"\",'Encodage réponses Es'!U7)","v":""},{"$f":"IF('Encodage réponses Es'!W7=\"\",\"\",'Encodage réponses Es'!W7)","v":""},{"$f":"IF('Encodage réponses Es'!K7=\"\",\"\",'Encodage réponses Es'!K7)","v":""},{"$f":"IF('Encodage réponses Es'!AA7=\"\",\"\",'Encodage réponses Es'!AA7)","v":""},{"$f":"IF(AND(COUNTBLANK('Encodage réponses Es'!Q7:X7)>0,'Encodage réponses Es'!$AW7=\"!\"),\"Incomplet\",IF(OR(COUNTIF(AB8:AM8,\"a\")>0,COUNTIF(AB8:AM8,\"A\")>0),\"Absent(e)\",IF(COUNT(AB8:AM8)=0,\"\",SUM(AB8:AM8))))","v":""},{"$f":"IF('Encodage réponses Es'!AD7=\"\",\"\",'Encodage réponses Es'!AD7)","v":""},{"$f":"IF('Encodage réponses Es'!AE7=\"\",\"\",'Encodage réponses Es'!AE7)","v":""},{"$f":"IF('Encodage réponses Es'!AL7=\"\",\"\",'Encodage réponses Es'!AL7)","v":""},{"$f":"IF('Encodage réponses Es'!AV7=\"\",\"\",'Encodage réponses Es'!AV7)","v":""},{"$f":"IF('Encodage réponses Es'!AC7=\"\",\"\",'Encodage réponses Es'!AC7)","v":""},{"$f":"IF('Encodage réponses Es'!AR7=\"\",\"\",'Encodage réponses Es'!AR7)","v":""},{"$f":"IF('Encodage réponses Es'!AS7=\"\",\"\",'Encodage réponses Es'!AS7)","v":""},{"$f":"IF('Encodage réponses Es'!AH7=\"\",\"\",'Encodage réponses Es'!AH7)","v":""},{"$f":"IF('Encodage réponses Es'!AI7=\"\",\"\",'Encodage réponses Es'!AI7)","v":""},{"$f":"IF('Encodage réponses Es'!AJ7=\"\",\"\",'Encodage réponses Es'!AJ7)","v":""},{"$f":"IF(AND(COUNTBLANK('Encodage réponses Es'!Y7:AE7)>0,'Encodage réponses Es'!$AW7=\"!\"),\"Incomplet\",IF(OR(COUNTIF(AO8:AX8,\"a\")>0,COUNTIF(AO8:AX8,\"A\")>0),\"Absent(e)\",IF(COUNT(AO8:AX8)=0,\"\",SUM(AO8:AX8))))","v":""},{"$f":"IF('Encodage réponses Es'!AF7=\"\",\"\",'Encodage réponses Es'!AF7)","v":""},{"$f":"IF('Encodage réponses Es'!AP7=\"\",\"\",'Encodage réponses Es'!AP7)","v":""},{"$f":"IF('Encodage réponses Es'!AK7=\"\",\"\",'Encodage réponses Es'!AK7)","v":""},{"$f":"IF('Encodage réponses Es'!AM7=\"\",\"\",'Encodage réponses Es'!AM7)","v":""},{"$f":"IF('Encodage réponses Es'!AN7=\"\",\"\",'Encodage réponses Es'!AN7)","v":""},{"$f":"IF('Encodage réponses Es'!AO7=\"\",\"\",'Encodage réponses Es'!AO7)","v":""},{"$f":"IF('Encodage réponses Es'!AQ7=\"\",\"\",'Encodage réponses Es'!AQ7)","v":""},{"$f":"IF('Encodage réponses Es'!AT7=\"\",\"\",'Encodage réponses Es'!AT7)","v":""},{"$f":"IF('Encodage réponses Es'!AU7=\"\",\"\",'Encodage réponses Es'!AUS7)","v":""},{"$f":"IF('Encodage réponses Es'!AG7=\"\",\"\",'Encodage réponses Es'!AG7)","v":""},null,{"$f":"IF(AND(COUNTBLANK('Encodage réponses Es'!AF7:AH7)>0,'Encodage réponses Es'!$AW7=\"!\"),\"Incomplet\",IF(OR(COUNTIF(AZ8:BJ8,\"a\")>0,COUNTIF(AZ8:BJ8,\"A\")>0),\"Absent(e)\",IF(COUNT(AZ8:BJ8)=0,\"\",SUM(AZ8:BJ8))))","v":""}]
[{"$f":"IF('Encodage réponses Es'!A8=\"\",\"\",'Encodage réponses Es'!A8)","v":0},{"$f":"IF('Encodage réponses Es'!B8=\"\",\"\",'Encodage réponses Es'!B8)","v":0},{"$f":"IF('Encodage réponses Es'!C8=\"\",\"\",'Encodage réponses Es'!C8)","v":0},5,{"$f":"IF('Encodage réponses Es'!E8=\"\",\"\",'Encodage réponses Es'!E8)","v":""},{"$f":"IF('Encodage réponses Es'!F8=\"\",\"\",'Encodage réponses Es'!F8)","v":""},{"$f":"IF('Encodage réponses Es'!G8=\"\",\"\",'Encodage réponses Es'!G8)","v":""},{"$f":"IF('Encodage réponses Es'!I8=\"\",\"\",'Encodage réponses Es'!I8)","v":""},null,{"$f":"IF('Encodage réponses Es'!AW8=\"!\",\"Incomplet\",IF(AND(SUM('Encodage réponses Es'!J8:AV8)>=$J$4/2,'Encodage réponses Es'!AW8=\"a\"),SUM('Encodage réponses Es'!J8:AV8),IF(AND(SUM('Encodage réponses Es'!J8:AV8)<$J$4/2,'Encodage réponses Es'!AW8=\"a\"),\"Absent(e)\",IF(COUNTBLANK('Encodage réponses Es'!J8:AV8)=39,\"\",SUM('Encodage réponses Es'!J8:AV8)))))","v":""},"",null,"","","","",null,null,{"$f":"IF('Encodage réponses Es'!J8=\"\",\"\",'Encodage réponses Es'!J8)","v":""},{"$f":"IF('Encodage réponses Es'!K8=\"\",\"\",'Encodage réponses Es'!K8)","v":""},{"$f":"IF('Encodage réponses Es'!M8=\"\",\"\",'Encodage réponses Es'!M8)","v":""},{"$f":"IF('Encodage réponses Es'!N8=\"\",\"\",'Encodage réponses Es'!N8)","v":""},{"$f":"IF('Encodage réponses Es'!S8=\"\",\"\",'Encodage réponses Es'!S8)","v":""},{"$f":"IF('Encodage réponses Es'!L8=\"\",\"\",'Encodage réponses Es'!L8)","v":""},{"$f":"IF('Encodage réponses Es'!O8=\"\",\"\",'Encodage réponses Es'!O8)","v":""},{"$f":"IF('Encodage réponses Es'!AB8=\"\",\"\",'Encodage réponses Es'!AB8)","v":""},{"$f":"IF(AND(COUNTBLANK('Encodage réponses Es'!J8:P8)>0,'Encodage réponses Es'!$AW8=\"!\"),\"Incomplet\",IF(OR(COUNTIF(S9:Z9,\"a\")>0,COUNTIF(S9:Z9,\"A\")>0),\"Absent(e)\",IF(COUNT(S9:Z9)=0,\"\",SUM(S9:Z9))))","v":""},{"$f":"IF('Encodage réponses Es'!V8=\"\",\"\",'Encodage réponses Es'!V8)","v":""},null,{"$f":"IF('Encodage réponses Es'!X8=\"\",\"\",'Encodage réponses Es'!X8)","v":""},{"$f":"IF('Encodage réponses Es'!Y8=\"\",\"\",'Encodage réponses Es'!Y8)","v":""},{"$f":"IF('Encodage réponses Es'!Z8=\"\",\"\",'Encodage réponses Es'!Z8)","v":""},{"$f":"IF('Encodage réponses Es'!P8=\"\",\"\",'Encodage réponses Es'!P8)","v":""},{"$f":"IF('Encodage réponses Es'!Q8=\"\",\"\",'Encodage réponses Es'!Q8)","v":""},{"$f":"IF('Encodage réponses Es'!R8=\"\",\"\",'Encodage réponses Es'!R8)","v":""},{"$f":"IF('Encodage réponses Es'!U8=\"\",\"\",'Encodage réponses Es'!U8)","v":""},{"$f":"IF('Encodage réponses Es'!W8=\"\",\"\",'Encodage réponses Es'!W8)","v":""},{"$f":"IF('Encodage réponses Es'!K8=\"\",\"\",'Encodage réponses Es'!K8)","v":""},{"$f":"IF('Encodage réponses Es'!AA8=\"\",\"\",'Encodage réponses Es'!AA8)","v":""},{"$f":"IF(AND(COUNTBLANK('Encodage réponses Es'!Q8:X8)>0,'Encodage réponses Es'!$AW8=\"!\"),\"Incomplet\",IF(OR(COUNTIF(AB9:AM9,\"a\")>0,COUNTIF(AB9:AM9,\"A\")>0),\"Absent(e)\",IF(COUNT(AB9:AM9)=0,\"\",SUM(AB9:AM9))))","v":""},{"$f":"IF('Encodage réponses Es'!AD8=\"\",\"\",'Encodage réponses Es'!AD8)","v":""},{"$f":"IF('Encodage réponses Es'!AE8=\"\",\"\",'Encodage réponses Es'!AE8)","v":""},{"$f":"IF('Encodage réponses Es'!AL8=\"\",\"\",'Encodage réponses Es'!AL8)","v":""},{"$f":"IF('Encodage réponses Es'!AV8=\"\",\"\",'Encodage réponses Es'!AV8)","v":""},{"$f":"IF('Encodage réponses Es'!AC8=\"\",\"\",'Encodage réponses Es'!AC8)","v":""},{"$f":"IF('Encodage réponses Es'!AR8=\"\",\"\",'Encodage réponses Es'!AR8)","v":""},{"$f":"IF('Encodage réponses Es'!AS8=\"\",\"\",'Encodage réponses Es'!AS8)","v":""},{"$f":"IF('Encodage réponses Es'!AH8=\"\",\"\",'Encodage réponses Es'!AH8)","v":""},{"$f":"IF('Encodage réponses Es'!AI8=\"\",\"\",'Encodage réponses Es'!AI8)","v":""},{"$f":"IF('Encodage réponses Es'!AJ8=\"\",\"\",'Encodage réponses Es'!AJ8)","v":""},{"$f":"IF(AND(COUNTBLANK('Encodage réponses Es'!Y8:AE8)>0,'Encodage réponses Es'!$AW8=\"!\"),\"Incomplet\",IF(OR(COUNTIF(AO9:AX9,\"a\")>0,COUNTIF(AO9:AX9,\"A\")>0),\"Absent(e)\",IF(COUNT(AO9:AX9)=0,\"\",SUM(AO9:AX9))))","v":""},{"$f":"IF('Encodage réponses Es'!AF8=\"\",\"\",'Encodage réponses Es'!AF8)","v":""},{"$f":"IF('Encodage réponses Es'!AP8=\"\",\"\",'Encodage réponses Es'!AP8)","v":""},{"$f":"IF('Encodage réponses Es'!AK8=\"\",\"\",'Encodage réponses Es'!AK8)","v":""},{"$f":"IF('Encodage réponses Es'!AM8=\"\",\"\",'Encodage réponses Es'!AM8)","v":""},{"$f":"IF('Encodage réponses Es'!AN8=\"\",\"\",'Encodage réponses Es'!AN8)","v":""},{"$f":"IF('Encodage réponses Es'!AO8=\"\",\"\",'Encodage réponses Es'!AO8)","v":""},{"$f":"IF('Encodage réponses Es'!AQ8=\"\",\"\",'Encodage réponses Es'!AQ8)","v":""},{"$f":"IF('Encodage réponses Es'!AT8=\"\",\"\",'Encodage réponses Es'!AT8)","v":""},{"$f":"IF('Encodage réponses Es'!AU8=\"\",\"\",'Encodage réponses Es'!AUS8)","v":""},{"$f":"IF('Encodage réponses Es'!AG8=\"\",\"\",'Encodage réponses Es'!AG8)","v":""},null,{"$f":"IF(AND(COUNTBLANK('Encodage réponses Es'!AF8:AH8)>0,'Encodage réponses Es'!$AW8=\"!\"),\"Incomplet\",IF(OR(COUNTIF(AZ9:BJ9,\"a\")>0,COUNTIF(AZ9:BJ9,\"A\")>0),\"Absent(e)\",IF(COUNT(AZ9:BJ9)=0,\"\",SUM(AZ9:BJ9))))","v":""}]
[{"$f":"IF('Encodage réponses Es'!A9=\"\",\"\",'Encodage réponses Es'!A9)","v":0},{"$f":"IF('Encodage réponses Es'!B9=\"\",\"\",'Encodage réponses Es'!B9)","v":0},{"$f":"IF('Encodage réponses Es'!C9=\"\",\"\",'Encodage réponses Es'!C9)","v":0},6,{"$f":"IF('Encodage réponses Es'!E9=\"\",\"\",'Encodage réponses Es'!E9)","v":""},{"$f":"IF('Encodage réponses Es'!F9=\"\",\"\",'Encodage réponses Es'!F9)","v":""},{"$f":"IF('Encodage réponses Es'!G9=\"\",\"\",'Encodage réponses Es'!G9)","v":""},{"$f":"IF('Encodage réponses Es'!I9=\"\",\"\",'Encodage réponses Es'!I9)","v":""},null,{"$f":"IF('Encodage réponses Es'!AW9=\"!\",\"Incomplet\",IF(AND(SUM('Encodage réponses Es'!J9:AV9)>=$J$4/2,'Encodage réponses Es'!AW9=\"a\"),SUM('Encodage réponses Es'!J9:AV9),IF(AND(SUM('Encodage réponses Es'!J9:AV9)<$J$4/2,'Encodage réponses Es'!AW9=\"a\"),\"Absent(e)\",IF(COUNTBLANK('Encodage réponses Es'!J9:AV9)=39,\"\",SUM('Encodage réponses Es'!J9:AV9)))))","v":""},"",null,"","","","",null,null,{"$f":"IF('Encodage réponses Es'!J9=\"\",\"\",'Encodage réponses Es'!J9)","v":""},{"$f":"IF('Encodage réponses Es'!K9=\"\",\"\",'Encodage réponses Es'!K9)","v":""},{"$f":"IF('Encodage réponses Es'!M9=\"\",\"\",'Encodage réponses Es'!M9)","v":""},{"$f":"IF('Encodage réponses Es'!N9=\"\",\"\",'Encodage réponses Es'!N9)","v":""},{"$f":"IF('Encodage réponses Es'!S9=\"\",\"\",'Encodage réponses Es'!S9)","v":""},{"$f":"IF('Encodage réponses Es'!L9=\"\",\"\",'Encodage réponses Es'!L9)","v":""},{"$f":"IF('Encodage réponses Es'!O9=\"\",\"\",'Encodage réponses Es'!O9)","v":""},{"$f":"IF('Encodage réponses Es'!AB9=\"\",\"\",'Encodage réponses Es'!AB9)","v":""},{"$f":"IF(AND(COUNTBLANK('Encodage réponses Es'!J9:P9)>0,'Encodage réponses Es'!$AW9=\"!\"),\"Incomplet\",IF(OR(COUNTIF(S10:Z10,\"a\")>0,COUNTIF(S10:Z10,\"A\")>0),\"Absent(e)\",IF(COUNT(S10:Z10)=0,\"\",SUM(S10:Z10))))","v":""},{"$f":"IF('Encodage réponses Es'!V9=\"\",\"\",'Encodage réponses Es'!V9)","v":""},null,{"$f":"IF('Encodage réponses Es'!X9=\"\",\"\",'Encodage réponses Es'!X9)","v":""},{"$f":"IF('Encodage réponses Es'!Y9=\"\",\"\",'Encodage réponses Es'!Y9)","v":""},{"$f":"IF('Encodage réponses Es'!Z9=\"\",\"\",'Encodage réponses Es'!Z9)","v":""},{"$f":"IF('Encodage réponses Es'!P9=\"\",\"\",'Encodage réponses Es'!P9)","v":""},{"$f":"IF('Encodage réponses Es'!Q9=\"\",\"\",'Encodage réponses Es'!Q9)","v":""},{"$f":"IF('Encodage réponses Es'!R9=\"\",\"\",'Encodage réponses Es'!R9)","v":""},{"$f":"IF('Encodage réponses Es'!U9=\"\",\"\",'Encodage réponses Es'!U9)","v":""},{"$f":"IF('Encodage réponses Es'!W9=\"\",\"\",'Encodage réponses Es'!W9)","v":""},{"$f":"IF('Encodage réponses Es'!K9=\"\",\"\",'Encodage réponses Es'!K9)","v":""},{"$f":"IF('Encodage réponses Es'!AA9=\"\",\"\",'Encodage réponses Es'!AA9)","v":""},{"$f":"IF(AND(COUNTBLANK('Encodage réponses Es'!Q9:X9)>0,'Encodage réponses Es'!$AW9=\"!\"),\"Incomplet\",IF(OR(COUNTIF(AB10:AM10,\"a\")>0,COUNTIF(AB10:AM10,\"A\")>0),\"Absent(e)\",IF(COUNT(AB10:AM10)=0,\"\",SUM(AB10:AM10))))","v":""},{"$f":"IF('Encodage réponses Es'!AD9=\"\",\"\",'Encodage réponses Es'!AD9)","v":""},{"$f":"IF('Encodage réponses Es'!AE9=\"\",\"\",'Encodage réponses Es'!AE9)","v":""},{"$f":"IF('Encodage réponses Es'!AL9=\"\",\"\",'Encodage réponses Es'!AL9)","v":""},{"$f":"IF('Encodage réponses Es'!AV9=\"\",\"\",'Encodage réponses Es'!AV9)","v":""},{"$f":"IF('Encodage réponses Es'!AC9=\"\",\"\",'Encodage réponses Es'!AC9)","v":""},{"$f":"IF('Encodage réponses Es'!AR9=\"\",\"\",'Encodage réponses Es'!AR9)","v":""},{"$f":"IF('Encodage réponses Es'!AS9=\"\",\"\",'Encodage réponses Es'!AS9)","v":""},{"$f":"IF('Encodage réponses Es'!AH9=\"\",\"\",'Encodage réponses Es'!AH9)","v":""},{"$f":"IF('Encodage réponses Es'!AI9=\"\",\"\",'Encodage réponses Es'!AI9)","v":""},{"$f":"IF('Encodage réponses Es'!AJ9=\"\",\"\",'Encodage réponses Es'!AJ9)","v":""},{"$f":"IF(AND(COUNTBLANK('Encodage réponses Es'!Y9:AE9)>0,'Encodage réponses Es'!$AW9=\"!\"),\"Incomplet\",IF(OR(COUNTIF(AO10:AX10,\"a\")>0,COUNTIF(AO10:AX10,\"A\")>0),\"Absent(e)\",IF(COUNT(AO10:AX10)=0,\"\",SUM(AO10:AX10))))","v":""},{"$f":"IF('Encodage réponses Es'!AF9=\"\",\"\",'Encodage réponses Es'!AF9)","v":""},{"$f":"IF('Encodage réponses Es'!AP9=\"\",\"\",'Encodage réponses Es'!AP9)","v":""},{"$f":"IF('Encodage réponses Es'!AK9=\"\",\"\",'Encodage réponses Es'!AK9)","v":""},{"$f":"IF('Encodage réponses Es'!AM9=\"\",\"\",'Encodage réponses Es'!AM9)","v":""},{"$f":"IF('Encodage réponses Es'!AN9=\"\",\"\",'Encodage réponses Es'!AN9)","v":""},{"$f":"IF('Encodage réponses Es'!AO9=\"\",\"\",'Encodage réponses Es'!AO9)","v":""},{"$f":"IF('Encodage réponses Es'!AQ9=\"\",\"\",'Encodage réponses Es'!AQ9)","v":""},{"$f":"IF('Encodage réponses Es'!AT9=\"\",\"\",'Encodage réponses Es'!AT9)","v":""},{"$f":"IF('Encodage réponses Es'!AU9=\"\",\"\",'Encodage réponses Es'!AUS9)","v":""},{"$f":"IF('Encodage réponses Es'!AG9=\"\",\"\",'Encodage réponses Es'!AG9)","v":""},null,{"$f":"IF(AND(COUNTBLANK('Encodage réponses Es'!AF9:AH9)>0,'Encodage réponses Es'!$AW9=\"!\"),\"Incomplet\",IF(OR(COUNTIF(AZ10:BJ10,\"a\")>0,COUNTIF(AZ10:BJ10,\"A\")>0),\"Absent(e)\",IF(COUNT(AZ10:BJ10)=0,\"\",SUM(AZ10:BJ10))))","v":""}]
[{"$f":"IF('Encodage réponses Es'!A10=\"\",\"\",'Encodage réponses Es'!A10)","v":0},{"$f":"IF('Encodage réponses Es'!B10=\"\",\"\",'Encodage réponses Es'!B10)","v":0},{"$f":"IF('Encodage réponses Es'!C10=\"\",\"\",'Encodage réponses Es'!C10)","v":0},7,{"$f":"IF('Encodage réponses Es'!E10=\"\",\"\",'Encodage réponses Es'!E10)","v":""},{"$f":"IF('Encodage réponses Es'!F10=\"\",\"\",'Encodage réponses Es'!F10)","v":""},{"$f":"IF('Encodage réponses Es'!G10=\"\",\"\",'Encodage réponses Es'!G10)","v":""},{"$f":"IF('Encodage réponses Es'!I10=\"\",\"\",'Encodage réponses Es'!I10)","v":""},null,{"$f":"IF('Encodage réponses Es'!AW10=\"!\",\"Incomplet\",IF(AND(SUM('Encodage réponses Es'!J10:AV10)>=$J$4/2,'Encodage réponses Es'!AW10=\"a\"),SUM('Encodage réponses Es'!J10:AV10),IF(AND(SUM('Encodage réponses Es'!J10:AV10)<$J$4/2,'Encodage réponses Es'!AW10=\"a\"),\"Absent(e)\",IF(COUNTBLANK('Encodage réponses Es'!J10:AV10)=39,\"\",SUM('Encodage réponses Es'!J10:AV10)))))","v":""},"",null,"","","","",null,null,{"$f":"IF('Encodage réponses Es'!J10=\"\",\"\",'Encodage réponses Es'!J10)","v":""},{"$f":"IF('Encodage réponses Es'!K10=\"\",\"\",'Encodage réponses Es'!K10)","v":""},{"$f":"IF('Encodage réponses Es'!M10=\"\",\"\",'Encodage réponses Es'!M10)","v":""},{"$f":"IF('Encodage réponses Es'!N10=\"\",\"\",'Encodage réponses Es'!N10)","v":""},{"$f":"IF('Encodage réponses Es'!S10=\"\",\"\",'Encodage réponses Es'!S10)","v":""},{"$f":"IF('Encodage réponses Es'!L10=\"\",\"\",'Encodage réponses Es'!L10)","v":""},{"$f":"IF('Encodage réponses Es'!O10=\"\",\"\",'Encodage réponses Es'!O10)","v":""},{"$f":"IF('Encodage réponses Es'!AB10=\"\",\"\",'Encodage réponses Es'!AB10)","v":""},{"$f":"IF(AND(COUNTBLANK('Encodage réponses Es'!J10:P10)>0,'Encodage réponses Es'!$AW10=\"!\"),\"Incomplet\",IF(OR(COUNTIF(S11:Z11,\"a\")>0,COUNTIF(S11:Z11,\"A\")>0),\"Absent(e)\",IF(COUNT(S11:Z11)=0,\"\",SUM(S11:Z11))))","v":""},{"$f":"IF('Encodage réponses Es'!V10=\"\",\"\",'Encodage réponses Es'!V10)","v":""},null,{"$f":"IF('Encodage réponses Es'!X10=\"\",\"\",'Encodage réponses Es'!X10)","v":""},{"$f":"IF('Encodage réponses Es'!Y10=\"\",\"\",'Encodage réponses Es'!Y10)","v":""},{"$f":"IF('Encodage réponses Es'!Z10=\"\",\"\",'Encodage réponses Es'!Z10)","v":""},{"$f":"IF('Encodage réponses Es'!P10=\"\",\"\",'Encodage réponses Es'!P10)","v":""},{"$f":"IF('Encodage réponses Es'!Q10=\"\",\"\",'Encodage réponses Es'!Q10)","v":""},{"$f":"IF('Encodage réponses Es'!R10=\"\",\"\",'Encodage réponses Es'!R10)","v":""},{"$f":"IF('Encodage réponses Es'!U10=\"\",\"\",'Encodage réponses Es'!U10)","v":""},{"$f":"IF('Encodage réponses Es'!W10=\"\",\"\",'Encodage réponses Es'!W10)","v":""},{"$f":"IF('Encodage réponses Es'!K10=\"\",\"\",'Encodage réponses Es'!K10)","v":""},{"$f":"IF('Encodage réponses Es'!AA10=\"\",\"\",'Encodage réponses Es'!AA10)","v":""},{"$f":"IF(AND(COUNTBLANK('Encodage réponses Es'!Q10:X10)>0,'Encodage réponses Es'!$AW10=\"!\"),\"Incomplet\",IF(OR(COUNTIF(AB11:AM11,\"a\")>0,COUNTIF(AB11:AM11,\"A\")>0),\"Absent(e)\",IF(COUNT(AB11:AM11)=0,\"\",SUM(AB11:AM11))))","v":""},{"$f":"IF('Encodage réponses Es'!AD10=\"\",\"\",'Encodage réponses Es'!AD10)","v":""},{"$f":"IF('Encodage réponses Es'!AE10=\"\",\"\",'Encodage réponses Es'!AE10)","v":""},{"$f":"IF('Encodage réponses Es'!AL10=\"\",\"\",'Encodage réponses Es'!AL10)","v":""},{"$f":"IF('Encodage réponses Es'!AV10=\"\",\"\",'Encodage réponses Es'!AV10)","v":""},{"$f":"IF('Encodage réponses Es'!AC10=\"\",\"\",'Encodage réponses Es'!AC10)","v":""},{"$f":"IF('Encodage réponses Es'!AR10=\"\",\"\",'Encodage réponses Es'!AR10)","v":""},{"$f":"IF('Encodage réponses Es'!AS10=\"\",\"\",'Encodage réponses Es'!AS10)","v":""},{"$f":"IF('Encodage réponses Es'!AH10=\"\",\"\",'Encodage réponses Es'!AH10)","v":""},{"$f":"IF('Encodage réponses Es'!AI10=\"\",\"\",'Encodage réponses Es'!AI10)","v":""},{"$f":"IF('Encodage réponses Es'!AJ10=\"\",\"\",'Encodage réponses Es'!AJ10)","v":""},{"$f":"IF(AND(COUNTBLANK('Encodage réponses Es'!Y10:AE10)>0,'Encodage réponses Es'!$AW10=\"!\"),\"Incomplet\",IF(OR(COUNTIF(AO11:AX11,\"a\")>0,COUNTIF(AO11:AX11,\"A\")>0),\"Absent(e)\",IF(COUNT(AO11:AX11)=0,\"\",SUM(AO11:AX11))))","v":""},{"$f":"IF('Encodage réponses Es'!AF10=\"\",\"\",'Encodage réponses Es'!AF10)","v":""},{"$f":"IF('Encodage réponses Es'!AP10=\"\",\"\",'Encodage réponses Es'!AP10)","v":""},{"$f":"IF('Encodage réponses Es'!AK10=\"\",\"\",'Encodage réponses Es'!AK10)","v":""},{"$f":"IF('Encodage réponses Es'!AM10=\"\",\"\",'Encodage réponses Es'!AM10)","v":""},{"$f":"IF('Encodage réponses Es'!AN10=\"\",\"\",'Encodage réponses Es'!AN10)","v":""},{"$f":"IF('Encodage réponses Es'!AO10=\"\",\"\",'Encodage réponses Es'!AO10)","v":""},{"$f":"IF('Encodage réponses Es'!AQ10=\"\",\"\",'Encodage réponses Es'!AQ10)","v":""},{"$f":"IF('Encodage réponses Es'!AT10=\"\",\"\",'Encodage réponses Es'!AT10)","v":""},{"$f":"IF('Encodage réponses Es'!AU10=\"\",\"\",'Encodage réponses Es'!AUS10)","v":""},{"$f":"IF('Encodage réponses Es'!AG10=\"\",\"\",'Encodage réponses Es'!AG10)","v":""},null,{"$f":"IF(AND(COUNTBLANK('Encodage réponses Es'!AF10:AH10)>0,'Encodage réponses Es'!$AW10=\"!\"),\"Incomplet\",IF(OR(COUNTIF(AZ11:BJ11,\"a\")>0,COUNTIF(AZ11:BJ11,\"A\")>0),\"Absent(e)\",IF(COUNT(AZ11:BJ11)=0,\"\",SUM(AZ11:BJ11))))","v":""}]
[{"$f":"IF('Encodage réponses Es'!A11=\"\",\"\",'Encodage réponses Es'!A11)","v":0},{"$f":"IF('Encodage réponses Es'!B11=\"\",\"\",'Encodage réponses Es'!B11)","v":0},{"$f":"IF('Encodage réponses Es'!C11=\"\",\"\",'Encodage réponses Es'!C11)","v":0},8,{"$f":"IF('Encodage réponses Es'!E11=\"\",\"\",'Encodage réponses Es'!E11)","v":""},{"$f":"IF('Encodage réponses Es'!F11=\"\",\"\",'Encodage réponses Es'!F11)","v":""},{"$f":"IF('Encodage réponses Es'!G11=\"\",\"\",'Encodage réponses Es'!G11)","v":""},{"$f":"IF('Encodage réponses Es'!I11=\"\",\"\",'Encodage réponses Es'!I11)","v":""},null,{"$f":"IF('Encodage réponses Es'!AW11=\"!\",\"Incomplet\",IF(AND(SUM('Encodage réponses Es'!J11:AV11)>=$J$4/2,'Encodage réponses Es'!AW11=\"a\"),SUM('Encodage réponses Es'!J11:AV11),IF(AND(SUM('Encodage réponses Es'!J11:AV11)<$J$4/2,'Encodage réponses Es'!AW11=\"a\"),\"Absent(e)\",IF(COUNTBLANK('Encodage réponses Es'!J11:AV11)=39,\"\",SUM('Encodage réponses Es'!J11:AV11)))))","v":""},"",null,"","","","",null,null,{"$f":"IF('Encodage réponses Es'!J11=\"\",\"\",'Encodage réponses Es'!J11)","v":""},{"$f":"IF('Encodage réponses Es'!K11=\"\",\"\",'Encodage réponses Es'!K11)","v":""},{"$f":"IF('Encodage réponses Es'!M11=\"\",\"\",'Encodage réponses Es'!M11)","v":""},{"$f":"IF('Encodage réponses Es'!N11=\"\",\"\",'Encodage réponses Es'!N11)","v":""},{"$f":"IF('Encodage réponses Es'!S11=\"\",\"\",'Encodage réponses Es'!S11)","v":""},{"$f":"IF('Encodage réponses Es'!L11=\"\",\"\",'Encodage réponses Es'!L11)","v":""},{"$f":"IF('Encodage réponses Es'!O11=\"\",\"\",'Encodage réponses Es'!O11)","v":""},{"$f":"IF('Encodage réponses Es'!AB11=\"\",\"\",'Encodage réponses Es'!AB11)","v":""},{"$f":"IF(AND(COUNTBLANK('Encodage réponses Es'!J11:P11)>0,'Encodage réponses Es'!$AW11=\"!\"),\"Incomplet\",IF(OR(COUNTIF(S12:Z12,\"a\")>0,COUNTIF(S12:Z12,\"A\")>0),\"Absent(e)\",IF(COUNT(S12:Z12)=0,\"\",SUM(S12:Z12))))","v":""},{"$f":"IF('Encodage réponses Es'!V11=\"\",\"\",'Encodage réponses Es'!V11)","v":""},null,{"$f":"IF('Encodage réponses Es'!X11=\"\",\"\",'Encodage réponses Es'!X11)","v":""},{"$f":"IF('Encodage réponses Es'!Y11=\"\",\"\",'Encodage réponses Es'!Y11)","v":""},{"$f":"IF('Encodage réponses Es'!Z11=\"\",\"\",'Encodage réponses Es'!Z11)","v":""},{"$f":"IF('Encodage réponses Es'!P11=\"\",\"\",'Encodage réponses Es'!P11)","v":""},{"$f":"IF('Encodage réponses Es'!Q11=\"\",\"\",'Encodage réponses Es'!Q11)","v":""},{"$f":"IF('Encodage réponses Es'!R11=\"\",\"\",'Encodage réponses Es'!R11)","v":""},{"$f":"IF('Encodage réponses Es'!U11=\"\",\"\",'Encodage réponses Es'!U11)","v":""},{"$f":"IF('Encodage réponses Es'!W11=\"\",\"\",'Encodage réponses Es'!W11)","v":""},{"$f":"IF('Encodage réponses Es'!K11=\"\",\"\",'Encodage réponses Es'!K11)","v":""},{"$f":"IF('Encodage réponses Es'!AA11=\"\",\"\",'Encodage réponses Es'!AA11)","v":""},{"$f":"IF(AND(COUNTBLANK('Encodage réponses Es'!Q11:X11)>0,'Encodage réponses Es'!$AW11=\"!\"),\"Incomplet\",IF(OR(COUNTIF(AB12:AM12,\"a\")>0,COUNTIF(AB12:AM12,\"A\")>0),\"Absent(e)\",IF(COUNT(AB12:AM12)=0,\"\",SUM(AB12:AM12))))","v":""},{"$f":"IF('Encodage réponses Es'!AD11=\"\",\"\",'Encodage réponses Es'!AD11)","v":""},{"$f":"IF('Encodage réponses Es'!AE11=\"\",\"\",'Encodage réponses Es'!AE11)","v":""},{"$f":"IF('Encodage réponses Es'!AL11=\"\",\"\",'Encodage réponses Es'!AL11)","v":""},{"$f":"IF('Encodage réponses Es'!AV11=\"\",\"\",'Encodage réponses Es'!AV11)","v":""},{"$f":"IF('Encodage réponses Es'!AC11=\"\",\"\",'Encodage réponses Es'!AC11)","v":""},{"$f":"IF('Encodage réponses Es'!AR11=\"\",\"\",'Encodage réponses Es'!AR11)","v":""},{"$f":"IF('Encodage réponses Es'!AS11=\"\",\"\",'Encodage réponses Es'!AS11)","v":""},{"$f":"IF('Encodage réponses Es'!AH11=\"\",\"\",'Encodage réponses Es'!AH11)","v":""},{"$f":"IF('Encodage réponses Es'!AI11=\"\",\"\",'Encodage réponses Es'!AI11)","v":""},{"$f":"IF('Encodage réponses Es'!AJ11=\"\",\"\",'Encodage réponses Es'!AJ11)","v":""},{"$f":"IF(AND(COUNTBLANK('Encodage réponses Es'!Y11:AE11)>0,'Encodage réponses Es'!$AW11=\"!\"),\"Incomplet\",IF(OR(COUNTIF(AO12:AX12,\"a\")>0,COUNTIF(AO12:AX12,\"A\")>0),\"Absent(e)\",IF(COUNT(AO12:AX12)=0,\"\",SUM(AO12:AX12))))","v":""},{"$f":"IF('Encodage réponses Es'!AF11=\"\",\"\",'Encodage réponses Es'!AF11)","v":""},{"$f":"IF('Encodage réponses Es'!AP11=\"\",\"\",'Encodage réponses Es'!AP11)","v":""},{"$f":"IF('Encodage réponses Es'!AK11=\"\",\"\",'Encodage réponses Es'!AK11)","v":""},{"$f":"IF('Encodage réponses Es'!AM11=\"\",\"\",'Encodage réponses Es'!AM11)","v":""},{"$f":"IF('Encodage réponses Es'!AN11=\"\",\"\",'Encodage réponses Es'!AN11)","v":""},{"$f":"IF('Encodage réponses Es'!AO11=\"\",\"\",'Encodage réponses Es'!AO11)","v":""},{"$f":"IF('Encodage réponses Es'!AQ11=\"\",\"\",'Encodage réponses Es'!AQ11)","v":""},{"$f":"IF('Encodage réponses Es'!AT11=\"\",\"\",'Encodage réponses Es'!AT11)","v":""},{"$f":"IF('Encodage réponses Es'!AU11=\"\",\"\",'Encodage réponses Es'!AUS11)","v":""},{"$f":"IF('Encodage réponses Es'!AG11=\"\",\"\",'Encodage réponses Es'!AG11)","v":""},null,{"$f":"IF(AND(COUNTBLANK('Encodage réponses Es'!AF11:AH11)>0,'Encodage réponses Es'!$AW11=\"!\"),\"Incomplet\",IF(OR(COUNTIF(AZ12:BJ12,\"a\")>0,COUNTIF(AZ12:BJ12,\"A\")>0),\"Absent(e)\",IF(COUNT(AZ12:BJ12)=0,\"\",SUM(AZ12:BJ12))))","v":""}]
[{"$f":"IF('Encodage réponses Es'!A12=\"\",\"\",'Encodage réponses Es'!A12)","v":0},{"$f":"IF('Encodage réponses Es'!B12=\"\",\"\",'Encodage réponses Es'!B12)","v":0},{"$f":"IF('Encodage réponses Es'!C12=\"\",\"\",'Encodage réponses Es'!C12)","v":0},9,{"$f":"IF('Encodage réponses Es'!E12=\"\",\"\",'Encodage réponses Es'!E12)","v":""},{"$f":"IF('Encodage réponses Es'!F12=\"\",\"\",'Encodage réponses Es'!F12)","v":""},{"$f":"IF('Encodage réponses Es'!G12=\"\",\"\",'Encodage réponses Es'!G12)","v":""},{"$f":"IF('Encodage réponses Es'!I12=\"\",\"\",'Encodage réponses Es'!I12)","v":""},null,{"$f":"IF('Encodage réponses Es'!AW12=\"!\",\"Incomplet\",IF(AND(SUM('Encodage réponses Es'!J12:AV12)>=$J$4/2,'Encodage réponses Es'!AW12=\"a\"),SUM('Encodage réponses Es'!J12:AV12),IF(AND(SUM('Encodage réponses Es'!J12:AV12)<$J$4/2,'Encodage réponses Es'!AW12=\"a\"),\"Absent(e)\",IF(COUNTBLANK('Encodage réponses Es'!J12:AV12)=39,\"\",SUM('Encodage réponses Es'!J12:AV12)))))","v":""},"",null,"","","","",null,null,{"$f":"IF('Encodage réponses Es'!J12=\"\",\"\",'Encodage réponses Es'!J12)","v":""},{"$f":"IF('Encodage réponses Es'!K12=\"\",\"\",'Encodage réponses Es'!K12)","v":""},{"$f":"IF('Encodage réponses Es'!M12=\"\",\"\",'Encodage réponses Es'!M12)","v":""},{"$f":"IF('Encodage réponses Es'!N12=\"\",\"\",'Encodage réponses Es'!N12)","v":""},{"$f":"IF('Encodage réponses Es'!S12=\"\",\"\",'Encodage réponses Es'!S12)","v":""},{"$f":"IF('Encodage réponses Es'!L12=\"\",\"\",'Encodage réponses Es'!L12)","v":""},{"$f":"IF('Encodage réponses Es'!O12=\"\",\"\",'Encodage réponses Es'!O12)","v":""},{"$f":"IF('Encodage réponses Es'!AB12=\"\",\"\",'Encodage réponses Es'!AB12)","v":""},{"$f":"IF(AND(COUNTBLANK('Encodage réponses Es'!J12:P12)>0,'Encodage réponses Es'!$AW12=\"!\"),\"Incomplet\",IF(OR(COUNTIF(S13:Z13,\"a\")>0,COUNTIF(S13:Z13,\"A\")>0),\"Absent(e)\",IF(COUNT(S13:Z13)=0,\"\",SUM(S13:Z13))))","v":""},{"$f":"IF('Encodage réponses Es'!V12=\"\",\"\",'Encodage réponses Es'!V12)","v":""},null,{"$f":"IF('Encodage réponses Es'!X12=\"\",\"\",'Encodage réponses Es'!X12)","v":""},{"$f":"IF('Encodage réponses Es'!Y12=\"\",\"\",'Encodage réponses Es'!Y12)","v":""},{"$f":"IF('Encodage réponses Es'!Z12=\"\",\"\",'Encodage réponses Es'!Z12)","v":""},{"$f":"IF('Encodage réponses Es'!P12=\"\",\"\",'Encodage réponses Es'!P12)","v":""},{"$f":"IF('Encodage réponses Es'!Q12=\"\",\"\",'Encodage réponses Es'!Q12)","v":""},{"$f":"IF('Encodage réponses Es'!R12=\"\",\"\",'Encodage réponses Es'!R12)","v":""},{"$f":"IF('Encodage réponses Es'!U12=\"\",\"\",'Encodage réponses Es'!U12)","v":""},{"$f":"IF('Encodage réponses Es'!W12=\"\",\"\",'Encodage réponses Es'!W12)","v":""},{"$f":"IF('Encodage réponses Es'!K12=\"\",\"\",'Encodage réponses Es'!K12)","v":""},{"$f":"IF('Encodage réponses Es'!AA12=\"\",\"\",'Encodage réponses Es'!AA12)","v":""},{"$f":"IF(AND(COUNTBLANK('Encodage réponses Es'!Q12:X12)>0,'Encodage réponses Es'!$AW12=\"!\"),\"Incomplet\",IF(OR(COUNTIF(AB13:AM13,\"a\")>0,COUNTIF(AB13:AM13,\"A\")>0),\"Absent(e)\",IF(COUNT(AB13:AM13)=0,\"\",SUM(AB13:AM13))))","v":""},{"$f":"IF('Encodage réponses Es'!AD12=\"\",\"\",'Encodage réponses Es'!AD12)","v":""},{"$f":"IF('Encodage réponses Es'!AE12=\"\",\"\",'Encodage réponses Es'!AE12)","v":""},{"$f":"IF('Encodage réponses Es'!AL12=\"\",\"\",'Encodage réponses Es'!AL12)","v":""},{"$f":"IF('Encodage réponses Es'!AV12=\"\",\"\",'Encodage réponses Es'!AV12)","v":""},{"$f":"IF('Encodage réponses Es'!AC12=\"\",\"\",'Encodage réponses Es'!AC12)","v":""},{"$f":"IF('Encodage réponses Es'!AR12=\"\",\"\",'Encodage réponses Es'!AR12)","v":""},{"$f":"IF('Encodage réponses Es'!AS12=\"\",\"\",'Encodage réponses Es'!AS12)","v":""},{"$f":"IF('Encodage réponses Es'!AH12=\"\",\"\",'Encodage réponses Es'!AH12)","v":""},{"$f":"IF('Encodage réponses Es'!AI12=\"\",\"\",'Encodage réponses Es'!AI12)","v":""},{"$f":"IF('Encodage réponses Es'!AJ12=\"\",\"\",'Encodage réponses Es'!AJ12)","v":""},{"$f":"IF(AND(COUNTBLANK('Encodage réponses Es'!Y12:AE12)>0,'Encodage réponses Es'!$AW12=\"!\"),\"Incomplet\",IF(OR(COUNTIF(AO13:AX13,\"a\")>0,COUNTIF(AO13:AX13,\"A\")>0),\"Absent(e)\",IF(COUNT(AO13:AX13)=0,\"\",SUM(AO13:AX13))))","v":""},{"$f":"IF('Encodage réponses Es'!AF12=\"\",\"\",'Encodage réponses Es'!AF12)","v":""},{"$f":"IF('Encodage réponses Es'!AP12=\"\",\"\",'Encodage réponses Es'!AP12)","v":""},{"$f":"IF('Encodage réponses Es'!AK12=\"\",\"\",'Encodage réponses Es'!AK12)","v":""},{"$f":"IF('Encodage réponses Es'!AM12=\"\",\"\",'Encodage réponses Es'!AM12)","v":""},{"$f":"IF('Encodage réponses Es'!AN12=\"\",\"\",'Encodage réponses Es'!AN12)","v":""},{"$f":"IF('Encodage réponses Es'!AO12=\"\",\"\",'Encodage réponses Es'!AO12)","v":""},{"$f":"IF('Encodage réponses Es'!AQ12=\"\",\"\",'Encodage réponses Es'!AQ12)","v":""},{"$f":"IF('Encodage réponses Es'!AT12=\"\",\"\",'Encodage réponses Es'!AT12)","v":""},{"$f":"IF('Encodage réponses Es'!AU12=\"\",\"\",'Encodage réponses Es'!AUS12)","v":""},{"$f":"IF('Encodage réponses Es'!AG12=\"\",\"\",'Encodage réponses Es'!AG12)","v":""},null,{"$f":"IF(AND(COUNTBLANK('Encodage réponses Es'!AF12:AH12)>0,'Encodage réponses Es'!$AW12=\"!\"),\"Incomplet\",IF(OR(COUNTIF(AZ13:BJ13,\"a\")>0,COUNTIF(AZ13:BJ13,\"A\")>0),\"Absent(e)\",IF(COUNT(AZ13:BJ13)=0,\"\",SUM(AZ13:BJ13))))","v":""}]
[{"$f":"IF('Encodage réponses Es'!A13=\"\",\"\",'Encodage réponses Es'!A13)","v":0},{"$f":"IF('Encodage réponses Es'!B13=\"\",\"\",'Encodage réponses Es'!B13)","v":0},{"$f":"IF('Encodage réponses Es'!C13=\"\",\"\",'Encodage réponses Es'!C13)","v":0},10,{"$f":"IF('Encodage réponses Es'!E13=\"\",\"\",'Encodage réponses Es'!E13)","v":""},{"$f":"IF('Encodage réponses Es'!F13=\"\",\"\",'Encodage réponses Es'!F13)","v":""},{"$f":"IF('Encodage réponses Es'!G13=\"\",\"\",'Encodage réponses Es'!G13)","v":""},{"$f":"IF('Encodage réponses Es'!I13=\"\",\"\",'Encodage réponses Es'!I13)","v":""},null,{"$f":"IF('Encodage réponses Es'!AW13=\"!\",\"Incomplet\",IF(AND(SUM('Encodage réponses Es'!J13:AV13)>=$J$4/2,'Encodage réponses Es'!AW13=\"a\"),SUM('Encodage réponses Es'!J13:AV13),IF(AND(SUM('Encodage réponses Es'!J13:AV13)<$J$4/2,'Encodage réponses Es'!AW13=\"a\"),\"Absent(e)\",IF(COUNTBLANK('Encodage réponses Es'!J13:AV13)=39,\"\",SUM('Encodage réponses Es'!J13:AV13)))))","v":""},"",null,"","","","",null,null,{"$f":"IF('Encodage réponses Es'!J13=\"\",\"\",'Encodage réponses Es'!J13)","v":""},{"$f":"IF('Encodage réponses Es'!K13=\"\",\"\",'Encodage réponses Es'!K13)","v":""},{"$f":"IF('Encodage réponses Es'!M13=\"\",\"\",'Encodage réponses Es'!M13)","v":""},{"$f":"IF('Encodage réponses Es'!N13=\"\",\"\",'Encodage réponses Es'!N13)","v":""},{"$f":"IF('Encodage réponses Es'!S13=\"\",\"\",'Encodage réponses Es'!S13)","v":""},{"$f":"IF('Encodage réponses Es'!L13=\"\",\"\",'Encodage réponses Es'!L13)","v":""},{"$f":"IF('Encodage réponses Es'!O13=\"\",\"\",'Encodage réponses Es'!O13)","v":""},{"$f":"IF('Encodage réponses Es'!AB13=\"\",\"\",'Encodage réponses Es'!AB13)","v":""},{"$f":"IF(AND(COUNTBLANK('Encodage réponses Es'!J13:P13)>0,'Encodage réponses Es'!$AW13=\"!\"),\"Incomplet\",IF(OR(COUNTIF(S14:Z14,\"a\")>0,COUNTIF(S14:Z14,\"A\")>0),\"Absent(e)\",IF(COUNT(S14:Z14)=0,\"\",SUM(S14:Z14))))","v":""},{"$f":"IF('Encodage réponses Es'!V13=\"\",\"\",'Encodage réponses Es'!V13)","v":""},null,{"$f":"IF('Encodage réponses Es'!X13=\"\",\"\",'Encodage réponses Es'!X13)","v":""},{"$f":"IF('Encodage réponses Es'!Y13=\"\",\"\",'Encodage réponses Es'!Y13)","v":""},{"$f":"IF('Encodage réponses Es'!Z13=\"\",\"\",'Encodage réponses Es'!Z13)","v":""},{"$f":"IF('Encodage réponses Es'!P13=\"\",\"\",'Encodage réponses Es'!P13)","v":""},{"$f":"IF('Encodage réponses Es'!Q13=\"\",\"\",'Encodage réponses Es'!Q13)","v":""},{"$f":"IF('Encodage réponses Es'!R13=\"\",\"\",'Encodage réponses Es'!R13)","v":""},{"$f":"IF('Encodage réponses Es'!U13=\"\",\"\",'Encodage réponses Es'!U13)","v":""},{"$f":"IF('Encodage réponses Es'!W13=\"\",\"\",'Encodage réponses Es'!W13)","v":""},{"$f":"IF('Encodage réponses Es'!K13=\"\",\"\",'Encodage réponses Es'!K13)","v":""},{"$f":"IF('Encodage réponses Es'!AA13=\"\",\"\",'Encodage réponses Es'!AA13)","v":""},{"$f":"IF(AND(COUNTBLANK('Encodage réponses Es'!Q13:X13)>0,'Encodage réponses Es'!$AW13=\"!\"),\"Incomplet\",IF(OR(COUNTIF(AB14:AM14,\"a\")>0,COUNTIF(AB14:AM14,\"A\")>0),\"Absent(e)\",IF(COUNT(AB14:AM14)=0,\"\",SUM(AB14:AM14))))","v":""},{"$f":"IF('Encodage réponses Es'!AD13=\"\",\"\",'Encodage réponses Es'!AD13)","v":""},{"$f":"IF('Encodage réponses Es'!AE13=\"\",\"\",'Encodage réponses Es'!AE13)","v":""},{"$f":"IF('Encodage réponses Es'!AL13=\"\",\"\",'Encodage réponses Es'!AL13)","v":""},{"$f":"IF('Encodage réponses Es'!AV13=\"\",\"\",'Encodage réponses Es'!AV13)","v":""},{"$f":"IF('Encodage réponses Es'!AC13=\"\",\"\",'Encodage réponses Es'!AC13)","v":""},{"$f":"IF('Encodage réponses Es'!AR13=\"\",\"\",'Encodage réponses Es'!AR13)","v":""},{"$f":"IF('Encodage réponses Es'!AS13=\"\",\"\",'Encodage réponses Es'!AS13)","v":""},{"$f":"IF('Encodage réponses Es'!AH13=\"\",\"\",'Encodage réponses Es'!AH13)","v":""},{"$f":"IF('Encodage réponses Es'!AI13=\"\",\"\",'Encodage réponses Es'!AI13)","v":""},{"$f":"IF('Encodage réponses Es'!AJ13=\"\",\"\",'Encodage réponses Es'!AJ13)","v":""},{"$f":"IF(AND(COUNTBLANK('Encodage réponses Es'!Y13:AE13)>0,'Encodage réponses Es'!$AW13=\"!\"),\"Incomplet\",IF(OR(COUNTIF(AO14:AX14,\"a\")>0,COUNTIF(AO14:AX14,\"A\")>0),\"Absent(e)\",IF(COUNT(AO14:AX14)=0,\"\",SUM(AO14:AX14))))","v":""},{"$f":"IF('Encodage réponses Es'!AF13=\"\",\"\",'Encodage réponses Es'!AF13)","v":""},{"$f":"IF('Encodage réponses Es'!AP13=\"\",\"\",'Encodage réponses Es'!AP13)","v":""},{"$f":"IF('Encodage réponses Es'!AK13=\"\",\"\",'Encodage réponses Es'!AK13)","v":""},{"$f":"IF('Encodage réponses Es'!AM13=\"\",\"\",'Encodage réponses Es'!AM13)","v":""},{"$f":"IF('Encodage réponses Es'!AN13=\"\",\"\",'Encodage réponses Es'!AN13)","v":""},{"$f":"IF('Encodage réponses Es'!AO13=\"\",\"\",'Encodage réponses Es'!AO13)","v":""},{"$f":"IF('Encodage réponses Es'!AQ13=\"\",\"\",'Encodage réponses Es'!AQ13)","v":""},{"$f":"IF('Encodage réponses Es'!AT13=\"\",\"\",'Encodage réponses Es'!AT13)","v":""},{"$f":"IF('Encodage réponses Es'!AU13=\"\",\"\",'Encodage réponses Es'!AUS13)","v":""},{"$f":"IF('Encodage réponses Es'!AG13=\"\",\"\",'Encodage réponses Es'!AG13)","v":""},null,{"$f":"IF(AND(COUNTBLANK('Encodage réponses Es'!AF13:AH13)>0,'Encodage réponses Es'!$AW13=\"!\"),\"Incomplet\",IF(OR(COUNTIF(AZ14:BJ14,\"a\")>0,COUNTIF(AZ14:BJ14,\"A\")>0),\"Absent(e)\",IF(COUNT(AZ14:BJ14)=0,\"\",SUM(AZ14:BJ14))))","v":""}]
[{"$f":"IF('Encodage réponses Es'!A14=\"\",\"\",'Encodage réponses Es'!A14)","v":0},{"$f":"IF('Encodage réponses Es'!B14=\"\",\"\",'Encodage réponses Es'!B14)","v":0},{"$f":"IF('Encodage réponses Es'!C14=\"\",\"\",'Encodage réponses Es'!C14)","v":0},11,{"$f":"IF('Encodage réponses Es'!E14=\"\",\"\",'Encodage réponses Es'!E14)","v":""},{"$f":"IF('Encodage réponses Es'!F14=\"\",\"\",'Encodage réponses Es'!F14)","v":""},{"$f":"IF('Encodage réponses Es'!G14=\"\",\"\",'Encodage réponses Es'!G14)","v":""},{"$f":"IF('Encodage réponses Es'!I14=\"\",\"\",'Encodage réponses Es'!I14)","v":""},null,{"$f":"IF('Encodage réponses Es'!AW14=\"!\",\"Incomplet\",IF(AND(SUM('Encodage réponses Es'!J14:AV14)>=$J$4/2,'Encodage réponses Es'!AW14=\"a\"),SUM('Encodage réponses Es'!J14:AV14),IF(AND(SUM('Encodage réponses Es'!J14:AV14)<$J$4/2,'Encodage réponses Es'!AW14=\"a\"),\"Absent(e)\",IF(COUNTBLANK('Encodage réponses Es'!J14:AV14)=39,\"\",SUM('Encodage réponses Es'!J14:AV14)))))","v":""},"",null,"","","","",null,null,{"$f":"IF('Encodage réponses Es'!J14=\"\",\"\",'Encodage réponses Es'!J14)","v":""},{"$f":"IF('Encodage réponses Es'!K14=\"\",\"\",'Encodage réponses Es'!K14)","v":""},{"$f":"IF('Encodage réponses Es'!M14=\"\",\"\",'Encodage réponses Es'!M14)","v":""},{"$f":"IF('Encodage réponses Es'!N14=\"\",\"\",'Encodage réponses Es'!N14)","v":""},{"$f":"IF('Encodage réponses Es'!S14=\"\",\"\",'Encodage réponses Es'!S14)","v":""},{"$f":"IF('Encodage réponses Es'!L14=\"\",\"\",'Encodage réponses Es'!L14)","v":""},{"$f":"IF('Encodage réponses Es'!O14=\"\",\"\",'Encodage réponses Es'!O14)","v":""},{"$f":"IF('Encodage réponses Es'!AB14=\"\",\"\",'Encodage réponses Es'!AB14)","v":""},{"$f":"IF(AND(COUNTBLANK('Encodage réponses Es'!J14:P14)>0,'Encodage réponses Es'!$AW14=\"!\"),\"Incomplet\",IF(OR(COUNTIF(S15:Z15,\"a\")>0,COUNTIF(S15:Z15,\"A\")>0),\"Absent(e)\",IF(COUNT(S15:Z15)=0,\"\",SUM(S15:Z15))))","v":""},{"$f":"IF('Encodage réponses Es'!V14=\"\",\"\",'Encodage réponses Es'!V14)","v":""},null,{"$f":"IF('Encodage réponses Es'!X14=\"\",\"\",'Encodage réponses Es'!X14)","v":""},{"$f":"IF('Encodage réponses Es'!Y14=\"\",\"\",'Encodage réponses Es'!Y14)","v":""},{"$f":"IF('Encodage réponses Es'!Z14=\"\",\"\",'Encodage réponses Es'!Z14)","v":""},{"$f":"IF('Encodage réponses Es'!P14=\"\",\"\",'Encodage réponses Es'!P14)","v":""},{"$f":"IF('Encodage réponses Es'!Q14=\"\",\"\",'Encodage réponses Es'!Q14)","v":""},{"$f":"IF('Encodage réponses Es'!R14=\"\",\"\",'Encodage réponses Es'!R14)","v":""},{"$f":"IF('Encodage réponses Es'!U14=\"\",\"\",'Encodage réponses Es'!U14)","v":""},{"$f":"IF('Encodage réponses Es'!W14=\"\",\"\",'Encodage réponses Es'!W14)","v":""},{"$f":"IF('Encodage réponses Es'!K14=\"\",\"\",'Encodage réponses Es'!K14)","v":""},{"$f":"IF('Encodage réponses Es'!AA14=\"\",\"\",'Encodage réponses Es'!AA14)","v":""},{"$f":"IF(AND(COUNTBLANK('Encodage réponses Es'!Q14:X14)>0,'Encodage réponses Es'!$AW14=\"!\"),\"Incomplet\",IF(OR(COUNTIF(AB15:AM15,\"a\")>0,COUNTIF(AB15:AM15,\"A\")>0),\"Absent(e)\",IF(COUNT(AB15:AM15)=0,\"\",SUM(AB15:AM15))))","v":""},{"$f":"IF('Encodage réponses Es'!AD14=\"\",\"\",'Encodage réponses Es'!AD14)","v":""},{"$f":"IF('Encodage réponses Es'!AE14=\"\",\"\",'Encodage réponses Es'!AE14)","v":""},{"$f":"IF('Encodage réponses Es'!AL14=\"\",\"\",'Encodage réponses Es'!AL14)","v":""},{"$f":"IF('Encodage réponses Es'!AV14=\"\",\"\",'Encodage réponses Es'!AV14)","v":""},{"$f":"IF('Encodage réponses Es'!AC14=\"\",\"\",'Encodage réponses Es'!AC14)","v":""},{"$f":"IF('Encodage réponses Es'!AR14=\"\",\"\",'Encodage réponses Es'!AR14)","v":""},{"$f":"IF('Encodage réponses Es'!AS14=\"\",\"\",'Encodage réponses Es'!AS14)","v":""},{"$f":"IF('Encodage réponses Es'!AH14=\"\",\"\",'Encodage réponses Es'!AH14)","v":""},{"$f":"IF('Encodage réponses Es'!AI14=\"\",\"\",'Encodage réponses Es'!AI14)","v":""},{"$f":"IF('Encodage réponses Es'!AJ14=\"\",\"\",'Encodage réponses Es'!AJ14)","v":""},{"$f":"IF(AND(COUNTBLANK('Encodage réponses Es'!Y14:AE14)>0,'Encodage réponses Es'!$AW14=\"!\"),\"Incomplet\",IF(OR(COUNTIF(AO15:AX15,\"a\")>0,COUNTIF(AO15:AX15,\"A\")>0),\"Absent(e)\",IF(COUNT(AO15:AX15)=0,\"\",SUM(AO15:AX15))))","v":""},{"$f":"IF('Encodage réponses Es'!AF14=\"\",\"\",'Encodage réponses Es'!AF14)","v":""},{"$f":"IF('Encodage réponses Es'!AP14=\"\",\"\",'Encodage réponses Es'!AP14)","v":""},{"$f":"IF('Encodage réponses Es'!AK14=\"\",\"\",'Encodage réponses Es'!AK14)","v":""},{"$f":"IF('Encodage réponses Es'!AM14=\"\",\"\",'Encodage réponses Es'!AM14)","v":""},{"$f":"IF('Encodage réponses Es'!AN14=\"\",\"\",'Encodage réponses Es'!AN14)","v":""},{"$f":"IF('Encodage réponses Es'!AO14=\"\",\"\",'Encodage réponses Es'!AO14)","v":""},{"$f":"IF('Encodage réponses Es'!AQ14=\"\",\"\",'Encodage réponses Es'!AQ14)","v":""},{"$f":"IF('Encodage réponses Es'!AT14=\"\",\"\",'Encodage réponses Es'!AT14)","v":""},{"$f":"IF('Encodage réponses Es'!AU14=\"\",\"\",'Encodage réponses Es'!AUS14)","v":""},{"$f":"IF('Encodage réponses Es'!AG14=\"\",\"\",'Encodage réponses Es'!AG14)","v":""},null,{"$f":"IF(AND(COUNTBLANK('Encodage réponses Es'!AF14:AH14)>0,'Encodage réponses Es'!$AW14=\"!\"),\"Incomplet\",IF(OR(COUNTIF(AZ15:BJ15,\"a\")>0,COUNTIF(AZ15:BJ15,\"A\")>0),\"Absent(e)\",IF(COUNT(AZ15:BJ15)=0,\"\",SUM(AZ15:BJ15))))","v":""}]
[{"$f":"IF('Encodage réponses Es'!A15=\"\",\"\",'Encodage réponses Es'!A15)","v":0},{"$f":"IF('Encodage réponses Es'!B15=\"\",\"\",'Encodage réponses Es'!B15)","v":0},{"$f":"IF('Encodage réponses Es'!C15=\"\",\"\",'Encodage réponses Es'!C15)","v":0},12,{"$f":"IF('Encodage réponses Es'!E15=\"\",\"\",'Encodage réponses Es'!E15)","v":""},{"$f":"IF('Encodage réponses Es'!F15=\"\",\"\",'Encodage réponses Es'!F15)","v":""},{"$f":"IF('Encodage réponses Es'!G15=\"\",\"\",'Encodage réponses Es'!G15)","v":""},{"$f":"IF('Encodage réponses Es'!I15=\"\",\"\",'Encodage réponses Es'!I15)","v":""},null,{"$f":"IF('Encodage réponses Es'!AW15=\"!\",\"Incomplet\",IF(AND(SUM('Encodage réponses Es'!J15:AV15)>=$J$4/2,'Encodage réponses Es'!AW15=\"a\"),SUM('Encodage réponses Es'!J15:AV15),IF(AND(SUM('Encodage réponses Es'!J15:AV15)<$J$4/2,'Encodage réponses Es'!AW15=\"a\"),\"Absent(e)\",IF(COUNTBLANK('Encodage réponses Es'!J15:AV15)=39,\"\",SUM('Encodage réponses Es'!J15:AV15)))))","v":""},"",null,"","","","",null,null,{"$f":"IF('Encodage réponses Es'!J15=\"\",\"\",'Encodage réponses Es'!J15)","v":""},{"$f":"IF('Encodage réponses Es'!K15=\"\",\"\",'Encodage réponses Es'!K15)","v":""},{"$f":"IF('Encodage réponses Es'!M15=\"\",\"\",'Encodage réponses Es'!M15)","v":""},{"$f":"IF('Encodage réponses Es'!N15=\"\",\"\",'Encodage réponses Es'!N15)","v":""},{"$f":"IF('Encodage réponses Es'!S15=\"\",\"\",'Encodage réponses Es'!S15)","v":""},{"$f":"IF('Encodage réponses Es'!L15=\"\",\"\",'Encodage réponses Es'!L15)","v":""},{"$f":"IF('Encodage réponses Es'!O15=\"\",\"\",'Encodage réponses Es'!O15)","v":""},{"$f":"IF('Encodage réponses Es'!AB15=\"\",\"\",'Encodage réponses Es'!AB15)","v":""},{"$f":"IF(AND(COUNTBLANK('Encodage réponses Es'!J15:P15)>0,'Encodage réponses Es'!$AW15=\"!\"),\"Incomplet\",IF(OR(COUNTIF(S16:Z16,\"a\")>0,COUNTIF(S16:Z16,\"A\")>0),\"Absent(e)\",IF(COUNT(S16:Z16)=0,\"\",SUM(S16:Z16))))","v":""},{"$f":"IF('Encodage réponses Es'!V15=\"\",\"\",'Encodage réponses Es'!V15)","v":""},null,{"$f":"IF('Encodage réponses Es'!X15=\"\",\"\",'Encodage réponses Es'!X15)","v":""},{"$f":"IF('Encodage réponses Es'!Y15=\"\",\"\",'Encodage réponses Es'!Y15)","v":""},{"$f":"IF('Encodage réponses Es'!Z15=\"\",\"\",'Encodage réponses Es'!Z15)","v":""},{"$f":"IF('Encodage réponses Es'!P15=\"\",\"\",'Encodage réponses Es'!P15)","v":""},{"$f":"IF('Encodage réponses Es'!Q15=\"\",\"\",'Encodage réponses Es'!Q15)","v":""},{"$f":"IF('Encodage réponses Es'!R15=\"\",\"\",'Encodage réponses Es'!R15)","v":""},{"$f":"IF('Encodage réponses Es'!U15=\"\",\"\",'Encodage réponses Es'!U15)","v":""},{"$f":"IF('Encodage réponses Es'!W15=\"\",\"\",'Encodage réponses Es'!W15)","v":""},{"$f":"IF('Encodage réponses Es'!K15=\"\",\"\",'Encodage réponses Es'!K15)","v":""},{"$f":"IF('Encodage réponses Es'!AA15=\"\",\"\",'Encodage réponses Es'!AA15)","v":""},{"$f":"IF(AND(COUNTBLANK('Encodage réponses Es'!Q15:X15)>0,'Encodage réponses Es'!$AW15=\"!\"),\"Incomplet\",IF(OR(COUNTIF(AB16:AM16,\"a\")>0,COUNTIF(AB16:AM16,\"A\")>0),\"Absent(e)\",IF(COUNT(AB16:AM16)=0,\"\",SUM(AB16:AM16))))","v":""},{"$f":"IF('Encodage réponses Es'!AD15=\"\",\"\",'Encodage réponses Es'!AD15)","v":""},{"$f":"IF('Encodage réponses Es'!AE15=\"\",\"\",'Encodage réponses Es'!AE15)","v":""},{"$f":"IF('Encodage réponses Es'!AL15=\"\",\"\",'Encodage réponses Es'!AL15)","v":""},{"$f":"IF('Encodage réponses Es'!AV15=\"\",\"\",'Encodage réponses Es'!AV15)","v":""},{"$f":"IF('Encodage réponses Es'!AC15=\"\",\"\",'Encodage réponses Es'!AC15)","v":""},{"$f":"IF('Encodage réponses Es'!AR15=\"\",\"\",'Encodage réponses Es'!AR15)","v":""},{"$f":"IF('Encodage réponses Es'!AS15=\"\",\"\",'Encodage réponses Es'!AS15)","v":""},{"$f":"IF('Encodage réponses Es'!AH15=\"\",\"\",'Encodage réponses Es'!AH15)","v":""},{"$f":"IF('Encodage réponses Es'!AI15=\"\",\"\",'Encodage réponses Es'!AI15)","v":""},{"$f":"IF('Encodage réponses Es'!AJ15=\"\",\"\",'Encodage réponses Es'!AJ15)","v":""},{"$f":"IF(AND(COUNTBLANK('Encodage réponses Es'!Y15:AE15)>0,'Encodage réponses Es'!$AW15=\"!\"),\"Incomplet\",IF(OR(COUNTIF(AO16:AX16,\"a\")>0,COUNTIF(AO16:AX16,\"A\")>0),\"Absent(e)\",IF(COUNT(AO16:AX16)=0,\"\",SUM(AO16:AX16))))","v":""},{"$f":"IF('Encodage réponses Es'!AF15=\"\",\"\",'Encodage réponses Es'!AF15)","v":""},{"$f":"IF('Encodage réponses Es'!AP15=\"\",\"\",'Encodage réponses Es'!AP15)","v":""},{"$f":"IF('Encodage réponses Es'!AK15=\"\",\"\",'Encodage réponses Es'!AK15)","v":""},{"$f":"IF('Encodage réponses Es'!AM15=\"\",\"\",'Encodage réponses Es'!AM15)","v":""},{"$f":"IF('Encodage réponses Es'!AN15=\"\",\"\",'Encodage réponses Es'!AN15)","v":""},{"$f":"IF('Encodage réponses Es'!AO15=\"\",\"\",'Encodage réponses Es'!AO15)","v":""},{"$f":"IF('Encodage réponses Es'!AQ15=\"\",\"\",'Encodage réponses Es'!AQ15)","v":""},{"$f":"IF('Encodage réponses Es'!AT15=\"\",\"\",'Encodage réponses Es'!AT15)","v":""},{"$f":"IF('Encodage réponses Es'!AU15=\"\",\"\",'Encodage réponses Es'!AUS15)","v":""},{"$f":"IF('Encodage réponses Es'!AG15=\"\",\"\",'Encodage réponses Es'!AG15)","v":""},null,{"$f":"IF(AND(COUNTBLANK('Encodage réponses Es'!AF15:AH15)>0,'Encodage réponses Es'!$AW15=\"!\"),\"Incomplet\",IF(OR(COUNTIF(AZ16:BJ16,\"a\")>0,COUNTIF(AZ16:BJ16,\"A\")>0),\"Absent(e)\",IF(COUNT(AZ16:BJ16)=0,\"\",SUM(AZ16:BJ16))))","v":""}]
[{"$f":"IF('Encodage réponses Es'!A16=\"\",\"\",'Encodage réponses Es'!A16)","v":0},{"$f":"IF('Encodage réponses Es'!B16=\"\",\"\",'Encodage réponses Es'!B16)","v":0},{"$f":"IF('Encodage réponses Es'!C16=\"\",\"\",'Encodage réponses Es'!C16)","v":0},13,{"$f":"IF('Encodage réponses Es'!E16=\"\",\"\",'Encodage réponses Es'!E16)","v":""},{"$f":"IF('Encodage réponses Es'!F16=\"\",\"\",'Encodage réponses Es'!F16)","v":""},{"$f":"IF('Encodage réponses Es'!G16=\"\",\"\",'Encodage réponses Es'!G16)","v":""},{"$f":"IF('Encodage réponses Es'!I16=\"\",\"\",'Encodage réponses Es'!I16)","v":""},null,{"$f":"IF('Encodage réponses Es'!AW16=\"!\",\"Incomplet\",IF(AND(SUM('Encodage réponses Es'!J16:AV16)>=$J$4/2,'Encodage réponses Es'!AW16=\"a\"),SUM('Encodage réponses Es'!J16:AV16),IF(AND(SUM('Encodage réponses Es'!J16:AV16)<$J$4/2,'Encodage réponses Es'!AW16=\"a\"),\"Absent(e)\",IF(COUNTBLANK('Encodage réponses Es'!J16:AV16)=39,\"\",SUM('Encodage réponses Es'!J16:AV16)))))","v":""},"",null,"","","","",null,null,{"$f":"IF('Encodage réponses Es'!J16=\"\",\"\",'Encodage réponses Es'!J16)","v":""},{"$f":"IF('Encodage réponses Es'!K16=\"\",\"\",'Encodage réponses Es'!K16)","v":""},{"$f":"IF('Encodage réponses Es'!M16=\"\",\"\",'Encodage réponses Es'!M16)","v":""},{"$f":"IF('Encodage réponses Es'!N16=\"\",\"\",'Encodage réponses Es'!N16)","v":""},{"$f":"IF('Encodage réponses Es'!S16=\"\",\"\",'Encodage réponses Es'!S16)","v":""},{"$f":"IF('Encodage réponses Es'!L16=\"\",\"\",'Encodage réponses Es'!L16)","v":""},{"$f":"IF('Encodage réponses Es'!O16=\"\",\"\",'Encodage réponses Es'!O16)","v":""},{"$f":"IF('Encodage réponses Es'!AB16=\"\",\"\",'Encodage réponses Es'!AB16)","v":""},{"$f":"IF(AND(COUNTBLANK('Encodage réponses Es'!J16:P16)>0,'Encodage réponses Es'!$AW16=\"!\"),\"Incomplet\",IF(OR(COUNTIF(S17:Z17,\"a\")>0,COUNTIF(S17:Z17,\"A\")>0),\"Absent(e)\",IF(COUNT(S17:Z17)=0,\"\",SUM(S17:Z17))))","v":""},{"$f":"IF('Encodage réponses Es'!V16=\"\",\"\",'Encodage réponses Es'!V16)","v":""},null,{"$f":"IF('Encodage réponses Es'!X16=\"\",\"\",'Encodage réponses Es'!X16)","v":""},{"$f":"IF('Encodage réponses Es'!Y16=\"\",\"\",'Encodage réponses Es'!Y16)","v":""},{"$f":"IF('Encodage réponses Es'!Z16=\"\",\"\",'Encodage réponses Es'!Z16)","v":""},{"$f":"IF('Encodage réponses Es'!P16=\"\",\"\",'Encodage réponses Es'!P16)","v":""},{"$f":"IF('Encodage réponses Es'!Q16=\"\",\"\",'Encodage réponses Es'!Q16)","v":""},{"$f":"IF('Encodage réponses Es'!R16=\"\",\"\",'Encodage réponses Es'!R16)","v":""},{"$f":"IF('Encodage réponses Es'!U16=\"\",\"\",'Encodage réponses Es'!U16)","v":""},{"$f":"IF('Encodage réponses Es'!W16=\"\",\"\",'Encodage réponses Es'!W16)","v":""},{"$f":"IF('Encodage réponses Es'!K16=\"\",\"\",'Encodage réponses Es'!K16)","v":""},{"$f":"IF('Encodage réponses Es'!AA16=\"\",\"\",'Encodage réponses Es'!AA16)","v":""},{"$f":"IF(AND(COUNTBLANK('Encodage réponses Es'!Q16:X16)>0,'Encodage réponses Es'!$AW16=\"!\"),\"Incomplet\",IF(OR(COUNTIF(AB17:AM17,\"a\")>0,COUNTIF(AB17:AM17,\"A\")>0),\"Absent(e)\",IF(COUNT(AB17:AM17)=0,\"\",SUM(AB17:AM17))))","v":""},{"$f":"IF('Encodage réponses Es'!AD16=\"\",\"\",'Encodage réponses Es'!AD16)","v":""},{"$f":"IF('Encodage réponses Es'!AE16=\"\",\"\",'Encodage réponses Es'!AE16)","v":""},{"$f":"IF('Encodage réponses Es'!AL16=\"\",\"\",'Encodage réponses Es'!AL16)","v":""},{"$f":"IF('Encodage réponses Es'!AV16=\"\",\"\",'Encodage réponses Es'!AV16)","v":""},{"$f":"IF('Encodage réponses Es'!AC16=\"\",\"\",'Encodage réponses Es'!AC16)","v":""},{"$f":"IF('Encodage réponses Es'!AR16=\"\",\"\",'Encodage réponses Es'!AR16)","v":""},{"$f":"IF('Encodage réponses Es'!AS16=\"\",\"\",'Encodage réponses Es'!AS16)","v":""},{"$f":"IF('Encodage réponses Es'!AH16=\"\",\"\",'Encodage réponses Es'!AH16)","v":""},{"$f":"IF('Encodage réponses Es'!AI16=\"\",\"\",'Encodage réponses Es'!AI16)","v":""},{"$f":"IF('Encodage réponses Es'!AJ16=\"\",\"\",'Encodage réponses Es'!AJ16)","v":""},{"$f":"IF(AND(COUNTBLANK('Encodage réponses Es'!Y16:AE16)>0,'Encodage réponses Es'!$AW16=\"!\"),\"Incomplet\",IF(OR(COUNTIF(AO17:AX17,\"a\")>0,COUNTIF(AO17:AX17,\"A\")>0),\"Absent(e)\",IF(COUNT(AO17:AX17)=0,\"\",SUM(AO17:AX17))))","v":""},{"$f":"IF('Encodage réponses Es'!AF16=\"\",\"\",'Encodage réponses Es'!AF16)","v":""},{"$f":"IF('Encodage réponses Es'!AP16=\"\",\"\",'Encodage réponses Es'!AP16)","v":""},{"$f":"IF('Encodage réponses Es'!AK16=\"\",\"\",'Encodage réponses Es'!AK16)","v":""},{"$f":"IF('Encodage réponses Es'!AM16=\"\",\"\",'Encodage réponses Es'!AM16)","v":""},{"$f":"IF('Encodage réponses Es'!AN16=\"\",\"\",'Encodage réponses Es'!AN16)","v":""},{"$f":"IF('Encodage réponses Es'!AO16=\"\",\"\",'Encodage réponses Es'!AO16)","v":""},{"$f":"IF('Encodage réponses Es'!AQ16=\"\",\"\",'Encodage réponses Es'!AQ16)","v":""},{"$f":"IF('Encodage réponses Es'!AT16=\"\",\"\",'Encodage réponses Es'!AT16)","v":""},{"$f":"IF('Encodage réponses Es'!AU16=\"\",\"\",'Encodage réponses Es'!AUS16)","v":""},{"$f":"IF('Encodage réponses Es'!AG16=\"\",\"\",'Encodage réponses Es'!AG16)","v":""},null,{"$f":"IF(AND(COUNTBLANK('Encodage réponses Es'!AF16:AH16)>0,'Encodage réponses Es'!$AW16=\"!\"),\"Incomplet\",IF(OR(COUNTIF(AZ17:BJ17,\"a\")>0,COUNTIF(AZ17:BJ17,\"A\")>0),\"Absent(e)\",IF(COUNT(AZ17:BJ17)=0,\"\",SUM(AZ17:BJ17))))","v":""}]
[{"$f":"IF('Encodage réponses Es'!A17=\"\",\"\",'Encodage réponses Es'!A17)","v":0},{"$f":"IF('Encodage réponses Es'!B17=\"\",\"\",'Encodage réponses Es'!B17)","v":0},{"$f":"IF('Encodage réponses Es'!C17=\"\",\"\",'Encodage réponses Es'!C17)","v":0},14,{"$f":"IF('Encodage réponses Es'!E17=\"\",\"\",'Encodage réponses Es'!E17)","v":""},{"$f":"IF('Encodage réponses Es'!F17=\"\",\"\",'Encodage réponses Es'!F17)","v":""},{"$f":"IF('Encodage réponses Es'!G17=\"\",\"\",'Encodage réponses Es'!G17)","v":""},{"$f":"IF('Encodage réponses Es'!I17=\"\",\"\",'Encodage réponses Es'!I17)","v":""},null,{"$f":"IF('Encodage réponses Es'!AW17=\"!\",\"Incomplet\",IF(AND(SUM('Encodage réponses Es'!J17:AV17)>=$J$4/2,'Encodage réponses Es'!AW17=\"a\"),SUM('Encodage réponses Es'!J17:AV17),IF(AND(SUM('Encodage réponses Es'!J17:AV17)<$J$4/2,'Encodage réponses Es'!AW17=\"a\"),\"Absent(e)\",IF(COUNTBLANK('Encodage réponses Es'!J17:AV17)=39,\"\",SUM('Encodage réponses Es'!J17:AV17)))))","v":""},"",null,"","","","",null,null,{"$f":"IF('Encodage réponses Es'!J17=\"\",\"\",'Encodage réponses Es'!J17)","v":""},{"$f":"IF('Encodage réponses Es'!K17=\"\",\"\",'Encodage réponses Es'!K17)","v":""},{"$f":"IF('Encodage réponses Es'!M17=\"\",\"\",'Encodage réponses Es'!M17)","v":""},{"$f":"IF('Encodage réponses Es'!N17=\"\",\"\",'Encodage réponses Es'!N17)","v":""},{"$f":"IF('Encodage réponses Es'!S17=\"\",\"\",'Encodage réponses Es'!S17)","v":""},{"$f":"IF('Encodage réponses Es'!L17=\"\",\"\",'Encodage réponses Es'!L17)","v":""},{"$f":"IF('Encodage réponses Es'!O17=\"\",\"\",'Encodage réponses Es'!O17)","v":""},{"$f":"IF('Encodage réponses Es'!AB17=\"\",\"\",'Encodage réponses Es'!AB17)","v":""},{"$f":"IF(AND(COUNTBLANK('Encodage réponses Es'!J17:P17)>0,'Encodage réponses Es'!$AW17=\"!\"),\"Incomplet\",IF(OR(COUNTIF(S18:Z18,\"a\")>0,COUNTIF(S18:Z18,\"A\")>0),\"Absent(e)\",IF(COUNT(S18:Z18)=0,\"\",SUM(S18:Z18))))","v":""},{"$f":"IF('Encodage réponses Es'!V17=\"\",\"\",'Encodage réponses Es'!V17)","v":""},null,{"$f":"IF('Encodage réponses Es'!X17=\"\",\"\",'Encodage réponses Es'!X17)","v":""},{"$f":"IF('Encodage réponses Es'!Y17=\"\",\"\",'Encodage réponses Es'!Y17)","v":""},{"$f":"IF('Encodage réponses Es'!Z17=\"\",\"\",'Encodage réponses Es'!Z17)","v":""},{"$f":"IF('Encodage réponses Es'!P17=\"\",\"\",'Encodage réponses Es'!P17)","v":""},{"$f":"IF('Encodage réponses Es'!Q17=\"\",\"\",'Encodage réponses Es'!Q17)","v":""},{"$f":"IF('Encodage réponses Es'!R17=\"\",\"\",'Encodage réponses Es'!R17)","v":""},{"$f":"IF('Encodage réponses Es'!U17=\"\",\"\",'Encodage réponses Es'!U17)","v":""},{"$f":"IF('Encodage réponses Es'!W17=\"\",\"\",'Encodage réponses Es'!W17)","v":""},{"$f":"IF('Encodage réponses Es'!K17=\"\",\"\",'Encodage réponses Es'!K17)","v":""},{"$f":"IF('Encodage réponses Es'!AA17=\"\",\"\",'Encodage réponses Es'!AA17)","v":""},{"$f":"IF(AND(COUNTBLANK('Encodage réponses Es'!Q17:X17)>0,'Encodage réponses Es'!$AW17=\"!\"),\"Incomplet\",IF(OR(COUNTIF(AB18:AM18,\"a\")>0,COUNTIF(AB18:AM18,\"A\")>0),\"Absent(e)\",IF(COUNT(AB18:AM18)=0,\"\",SUM(AB18:AM18))))","v":""},{"$f":"IF('Encodage réponses Es'!AD17=\"\",\"\",'Encodage réponses Es'!AD17)","v":""},{"$f":"IF('Encodage réponses Es'!AE17=\"\",\"\",'Encodage réponses Es'!AE17)","v":""},{"$f":"IF('Encodage réponses Es'!AL17=\"\",\"\",'Encodage réponses Es'!AL17)","v":""},{"$f":"IF('Encodage réponses Es'!AV17=\"\",\"\",'Encodage réponses Es'!AV17)","v":""},{"$f":"IF('Encodage réponses Es'!AC17=\"\",\"\",'Encodage réponses Es'!AC17)","v":""},{"$f":"IF('Encodage réponses Es'!AR17=\"\",\"\",'Encodage réponses Es'!AR17)","v":""},{"$f":"IF('Encodage réponses Es'!AS17=\"\",\"\",'Encodage réponses Es'!AS17)","v":""},{"$f":"IF('Encodage réponses Es'!AH17=\"\",\"\",'Encodage réponses Es'!AH17)","v":""},{"$f":"IF('Encodage réponses Es'!AI17=\"\",\"\",'Encodage réponses Es'!AI17)","v":""},{"$f":"IF('Encodage réponses Es'!AJ17=\"\",\"\",'Encodage réponses Es'!AJ17)","v":""},{"$f":"IF(AND(COUNTBLANK('Encodage réponses Es'!Y17:AE17)>0,'Encodage réponses Es'!$AW17=\"!\"),\"Incomplet\",IF(OR(COUNTIF(AO18:AX18,\"a\")>0,COUNTIF(AO18:AX18,\"A\")>0),\"Absent(e)\",IF(COUNT(AO18:AX18)=0,\"\",SUM(AO18:AX18))))","v":""},{"$f":"IF('Encodage réponses Es'!AF17=\"\",\"\",'Encodage réponses Es'!AF17)","v":""},{"$f":"IF('Encodage réponses Es'!AP17=\"\",\"\",'Encodage réponses Es'!AP17)","v":""},{"$f":"IF('Encodage réponses Es'!AK17=\"\",\"\",'Encodage réponses Es'!AK17)","v":""},{"$f":"IF('Encodage réponses Es'!AM17=\"\",\"\",'Encodage réponses Es'!AM17)","v":""},{"$f":"IF('Encodage réponses Es'!AN17=\"\",\"\",'Encodage réponses Es'!AN17)","v":""},{"$f":"IF('Encodage réponses Es'!AO17=\"\",\"\",'Encodage réponses Es'!AO17)","v":""},{"$f":"IF('Encodage réponses Es'!AQ17=\"\",\"\",'Encodage réponses Es'!AQ17)","v":""},{"$f":"IF('Encodage réponses Es'!AT17=\"\",\"\",'Encodage réponses Es'!AT17)","v":""},{"$f":"IF('Encodage réponses Es'!AU17=\"\",\"\",'Encodage réponses Es'!AUS17)","v":""},{"$f":"IF('Encodage réponses Es'!AG17=\"\",\"\",'Encodage réponses Es'!AG17)","v":""},null,{"$f":"IF(AND(COUNTBLANK('Encodage réponses Es'!AF17:AH17)>0,'Encodage réponses Es'!$AW17=\"!\"),\"Incomplet\",IF(OR(COUNTIF(AZ18:BJ18,\"a\")>0,COUNTIF(AZ18:BJ18,\"A\")>0),\"Absent(e)\",IF(COUNT(AZ18:BJ18)=0,\"\",SUM(AZ18:BJ18))))","v":""}]
[{"$f":"IF('Encodage réponses Es'!A18=\"\",\"\",'Encodage réponses Es'!A18)","v":0},{"$f":"IF('Encodage réponses Es'!B18=\"\",\"\",'Encodage réponses Es'!B18)","v":0},{"$f":"IF('Encodage réponses Es'!C18=\"\",\"\",'Encodage réponses Es'!C18)","v":0},15,{"$f":"IF('Encodage réponses Es'!E18=\"\",\"\",'Encodage réponses Es'!E18)","v":""},{"$f":"IF('Encodage réponses Es'!F18=\"\",\"\",'Encodage réponses Es'!F18)","v":""},{"$f":"IF('Encodage réponses Es'!G18=\"\",\"\",'Encodage réponses Es'!G18)","v":""},{"$f":"IF('Encodage réponses Es'!I18=\"\",\"\",'Encodage réponses Es'!I18)","v":""},null,{"$f":"IF('Encodage réponses Es'!AW18=\"!\",\"Incomplet\",IF(AND(SUM('Encodage réponses Es'!J18:AV18)>=$J$4/2,'Encodage réponses Es'!AW18=\"a\"),SUM('Encodage réponses Es'!J18:AV18),IF(AND(SUM('Encodage réponses Es'!J18:AV18)<$J$4/2,'Encodage réponses Es'!AW18=\"a\"),\"Absent(e)\",IF(COUNTBLANK('Encodage réponses Es'!J18:AV18)=39,\"\",SUM('Encodage réponses Es'!J18:AV18)))))","v":""},"",null,"","","","",null,null,{"$f":"IF('Encodage réponses Es'!J18=\"\",\"\",'Encodage réponses Es'!J18)","v":""},{"$f":"IF('Encodage réponses Es'!K18=\"\",\"\",'Encodage réponses Es'!K18)","v":""},{"$f":"IF('Encodage réponses Es'!M18=\"\",\"\",'Encodage réponses Es'!M18)","v":""},{"$f":"IF('Encodage réponses Es'!N18=\"\",\"\",'Encodage réponses Es'!N18)","v":""},{"$f":"IF('Encodage réponses Es'!S18=\"\",\"\",'Encodage réponses Es'!S18)","v":""},{"$f":"IF('Encodage réponses Es'!L18=\"\",\"\",'Encodage réponses Es'!L18)","v":""},{"$f":"IF('Encodage réponses Es'!O18=\"\",\"\",'Encodage réponses Es'!O18)","v":""},{"$f":"IF('Encodage réponses Es'!AB18=\"\",\"\",'Encodage réponses Es'!AB18)","v":""},{"$f":"IF(AND(COUNTBLANK('Encodage réponses Es'!J18:P18)>0,'Encodage réponses Es'!$AW18=\"!\"),\"Incomplet\",IF(OR(COUNTIF(S19:Z19,\"a\")>0,COUNTIF(S19:Z19,\"A\")>0),\"Absent(e)\",IF(COUNT(S19:Z19)=0,\"\",SUM(S19:Z19))))","v":""},{"$f":"IF('Encodage réponses Es'!V18=\"\",\"\",'Encodage réponses Es'!V18)","v":""},null,{"$f":"IF('Encodage réponses Es'!X18=\"\",\"\",'Encodage réponses Es'!X18)","v":""},{"$f":"IF('Encodage réponses Es'!Y18=\"\",\"\",'Encodage réponses Es'!Y18)","v":""},{"$f":"IF('Encodage réponses Es'!Z18=\"\",\"\",'Encodage réponses Es'!Z18)","v":""},{"$f":"IF('Encodage réponses Es'!P18=\"\",\"\",'Encodage réponses Es'!P18)","v":""},{"$f":"IF('Encodage réponses Es'!Q18=\"\",\"\",'Encodage réponses Es'!Q18)","v":""},{"$f":"IF('Encodage réponses Es'!R18=\"\",\"\",'Encodage réponses Es'!R18)","v":""},{"$f":"IF('Encodage réponses Es'!U18=\"\",\"\",'Encodage réponses Es'!U18)","v":""},{"$f":"IF('Encodage réponses Es'!W18=\"\",\"\",'Encodage réponses Es'!W18)","v":""},{"$f":"IF('Encodage réponses Es'!K18=\"\",\"\",'Encodage réponses Es'!K18)","v":""},{"$f":"IF('Encodage réponses Es'!AA18=\"\",\"\",'Encodage réponses Es'!AA18)","v":""},{"$f":"IF(AND(COUNTBLANK('Encodage réponses Es'!Q18:X18)>0,'Encodage réponses Es'!$AW18=\"!\"),\"Incomplet\",IF(OR(COUNTIF(AB19:AM19,\"a\")>0,COUNTIF(AB19:AM19,\"A\")>0),\"Absent(e)\",IF(COUNT(AB19:AM19)=0,\"\",SUM(AB19:AM19))))","v":""},{"$f":"IF('Encodage réponses Es'!AD18=\"\",\"\",'Encodage réponses Es'!AD18)","v":""},{"$f":"IF('Encodage réponses Es'!AE18=\"\",\"\",'Encodage réponses Es'!AE18)","v":""},{"$f":"IF('Encodage réponses Es'!AL18=\"\",\"\",'Encodage réponses Es'!AL18)","v":""},{"$f":"IF('Encodage réponses Es'!AV18=\"\",\"\",'Encodage réponses Es'!AV18)","v":""},{"$f":"IF('Encodage réponses Es'!AC18=\"\",\"\",'Encodage réponses Es'!AC18)","v":""},{"$f":"IF('Encodage réponses Es'!AR18=\"\",\"\",'Encodage réponses Es'!AR18)","v":""},{"$f":"IF('Encodage réponses Es'!AS18=\"\",\"\",'Encodage réponses Es'!AS18)","v":""},{"$f":"IF('Encodage réponses Es'!AH18=\"\",\"\",'Encodage réponses Es'!AH18)","v":""},{"$f":"IF('Encodage réponses Es'!AI18=\"\",\"\",'Encodage réponses Es'!AI18)","v":""},{"$f":"IF('Encodage réponses Es'!AJ18=\"\",\"\",'Encodage réponses Es'!AJ18)","v":""},{"$f":"IF(AND(COUNTBLANK('Encodage réponses Es'!Y18:AE18)>0,'Encodage réponses Es'!$AW18=\"!\"),\"Incomplet\",IF(OR(COUNTIF(AO19:AX19,\"a\")>0,COUNTIF(AO19:AX19,\"A\")>0),\"Absent(e)\",IF(COUNT(AO19:AX19)=0,\"\",SUM(AO19:AX19))))","v":""},{"$f":"IF('Encodage réponses Es'!AF18=\"\",\"\",'Encodage réponses Es'!AF18)","v":""},{"$f":"IF('Encodage réponses Es'!AP18=\"\",\"\",'Encodage réponses Es'!AP18)","v":""},{"$f":"IF('Encodage réponses Es'!AK18=\"\",\"\",'Encodage réponses Es'!AK18)","v":""},{"$f":"IF('Encodage réponses Es'!AM18=\"\",\"\",'Encodage réponses Es'!AM18)","v":""},{"$f":"IF('Encodage réponses Es'!AN18=\"\",\"\",'Encodage réponses Es'!AN18)","v":""},{"$f":"IF('Encodage réponses Es'!AO18=\"\",\"\",'Encodage réponses Es'!AO18)","v":""},{"$f":"IF('Encodage réponses Es'!AQ18=\"\",\"\",'Encodage réponses Es'!AQ18)","v":""},{"$f":"IF('Encodage réponses Es'!AT18=\"\",\"\",'Encodage réponses Es'!AT18)","v":""},{"$f":"IF('Encodage réponses Es'!AU18=\"\",\"\",'Encodage réponses Es'!AUS18)","v":""},{"$f":"IF('Encodage réponses Es'!AG18=\"\",\"\",'Encodage réponses Es'!AG18)","v":""},null,{"$f":"IF(AND(COUNTBLANK('Encodage réponses Es'!AF18:AH18)>0,'Encodage réponses Es'!$AW18=\"!\"),\"Incomplet\",IF(OR(COUNTIF(AZ19:BJ19,\"a\")>0,COUNTIF(AZ19:BJ19,\"A\")>0),\"Absent(e)\",IF(COUNT(AZ19:BJ19)=0,\"\",SUM(AZ19:BJ19))))","v":""}]
[{"$f":"IF('Encodage réponses Es'!A19=\"\",\"\",'Encodage réponses Es'!A19)","v":0},{"$f":"IF('Encodage réponses Es'!B19=\"\",\"\",'Encodage réponses Es'!B19)","v":0},{"$f":"IF('Encodage réponses Es'!C19=\"\",\"\",'Encodage réponses Es'!C19)","v":0},16,{"$f":"IF('Encodage réponses Es'!E19=\"\",\"\",'Encodage réponses Es'!E19)","v":""},{"$f":"IF('Encodage réponses Es'!F19=\"\",\"\",'Encodage réponses Es'!F19)","v":""},{"$f":"IF('Encodage réponses Es'!G19=\"\",\"\",'Encodage réponses Es'!G19)","v":""},{"$f":"IF('Encodage réponses Es'!I19=\"\",\"\",'Encodage réponses Es'!I19)","v":""},null,{"$f":"IF('Encodage réponses Es'!AW19=\"!\",\"Incomplet\",IF(AND(SUM('Encodage réponses Es'!J19:AV19)>=$J$4/2,'Encodage réponses Es'!AW19=\"a\"),SUM('Encodage réponses Es'!J19:AV19),IF(AND(SUM('Encodage réponses Es'!J19:AV19)<$J$4/2,'Encodage réponses Es'!AW19=\"a\"),\"Absent(e)\",IF(COUNTBLANK('Encodage réponses Es'!J19:AV19)=39,\"\",SUM('Encodage réponses Es'!J19:AV19)))))","v":""},"",null,"","","","",null,null,{"$f":"IF('Encodage réponses Es'!J19=\"\",\"\",'Encodage réponses Es'!J19)","v":""},{"$f":"IF('Encodage réponses Es'!K19=\"\",\"\",'Encodage réponses Es'!K19)","v":""},{"$f":"IF('Encodage réponses Es'!M19=\"\",\"\",'Encodage réponses Es'!M19)","v":""},{"$f":"IF('Encodage réponses Es'!N19=\"\",\"\",'Encodage réponses Es'!N19)","v":""},{"$f":"IF('Encodage réponses Es'!S19=\"\",\"\",'Encodage réponses Es'!S19)","v":""},{"$f":"IF('Encodage réponses Es'!L19=\"\",\"\",'Encodage réponses Es'!L19)","v":""},{"$f":"IF('Encodage réponses Es'!O19=\"\",\"\",'Encodage réponses Es'!O19)","v":""},{"$f":"IF('Encodage réponses Es'!AB19=\"\",\"\",'Encodage réponses Es'!AB19)","v":""},{"$f":"IF(AND(COUNTBLANK('Encodage réponses Es'!J19:P19)>0,'Encodage réponses Es'!$AW19=\"!\"),\"Incomplet\",IF(OR(COUNTIF(S20:Z20,\"a\")>0,COUNTIF(S20:Z20,\"A\")>0),\"Absent(e)\",IF(COUNT(S20:Z20)=0,\"\",SUM(S20:Z20))))","v":""},{"$f":"IF('Encodage réponses Es'!V19=\"\",\"\",'Encodage réponses Es'!V19)","v":""},null,{"$f":"IF('Encodage réponses Es'!X19=\"\",\"\",'Encodage réponses Es'!X19)","v":""},{"$f":"IF('Encodage réponses Es'!Y19=\"\",\"\",'Encodage réponses Es'!Y19)","v":""},{"$f":"IF('Encodage réponses Es'!Z19=\"\",\"\",'Encodage réponses Es'!Z19)","v":""},{"$f":"IF('Encodage réponses Es'!P19=\"\",\"\",'Encodage réponses Es'!P19)","v":""},{"$f":"IF('Encodage réponses Es'!Q19=\"\",\"\",'Encodage réponses Es'!Q19)","v":""},{"$f":"IF('Encodage réponses Es'!R19=\"\",\"\",'Encodage réponses Es'!R19)","v":""},{"$f":"IF('Encodage réponses Es'!U19=\"\",\"\",'Encodage réponses Es'!U19)","v":""},{"$f":"IF('Encodage réponses Es'!W19=\"\",\"\",'Encodage réponses Es'!W19)","v":""},{"$f":"IF('Encodage réponses Es'!K19=\"\",\"\",'Encodage réponses Es'!K19)","v":""},{"$f":"IF('Encodage réponses Es'!AA19=\"\",\"\",'Encodage réponses Es'!AA19)","v":""},{"$f":"IF(AND(COUNTBLANK('Encodage réponses Es'!Q19:X19)>0,'Encodage réponses Es'!$AW19=\"!\"),\"Incomplet\",IF(OR(COUNTIF(AB20:AM20,\"a\")>0,COUNTIF(AB20:AM20,\"A\")>0),\"Absent(e)\",IF(COUNT(AB20:AM20)=0,\"\",SUM(AB20:AM20))))","v":""},{"$f":"IF('Encodage réponses Es'!AD19=\"\",\"\",'Encodage réponses Es'!AD19)","v":""},{"$f":"IF('Encodage réponses Es'!AE19=\"\",\"\",'Encodage réponses Es'!AE19)","v":""},{"$f":"IF('Encodage réponses Es'!AL19=\"\",\"\",'Encodage réponses Es'!AL19)","v":""},{"$f":"IF('Encodage réponses Es'!AV19=\"\",\"\",'Encodage réponses Es'!AV19)","v":""},{"$f":"IF('Encodage réponses Es'!AC19=\"\",\"\",'Encodage réponses Es'!AC19)","v":""},{"$f":"IF('Encodage réponses Es'!AR19=\"\",\"\",'Encodage réponses Es'!AR19)","v":""},{"$f":"IF('Encodage réponses Es'!AS19=\"\",\"\",'Encodage réponses Es'!AS19)","v":""},{"$f":"IF('Encodage réponses Es'!AH19=\"\",\"\",'Encodage réponses Es'!AH19)","v":""},{"$f":"IF('Encodage réponses Es'!AI19=\"\",\"\",'Encodage réponses Es'!AI19)","v":""},{"$f":"IF('Encodage réponses Es'!AJ19=\"\",\"\",'Encodage réponses Es'!AJ19)","v":""},{"$f":"IF(AND(COUNTBLANK('Encodage réponses Es'!Y19:AE19)>0,'Encodage réponses Es'!$AW19=\"!\"),\"Incomplet\",IF(OR(COUNTIF(AO20:AX20,\"a\")>0,COUNTIF(AO20:AX20,\"A\")>0),\"Absent(e)\",IF(COUNT(AO20:AX20)=0,\"\",SUM(AO20:AX20))))","v":""},{"$f":"IF('Encodage réponses Es'!AF19=\"\",\"\",'Encodage réponses Es'!AF19)","v":""},{"$f":"IF('Encodage réponses Es'!AP19=\"\",\"\",'Encodage réponses Es'!AP19)","v":""},{"$f":"IF('Encodage réponses Es'!AK19=\"\",\"\",'Encodage réponses Es'!AK19)","v":""},{"$f":"IF('Encodage réponses Es'!AM19=\"\",\"\",'Encodage réponses Es'!AM19)","v":""},{"$f":"IF('Encodage réponses Es'!AN19=\"\",\"\",'Encodage réponses Es'!AN19)","v":""},{"$f":"IF('Encodage réponses Es'!AO19=\"\",\"\",'Encodage réponses Es'!AO19)","v":""},{"$f":"IF('Encodage réponses Es'!AQ19=\"\",\"\",'Encodage réponses Es'!AQ19)","v":""},{"$f":"IF('Encodage réponses Es'!AT19=\"\",\"\",'Encodage réponses Es'!AT19)","v":""},{"$f":"IF('Encodage réponses Es'!AU19=\"\",\"\",'Encodage réponses Es'!AUS19)","v":""},{"$f":"IF('Encodage réponses Es'!AG19=\"\",\"\",'Encodage réponses Es'!AG19)","v":""},null,{"$f":"IF(AND(COUNTBLANK('Encodage réponses Es'!AF19:AH19)>0,'Encodage réponses Es'!$AW19=\"!\"),\"Incomplet\",IF(OR(COUNTIF(AZ20:BJ20,\"a\")>0,COUNTIF(AZ20:BJ20,\"A\")>0),\"Absent(e)\",IF(COUNT(AZ20:BJ20)=0,\"\",SUM(AZ20:BJ20))))","v":""}]
[{"$f":"IF('Encodage réponses Es'!A20=\"\",\"\",'Encodage réponses Es'!A20)","v":0},{"$f":"IF('Encodage réponses Es'!B20=\"\",\"\",'Encodage réponses Es'!B20)","v":0},{"$f":"IF('Encodage réponses Es'!C20=\"\",\"\",'Encodage réponses Es'!C20)","v":0},17,{"$f":"IF('Encodage réponses Es'!E20=\"\",\"\",'Encodage réponses Es'!E20)","v":""},{"$f":"IF('Encodage réponses Es'!F20=\"\",\"\",'Encodage réponses Es'!F20)","v":""},{"$f":"IF('Encodage réponses Es'!G20=\"\",\"\",'Encodage réponses Es'!G20)","v":""},{"$f":"IF('Encodage réponses Es'!I20=\"\",\"\",'Encodage réponses Es'!I20)","v":""},null,{"$f":"IF('Encodage réponses Es'!AW20=\"!\",\"Incomplet\",IF(AND(SUM('Encodage réponses Es'!J20:AV20)>=$J$4/2,'Encodage réponses Es'!AW20=\"a\"),SUM('Encodage réponses Es'!J20:AV20),IF(AND(SUM('Encodage réponses Es'!J20:AV20)<$J$4/2,'Encodage réponses Es'!AW20=\"a\"),\"Absent(e)\",IF(COUNTBLANK('Encodage réponses Es'!J20:AV20)=39,\"\",SUM('Encodage réponses Es'!J20:AV20)))))","v":""},"",null,"","","","",null,null,{"$f":"IF('Encodage réponses Es'!J20=\"\",\"\",'Encodage réponses Es'!J20)","v":""},{"$f":"IF('Encodage réponses Es'!K20=\"\",\"\",'Encodage réponses Es'!K20)","v":""},{"$f":"IF('Encodage réponses Es'!M20=\"\",\"\",'Encodage réponses Es'!M20)","v":""},{"$f":"IF('Encodage réponses Es'!N20=\"\",\"\",'Encodage réponses Es'!N20)","v":""},{"$f":"IF('Encodage réponses Es'!S20=\"\",\"\",'Encodage réponses Es'!S20)","v":""},{"$f":"IF('Encodage réponses Es'!L20=\"\",\"\",'Encodage réponses Es'!L20)","v":""},{"$f":"IF('Encodage réponses Es'!O20=\"\",\"\",'Encodage réponses Es'!O20)","v":""},{"$f":"IF('Encodage réponses Es'!AB20=\"\",\"\",'Encodage réponses Es'!AB20)","v":""},{"$f":"IF(AND(COUNTBLANK('Encodage réponses Es'!J20:P20)>0,'Encodage réponses Es'!$AW20=\"!\"),\"Incomplet\",IF(OR(COUNTIF(S21:Z21,\"a\")>0,COUNTIF(S21:Z21,\"A\")>0),\"Absent(e)\",IF(COUNT(S21:Z21)=0,\"\",SUM(S21:Z21))))","v":""},{"$f":"IF('Encodage réponses Es'!V20=\"\",\"\",'Encodage réponses Es'!V20)","v":""},null,{"$f":"IF('Encodage réponses Es'!X20=\"\",\"\",'Encodage réponses Es'!X20)","v":""},{"$f":"IF('Encodage réponses Es'!Y20=\"\",\"\",'Encodage réponses Es'!Y20)","v":""},{"$f":"IF('Encodage réponses Es'!Z20=\"\",\"\",'Encodage réponses Es'!Z20)","v":""},{"$f":"IF('Encodage réponses Es'!P20=\"\",\"\",'Encodage réponses Es'!P20)","v":""},{"$f":"IF('Encodage réponses Es'!Q20=\"\",\"\",'Encodage réponses Es'!Q20)","v":""},{"$f":"IF('Encodage réponses Es'!R20=\"\",\"\",'Encodage réponses Es'!R20)","v":""},{"$f":"IF('Encodage réponses Es'!U20=\"\",\"\",'Encodage réponses Es'!U20)","v":""},{"$f":"IF('Encodage réponses Es'!W20=\"\",\"\",'Encodage réponses Es'!W20)","v":""},{"$f":"IF('Encodage réponses Es'!K20=\"\",\"\",'Encodage réponses Es'!K20)","v":""},{"$f":"IF('Encodage réponses Es'!AA20=\"\",\"\",'Encodage réponses Es'!AA20)","v":""},{"$f":"IF(AND(COUNTBLANK('Encodage réponses Es'!Q20:X20)>0,'Encodage réponses Es'!$AW20=\"!\"),\"Incomplet\",IF(OR(COUNTIF(AB21:AM21,\"a\")>0,COUNTIF(AB21:AM21,\"A\")>0),\"Absent(e)\",IF(COUNT(AB21:AM21)=0,\"\",SUM(AB21:AM21))))","v":""},{"$f":"IF('Encodage réponses Es'!AD20=\"\",\"\",'Encodage réponses Es'!AD20)","v":""},{"$f":"IF('Encodage réponses Es'!AE20=\"\",\"\",'Encodage réponses Es'!AE20)","v":""},{"$f":"IF('Encodage réponses Es'!AL20=\"\",\"\",'Encodage réponses Es'!AL20)","v":""},{"$f":"IF('Encodage réponses Es'!AV20=\"\",\"\",'Encodage réponses Es'!AV20)","v":""},{"$f":"IF('Encodage réponses Es'!AC20=\"\",\"\",'Encodage réponses Es'!AC20)","v":""},{"$f":"IF('Encodage réponses Es'!AR20=\"\",\"\",'Encodage réponses Es'!AR20)","v":""},{"$f":"IF('Encodage réponses Es'!AS20=\"\",\"\",'Encodage réponses Es'!AS20)","v":""},{"$f":"IF('Encodage réponses Es'!AH20=\"\",\"\",'Encodage réponses Es'!AH20)","v":""},{"$f":"IF('Encodage réponses Es'!AI20=\"\",\"\",'Encodage réponses Es'!AI20)","v":""},{"$f":"IF('Encodage réponses Es'!AJ20=\"\",\"\",'Encodage réponses Es'!AJ20)","v":""},{"$f":"IF(AND(COUNTBLANK('Encodage réponses Es'!Y20:AE20)>0,'Encodage réponses Es'!$AW20=\"!\"),\"Incomplet\",IF(OR(COUNTIF(AO21:AX21,\"a\")>0,COUNTIF(AO21:AX21,\"A\")>0),\"Absent(e)\",IF(COUNT(AO21:AX21)=0,\"\",SUM(AO21:AX21))))","v":""},{"$f":"IF('Encodage réponses Es'!AF20=\"\",\"\",'Encodage réponses Es'!AF20)","v":""},{"$f":"IF('Encodage réponses Es'!AP20=\"\",\"\",'Encodage réponses Es'!AP20)","v":""},{"$f":"IF('Encodage réponses Es'!AK20=\"\",\"\",'Encodage réponses Es'!AK20)","v":""},{"$f":"IF('Encodage réponses Es'!AM20=\"\",\"\",'Encodage réponses Es'!AM20)","v":""},{"$f":"IF('Encodage réponses Es'!AN20=\"\",\"\",'Encodage réponses Es'!AN20)","v":""},{"$f":"IF('Encodage réponses Es'!AO20=\"\",\"\",'Encodage réponses Es'!AO20)","v":""},{"$f":"IF('Encodage réponses Es'!AQ20=\"\",\"\",'Encodage réponses Es'!AQ20)","v":""},{"$f":"IF('Encodage réponses Es'!AT20=\"\",\"\",'Encodage réponses Es'!AT20)","v":""},{"$f":"IF('Encodage réponses Es'!AU20=\"\",\"\",'Encodage réponses Es'!AUS20)","v":""},{"$f":"IF('Encodage réponses Es'!AG20=\"\",\"\",'Encodage réponses Es'!AG20)","v":""},null,{"$f":"IF(AND(COUNTBLANK('Encodage réponses Es'!AF20:AH20)>0,'Encodage réponses Es'!$AW20=\"!\"),\"Incomplet\",IF(OR(COUNTIF(AZ21:BJ21,\"a\")>0,COUNTIF(AZ21:BJ21,\"A\")>0),\"Absent(e)\",IF(COUNT(AZ21:BJ21)=0,\"\",SUM(AZ21:BJ21))))","v":""}]
[{"$f":"IF('Encodage réponses Es'!A21=\"\",\"\",'Encodage réponses Es'!A21)","v":0},{"$f":"IF('Encodage réponses Es'!B21=\"\",\"\",'Encodage réponses Es'!B21)","v":0},{"$f":"IF('Encodage réponses Es'!C21=\"\",\"\",'Encodage réponses Es'!C21)","v":0},18,{"$f":"IF('Encodage réponses Es'!E21=\"\",\"\",'Encodage réponses Es'!E21)","v":""},{"$f":"IF('Encodage réponses Es'!F21=\"\",\"\",'Encodage réponses Es'!F21)","v":""},{"$f":"IF('Encodage réponses Es'!G21=\"\",\"\",'Encodage réponses Es'!G21)","v":""},{"$f":"IF('Encodage réponses Es'!I21=\"\",\"\",'Encodage réponses Es'!I21)","v":""},null,{"$f":"IF('Encodage réponses Es'!AW21=\"!\",\"Incomplet\",IF(AND(SUM('Encodage réponses Es'!J21:AV21)>=$J$4/2,'Encodage réponses Es'!AW21=\"a\"),SUM('Encodage réponses Es'!J21:AV21),IF(AND(SUM('Encodage réponses Es'!J21:AV21)<$J$4/2,'Encodage réponses Es'!AW21=\"a\"),\"Absent(e)\",IF(COUNTBLANK('Encodage réponses Es'!J21:AV21)=39,\"\",SUM('Encodage réponses Es'!J21:AV21)))))","v":""},"",null,"","","","",null,null,{"$f":"IF('Encodage réponses Es'!J21=\"\",\"\",'Encodage réponses Es'!J21)","v":""},{"$f":"IF('Encodage réponses Es'!K21=\"\",\"\",'Encodage réponses Es'!K21)","v":""},{"$f":"IF('Encodage réponses Es'!M21=\"\",\"\",'Encodage réponses Es'!M21)","v":""},{"$f":"IF('Encodage réponses Es'!N21=\"\",\"\",'Encodage réponses Es'!N21)","v":""},{"$f":"IF('Encodage réponses Es'!S21=\"\",\"\",'Encodage réponses Es'!S21)","v":""},{"$f":"IF('Encodage réponses Es'!L21=\"\",\"\",'Encodage réponses Es'!L21)","v":""},{"$f":"IF('Encodage réponses Es'!O21=\"\",\"\",'Encodage réponses Es'!O21)","v":""},{"$f":"IF('Encodage réponses Es'!AB21=\"\",\"\",'Encodage réponses Es'!AB21)","v":""},{"$f":"IF(AND(COUNTBLANK('Encodage réponses Es'!J21:P21)>0,'Encodage réponses Es'!$AW21=\"!\"),\"Incomplet\",IF(OR(COUNTIF(S22:Z22,\"a\")>0,COUNTIF(S22:Z22,\"A\")>0),\"Absent(e)\",IF(COUNT(S22:Z22)=0,\"\",SUM(S22:Z22))))","v":""},{"$f":"IF('Encodage réponses Es'!V21=\"\",\"\",'Encodage réponses Es'!V21)","v":""},null,{"$f":"IF('Encodage réponses Es'!X21=\"\",\"\",'Encodage réponses Es'!X21)","v":""},{"$f":"IF('Encodage réponses Es'!Y21=\"\",\"\",'Encodage réponses Es'!Y21)","v":""},{"$f":"IF('Encodage réponses Es'!Z21=\"\",\"\",'Encodage réponses Es'!Z21)","v":""},{"$f":"IF('Encodage réponses Es'!P21=\"\",\"\",'Encodage réponses Es'!P21)","v":""},{"$f":"IF('Encodage réponses Es'!Q21=\"\",\"\",'Encodage réponses Es'!Q21)","v":""},{"$f":"IF('Encodage réponses Es'!R21=\"\",\"\",'Encodage réponses Es'!R21)","v":""},{"$f":"IF('Encodage réponses Es'!U21=\"\",\"\",'Encodage réponses Es'!U21)","v":""},{"$f":"IF('Encodage réponses Es'!W21=\"\",\"\",'Encodage réponses Es'!W21)","v":""},{"$f":"IF('Encodage réponses Es'!K21=\"\",\"\",'Encodage réponses Es'!K21)","v":""},{"$f":"IF('Encodage réponses Es'!AA21=\"\",\"\",'Encodage réponses Es'!AA21)","v":""},{"$f":"IF(AND(COUNTBLANK('Encodage réponses Es'!Q21:X21)>0,'Encodage réponses Es'!$AW21=\"!\"),\"Incomplet\",IF(OR(COUNTIF(AB22:AM22,\"a\")>0,COUNTIF(AB22:AM22,\"A\")>0),\"Absent(e)\",IF(COUNT(AB22:AM22)=0,\"\",SUM(AB22:AM22))))","v":""},{"$f":"IF('Encodage réponses Es'!AD21=\"\",\"\",'Encodage réponses Es'!AD21)","v":""},{"$f":"IF('Encodage réponses Es'!AE21=\"\",\"\",'Encodage réponses Es'!AE21)","v":""},{"$f":"IF('Encodage réponses Es'!AL21=\"\",\"\",'Encodage réponses Es'!AL21)","v":""},{"$f":"IF('Encodage réponses Es'!AV21=\"\",\"\",'Encodage réponses Es'!AV21)","v":""},{"$f":"IF('Encodage réponses Es'!AC21=\"\",\"\",'Encodage réponses Es'!AC21)","v":""},{"$f":"IF('Encodage réponses Es'!AR21=\"\",\"\",'Encodage réponses Es'!AR21)","v":""},{"$f":"IF('Encodage réponses Es'!AS21=\"\",\"\",'Encodage réponses Es'!AS21)","v":""},{"$f":"IF('Encodage réponses Es'!AH21=\"\",\"\",'Encodage réponses Es'!AH21)","v":""},{"$f":"IF('Encodage réponses Es'!AI21=\"\",\"\",'Encodage réponses Es'!AI21)","v":""},{"$f":"IF('Encodage réponses Es'!AJ21=\"\",\"\",'Encodage réponses Es'!AJ21)","v":""},{"$f":"IF(AND(COUNTBLANK('Encodage réponses Es'!Y21:AE21)>0,'Encodage réponses Es'!$AW21=\"!\"),\"Incomplet\",IF(OR(COUNTIF(AO22:AX22,\"a\")>0,COUNTIF(AO22:AX22,\"A\")>0),\"Absent(e)\",IF(COUNT(AO22:AX22)=0,\"\",SUM(AO22:AX22))))","v":""},{"$f":"IF('Encodage réponses Es'!AF21=\"\",\"\",'Encodage réponses Es'!AF21)","v":""},{"$f":"IF('Encodage réponses Es'!AP21=\"\",\"\",'Encodage réponses Es'!AP21)","v":""},{"$f":"IF('Encodage réponses Es'!AK21=\"\",\"\",'Encodage réponses Es'!AK21)","v":""},{"$f":"IF('Encodage réponses Es'!AM21=\"\",\"\",'Encodage réponses Es'!AM21)","v":""},{"$f":"IF('Encodage réponses Es'!AN21=\"\",\"\",'Encodage réponses Es'!AN21)","v":""},{"$f":"IF('Encodage réponses Es'!AO21=\"\",\"\",'Encodage réponses Es'!AO21)","v":""},{"$f":"IF('Encodage réponses Es'!AQ21=\"\",\"\",'Encodage réponses Es'!AQ21)","v":""},{"$f":"IF('Encodage réponses Es'!AT21=\"\",\"\",'Encodage réponses Es'!AT21)","v":""},{"$f":"IF('Encodage réponses Es'!AU21=\"\",\"\",'Encodage réponses Es'!AUS21)","v":""},{"$f":"IF('Encodage réponses Es'!AG21=\"\",\"\",'Encodage réponses Es'!AG21)","v":""},null,{"$f":"IF(AND(COUNTBLANK('Encodage réponses Es'!AF21:AH21)>0,'Encodage réponses Es'!$AW21=\"!\"),\"Incomplet\",IF(OR(COUNTIF(AZ22:BJ22,\"a\")>0,COUNTIF(AZ22:BJ22,\"A\")>0),\"Absent(e)\",IF(COUNT(AZ22:BJ22)=0,\"\",SUM(AZ22:BJ22))))","v":""}]
[{"$f":"IF('Encodage réponses Es'!A22=\"\",\"\",'Encodage réponses Es'!A22)","v":0},{"$f":"IF('Encodage réponses Es'!B22=\"\",\"\",'Encodage réponses Es'!B22)","v":0},{"$f":"IF('Encodage réponses Es'!C22=\"\",\"\",'Encodage réponses Es'!C22)","v":0},19,{"$f":"IF('Encodage réponses Es'!E22=\"\",\"\",'Encodage réponses Es'!E22)","v":""},{"$f":"IF('Encodage réponses Es'!F22=\"\",\"\",'Encodage réponses Es'!F22)","v":""},{"$f":"IF('Encodage réponses Es'!G22=\"\",\"\",'Encodage réponses Es'!G22)","v":""},{"$f":"IF('Encodage réponses Es'!I22=\"\",\"\",'Encodage réponses Es'!I22)","v":""},null,{"$f":"IF('Encodage réponses Es'!AW22=\"!\",\"Incomplet\",IF(AND(SUM('Encodage réponses Es'!J22:AV22)>=$J$4/2,'Encodage réponses Es'!AW22=\"a\"),SUM('Encodage réponses Es'!J22:AV22),IF(AND(SUM('Encodage réponses Es'!J22:AV22)<$J$4/2,'Encodage réponses Es'!AW22=\"a\"),\"Absent(e)\",IF(COUNTBLANK('Encodage réponses Es'!J22:AV22)=39,\"\",SUM('Encodage réponses Es'!J22:AV22)))))","v":""},"",null,"","","","",null,null,{"$f":"IF('Encodage réponses Es'!J22=\"\",\"\",'Encodage réponses Es'!J22)","v":""},{"$f":"IF('Encodage réponses Es'!K22=\"\",\"\",'Encodage réponses Es'!K22)","v":""},{"$f":"IF('Encodage réponses Es'!M22=\"\",\"\",'Encodage réponses Es'!M22)","v":""},{"$f":"IF('Encodage réponses Es'!N22=\"\",\"\",'Encodage réponses Es'!N22)","v":""},{"$f":"IF('Encodage réponses Es'!S22=\"\",\"\",'Encodage réponses Es'!S22)","v":""},{"$f":"IF('Encodage réponses Es'!L22=\"\",\"\",'Encodage réponses Es'!L22)","v":""},{"$f":"IF('Encodage réponses Es'!O22=\"\",\"\",'Encodage réponses Es'!O22)","v":""},{"$f":"IF('Encodage réponses Es'!AB22=\"\",\"\",'Encodage réponses Es'!AB22)","v":""},{"$f":"IF(AND(COUNTBLANK('Encodage réponses Es'!J22:P22)>0,'Encodage réponses Es'!$AW22=\"!\"),\"Incomplet\",IF(OR(COUNTIF(S23:Z23,\"a\")>0,COUNTIF(S23:Z23,\"A\")>0),\"Absent(e)\",IF(COUNT(S23:Z23)=0,\"\",SUM(S23:Z23))))","v":""},{"$f":"IF('Encodage réponses Es'!V22=\"\",\"\",'Encodage réponses Es'!V22)","v":""},null,{"$f":"IF('Encodage réponses Es'!X22=\"\",\"\",'Encodage réponses Es'!X22)","v":""},{"$f":"IF('Encodage réponses Es'!Y22=\"\",\"\",'Encodage réponses Es'!Y22)","v":""},{"$f":"IF('Encodage réponses Es'!Z22=\"\",\"\",'Encodage réponses Es'!Z22)","v":""},{"$f":"IF('Encodage réponses Es'!P22=\"\",\"\",'Encodage réponses Es'!P22)","v":""},{"$f":"IF('Encodage réponses Es'!Q22=\"\",\"\",'Encodage réponses Es'!Q22)","v":""},{"$f":"IF('Encodage réponses Es'!R22=\"\",\"\",'Encodage réponses Es'!R22)","v":""},{"$f":"IF('Encodage réponses Es'!U22=\"\",\"\",'Encodage réponses Es'!U22)","v":""},{"$f":"IF('Encodage réponses Es'!W22=\"\",\"\",'Encodage réponses Es'!W22)","v":""},{"$f":"IF('Encodage réponses Es'!K22=\"\",\"\",'Encodage réponses Es'!K22)","v":""},{"$f":"IF('Encodage réponses Es'!AA22=\"\",\"\",'Encodage réponses Es'!AA22)","v":""},{"$f":"IF(AND(COUNTBLANK('Encodage réponses Es'!Q22:X22)>0,'Encodage réponses Es'!$AW22=\"!\"),\"Incomplet\",IF(OR(COUNTIF(AB23:AM23,\"a\")>0,COUNTIF(AB23:AM23,\"A\")>0),\"Absent(e)\",IF(COUNT(AB23:AM23)=0,\"\",SUM(AB23:AM23))))","v":""},{"$f":"IF('Encodage réponses Es'!AD22=\"\",\"\",'Encodage réponses Es'!AD22)","v":""},{"$f":"IF('Encodage réponses Es'!AE22=\"\",\"\",'Encodage réponses Es'!AE22)","v":""},{"$f":"IF('Encodage réponses Es'!AL22=\"\",\"\",'Encodage réponses Es'!AL22)","v":""},{"$f":"IF('Encodage réponses Es'!AV22=\"\",\"\",'Encodage réponses Es'!AV22)","v":""},{"$f":"IF('Encodage réponses Es'!AC22=\"\",\"\",'Encodage réponses Es'!AC22)","v":""},{"$f":"IF('Encodage réponses Es'!AR22=\"\",\"\",'Encodage réponses Es'!AR22)","v":""},{"$f":"IF('Encodage réponses Es'!AS22=\"\",\"\",'Encodage réponses Es'!AS22)","v":""},{"$f":"IF('Encodage réponses Es'!AH22=\"\",\"\",'Encodage réponses Es'!AH22)","v":""},{"$f":"IF('Encodage réponses Es'!AI22=\"\",\"\",'Encodage réponses Es'!AI22)","v":""},{"$f":"IF('Encodage réponses Es'!AJ22=\"\",\"\",'Encodage réponses Es'!AJ22)","v":""},{"$f":"IF(AND(COUNTBLANK('Encodage réponses Es'!Y22:AE22)>0,'Encodage réponses Es'!$AW22=\"!\"),\"Incomplet\",IF(OR(COUNTIF(AO23:AX23,\"a\")>0,COUNTIF(AO23:AX23,\"A\")>0),\"Absent(e)\",IF(COUNT(AO23:AX23)=0,\"\",SUM(AO23:AX23))))","v":""},{"$f":"IF('Encodage réponses Es'!AF22=\"\",\"\",'Encodage réponses Es'!AF22)","v":""},{"$f":"IF('Encodage réponses Es'!AP22=\"\",\"\",'Encodage réponses Es'!AP22)","v":""},{"$f":"IF('Encodage réponses Es'!AK22=\"\",\"\",'Encodage réponses Es'!AK22)","v":""},{"$f":"IF('Encodage réponses Es'!AM22=\"\",\"\",'Encodage réponses Es'!AM22)","v":""},{"$f":"IF('Encodage réponses Es'!AN22=\"\",\"\",'Encodage réponses Es'!AN22)","v":""},{"$f":"IF('Encodage réponses Es'!AO22=\"\",\"\",'Encodage réponses Es'!AO22)","v":""},{"$f":"IF('Encodage réponses Es'!AQ22=\"\",\"\",'Encodage réponses Es'!AQ22)","v":""},{"$f":"IF('Encodage réponses Es'!AT22=\"\",\"\",'Encodage réponses Es'!AT22)","v":""},{"$f":"IF('Encodage réponses Es'!AU22=\"\",\"\",'Encodage réponses Es'!AUS22)","v":""},{"$f":"IF('Encodage réponses Es'!AG22=\"\",\"\",'Encodage réponses Es'!AG22)","v":""},null,{"$f":"IF(AND(COUNTBLANK('Encodage réponses Es'!AF22:AH22)>0,'Encodage réponses Es'!$AW22=\"!\"),\"Incomplet\",IF(OR(COUNTIF(AZ23:BJ23,\"a\")>0,COUNTIF(AZ23:BJ23,\"A\")>0),\"Absent(e)\",IF(COUNT(AZ23:BJ23)=0,\"\",SUM(AZ23:BJ23))))","v":""}]
[{"$f":"IF('Encodage réponses Es'!A23=\"\",\"\",'Encodage réponses Es'!A23)","v":0},{"$f":"IF('Encodage réponses Es'!B23=\"\",\"\",'Encodage réponses Es'!B23)","v":0},{"$f":"IF('Encodage réponses Es'!C23=\"\",\"\",'Encodage réponses Es'!C23)","v":0},20,{"$f":"IF('Encodage réponses Es'!E23=\"\",\"\",'Encodage réponses Es'!E23)","v":""},{"$f":"IF('Encodage réponses Es'!F23=\"\",\"\",'Encodage réponses Es'!F23)","v":""},{"$f":"IF('Encodage réponses Es'!G23=\"\",\"\",'Encodage réponses Es'!G23)","v":""},{"$f":"IF('Encodage réponses Es'!I23=\"\",\"\",'Encodage réponses Es'!I23)","v":""},null,{"$f":"IF('Encodage réponses Es'!AW23=\"!\",\"Incomplet\",IF(AND(SUM('Encodage réponses Es'!J23:AV23)>=$J$4/2,'Encodage réponses Es'!AW23=\"a\"),SUM('Encodage réponses Es'!J23:AV23),IF(AND(SUM('Encodage réponses Es'!J23:AV23)<$J$4/2,'Encodage réponses Es'!AW23=\"a\"),\"Absent(e)\",IF(COUNTBLANK('Encodage réponses Es'!J23:AV23)=39,\"\",SUM('Encodage réponses Es'!J23:AV23)))))","v":""},"",null,"","","","",null,null,{"$f":"IF('Encodage réponses Es'!J23=\"\",\"\",'Encodage réponses Es'!J23)","v":""},{"$f":"IF('Encodage réponses Es'!K23=\"\",\"\",'Encodage réponses Es'!K23)","v":""},{"$f":"IF('Encodage réponses Es'!M23=\"\",\"\",'Encodage réponses Es'!M23)","v":""},{"$f":"IF('Encodage réponses Es'!N23=\"\",\"\",'Encodage réponses Es'!N23)","v":""},{"$f":"IF('Encodage réponses Es'!S23=\"\",\"\",'Encodage réponses Es'!S23)","v":""},{"$f":"IF('Encodage réponses Es'!L23=\"\",\"\",'Encodage réponses Es'!L23)","v":""},{"$f":"IF('Encodage réponses Es'!O23=\"\",\"\",'Encodage réponses Es'!O23)","v":""},{"$f":"IF('Encodage réponses Es'!AB23=\"\",\"\",'Encodage réponses Es'!AB23)","v":""},{"$f":"IF(AND(COUNTBLANK('Encodage réponses Es'!J23:P23)>0,'Encodage réponses Es'!$AW23=\"!\"),\"Incomplet\",IF(OR(COUNTIF(S24:Z24,\"a\")>0,COUNTIF(S24:Z24,\"A\")>0),\"Absent(e)\",IF(COUNT(S24:Z24)=0,\"\",SUM(S24:Z24))))","v":""},{"$f":"IF('Encodage réponses Es'!V23=\"\",\"\",'Encodage réponses Es'!V23)","v":""},null,{"$f":"IF('Encodage réponses Es'!X23=\"\",\"\",'Encodage réponses Es'!X23)","v":""},{"$f":"IF('Encodage réponses Es'!Y23=\"\",\"\",'Encodage réponses Es'!Y23)","v":""},{"$f":"IF('Encodage réponses Es'!Z23=\"\",\"\",'Encodage réponses Es'!Z23)","v":""},{"$f":"IF('Encodage réponses Es'!P23=\"\",\"\",'Encodage réponses Es'!P23)","v":""},{"$f":"IF('Encodage réponses Es'!Q23=\"\",\"\",'Encodage réponses Es'!Q23)","v":""},{"$f":"IF('Encodage réponses Es'!R23=\"\",\"\",'Encodage réponses Es'!R23)","v":""},{"$f":"IF('Encodage réponses Es'!U23=\"\",\"\",'Encodage réponses Es'!U23)","v":""},{"$f":"IF('Encodage réponses Es'!W23=\"\",\"\",'Encodage réponses Es'!W23)","v":""},{"$f":"IF('Encodage réponses Es'!K23=\"\",\"\",'Encodage réponses Es'!K23)","v":""},{"$f":"IF('Encodage réponses Es'!AA23=\"\",\"\",'Encodage réponses Es'!AA23)","v":""},{"$f":"IF(AND(COUNTBLANK('Encodage réponses Es'!Q23:X23)>0,'Encodage réponses Es'!$AW23=\"!\"),\"Incomplet\",IF(OR(COUNTIF(AB24:AM24,\"a\")>0,COUNTIF(AB24:AM24,\"A\")>0),\"Absent(e)\",IF(COUNT(AB24:AM24)=0,\"\",SUM(AB24:AM24))))","v":""},{"$f":"IF('Encodage réponses Es'!AD23=\"\",\"\",'Encodage réponses Es'!AD23)","v":""},{"$f":"IF('Encodage réponses Es'!AE23=\"\",\"\",'Encodage réponses Es'!AE23)","v":""},{"$f":"IF('Encodage réponses Es'!AL23=\"\",\"\",'Encodage réponses Es'!AL23)","v":""},{"$f":"IF('Encodage réponses Es'!AV23=\"\",\"\",'Encodage réponses Es'!AV23)","v":""},{"$f":"IF('Encodage réponses Es'!AC23=\"\",\"\",'Encodage réponses Es'!AC23)","v":""},{"$f":"IF('Encodage réponses Es'!AR23=\"\",\"\",'Encodage réponses Es'!AR23)","v":""},{"$f":"IF('Encodage réponses Es'!AS23=\"\",\"\",'Encodage réponses Es'!AS23)","v":""},{"$f":"IF('Encodage réponses Es'!AH23=\"\",\"\",'Encodage réponses Es'!AH23)","v":""},{"$f":"IF('Encodage réponses Es'!AI23=\"\",\"\",'Encodage réponses Es'!AI23)","v":""},{"$f":"IF('Encodage réponses Es'!AJ23=\"\",\"\",'Encodage réponses Es'!AJ23)","v":""},{"$f":"IF(AND(COUNTBLANK('Encodage réponses Es'!Y23:AE23)>0,'Encodage réponses Es'!$AW23=\"!\"),\"Incomplet\",IF(OR(COUNTIF(AO24:AX24,\"a\")>0,COUNTIF(AO24:AX24,\"A\")>0),\"Absent(e)\",IF(COUNT(AO24:AX24)=0,\"\",SUM(AO24:AX24))))","v":""},{"$f":"IF('Encodage réponses Es'!AF23=\"\",\"\",'Encodage réponses Es'!AF23)","v":""},{"$f":"IF('Encodage réponses Es'!AP23=\"\",\"\",'Encodage réponses Es'!AP23)","v":""},{"$f":"IF('Encodage réponses Es'!AK23=\"\",\"\",'Encodage réponses Es'!AK23)","v":""},{"$f":"IF('Encodage réponses Es'!AM23=\"\",\"\",'Encodage réponses Es'!AM23)","v":""},{"$f":"IF('Encodage réponses Es'!AN23=\"\",\"\",'Encodage réponses Es'!AN23)","v":""},{"$f":"IF('Encodage réponses Es'!AO23=\"\",\"\",'Encodage réponses Es'!AO23)","v":""},{"$f":"IF('Encodage réponses Es'!AQ23=\"\",\"\",'Encodage réponses Es'!AQ23)","v":""},{"$f":"IF('Encodage réponses Es'!AT23=\"\",\"\",'Encodage réponses Es'!AT23)","v":""},{"$f":"IF('Encodage réponses Es'!AU23=\"\",\"\",'Encodage réponses Es'!AUS23)","v":""},{"$f":"IF('Encodage réponses Es'!AG23=\"\",\"\",'Encodage réponses Es'!AG23)","v":""},null,{"$f":"IF(AND(COUNTBLANK('Encodage réponses Es'!AF23:AH23)>0,'Encodage réponses Es'!$AW23=\"!\"),\"Incomplet\",IF(OR(COUNTIF(AZ24:BJ24,\"a\")>0,COUNTIF(AZ24:BJ24,\"A\")>0),\"Absent(e)\",IF(COUNT(AZ24:BJ24)=0,\"\",SUM(AZ24:BJ24))))","v":""}]
[{"$f":"IF('Encodage réponses Es'!A24=\"\",\"\",'Encodage réponses Es'!A24)","v":0},{"$f":"IF('Encodage réponses Es'!B24=\"\",\"\",'Encodage réponses Es'!B24)","v":0},{"$f":"IF('Encodage réponses Es'!C24=\"\",\"\",'Encodage réponses Es'!C24)","v":0},21,{"$f":"IF('Encodage réponses Es'!E24=\"\",\"\",'Encodage réponses Es'!E24)","v":""},{"$f":"IF('Encodage réponses Es'!F24=\"\",\"\",'Encodage réponses Es'!F24)","v":""},{"$f":"IF('Encodage réponses Es'!G24=\"\",\"\",'Encodage réponses Es'!G24)","v":""},{"$f":"IF('Encodage réponses Es'!I24=\"\",\"\",'Encodage réponses Es'!I24)","v":""},null,{"$f":"IF('Encodage réponses Es'!AW24=\"!\",\"Incomplet\",IF(AND(SUM('Encodage réponses Es'!J24:AV24)>=$J$4/2,'Encodage réponses Es'!AW24=\"a\"),SUM('Encodage réponses Es'!J24:AV24),IF(AND(SUM('Encodage réponses Es'!J24:AV24)<$J$4/2,'Encodage réponses Es'!AW24=\"a\"),\"Absent(e)\",IF(COUNTBLANK('Encodage réponses Es'!J24:AV24)=39,\"\",SUM('Encodage réponses Es'!J24:AV24)))))","v":""},"",null,"","","","",null,null,{"$f":"IF('Encodage réponses Es'!J24=\"\",\"\",'Encodage réponses Es'!J24)","v":""},{"$f":"IF('Encodage réponses Es'!K24=\"\",\"\",'Encodage réponses Es'!K24)","v":""},{"$f":"IF('Encodage réponses Es'!M24=\"\",\"\",'Encodage réponses Es'!M24)","v":""},{"$f":"IF('Encodage réponses Es'!N24=\"\",\"\",'Encodage réponses Es'!N24)","v":""},{"$f":"IF('Encodage réponses Es'!S24=\"\",\"\",'Encodage réponses Es'!S24)","v":""},{"$f":"IF('Encodage réponses Es'!L24=\"\",\"\",'Encodage réponses Es'!L24)","v":""},{"$f":"IF('Encodage réponses Es'!O24=\"\",\"\",'Encodage réponses Es'!O24)","v":""},{"$f":"IF('Encodage réponses Es'!AB24=\"\",\"\",'Encodage réponses Es'!AB24)","v":""},{"$f":"IF(AND(COUNTBLANK('Encodage réponses Es'!J24:P24)>0,'Encodage réponses Es'!$AW24=\"!\"),\"Incomplet\",IF(OR(COUNTIF(S25:Z25,\"a\")>0,COUNTIF(S25:Z25,\"A\")>0),\"Absent(e)\",IF(COUNT(S25:Z25)=0,\"\",SUM(S25:Z25))))","v":""},{"$f":"IF('Encodage réponses Es'!V24=\"\",\"\",'Encodage réponses Es'!V24)","v":""},null,{"$f":"IF('Encodage réponses Es'!X24=\"\",\"\",'Encodage réponses Es'!X24)","v":""},{"$f":"IF('Encodage réponses Es'!Y24=\"\",\"\",'Encodage réponses Es'!Y24)","v":""},{"$f":"IF('Encodage réponses Es'!Z24=\"\",\"\",'Encodage réponses Es'!Z24)","v":""},{"$f":"IF('Encodage réponses Es'!P24=\"\",\"\",'Encodage réponses Es'!P24)","v":""},{"$f":"IF('Encodage réponses Es'!Q24=\"\",\"\",'Encodage réponses Es'!Q24)","v":""},{"$f":"IF('Encodage réponses Es'!R24=\"\",\"\",'Encodage réponses Es'!R24)","v":""},{"$f":"IF('Encodage réponses Es'!U24=\"\",\"\",'Encodage réponses Es'!U24)","v":""},{"$f":"IF('Encodage réponses Es'!W24=\"\",\"\",'Encodage réponses Es'!W24)","v":""},{"$f":"IF('Encodage réponses Es'!K24=\"\",\"\",'Encodage réponses Es'!K24)","v":""},{"$f":"IF('Encodage réponses Es'!AA24=\"\",\"\",'Encodage réponses Es'!AA24)","v":""},{"$f":"IF(AND(COUNTBLANK('Encodage réponses Es'!Q24:X24)>0,'Encodage réponses Es'!$AW24=\"!\"),\"Incomplet\",IF(OR(COUNTIF(AB25:AM25,\"a\")>0,COUNTIF(AB25:AM25,\"A\")>0),\"Absent(e)\",IF(COUNT(AB25:AM25)=0,\"\",SUM(AB25:AM25))))","v":""},{"$f":"IF('Encodage réponses Es'!AD24=\"\",\"\",'Encodage réponses Es'!AD24)","v":""},{"$f":"IF('Encodage réponses Es'!AE24=\"\",\"\",'Encodage réponses Es'!AE24)","v":""},{"$f":"IF('Encodage réponses Es'!AL24=\"\",\"\",'Encodage réponses Es'!AL24)","v":""},{"$f":"IF('Encodage réponses Es'!AV24=\"\",\"\",'Encodage réponses Es'!AV24)","v":""},{"$f":"IF('Encodage réponses Es'!AC24=\"\",\"\",'Encodage réponses Es'!AC24)","v":""},{"$f":"IF('Encodage réponses Es'!AR24=\"\",\"\",'Encodage réponses Es'!AR24)","v":""},{"$f":"IF('Encodage réponses Es'!AS24=\"\",\"\",'Encodage réponses Es'!AS24)","v":""},{"$f":"IF('Encodage réponses Es'!AH24=\"\",\"\",'Encodage réponses Es'!AH24)","v":""},{"$f":"IF('Encodage réponses Es'!AI24=\"\",\"\",'Encodage réponses Es'!AI24)","v":""},{"$f":"IF('Encodage réponses Es'!AJ24=\"\",\"\",'Encodage réponses Es'!AJ24)","v":""},{"$f":"IF(AND(COUNTBLANK('Encodage réponses Es'!Y24:AE24)>0,'Encodage réponses Es'!$AW24=\"!\"),\"Incomplet\",IF(OR(COUNTIF(AO25:AX25,\"a\")>0,COUNTIF(AO25:AX25,\"A\")>0),\"Absent(e)\",IF(COUNT(AO25:AX25)=0,\"\",SUM(AO25:AX25))))","v":""},{"$f":"IF('Encodage réponses Es'!AF24=\"\",\"\",'Encodage réponses Es'!AF24)","v":""},{"$f":"IF('Encodage réponses Es'!AP24=\"\",\"\",'Encodage réponses Es'!AP24)","v":""},{"$f":"IF('Encodage réponses Es'!AK24=\"\",\"\",'Encodage réponses Es'!AK24)","v":""},{"$f":"IF('Encodage réponses Es'!AM24=\"\",\"\",'Encodage réponses Es'!AM24)","v":""},{"$f":"IF('Encodage réponses Es'!AN24=\"\",\"\",'Encodage réponses Es'!AN24)","v":""},{"$f":"IF('Encodage réponses Es'!AO24=\"\",\"\",'Encodage réponses Es'!AO24)","v":""},{"$f":"IF('Encodage réponses Es'!AQ24=\"\",\"\",'Encodage réponses Es'!AQ24)","v":""},{"$f":"IF('Encodage réponses Es'!AT24=\"\",\"\",'Encodage réponses Es'!AT24)","v":""},{"$f":"IF('Encodage réponses Es'!AU24=\"\",\"\",'Encodage réponses Es'!AUS24)","v":""},{"$f":"IF('Encodage réponses Es'!AG24=\"\",\"\",'Encodage réponses Es'!AG24)","v":""},null,{"$f":"IF(AND(COUNTBLANK('Encodage réponses Es'!AF24:AH24)>0,'Encodage réponses Es'!$AW24=\"!\"),\"Incomplet\",IF(OR(COUNTIF(AZ25:BJ25,\"a\")>0,COUNTIF(AZ25:BJ25,\"A\")>0),\"Absent(e)\",IF(COUNT(AZ25:BJ25)=0,\"\",SUM(AZ25:BJ25))))","v":""}]
[{"$f":"IF('Encodage réponses Es'!A25=\"\",\"\",'Encodage réponses Es'!A25)","v":0},{"$f":"IF('Encodage réponses Es'!B25=\"\",\"\",'Encodage réponses Es'!B25)","v":0},{"$f":"IF('Encodage réponses Es'!C25=\"\",\"\",'Encodage réponses Es'!C25)","v":0},22,{"$f":"IF('Encodage réponses Es'!E25=\"\",\"\",'Encodage réponses Es'!E25)","v":""},{"$f":"IF('Encodage réponses Es'!F25=\"\",\"\",'Encodage réponses Es'!F25)","v":""},{"$f":"IF('Encodage réponses Es'!G25=\"\",\"\",'Encodage réponses Es'!G25)","v":""},{"$f":"IF('Encodage réponses Es'!I25=\"\",\"\",'Encodage réponses Es'!I25)","v":""},null,{"$f":"IF('Encodage réponses Es'!AW25=\"!\",\"Incomplet\",IF(AND(SUM('Encodage réponses Es'!J25:AV25)>=$J$4/2,'Encodage réponses Es'!AW25=\"a\"),SUM('Encodage réponses Es'!J25:AV25),IF(AND(SUM('Encodage réponses Es'!J25:AV25)<$J$4/2,'Encodage réponses Es'!AW25=\"a\"),\"Absent(e)\",IF(COUNTBLANK('Encodage réponses Es'!J25:AV25)=39,\"\",SUM('Encodage réponses Es'!J25:AV25)))))","v":""},"",null,"","","","",null,null,{"$f":"IF('Encodage réponses Es'!J25=\"\",\"\",'Encodage réponses Es'!J25)","v":""},{"$f":"IF('Encodage réponses Es'!K25=\"\",\"\",'Encodage réponses Es'!K25)","v":""},{"$f":"IF('Encodage réponses Es'!M25=\"\",\"\",'Encodage réponses Es'!M25)","v":""},{"$f":"IF('Encodage réponses Es'!N25=\"\",\"\",'Encodage réponses Es'!N25)","v":""},{"$f":"IF('Encodage réponses Es'!S25=\"\",\"\",'Encodage réponses Es'!S25)","v":""},{"$f":"IF('Encodage réponses Es'!L25=\"\",\"\",'Encodage réponses Es'!L25)","v":""},{"$f":"IF('Encodage réponses Es'!O25=\"\",\"\",'Encodage réponses Es'!O25)","v":""},{"$f":"IF('Encodage réponses Es'!AB25=\"\",\"\",'Encodage réponses Es'!AB25)","v":""},{"$f":"IF(AND(COUNTBLANK('Encodage réponses Es'!J25:P25)>0,'Encodage réponses Es'!$AW25=\"!\"),\"Incomplet\",IF(OR(COUNTIF(S26:Z26,\"a\")>0,COUNTIF(S26:Z26,\"A\")>0),\"Absent(e)\",IF(COUNT(S26:Z26)=0,\"\",SUM(S26:Z26))))","v":""},{"$f":"IF('Encodage réponses Es'!V25=\"\",\"\",'Encodage réponses Es'!V25)","v":""},null,{"$f":"IF('Encodage réponses Es'!X25=\"\",\"\",'Encodage réponses Es'!X25)","v":""},{"$f":"IF('Encodage réponses Es'!Y25=\"\",\"\",'Encodage réponses Es'!Y25)","v":""},{"$f":"IF('Encodage réponses Es'!Z25=\"\",\"\",'Encodage réponses Es'!Z25)","v":""},{"$f":"IF('Encodage réponses Es'!P25=\"\",\"\",'Encodage réponses Es'!P25)","v":""},{"$f":"IF('Encodage réponses Es'!Q25=\"\",\"\",'Encodage réponses Es'!Q25)","v":""},{"$f":"IF('Encodage réponses Es'!R25=\"\",\"\",'Encodage réponses Es'!R25)","v":""},{"$f":"IF('Encodage réponses Es'!U25=\"\",\"\",'Encodage réponses Es'!U25)","v":""},{"$f":"IF('Encodage réponses Es'!W25=\"\",\"\",'Encodage réponses Es'!W25)","v":""},{"$f":"IF('Encodage réponses Es'!K25=\"\",\"\",'Encodage réponses Es'!K25)","v":""},{"$f":"IF('Encodage réponses Es'!AA25=\"\",\"\",'Encodage réponses Es'!AA25)","v":""},{"$f":"IF(AND(COUNTBLANK('Encodage réponses Es'!Q25:X25)>0,'Encodage réponses Es'!$AW25=\"!\"),\"Incomplet\",IF(OR(COUNTIF(AB26:AM26,\"a\")>0,COUNTIF(AB26:AM26,\"A\")>0),\"Absent(e)\",IF(COUNT(AB26:AM26)=0,\"\",SUM(AB26:AM26))))","v":""},{"$f":"IF('Encodage réponses Es'!AD25=\"\",\"\",'Encodage réponses Es'!AD25)","v":""},{"$f":"IF('Encodage réponses Es'!AE25=\"\",\"\",'Encodage réponses Es'!AE25)","v":""},{"$f":"IF('Encodage réponses Es'!AL25=\"\",\"\",'Encodage réponses Es'!AL25)","v":""},{"$f":"IF('Encodage réponses Es'!AV25=\"\",\"\",'Encodage réponses Es'!AV25)","v":""},{"$f":"IF('Encodage réponses Es'!AC25=\"\",\"\",'Encodage réponses Es'!AC25)","v":""},{"$f":"IF('Encodage réponses Es'!AR25=\"\",\"\",'Encodage réponses Es'!AR25)","v":""},{"$f":"IF('Encodage réponses Es'!AS25=\"\",\"\",'Encodage réponses Es'!AS25)","v":""},{"$f":"IF('Encodage réponses Es'!AH25=\"\",\"\",'Encodage réponses Es'!AH25)","v":""},{"$f":"IF('Encodage réponses Es'!AI25=\"\",\"\",'Encodage réponses Es'!AI25)","v":""},{"$f":"IF('Encodage réponses Es'!AJ25=\"\",\"\",'Encodage réponses Es'!AJ25)","v":""},{"$f":"IF(AND(COUNTBLANK('Encodage réponses Es'!Y25:AE25)>0,'Encodage réponses Es'!$AW25=\"!\"),\"Incomplet\",IF(OR(COUNTIF(AO26:AX26,\"a\")>0,COUNTIF(AO26:AX26,\"A\")>0),\"Absent(e)\",IF(COUNT(AO26:AX26)=0,\"\",SUM(AO26:AX26))))","v":""},{"$f":"IF('Encodage réponses Es'!AF25=\"\",\"\",'Encodage réponses Es'!AF25)","v":""},{"$f":"IF('Encodage réponses Es'!AP25=\"\",\"\",'Encodage réponses Es'!AP25)","v":""},{"$f":"IF('Encodage réponses Es'!AK25=\"\",\"\",'Encodage réponses Es'!AK25)","v":""},{"$f":"IF('Encodage réponses Es'!AM25=\"\",\"\",'Encodage réponses Es'!AM25)","v":""},{"$f":"IF('Encodage réponses Es'!AN25=\"\",\"\",'Encodage réponses Es'!AN25)","v":""},{"$f":"IF('Encodage réponses Es'!AO25=\"\",\"\",'Encodage réponses Es'!AO25)","v":""},{"$f":"IF('Encodage réponses Es'!AQ25=\"\",\"\",'Encodage réponses Es'!AQ25)","v":""},{"$f":"IF('Encodage réponses Es'!AT25=\"\",\"\",'Encodage réponses Es'!AT25)","v":""},{"$f":"IF('Encodage réponses Es'!AU25=\"\",\"\",'Encodage réponses Es'!AUS25)","v":""},{"$f":"IF('Encodage réponses Es'!AG25=\"\",\"\",'Encodage réponses Es'!AG25)","v":""},null,{"$f":"IF(AND(COUNTBLANK('Encodage réponses Es'!AF25:AH25)>0,'Encodage réponses Es'!$AW25=\"!\"),\"Incomplet\",IF(OR(COUNTIF(AZ26:BJ26,\"a\")>0,COUNTIF(AZ26:BJ26,\"A\")>0),\"Absent(e)\",IF(COUNT(AZ26:BJ26)=0,\"\",SUM(AZ26:BJ26))))","v":""}]
[{"$f":"IF('Encodage réponses Es'!A26=\"\",\"\",'Encodage réponses Es'!A26)","v":0},{"$f":"IF('Encodage réponses Es'!B26=\"\",\"\",'Encodage réponses Es'!B26)","v":0},{"$f":"IF('Encodage réponses Es'!C26=\"\",\"\",'Encodage réponses Es'!C26)","v":0},23,{"$f":"IF('Encodage réponses Es'!E26=\"\",\"\",'Encodage réponses Es'!E26)","v":""},{"$f":"IF('Encodage réponses Es'!F26=\"\",\"\",'Encodage réponses Es'!F26)","v":""},{"$f":"IF('Encodage réponses Es'!G26=\"\",\"\",'Encodage réponses Es'!G26)","v":""},{"$f":"IF('Encodage réponses Es'!I26=\"\",\"\",'Encodage réponses Es'!I26)","v":""},null,{"$f":"IF('Encodage réponses Es'!AW26=\"!\",\"Incomplet\",IF(AND(SUM('Encodage réponses Es'!J26:AV26)>=$J$4/2,'Encodage réponses Es'!AW26=\"a\"),SUM('Encodage réponses Es'!J26:AV26),IF(AND(SUM('Encodage réponses Es'!J26:AV26)<$J$4/2,'Encodage réponses Es'!AW26=\"a\"),\"Absent(e)\",IF(COUNTBLANK('Encodage réponses Es'!J26:AV26)=39,\"\",SUM('Encodage réponses Es'!J26:AV26)))))","v":""},"",null,"","","","",null,null,{"$f":"IF('Encodage réponses Es'!J26=\"\",\"\",'Encodage réponses Es'!J26)","v":""},{"$f":"IF('Encodage réponses Es'!K26=\"\",\"\",'Encodage réponses Es'!K26)","v":""},{"$f":"IF('Encodage réponses Es'!M26=\"\",\"\",'Encodage réponses Es'!M26)","v":""},{"$f":"IF('Encodage réponses Es'!N26=\"\",\"\",'Encodage réponses Es'!N26)","v":""},{"$f":"IF('Encodage réponses Es'!S26=\"\",\"\",'Encodage réponses Es'!S26)","v":""},{"$f":"IF('Encodage réponses Es'!L26=\"\",\"\",'Encodage réponses Es'!L26)","v":""},{"$f":"IF('Encodage réponses Es'!O26=\"\",\"\",'Encodage réponses Es'!O26)","v":""},{"$f":"IF('Encodage réponses Es'!AB26=\"\",\"\",'Encodage réponses Es'!AB26)","v":""},{"$f":"IF(AND(COUNTBLANK('Encodage réponses Es'!J26:P26)>0,'Encodage réponses Es'!$AW26=\"!\"),\"Incomplet\",IF(OR(COUNTIF(S27:Z27,\"a\")>0,COUNTIF(S27:Z27,\"A\")>0),\"Absent(e)\",IF(COUNT(S27:Z27)=0,\"\",SUM(S27:Z27))))","v":""},{"$f":"IF('Encodage réponses Es'!V26=\"\",\"\",'Encodage réponses Es'!V26)","v":""},null,{"$f":"IF('Encodage réponses Es'!X26=\"\",\"\",'Encodage réponses Es'!X26)","v":""},{"$f":"IF('Encodage réponses Es'!Y26=\"\",\"\",'Encodage réponses Es'!Y26)","v":""},{"$f":"IF('Encodage réponses Es'!Z26=\"\",\"\",'Encodage réponses Es'!Z26)","v":""},{"$f":"IF('Encodage réponses Es'!P26=\"\",\"\",'Encodage réponses Es'!P26)","v":""},{"$f":"IF('Encodage réponses Es'!Q26=\"\",\"\",'Encodage réponses Es'!Q26)","v":""},{"$f":"IF('Encodage réponses Es'!R26=\"\",\"\",'Encodage réponses Es'!R26)","v":""},{"$f":"IF('Encodage réponses Es'!U26=\"\",\"\",'Encodage réponses Es'!U26)","v":""},{"$f":"IF('Encodage réponses Es'!W26=\"\",\"\",'Encodage réponses Es'!W26)","v":""},{"$f":"IF('Encodage réponses Es'!K26=\"\",\"\",'Encodage réponses Es'!K26)","v":""},{"$f":"IF('Encodage réponses Es'!AA26=\"\",\"\",'Encodage réponses Es'!AA26)","v":""},{"$f":"IF(AND(COUNTBLANK('Encodage réponses Es'!Q26:X26)>0,'Encodage réponses Es'!$AW26=\"!\"),\"Incomplet\",IF(OR(COUNTIF(AB27:AM27,\"a\")>0,COUNTIF(AB27:AM27,\"A\")>0),\"Absent(e)\",IF(COUNT(AB27:AM27)=0,\"\",SUM(AB27:AM27))))","v":""},{"$f":"IF('Encodage réponses Es'!AD26=\"\",\"\",'Encodage réponses Es'!AD26)","v":""},{"$f":"IF('Encodage réponses Es'!AE26=\"\",\"\",'Encodage réponses Es'!AE26)","v":""},{"$f":"IF('Encodage réponses Es'!AL26=\"\",\"\",'Encodage réponses Es'!AL26)","v":""},{"$f":"IF('Encodage réponses Es'!AV26=\"\",\"\",'Encodage réponses Es'!AV26)","v":""},{"$f":"IF('Encodage réponses Es'!AC26=\"\",\"\",'Encodage réponses Es'!AC26)","v":""},{"$f":"IF('Encodage réponses Es'!AR26=\"\",\"\",'Encodage réponses Es'!AR26)","v":""},{"$f":"IF('Encodage réponses Es'!AS26=\"\",\"\",'Encodage réponses Es'!AS26)","v":""},{"$f":"IF('Encodage réponses Es'!AH26=\"\",\"\",'Encodage réponses Es'!AH26)","v":""},{"$f":"IF('Encodage réponses Es'!AI26=\"\",\"\",'Encodage réponses Es'!AI26)","v":""},{"$f":"IF('Encodage réponses Es'!AJ26=\"\",\"\",'Encodage réponses Es'!AJ26)","v":""},{"$f":"IF(AND(COUNTBLANK('Encodage réponses Es'!Y26:AE26)>0,'Encodage réponses Es'!$AW26=\"!\"),\"Incomplet\",IF(OR(COUNTIF(AO27:AX27,\"a\")>0,COUNTIF(AO27:AX27,\"A\")>0),\"Absent(e)\",IF(COUNT(AO27:AX27)=0,\"\",SUM(AO27:AX27))))","v":""},{"$f":"IF('Encodage réponses Es'!AF26=\"\",\"\",'Encodage réponses Es'!AF26)","v":""},{"$f":"IF('Encodage réponses Es'!AP26=\"\",\"\",'Encodage réponses Es'!AP26)","v":""},{"$f":"IF('Encodage réponses Es'!AK26=\"\",\"\",'Encodage réponses Es'!AK26)","v":""},{"$f":"IF('Encodage réponses Es'!AM26=\"\",\"\",'Encodage réponses Es'!AM26)","v":""},{"$f":"IF('Encodage réponses Es'!AN26=\"\",\"\",'Encodage réponses Es'!AN26)","v":""},{"$f":"IF('Encodage réponses Es'!AO26=\"\",\"\",'Encodage réponses Es'!AO26)","v":""},{"$f":"IF('Encodage réponses Es'!AQ26=\"\",\"\",'Encodage réponses Es'!AQ26)","v":""},{"$f":"IF('Encodage réponses Es'!AT26=\"\",\"\",'Encodage réponses Es'!AT26)","v":""},{"$f":"IF('Encodage réponses Es'!AU26=\"\",\"\",'Encodage réponses Es'!AUS26)","v":""},{"$f":"IF('Encodage réponses Es'!AG26=\"\",\"\",'Encodage réponses Es'!AG26)","v":""},null,{"$f":"IF(AND(COUNTBLANK('Encodage réponses Es'!AF26:AH26)>0,'Encodage réponses Es'!$AW26=\"!\"),\"Incomplet\",IF(OR(COUNTIF(AZ27:BJ27,\"a\")>0,COUNTIF(AZ27:BJ27,\"A\")>0),\"Absent(e)\",IF(COUNT(AZ27:BJ27)=0,\"\",SUM(AZ27:BJ27))))","v":""}]
[{"$f":"IF('Encodage réponses Es'!A27=\"\",\"\",'Encodage réponses Es'!A27)","v":0},{"$f":"IF('Encodage réponses Es'!B27=\"\",\"\",'Encodage réponses Es'!B27)","v":0},{"$f":"IF('Encodage réponses Es'!C27=\"\",\"\",'Encodage réponses Es'!C27)","v":0},24,{"$f":"IF('Encodage réponses Es'!E27=\"\",\"\",'Encodage réponses Es'!E27)","v":""},{"$f":"IF('Encodage réponses Es'!F27=\"\",\"\",'Encodage réponses Es'!F27)","v":""},{"$f":"IF('Encodage réponses Es'!G27=\"\",\"\",'Encodage réponses Es'!G27)","v":""},{"$f":"IF('Encodage réponses Es'!I27=\"\",\"\",'Encodage réponses Es'!I27)","v":""},null,{"$f":"IF('Encodage réponses Es'!AW27=\"!\",\"Incomplet\",IF(AND(SUM('Encodage réponses Es'!J27:AV27)>=$J$4/2,'Encodage réponses Es'!AW27=\"a\"),SUM('Encodage réponses Es'!J27:AV27),IF(AND(SUM('Encodage réponses Es'!J27:AV27)<$J$4/2,'Encodage réponses Es'!AW27=\"a\"),\"Absent(e)\",IF(COUNTBLANK('Encodage réponses Es'!J27:AV27)=39,\"\",SUM('Encodage réponses Es'!J27:AV27)))))","v":""},"",null,"","","","",null,null,{"$f":"IF('Encodage réponses Es'!J27=\"\",\"\",'Encodage réponses Es'!J27)","v":""},{"$f":"IF('Encodage réponses Es'!K27=\"\",\"\",'Encodage réponses Es'!K27)","v":""},{"$f":"IF('Encodage réponses Es'!M27=\"\",\"\",'Encodage réponses Es'!M27)","v":""},{"$f":"IF('Encodage réponses Es'!N27=\"\",\"\",'Encodage réponses Es'!N27)","v":""},{"$f":"IF('Encodage réponses Es'!S27=\"\",\"\",'Encodage réponses Es'!S27)","v":""},{"$f":"IF('Encodage réponses Es'!L27=\"\",\"\",'Encodage réponses Es'!L27)","v":""},{"$f":"IF('Encodage réponses Es'!O27=\"\",\"\",'Encodage réponses Es'!O27)","v":""},{"$f":"IF('Encodage réponses Es'!AB27=\"\",\"\",'Encodage réponses Es'!AB27)","v":""},{"$f":"IF(AND(COUNTBLANK('Encodage réponses Es'!J27:P27)>0,'Encodage réponses Es'!$AW27=\"!\"),\"Incomplet\",IF(OR(COUNTIF(S28:Z28,\"a\")>0,COUNTIF(S28:Z28,\"A\")>0),\"Absent(e)\",IF(COUNT(S28:Z28)=0,\"\",SUM(S28:Z28))))","v":""},{"$f":"IF('Encodage réponses Es'!V27=\"\",\"\",'Encodage réponses Es'!V27)","v":""},null,{"$f":"IF('Encodage réponses Es'!X27=\"\",\"\",'Encodage réponses Es'!X27)","v":""},{"$f":"IF('Encodage réponses Es'!Y27=\"\",\"\",'Encodage réponses Es'!Y27)","v":""},{"$f":"IF('Encodage réponses Es'!Z27=\"\",\"\",'Encodage réponses Es'!Z27)","v":""},{"$f":"IF('Encodage réponses Es'!P27=\"\",\"\",'Encodage réponses Es'!P27)","v":""},{"$f":"IF('Encodage réponses Es'!Q27=\"\",\"\",'Encodage réponses Es'!Q27)","v":""},{"$f":"IF('Encodage réponses Es'!R27=\"\",\"\",'Encodage réponses Es'!R27)","v":""},{"$f":"IF('Encodage réponses Es'!U27=\"\",\"\",'Encodage réponses Es'!U27)","v":""},{"$f":"IF('Encodage réponses Es'!W27=\"\",\"\",'Encodage réponses Es'!W27)","v":""},{"$f":"IF('Encodage réponses Es'!K27=\"\",\"\",'Encodage réponses Es'!K27)","v":""},{"$f":"IF('Encodage réponses Es'!AA27=\"\",\"\",'Encodage réponses Es'!AA27)","v":""},{"$f":"IF(AND(COUNTBLANK('Encodage réponses Es'!Q27:X27)>0,'Encodage réponses Es'!$AW27=\"!\"),\"Incomplet\",IF(OR(COUNTIF(AB28:AM28,\"a\")>0,COUNTIF(AB28:AM28,\"A\")>0),\"Absent(e)\",IF(COUNT(AB28:AM28)=0,\"\",SUM(AB28:AM28))))","v":""},{"$f":"IF('Encodage réponses Es'!AD27=\"\",\"\",'Encodage réponses Es'!AD27)","v":""},{"$f":"IF('Encodage réponses Es'!AE27=\"\",\"\",'Encodage réponses Es'!AE27)","v":""},{"$f":"IF('Encodage réponses Es'!AL27=\"\",\"\",'Encodage réponses Es'!AL27)","v":""},{"$f":"IF('Encodage réponses Es'!AV27=\"\",\"\",'Encodage réponses Es'!AV27)","v":""},{"$f":"IF('Encodage réponses Es'!AC27=\"\",\"\",'Encodage réponses Es'!AC27)","v":""},{"$f":"IF('Encodage réponses Es'!AR27=\"\",\"\",'Encodage réponses Es'!AR27)","v":""},{"$f":"IF('Encodage réponses Es'!AS27=\"\",\"\",'Encodage réponses Es'!AS27)","v":""},{"$f":"IF('Encodage réponses Es'!AH27=\"\",\"\",'Encodage réponses Es'!AH27)","v":""},{"$f":"IF('Encodage réponses Es'!AI27=\"\",\"\",'Encodage réponses Es'!AI27)","v":""},{"$f":"IF('Encodage réponses Es'!AJ27=\"\",\"\",'Encodage réponses Es'!AJ27)","v":""},{"$f":"IF(AND(COUNTBLANK('Encodage réponses Es'!Y27:AE27)>0,'Encodage réponses Es'!$AW27=\"!\"),\"Incomplet\",IF(OR(COUNTIF(AO28:AX28,\"a\")>0,COUNTIF(AO28:AX28,\"A\")>0),\"Absent(e)\",IF(COUNT(AO28:AX28)=0,\"\",SUM(AO28:AX28))))","v":""},{"$f":"IF('Encodage réponses Es'!AF27=\"\",\"\",'Encodage réponses Es'!AF27)","v":""},{"$f":"IF('Encodage réponses Es'!AP27=\"\",\"\",'Encodage réponses Es'!AP27)","v":""},{"$f":"IF('Encodage réponses Es'!AK27=\"\",\"\",'Encodage réponses Es'!AK27)","v":""},{"$f":"IF('Encodage réponses Es'!AM27=\"\",\"\",'Encodage réponses Es'!AM27)","v":""},{"$f":"IF('Encodage réponses Es'!AN27=\"\",\"\",'Encodage réponses Es'!AN27)","v":""},{"$f":"IF('Encodage réponses Es'!AO27=\"\",\"\",'Encodage réponses Es'!AO27)","v":""},{"$f":"IF('Encodage réponses Es'!AQ27=\"\",\"\",'Encodage réponses Es'!AQ27)","v":""},{"$f":"IF('Encodage réponses Es'!AT27=\"\",\"\",'Encodage réponses Es'!AT27)","v":""},{"$f":"IF('Encodage réponses Es'!AU27=\"\",\"\",'Encodage réponses Es'!AUS27)","v":""},{"$f":"IF('Encodage réponses Es'!AG27=\"\",\"\",'Encodage réponses Es'!AG27)","v":""},null,{"$f":"IF(AND(COUNTBLANK('Encodage réponses Es'!AF27:AH27)>0,'Encodage réponses Es'!$AW27=\"!\"),\"Incomplet\",IF(OR(COUNTIF(AZ28:BJ28,\"a\")>0,COUNTIF(AZ28:BJ28,\"A\")>0),\"Absent(e)\",IF(COUNT(AZ28:BJ28)=0,\"\",SUM(AZ28:BJ28))))","v":""}]
[{"$f":"IF('Encodage réponses Es'!A28=\"\",\"\",'Encodage réponses Es'!A28)","v":0},{"$f":"IF('Encodage réponses Es'!B28=\"\",\"\",'Encodage réponses Es'!B28)","v":0},{"$f":"IF('Encodage réponses Es'!C28=\"\",\"\",'Encodage réponses Es'!C28)","v":0},25,{"$f":"IF('Encodage réponses Es'!E28=\"\",\"\",'Encodage réponses Es'!E28)","v":""},{"$f":"IF('Encodage réponses Es'!F28=\"\",\"\",'Encodage réponses Es'!F28)","v":""},{"$f":"IF('Encodage réponses Es'!G28=\"\",\"\",'Encodage réponses Es'!G28)","v":""},{"$f":"IF('Encodage réponses Es'!I28=\"\",\"\",'Encodage réponses Es'!I28)","v":""},null,{"$f":"IF('Encodage réponses Es'!AW28=\"!\",\"Incomplet\",IF(AND(SUM('Encodage réponses Es'!J28:AV28)>=$J$4/2,'Encodage réponses Es'!AW28=\"a\"),SUM('Encodage réponses Es'!J28:AV28),IF(AND(SUM('Encodage réponses Es'!J28:AV28)<$J$4/2,'Encodage réponses Es'!AW28=\"a\"),\"Absent(e)\",IF(COUNTBLANK('Encodage réponses Es'!J28:AV28)=39,\"\",SUM('Encodage réponses Es'!J28:AV28)))))","v":""},"",null,"","","","",null,null,{"$f":"IF('Encodage réponses Es'!J28=\"\",\"\",'Encodage réponses Es'!J28)","v":""},{"$f":"IF('Encodage réponses Es'!K28=\"\",\"\",'Encodage réponses Es'!K28)","v":""},{"$f":"IF('Encodage réponses Es'!M28=\"\",\"\",'Encodage réponses Es'!M28)","v":""},{"$f":"IF('Encodage réponses Es'!N28=\"\",\"\",'Encodage réponses Es'!N28)","v":""},{"$f":"IF('Encodage réponses Es'!S28=\"\",\"\",'Encodage réponses Es'!S28)","v":""},{"$f":"IF('Encodage réponses Es'!L28=\"\",\"\",'Encodage réponses Es'!L28)","v":""},{"$f":"IF('Encodage réponses Es'!O28=\"\",\"\",'Encodage réponses Es'!O28)","v":""},{"$f":"IF('Encodage réponses Es'!AB28=\"\",\"\",'Encodage réponses Es'!AB28)","v":""},{"$f":"IF(AND(COUNTBLANK('Encodage réponses Es'!J28:P28)>0,'Encodage réponses Es'!$AW28=\"!\"),\"Incomplet\",IF(OR(COUNTIF(S29:Z29,\"a\")>0,COUNTIF(S29:Z29,\"A\")>0),\"Absent(e)\",IF(COUNT(S29:Z29)=0,\"\",SUM(S29:Z29))))","v":""},{"$f":"IF('Encodage réponses Es'!V28=\"\",\"\",'Encodage réponses Es'!V28)","v":""},null,{"$f":"IF('Encodage réponses Es'!X28=\"\",\"\",'Encodage réponses Es'!X28)","v":""},{"$f":"IF('Encodage réponses Es'!Y28=\"\",\"\",'Encodage réponses Es'!Y28)","v":""},{"$f":"IF('Encodage réponses Es'!Z28=\"\",\"\",'Encodage réponses Es'!Z28)","v":""},{"$f":"IF('Encodage réponses Es'!P28=\"\",\"\",'Encodage réponses Es'!P28)","v":""},{"$f":"IF('Encodage réponses Es'!Q28=\"\",\"\",'Encodage réponses Es'!Q28)","v":""},{"$f":"IF('Encodage réponses Es'!R28=\"\",\"\",'Encodage réponses Es'!R28)","v":""},{"$f":"IF('Encodage réponses Es'!U28=\"\",\"\",'Encodage réponses Es'!U28)","v":""},{"$f":"IF('Encodage réponses Es'!W28=\"\",\"\",'Encodage réponses Es'!W28)","v":""},{"$f":"IF('Encodage réponses Es'!K28=\"\",\"\",'Encodage réponses Es'!K28)","v":""},{"$f":"IF('Encodage réponses Es'!AA28=\"\",\"\",'Encodage réponses Es'!AA28)","v":""},{"$f":"IF(AND(COUNTBLANK('Encodage réponses Es'!Q28:X28)>0,'Encodage réponses Es'!$AW28=\"!\"),\"Incomplet\",IF(OR(COUNTIF(AB29:AM29,\"a\")>0,COUNTIF(AB29:AM29,\"A\")>0),\"Absent(e)\",IF(COUNT(AB29:AM29)=0,\"\",SUM(AB29:AM29))))","v":""},{"$f":"IF('Encodage réponses Es'!AD28=\"\",\"\",'Encodage réponses Es'!AD28)","v":""},{"$f":"IF('Encodage réponses Es'!AE28=\"\",\"\",'Encodage réponses Es'!AE28)","v":""},{"$f":"IF('Encodage réponses Es'!AL28=\"\",\"\",'Encodage réponses Es'!AL28)","v":""},{"$f":"IF('Encodage réponses Es'!AV28=\"\",\"\",'Encodage réponses Es'!AV28)","v":""},{"$f":"IF('Encodage réponses Es'!AC28=\"\",\"\",'Encodage réponses Es'!AC28)","v":""},{"$f":"IF('Encodage réponses Es'!AR28=\"\",\"\",'Encodage réponses Es'!AR28)","v":""},{"$f":"IF('Encodage réponses Es'!AS28=\"\",\"\",'Encodage réponses Es'!AS28)","v":""},{"$f":"IF('Encodage réponses Es'!AH28=\"\",\"\",'Encodage réponses Es'!AH28)","v":""},{"$f":"IF('Encodage réponses Es'!AI28=\"\",\"\",'Encodage réponses Es'!AI28)","v":""},{"$f":"IF('Encodage réponses Es'!AJ28=\"\",\"\",'Encodage réponses Es'!AJ28)","v":""},{"$f":"IF(AND(COUNTBLANK('Encodage réponses Es'!Y28:AE28)>0,'Encodage réponses Es'!$AW28=\"!\"),\"Incomplet\",IF(OR(COUNTIF(AO29:AX29,\"a\")>0,COUNTIF(AO29:AX29,\"A\")>0),\"Absent(e)\",IF(COUNT(AO29:AX29)=0,\"\",SUM(AO29:AX29))))","v":""},{"$f":"IF('Encodage réponses Es'!AF28=\"\",\"\",'Encodage réponses Es'!AF28)","v":""},{"$f":"IF('Encodage réponses Es'!AP28=\"\",\"\",'Encodage réponses Es'!AP28)","v":""},{"$f":"IF('Encodage réponses Es'!AK28=\"\",\"\",'Encodage réponses Es'!AK28)","v":""},{"$f":"IF('Encodage réponses Es'!AM28=\"\",\"\",'Encodage réponses Es'!AM28)","v":""},{"$f":"IF('Encodage réponses Es'!AN28=\"\",\"\",'Encodage réponses Es'!AN28)","v":""},{"$f":"IF('Encodage réponses Es'!AO28=\"\",\"\",'Encodage réponses Es'!AO28)","v":""},{"$f":"IF('Encodage réponses Es'!AQ28=\"\",\"\",'Encodage réponses Es'!AQ28)","v":""},{"$f":"IF('Encodage réponses Es'!AT28=\"\",\"\",'Encodage réponses Es'!AT28)","v":""},{"$f":"IF('Encodage réponses Es'!AU28=\"\",\"\",'Encodage réponses Es'!AUS28)","v":""},{"$f":"IF('Encodage réponses Es'!AG28=\"\",\"\",'Encodage réponses Es'!AG28)","v":""},null,{"$f":"IF(AND(COUNTBLANK('Encodage réponses Es'!AF28:AH28)>0,'Encodage réponses Es'!$AW28=\"!\"),\"Incomplet\",IF(OR(COUNTIF(AZ29:BJ29,\"a\")>0,COUNTIF(AZ29:BJ29,\"A\")>0),\"Absent(e)\",IF(COUNT(AZ29:BJ29)=0,\"\",SUM(AZ29:BJ29))))","v":""}]
[{"$f":"IF('Encodage réponses Es'!A29=\"\",\"\",'Encodage réponses Es'!A29)","v":0},{"$f":"IF('Encodage réponses Es'!B29=\"\",\"\",'Encodage réponses Es'!B29)","v":0},{"$f":"IF('Encodage réponses Es'!C29=\"\",\"\",'Encodage réponses Es'!C29)","v":0},26,{"$f":"IF('Encodage réponses Es'!E29=\"\",\"\",'Encodage réponses Es'!E29)","v":""},{"$f":"IF('Encodage réponses Es'!F29=\"\",\"\",'Encodage réponses Es'!F29)","v":""},{"$f":"IF('Encodage réponses Es'!G29=\"\",\"\",'Encodage réponses Es'!G29)","v":""},{"$f":"IF('Encodage réponses Es'!I29=\"\",\"\",'Encodage réponses Es'!I29)","v":""},null,{"$f":"IF('Encodage réponses Es'!AW29=\"!\",\"Incomplet\",IF(AND(SUM('Encodage réponses Es'!J29:AV29)>=$J$4/2,'Encodage réponses Es'!AW29=\"a\"),SUM('Encodage réponses Es'!J29:AV29),IF(AND(SUM('Encodage réponses Es'!J29:AV29)<$J$4/2,'Encodage réponses Es'!AW29=\"a\"),\"Absent(e)\",IF(COUNTBLANK('Encodage réponses Es'!J29:AV29)=39,\"\",SUM('Encodage réponses Es'!J29:AV29)))))","v":""},"",null,"","","","",null,null,{"$f":"IF('Encodage réponses Es'!J29=\"\",\"\",'Encodage réponses Es'!J29)","v":""},{"$f":"IF('Encodage réponses Es'!K29=\"\",\"\",'Encodage réponses Es'!K29)","v":""},{"$f":"IF('Encodage réponses Es'!M29=\"\",\"\",'Encodage réponses Es'!M29)","v":""},{"$f":"IF('Encodage réponses Es'!N29=\"\",\"\",'Encodage réponses Es'!N29)","v":""},{"$f":"IF('Encodage réponses Es'!S29=\"\",\"\",'Encodage réponses Es'!S29)","v":""},{"$f":"IF('Encodage réponses Es'!L29=\"\",\"\",'Encodage réponses Es'!L29)","v":""},{"$f":"IF('Encodage réponses Es'!O29=\"\",\"\",'Encodage réponses Es'!O29)","v":""},{"$f":"IF('Encodage réponses Es'!AB29=\"\",\"\",'Encodage réponses Es'!AB29)","v":""},{"$f":"IF(AND(COUNTBLANK('Encodage réponses Es'!J29:P29)>0,'Encodage réponses Es'!$AW29=\"!\"),\"Incomplet\",IF(OR(COUNTIF(S30:Z30,\"a\")>0,COUNTIF(S30:Z30,\"A\")>0),\"Absent(e)\",IF(COUNT(S30:Z30)=0,\"\",SUM(S30:Z30))))","v":""},{"$f":"IF('Encodage réponses Es'!V29=\"\",\"\",'Encodage réponses Es'!V29)","v":""},null,{"$f":"IF('Encodage réponses Es'!X29=\"\",\"\",'Encodage réponses Es'!X29)","v":""},{"$f":"IF('Encodage réponses Es'!Y29=\"\",\"\",'Encodage réponses Es'!Y29)","v":""},{"$f":"IF('Encodage réponses Es'!Z29=\"\",\"\",'Encodage réponses Es'!Z29)","v":""},{"$f":"IF('Encodage réponses Es'!P29=\"\",\"\",'Encodage réponses Es'!P29)","v":""},{"$f":"IF('Encodage réponses Es'!Q29=\"\",\"\",'Encodage réponses Es'!Q29)","v":""},{"$f":"IF('Encodage réponses Es'!R29=\"\",\"\",'Encodage réponses Es'!R29)","v":""},{"$f":"IF('Encodage réponses Es'!U29=\"\",\"\",'Encodage réponses Es'!U29)","v":""},{"$f":"IF('Encodage réponses Es'!W29=\"\",\"\",'Encodage réponses Es'!W29)","v":""},{"$f":"IF('Encodage réponses Es'!K29=\"\",\"\",'Encodage réponses Es'!K29)","v":""},{"$f":"IF('Encodage réponses Es'!AA29=\"\",\"\",'Encodage réponses Es'!AA29)","v":""},{"$f":"IF(AND(COUNTBLANK('Encodage réponses Es'!Q29:X29)>0,'Encodage réponses Es'!$AW29=\"!\"),\"Incomplet\",IF(OR(COUNTIF(AB30:AM30,\"a\")>0,COUNTIF(AB30:AM30,\"A\")>0),\"Absent(e)\",IF(COUNT(AB30:AM30)=0,\"\",SUM(AB30:AM30))))","v":""},{"$f":"IF('Encodage réponses Es'!AD29=\"\",\"\",'Encodage réponses Es'!AD29)","v":""},{"$f":"IF('Encodage réponses Es'!AE29=\"\",\"\",'Encodage réponses Es'!AE29)","v":""},{"$f":"IF('Encodage réponses Es'!AL29=\"\",\"\",'Encodage réponses Es'!AL29)","v":""},{"$f":"IF('Encodage réponses Es'!AV29=\"\",\"\",'Encodage réponses Es'!AV29)","v":""},{"$f":"IF('Encodage réponses Es'!AC29=\"\",\"\",'Encodage réponses Es'!AC29)","v":""},{"$f":"IF('Encodage réponses Es'!AR29=\"\",\"\",'Encodage réponses Es'!AR29)","v":""},{"$f":"IF('Encodage réponses Es'!AS29=\"\",\"\",'Encodage réponses Es'!AS29)","v":""},{"$f":"IF('Encodage réponses Es'!AH29=\"\",\"\",'Encodage réponses Es'!AH29)","v":""},{"$f":"IF('Encodage réponses Es'!AI29=\"\",\"\",'Encodage réponses Es'!AI29)","v":""},{"$f":"IF('Encodage réponses Es'!AJ29=\"\",\"\",'Encodage réponses Es'!AJ29)","v":""},{"$f":"IF(AND(COUNTBLANK('Encodage réponses Es'!Y29:AE29)>0,'Encodage réponses Es'!$AW29=\"!\"),\"Incomplet\",IF(OR(COUNTIF(AO30:AX30,\"a\")>0,COUNTIF(AO30:AX30,\"A\")>0),\"Absent(e)\",IF(COUNT(AO30:AX30)=0,\"\",SUM(AO30:AX30))))","v":""},{"$f":"IF('Encodage réponses Es'!AF29=\"\",\"\",'Encodage réponses Es'!AF29)","v":""},{"$f":"IF('Encodage réponses Es'!AP29=\"\",\"\",'Encodage réponses Es'!AP29)","v":""},{"$f":"IF('Encodage réponses Es'!AK29=\"\",\"\",'Encodage réponses Es'!AK29)","v":""},{"$f":"IF('Encodage réponses Es'!AM29=\"\",\"\",'Encodage réponses Es'!AM29)","v":""},{"$f":"IF('Encodage réponses Es'!AN29=\"\",\"\",'Encodage réponses Es'!AN29)","v":""},{"$f":"IF('Encodage réponses Es'!AO29=\"\",\"\",'Encodage réponses Es'!AO29)","v":""},{"$f":"IF('Encodage réponses Es'!AQ29=\"\",\"\",'Encodage réponses Es'!AQ29)","v":""},{"$f":"IF('Encodage réponses Es'!AT29=\"\",\"\",'Encodage réponses Es'!AT29)","v":""},{"$f":"IF('Encodage réponses Es'!AU29=\"\",\"\",'Encodage réponses Es'!AUS29)","v":""},{"$f":"IF('Encodage réponses Es'!AG29=\"\",\"\",'Encodage réponses Es'!AG29)","v":""},null,{"$f":"IF(AND(COUNTBLANK('Encodage réponses Es'!AF29:AH29)>0,'Encodage réponses Es'!$AW29=\"!\"),\"Incomplet\",IF(OR(COUNTIF(AZ30:BJ30,\"a\")>0,COUNTIF(AZ30:BJ30,\"A\")>0),\"Absent(e)\",IF(COUNT(AZ30:BJ30)=0,\"\",SUM(AZ30:BJ30))))","v":""}]
[{"$f":"IF('Encodage réponses Es'!A30=\"\",\"\",'Encodage réponses Es'!A30)","v":0},{"$f":"IF('Encodage réponses Es'!B30=\"\",\"\",'Encodage réponses Es'!B30)","v":0},{"$f":"IF('Encodage réponses Es'!C30=\"\",\"\",'Encodage réponses Es'!C30)","v":0},27,{"$f":"IF('Encodage réponses Es'!E30=\"\",\"\",'Encodage réponses Es'!E30)","v":""},{"$f":"IF('Encodage réponses Es'!F30=\"\",\"\",'Encodage réponses Es'!F30)","v":""},{"$f":"IF('Encodage réponses Es'!G30=\"\",\"\",'Encodage réponses Es'!G30)","v":""},{"$f":"IF('Encodage réponses Es'!I30=\"\",\"\",'Encodage réponses Es'!I30)","v":""},null,{"$f":"IF('Encodage réponses Es'!AW30=\"!\",\"Incomplet\",IF(AND(SUM('Encodage réponses Es'!J30:AV30)>=$J$4/2,'Encodage réponses Es'!AW30=\"a\"),SUM('Encodage réponses Es'!J30:AV30),IF(AND(SUM('Encodage réponses Es'!J30:AV30)<$J$4/2,'Encodage réponses Es'!AW30=\"a\"),\"Absent(e)\",IF(COUNTBLANK('Encodage réponses Es'!J30:AV30)=39,\"\",SUM('Encodage réponses Es'!J30:AV30)))))","v":""},"",null,"","","","",null,null,{"$f":"IF('Encodage réponses Es'!J30=\"\",\"\",'Encodage réponses Es'!J30)","v":""},{"$f":"IF('Encodage réponses Es'!K30=\"\",\"\",'Encodage réponses Es'!K30)","v":""},{"$f":"IF('Encodage réponses Es'!M30=\"\",\"\",'Encodage réponses Es'!M30)","v":""},{"$f":"IF('Encodage réponses Es'!N30=\"\",\"\",'Encodage réponses Es'!N30)","v":""},{"$f":"IF('Encodage réponses Es'!S30=\"\",\"\",'Encodage réponses Es'!S30)","v":""},{"$f":"IF('Encodage réponses Es'!L30=\"\",\"\",'Encodage réponses Es'!L30)","v":""},{"$f":"IF('Encodage réponses Es'!O30=\"\",\"\",'Encodage réponses Es'!O30)","v":""},{"$f":"IF('Encodage réponses Es'!AB30=\"\",\"\",'Encodage réponses Es'!AB30)","v":""},{"$f":"IF(AND(COUNTBLANK('Encodage réponses Es'!J30:P30)>0,'Encodage réponses Es'!$AW30=\"!\"),\"Incomplet\",IF(OR(COUNTIF(S31:Z31,\"a\")>0,COUNTIF(S31:Z31,\"A\")>0),\"Absent(e)\",IF(COUNT(S31:Z31)=0,\"\",SUM(S31:Z31))))","v":""},{"$f":"IF('Encodage réponses Es'!V30=\"\",\"\",'Encodage réponses Es'!V30)","v":""},null,{"$f":"IF('Encodage réponses Es'!X30=\"\",\"\",'Encodage réponses Es'!X30)","v":""},{"$f":"IF('Encodage réponses Es'!Y30=\"\",\"\",'Encodage réponses Es'!Y30)","v":""},{"$f":"IF('Encodage réponses Es'!Z30=\"\",\"\",'Encodage réponses Es'!Z30)","v":""},{"$f":"IF('Encodage réponses Es'!P30=\"\",\"\",'Encodage réponses Es'!P30)","v":""},{"$f":"IF('Encodage réponses Es'!Q30=\"\",\"\",'Encodage réponses Es'!Q30)","v":""},{"$f":"IF('Encodage réponses Es'!R30=\"\",\"\",'Encodage réponses Es'!R30)","v":""},{"$f":"IF('Encodage réponses Es'!U30=\"\",\"\",'Encodage réponses Es'!U30)","v":""},{"$f":"IF('Encodage réponses Es'!W30=\"\",\"\",'Encodage réponses Es'!W30)","v":""},{"$f":"IF('Encodage réponses Es'!K30=\"\",\"\",'Encodage réponses Es'!K30)","v":""},{"$f":"IF('Encodage réponses Es'!AA30=\"\",\"\",'Encodage réponses Es'!AA30)","v":""},{"$f":"IF(AND(COUNTBLANK('Encodage réponses Es'!Q30:X30)>0,'Encodage réponses Es'!$AW30=\"!\"),\"Incomplet\",IF(OR(COUNTIF(AB31:AM31,\"a\")>0,COUNTIF(AB31:AM31,\"A\")>0),\"Absent(e)\",IF(COUNT(AB31:AM31)=0,\"\",SUM(AB31:AM31))))","v":""},{"$f":"IF('Encodage réponses Es'!AD30=\"\",\"\",'Encodage réponses Es'!AD30)","v":""},{"$f":"IF('Encodage réponses Es'!AE30=\"\",\"\",'Encodage réponses Es'!AE30)","v":""},{"$f":"IF('Encodage réponses Es'!AL30=\"\",\"\",'Encodage réponses Es'!AL30)","v":""},{"$f":"IF('Encodage réponses Es'!AV30=\"\",\"\",'Encodage réponses Es'!AV30)","v":""},{"$f":"IF('Encodage réponses Es'!AC30=\"\",\"\",'Encodage réponses Es'!AC30)","v":""},{"$f":"IF('Encodage réponses Es'!AR30=\"\",\"\",'Encodage réponses Es'!AR30)","v":""},{"$f":"IF('Encodage réponses Es'!AS30=\"\",\"\",'Encodage réponses Es'!AS30)","v":""},{"$f":"IF('Encodage réponses Es'!AH30=\"\",\"\",'Encodage réponses Es'!AH30)","v":""},{"$f":"IF('Encodage réponses Es'!AI30=\"\",\"\",'Encodage réponses Es'!AI30)","v":""},{"$f":"IF('Encodage réponses Es'!AJ30=\"\",\"\",'Encodage réponses Es'!AJ30)","v":""},{"$f":"IF(AND(COUNTBLANK('Encodage réponses Es'!Y30:AE30)>0,'Encodage réponses Es'!$AW30=\"!\"),\"Incomplet\",IF(OR(COUNTIF(AO31:AX31,\"a\")>0,COUNTIF(AO31:AX31,\"A\")>0),\"Absent(e)\",IF(COUNT(AO31:AX31)=0,\"\",SUM(AO31:AX31))))","v":""},{"$f":"IF('Encodage réponses Es'!AF30=\"\",\"\",'Encodage réponses Es'!AF30)","v":""},{"$f":"IF('Encodage réponses Es'!AP30=\"\",\"\",'Encodage réponses Es'!AP30)","v":""},{"$f":"IF('Encodage réponses Es'!AK30=\"\",\"\",'Encodage réponses Es'!AK30)","v":""},{"$f":"IF('Encodage réponses Es'!AM30=\"\",\"\",'Encodage réponses Es'!AM30)","v":""},{"$f":"IF('Encodage réponses Es'!AN30=\"\",\"\",'Encodage réponses Es'!AN30)","v":""},{"$f":"IF('Encodage réponses Es'!AO30=\"\",\"\",'Encodage réponses Es'!AO30)","v":""},{"$f":"IF('Encodage réponses Es'!AQ30=\"\",\"\",'Encodage réponses Es'!AQ30)","v":""},{"$f":"IF('Encodage réponses Es'!AT30=\"\",\"\",'Encodage réponses Es'!AT30)","v":""},{"$f":"IF('Encodage réponses Es'!AU30=\"\",\"\",'Encodage réponses Es'!AUS30)","v":""},{"$f":"IF('Encodage réponses Es'!AG30=\"\",\"\",'Encodage réponses Es'!AG30)","v":""},null,{"$f":"IF(AND(COUNTBLANK('Encodage réponses Es'!AF30:AH30)>0,'Encodage réponses Es'!$AW30=\"!\"),\"Incomplet\",IF(OR(COUNTIF(AZ31:BJ31,\"a\")>0,COUNTIF(AZ31:BJ31,\"A\")>0),\"Absent(e)\",IF(COUNT(AZ31:BJ31)=0,\"\",SUM(AZ31:BJ31))))","v":""}]
[{"$f":"IF('Encodage réponses Es'!A31=\"\",\"\",'Encodage réponses Es'!A31)","v":0},{"$f":"IF('Encodage réponses Es'!B31=\"\",\"\",'Encodage réponses Es'!B31)","v":0},{"$f":"IF('Encodage réponses Es'!C31=\"\",\"\",'Encodage réponses Es'!C31)","v":0},28,{"$f":"IF('Encodage réponses Es'!E31=\"\",\"\",'Encodage réponses Es'!E31)","v":""},{"$f":"IF('Encodage réponses Es'!F31=\"\",\"\",'Encodage réponses Es'!F31)","v":""},{"$f":"IF('Encodage réponses Es'!G31=\"\",\"\",'Encodage réponses Es'!G31)","v":""},{"$f":"IF('Encodage réponses Es'!I31=\"\",\"\",'Encodage réponses Es'!I31)","v":""},null,{"$f":"IF('Encodage réponses Es'!AW31=\"!\",\"Incomplet\",IF(AND(SUM('Encodage réponses Es'!J31:AV31)>=$J$4/2,'Encodage réponses Es'!AW31=\"a\"),SUM('Encodage réponses Es'!J31:AV31),IF(AND(SUM('Encodage réponses Es'!J31:AV31)<$J$4/2,'Encodage réponses Es'!AW31=\"a\"),\"Absent(e)\",IF(COUNTBLANK('Encodage réponses Es'!J31:AV31)=39,\"\",SUM('Encodage réponses Es'!J31:AV31)))))","v":""},"",null,"","","","",null,null,{"$f":"IF('Encodage réponses Es'!J31=\"\",\"\",'Encodage réponses Es'!J31)","v":""},{"$f":"IF('Encodage réponses Es'!K31=\"\",\"\",'Encodage réponses Es'!K31)","v":""},{"$f":"IF('Encodage réponses Es'!M31=\"\",\"\",'Encodage réponses Es'!M31)","v":""},{"$f":"IF('Encodage réponses Es'!N31=\"\",\"\",'Encodage réponses Es'!N31)","v":""},{"$f":"IF('Encodage réponses Es'!S31=\"\",\"\",'Encodage réponses Es'!S31)","v":""},{"$f":"IF('Encodage réponses Es'!L31=\"\",\"\",'Encodage réponses Es'!L31)","v":""},{"$f":"IF('Encodage réponses Es'!O31=\"\",\"\",'Encodage réponses Es'!O31)","v":""},{"$f":"IF('Encodage réponses Es'!AB31=\"\",\"\",'Encodage réponses Es'!AB31)","v":""},{"$f":"IF(AND(COUNTBLANK('Encodage réponses Es'!J31:P31)>0,'Encodage réponses Es'!$AW31=\"!\"),\"Incomplet\",IF(OR(COUNTIF(S32:Z32,\"a\")>0,COUNTIF(S32:Z32,\"A\")>0),\"Absent(e)\",IF(COUNT(S32:Z32)=0,\"\",SUM(S32:Z32))))","v":""},{"$f":"IF('Encodage réponses Es'!V31=\"\",\"\",'Encodage réponses Es'!V31)","v":""},null,{"$f":"IF('Encodage réponses Es'!X31=\"\",\"\",'Encodage réponses Es'!X31)","v":""},{"$f":"IF('Encodage réponses Es'!Y31=\"\",\"\",'Encodage réponses Es'!Y31)","v":""},{"$f":"IF('Encodage réponses Es'!Z31=\"\",\"\",'Encodage réponses Es'!Z31)","v":""},{"$f":"IF('Encodage réponses Es'!P31=\"\",\"\",'Encodage réponses Es'!P31)","v":""},{"$f":"IF('Encodage réponses Es'!Q31=\"\",\"\",'Encodage réponses Es'!Q31)","v":""},{"$f":"IF('Encodage réponses Es'!R31=\"\",\"\",'Encodage réponses Es'!R31)","v":""},{"$f":"IF('Encodage réponses Es'!U31=\"\",\"\",'Encodage réponses Es'!U31)","v":""},{"$f":"IF('Encodage réponses Es'!W31=\"\",\"\",'Encodage réponses Es'!W31)","v":""},{"$f":"IF('Encodage réponses Es'!K31=\"\",\"\",'Encodage réponses Es'!K31)","v":""},{"$f":"IF('Encodage réponses Es'!AA31=\"\",\"\",'Encodage réponses Es'!AA31)","v":""},{"$f":"IF(AND(COUNTBLANK('Encodage réponses Es'!Q31:X31)>0,'Encodage réponses Es'!$AW31=\"!\"),\"Incomplet\",IF(OR(COUNTIF(AB32:AM32,\"a\")>0,COUNTIF(AB32:AM32,\"A\")>0),\"Absent(e)\",IF(COUNT(AB32:AM32)=0,\"\",SUM(AB32:AM32))))","v":""},{"$f":"IF('Encodage réponses Es'!AD31=\"\",\"\",'Encodage réponses Es'!AD31)","v":""},{"$f":"IF('Encodage réponses Es'!AE31=\"\",\"\",'Encodage réponses Es'!AE31)","v":""},{"$f":"IF('Encodage réponses Es'!AL31=\"\",\"\",'Encodage réponses Es'!AL31)","v":""},{"$f":"IF('Encodage réponses Es'!AV31=\"\",\"\",'Encodage réponses Es'!AV31)","v":""},{"$f":"IF('Encodage réponses Es'!AC31=\"\",\"\",'Encodage réponses Es'!AC31)","v":""},{"$f":"IF('Encodage réponses Es'!AR31=\"\",\"\",'Encodage réponses Es'!AR31)","v":""},{"$f":"IF('Encodage réponses Es'!AS31=\"\",\"\",'Encodage réponses Es'!AS31)","v":""},{"$f":"IF('Encodage réponses Es'!AH31=\"\",\"\",'Encodage réponses Es'!AH31)","v":""},{"$f":"IF('Encodage réponses Es'!AI31=\"\",\"\",'Encodage réponses Es'!AI31)","v":""},{"$f":"IF('Encodage réponses Es'!AJ31=\"\",\"\",'Encodage réponses Es'!AJ31)","v":""},{"$f":"IF(AND(COUNTBLANK('Encodage réponses Es'!Y31:AE31)>0,'Encodage réponses Es'!$AW31=\"!\"),\"Incomplet\",IF(OR(COUNTIF(AO32:AX32,\"a\")>0,COUNTIF(AO32:AX32,\"A\")>0),\"Absent(e)\",IF(COUNT(AO32:AX32)=0,\"\",SUM(AO32:AX32))))","v":""},{"$f":"IF('Encodage réponses Es'!AF31=\"\",\"\",'Encodage réponses Es'!AF31)","v":""},{"$f":"IF('Encodage réponses Es'!AP31=\"\",\"\",'Encodage réponses Es'!AP31)","v":""},{"$f":"IF('Encodage réponses Es'!AK31=\"\",\"\",'Encodage réponses Es'!AK31)","v":""},{"$f":"IF('Encodage réponses Es'!AM31=\"\",\"\",'Encodage réponses Es'!AM31)","v":""},{"$f":"IF('Encodage réponses Es'!AN31=\"\",\"\",'Encodage réponses Es'!AN31)","v":""},{"$f":"IF('Encodage réponses Es'!AO31=\"\",\"\",'Encodage réponses Es'!AO31)","v":""},{"$f":"IF('Encodage réponses Es'!AQ31=\"\",\"\",'Encodage réponses Es'!AQ31)","v":""},{"$f":"IF('Encodage réponses Es'!AT31=\"\",\"\",'Encodage réponses Es'!AT31)","v":""},{"$f":"IF('Encodage réponses Es'!AU31=\"\",\"\",'Encodage réponses Es'!AUS31)","v":""},{"$f":"IF('Encodage réponses Es'!AG31=\"\",\"\",'Encodage réponses Es'!AG31)","v":""},null,{"$f":"IF(AND(COUNTBLANK('Encodage réponses Es'!AF31:AH31)>0,'Encodage réponses Es'!$AW31=\"!\"),\"Incomplet\",IF(OR(COUNTIF(AZ32:BJ32,\"a\")>0,COUNTIF(AZ32:BJ32,\"A\")>0),\"Absent(e)\",IF(COUNT(AZ32:BJ32)=0,\"\",SUM(AZ32:BJ32))))","v":""}]
[{"$f":"IF('Encodage réponses Es'!A32=\"\",\"\",'Encodage réponses Es'!A32)","v":0},{"$f":"IF('Encodage réponses Es'!B32=\"\",\"\",'Encodage réponses Es'!B32)","v":0},{"$f":"IF('Encodage réponses Es'!C32=\"\",\"\",'Encodage réponses Es'!C32)","v":0},29,{"$f":"IF('Encodage réponses Es'!E32=\"\",\"\",'Encodage réponses Es'!E32)","v":""},{"$f":"IF('Encodage réponses Es'!F32=\"\",\"\",'Encodage réponses Es'!F32)","v":""},{"$f":"IF('Encodage réponses Es'!G32=\"\",\"\",'Encodage réponses Es'!G32)","v":""},{"$f":"IF('Encodage réponses Es'!I32=\"\",\"\",'Encodage réponses Es'!I32)","v":""},null,{"$f":"IF('Encodage réponses Es'!AW32=\"!\",\"Incomplet\",IF(AND(SUM('Encodage réponses Es'!J32:AV32)>=$J$4/2,'Encodage réponses Es'!AW32=\"a\"),SUM('Encodage réponses Es'!J32:AV32),IF(AND(SUM('Encodage réponses Es'!J32:AV32)<$J$4/2,'Encodage réponses Es'!AW32=\"a\"),\"Absent(e)\",IF(COUNTBLANK('Encodage réponses Es'!J32:AV32)=39,\"\",SUM('Encodage réponses Es'!J32:AV32)))))","v":""},"",null,"","","","",null,null,{"$f":"IF('Encodage réponses Es'!J32=\"\",\"\",'Encodage réponses Es'!J32)","v":""},{"$f":"IF('Encodage réponses Es'!K32=\"\",\"\",'Encodage réponses Es'!K32)","v":""},{"$f":"IF('Encodage réponses Es'!M32=\"\",\"\",'Encodage réponses Es'!M32)","v":""},{"$f":"IF('Encodage réponses Es'!N32=\"\",\"\",'Encodage réponses Es'!N32)","v":""},{"$f":"IF('Encodage réponses Es'!S32=\"\",\"\",'Encodage réponses Es'!S32)","v":""},{"$f":"IF('Encodage réponses Es'!L32=\"\",\"\",'Encodage réponses Es'!L32)","v":""},{"$f":"IF('Encodage réponses Es'!O32=\"\",\"\",'Encodage réponses Es'!O32)","v":""},{"$f":"IF('Encodage réponses Es'!AB32=\"\",\"\",'Encodage réponses Es'!AB32)","v":""},{"$f":"IF(AND(COUNTBLANK('Encodage réponses Es'!J32:P32)>0,'Encodage réponses Es'!$AW32=\"!\"),\"Incomplet\",IF(OR(COUNTIF(S33:Z33,\"a\")>0,COUNTIF(S33:Z33,\"A\")>0),\"Absent(e)\",IF(COUNT(S33:Z33)=0,\"\",SUM(S33:Z33))))","v":""},{"$f":"IF('Encodage réponses Es'!V32=\"\",\"\",'Encodage réponses Es'!V32)","v":""},null,{"$f":"IF('Encodage réponses Es'!X32=\"\",\"\",'Encodage réponses Es'!X32)","v":""},{"$f":"IF('Encodage réponses Es'!Y32=\"\",\"\",'Encodage réponses Es'!Y32)","v":""},{"$f":"IF('Encodage réponses Es'!Z32=\"\",\"\",'Encodage réponses Es'!Z32)","v":""},{"$f":"IF('Encodage réponses Es'!P32=\"\",\"\",'Encodage réponses Es'!P32)","v":""},{"$f":"IF('Encodage réponses Es'!Q32=\"\",\"\",'Encodage réponses Es'!Q32)","v":""},{"$f":"IF('Encodage réponses Es'!R32=\"\",\"\",'Encodage réponses Es'!R32)","v":""},{"$f":"IF('Encodage réponses Es'!U32=\"\",\"\",'Encodage réponses Es'!U32)","v":""},{"$f":"IF('Encodage réponses Es'!W32=\"\",\"\",'Encodage réponses Es'!W32)","v":""},{"$f":"IF('Encodage réponses Es'!K32=\"\",\"\",'Encodage réponses Es'!K32)","v":""},{"$f":"IF('Encodage réponses Es'!AA32=\"\",\"\",'Encodage réponses Es'!AA32)","v":""},{"$f":"IF(AND(COUNTBLANK('Encodage réponses Es'!Q32:X32)>0,'Encodage réponses Es'!$AW32=\"!\"),\"Incomplet\",IF(OR(COUNTIF(AB33:AM33,\"a\")>0,COUNTIF(AB33:AM33,\"A\")>0),\"Absent(e)\",IF(COUNT(AB33:AM33)=0,\"\",SUM(AB33:AM33))))","v":""},{"$f":"IF('Encodage réponses Es'!AD32=\"\",\"\",'Encodage réponses Es'!AD32)","v":""},{"$f":"IF('Encodage réponses Es'!AE32=\"\",\"\",'Encodage réponses Es'!AE32)","v":""},{"$f":"IF('Encodage réponses Es'!AL32=\"\",\"\",'Encodage réponses Es'!AL32)","v":""},{"$f":"IF('Encodage réponses Es'!AV32=\"\",\"\",'Encodage réponses Es'!AV32)","v":""},{"$f":"IF('Encodage réponses Es'!AC32=\"\",\"\",'Encodage réponses Es'!AC32)","v":""},{"$f":"IF('Encodage réponses Es'!AR32=\"\",\"\",'Encodage réponses Es'!AR32)","v":""},{"$f":"IF('Encodage réponses Es'!AS32=\"\",\"\",'Encodage réponses Es'!AS32)","v":""},{"$f":"IF('Encodage réponses Es'!AH32=\"\",\"\",'Encodage réponses Es'!AH32)","v":""},{"$f":"IF('Encodage réponses Es'!AI32=\"\",\"\",'Encodage réponses Es'!AI32)","v":""},{"$f":"IF('Encodage réponses Es'!AJ32=\"\",\"\",'Encodage réponses Es'!AJ32)","v":""},{"$f":"IF(AND(COUNTBLANK('Encodage réponses Es'!Y32:AE32)>0,'Encodage réponses Es'!$AW32=\"!\"),\"Incomplet\",IF(OR(COUNTIF(AO33:AX33,\"a\")>0,COUNTIF(AO33:AX33,\"A\")>0),\"Absent(e)\",IF(COUNT(AO33:AX33)=0,\"\",SUM(AO33:AX33))))","v":""},{"$f":"IF('Encodage réponses Es'!AF32=\"\",\"\",'Encodage réponses Es'!AF32)","v":""},{"$f":"IF('Encodage réponses Es'!AP32=\"\",\"\",'Encodage réponses Es'!AP32)","v":""},{"$f":"IF('Encodage réponses Es'!AK32=\"\",\"\",'Encodage réponses Es'!AK32)","v":""},{"$f":"IF('Encodage réponses Es'!AM32=\"\",\"\",'Encodage réponses Es'!AM32)","v":""},{"$f":"IF('Encodage réponses Es'!AN32=\"\",\"\",'Encodage réponses Es'!AN32)","v":""},{"$f":"IF('Encodage réponses Es'!AO32=\"\",\"\",'Encodage réponses Es'!AO32)","v":""},{"$f":"IF('Encodage réponses Es'!AQ32=\"\",\"\",'Encodage réponses Es'!AQ32)","v":""},{"$f":"IF('Encodage réponses Es'!AT32=\"\",\"\",'Encodage réponses Es'!AT32)","v":""},{"$f":"IF('Encodage réponses Es'!AU32=\"\",\"\",'Encodage réponses Es'!AUS32)","v":""},{"$f":"IF('Encodage réponses Es'!AG32=\"\",\"\",'Encodage réponses Es'!AG32)","v":""},null,{"$f":"IF(AND(COUNTBLANK('Encodage réponses Es'!AF32:AH32)>0,'Encodage réponses Es'!$AW32=\"!\"),\"Incomplet\",IF(OR(COUNTIF(AZ33:BJ33,\"a\")>0,COUNTIF(AZ33:BJ33,\"A\")>0),\"Absent(e)\",IF(COUNT(AZ33:BJ33)=0,\"\",SUM(AZ33:BJ33))))","v":""}]
[{"$f":"IF('Encodage réponses Es'!A33=\"\",\"\",'Encodage réponses Es'!A33)","v":0},{"$f":"IF('Encodage réponses Es'!B33=\"\",\"\",'Encodage réponses Es'!B33)","v":0},{"$f":"IF('Encodage réponses Es'!C33=\"\",\"\",'Encodage réponses Es'!C33)","v":0},30,{"$f":"IF('Encodage réponses Es'!E33=\"\",\"\",'Encodage réponses Es'!E33)","v":""},{"$f":"IF('Encodage réponses Es'!F33=\"\",\"\",'Encodage réponses Es'!F33)","v":""},{"$f":"IF('Encodage réponses Es'!G33=\"\",\"\",'Encodage réponses Es'!G33)","v":""},{"$f":"IF('Encodage réponses Es'!I33=\"\",\"\",'Encodage réponses Es'!I33)","v":""},null,{"$f":"IF('Encodage réponses Es'!AW33=\"!\",\"Incomplet\",IF(AND(SUM('Encodage réponses Es'!J33:AV33)>=$J$4/2,'Encodage réponses Es'!AW33=\"a\"),SUM('Encodage réponses Es'!J33:AV33),IF(AND(SUM('Encodage réponses Es'!J33:AV33)<$J$4/2,'Encodage réponses Es'!AW33=\"a\"),\"Absent(e)\",IF(COUNTBLANK('Encodage réponses Es'!J33:AV33)=39,\"\",SUM('Encodage réponses Es'!J33:AV33)))))","v":""},"",null,"","","","",null,null,{"$f":"IF('Encodage réponses Es'!J33=\"\",\"\",'Encodage réponses Es'!J33)","v":""},{"$f":"IF('Encodage réponses Es'!K33=\"\",\"\",'Encodage réponses Es'!K33)","v":""},{"$f":"IF('Encodage réponses Es'!M33=\"\",\"\",'Encodage réponses Es'!M33)","v":""},{"$f":"IF('Encodage réponses Es'!N33=\"\",\"\",'Encodage réponses Es'!N33)","v":""},{"$f":"IF('Encodage réponses Es'!S33=\"\",\"\",'Encodage réponses Es'!S33)","v":""},{"$f":"IF('Encodage réponses Es'!L33=\"\",\"\",'Encodage réponses Es'!L33)","v":""},{"$f":"IF('Encodage réponses Es'!O33=\"\",\"\",'Encodage réponses Es'!O33)","v":""},{"$f":"IF('Encodage réponses Es'!AB33=\"\",\"\",'Encodage réponses Es'!AB33)","v":""},{"$f":"IF(AND(COUNTBLANK('Encodage réponses Es'!J33:P33)>0,'Encodage réponses Es'!$AW33=\"!\"),\"Incomplet\",IF(OR(COUNTIF(S34:Z34,\"a\")>0,COUNTIF(S34:Z34,\"A\")>0),\"Absent(e)\",IF(COUNT(S34:Z34)=0,\"\",SUM(S34:Z34))))","v":""},{"$f":"IF('Encodage réponses Es'!V33=\"\",\"\",'Encodage réponses Es'!V33)","v":""},null,{"$f":"IF('Encodage réponses Es'!X33=\"\",\"\",'Encodage réponses Es'!X33)","v":""},{"$f":"IF('Encodage réponses Es'!Y33=\"\",\"\",'Encodage réponses Es'!Y33)","v":""},{"$f":"IF('Encodage réponses Es'!Z33=\"\",\"\",'Encodage réponses Es'!Z33)","v":""},{"$f":"IF('Encodage réponses Es'!P33=\"\",\"\",'Encodage réponses Es'!P33)","v":""},{"$f":"IF('Encodage réponses Es'!Q33=\"\",\"\",'Encodage réponses Es'!Q33)","v":""},{"$f":"IF('Encodage réponses Es'!R33=\"\",\"\",'Encodage réponses Es'!R33)","v":""},{"$f":"IF('Encodage réponses Es'!U33=\"\",\"\",'Encodage réponses Es'!U33)","v":""},{"$f":"IF('Encodage réponses Es'!W33=\"\",\"\",'Encodage réponses Es'!W33)","v":""},{"$f":"IF('Encodage réponses Es'!K33=\"\",\"\",'Encodage réponses Es'!K33)","v":""},{"$f":"IF('Encodage réponses Es'!AA33=\"\",\"\",'Encodage réponses Es'!AA33)","v":""},{"$f":"IF(AND(COUNTBLANK('Encodage réponses Es'!Q33:X33)>0,'Encodage réponses Es'!$AW33=\"!\"),\"Incomplet\",IF(OR(COUNTIF(AB34:AM34,\"a\")>0,COUNTIF(AB34:AM34,\"A\")>0),\"Absent(e)\",IF(COUNT(AB34:AM34)=0,\"\",SUM(AB34:AM34))))","v":""},{"$f":"IF('Encodage réponses Es'!AD33=\"\",\"\",'Encodage réponses Es'!AD33)","v":""},{"$f":"IF('Encodage réponses Es'!AE33=\"\",\"\",'Encodage réponses Es'!AE33)","v":""},{"$f":"IF('Encodage réponses Es'!AL33=\"\",\"\",'Encodage réponses Es'!AL33)","v":""},{"$f":"IF('Encodage réponses Es'!AV33=\"\",\"\",'Encodage réponses Es'!AV33)","v":""},{"$f":"IF('Encodage réponses Es'!AC33=\"\",\"\",'Encodage réponses Es'!AC33)","v":""},{"$f":"IF('Encodage réponses Es'!AR33=\"\",\"\",'Encodage réponses Es'!AR33)","v":""},{"$f":"IF('Encodage réponses Es'!AS33=\"\",\"\",'Encodage réponses Es'!AS33)","v":""},{"$f":"IF('Encodage réponses Es'!AH33=\"\",\"\",'Encodage réponses Es'!AH33)","v":""},{"$f":"IF('Encodage réponses Es'!AI33=\"\",\"\",'Encodage réponses Es'!AI33)","v":""},{"$f":"IF('Encodage réponses Es'!AJ33=\"\",\"\",'Encodage réponses Es'!AJ33)","v":""},{"$f":"IF(AND(COUNTBLANK('Encodage réponses Es'!Y33:AE33)>0,'Encodage réponses Es'!$AW33=\"!\"),\"Incomplet\",IF(OR(COUNTIF(AO34:AX34,\"a\")>0,COUNTIF(AO34:AX34,\"A\")>0),\"Absent(e)\",IF(COUNT(AO34:AX34)=0,\"\",SUM(AO34:AX34))))","v":""},{"$f":"IF('Encodage réponses Es'!AF33=\"\",\"\",'Encodage réponses Es'!AF33)","v":""},{"$f":"IF('Encodage réponses Es'!AP33=\"\",\"\",'Encodage réponses Es'!AP33)","v":""},{"$f":"IF('Encodage réponses Es'!AK33=\"\",\"\",'Encodage réponses Es'!AK33)","v":""},{"$f":"IF('Encodage réponses Es'!AM33=\"\",\"\",'Encodage réponses Es'!AM33)","v":""},{"$f":"IF('Encodage réponses Es'!AN33=\"\",\"\",'Encodage réponses Es'!AN33)","v":""},{"$f":"IF('Encodage réponses Es'!AO33=\"\",\"\",'Encodage réponses Es'!AO33)","v":""},{"$f":"IF('Encodage réponses Es'!AQ33=\"\",\"\",'Encodage réponses Es'!AQ33)","v":""},{"$f":"IF('Encodage réponses Es'!AT33=\"\",\"\",'Encodage réponses Es'!AT33)","v":""},{"$f":"IF('Encodage réponses Es'!AU33=\"\",\"\",'Encodage réponses Es'!AUS33)","v":""},{"$f":"IF('Encodage réponses Es'!AG33=\"\",\"\",'Encodage réponses Es'!AG33)","v":""},null,{"$f":"IF(AND(COUNTBLANK('Encodage réponses Es'!AF33:AH33)>0,'Encodage réponses Es'!$AW33=\"!\"),\"Incomplet\",IF(OR(COUNTIF(AZ34:BJ34,\"a\")>0,COUNTIF(AZ34:BJ34,\"A\")>0),\"Absent(e)\",IF(COUNT(AZ34:BJ34)=0,\"\",SUM(AZ34:BJ34))))","v":""}]
[null,null,null,null,null,null,null,null,null,null,null,null,null,null,null,null,null,null,null,null,null,null,null,null,null,null,null,null,null,null,null,null,null,null,null,null,null,null,null,null,null,null,null,null,null,null,null,null,null,null,null,null,null,null,null,null,null,null,null,null,null,null,{"$f":"IF(AND(COUNTBLANK('Encodage réponses Es'!AF34:AH34)>0,'Encodage réponses Es'!$AW34=\"!\"),\"Incomplet\",IF(OR(COUNTIF(AZ35:BJ35,\"a\")>0,COUNTIF(AZ35:BJ35,\"A\")>0),\"Absent(e)\",IF(COUNT(AZ35:BJ35)=0,\"\",SUM(AZ35:BJ35))))","v":""}]
[null,null,null,null,null,null,null,null,null,{"$f":"COUNT(J5:J34)","v":0},"Participants",null,{"$f":"COUNT(M5:M34)-COUNTIF($J$5:$J$34,\"Absent\")","v":0},"Participants",{"$f":"COUNT(O5:O34)-COUNTIF($J$5:$J$34,\"Absent\")","v":0},"Participants",null,null,{"$f":"IF(COUNT(S5:S34)=0,\"\",SUMIF(S5:S34,\"<9\")/(COUNT(S5:S34)*S4))","v":""},"","","","",{"$f":"IF(COUNT(X5:X34)=0,\"\",SUMIF(X5:X34,\"<9\")/(COUNT(X5:X34)*X4))","v":""},"","",{"$f":"IF(COUNT(AA5:AA34)=0,\"\",AVERAGE(AA5:AA34)/AA2)","v":""},"",null,"","","","","","","","","","",{"$f":"IF(COUNT(AN5:AN34)=0,\"\",AVERAGE(AN5:AN34)/AN2)","v":""},{"$f":"IF(COUNT(AO5:AO34)=0,\"\",SUMIF(AO5:AO34,\"<9\")/(COUNT(AO5:AO34)*AO4))","v":""},"","","","","","","","","",{"$f":"IF(COUNT(AY5:AY34)=0,\"\",AVERAGE(AY5:AY34)/AY2)","v":""},"","","","","","","","",{"$f":"IF(COUNT(BH5:BH34)=0,\"\",SUMIF(BH5:BH34,\"<9\")/(COUNT(BH5:BH34)*BH4))","v":""},"",null,{"$f":"IF(COUNT(BK5:BK34)=0,\"\",AVERAGE(BK5:BK34)/BK2)","v":""}]
[null,null,null,null,null,null,null,null,null,"Moyenne",{"$f":"IF(J36=0,\"\",AVERAGE(K5:K34))","v":""},null,"Moyenne",{"$f":"IF(M36=0,\"\",AVERAGE(N5:N34))","v":""},"Moyenne",{"$f":"IF(O36=0,\"\",AVERAGE(P5:P34))","v":""},null,null,null,null,null,null,null,null,null,null,null,null,null,null,null,null,null,null,null,null,null,null,null,null,null,null,null,null,null,null,null,null,null,null,null,null,null,null,null,null,null,null,null,{"$f":"IF(COUNT(BH6:BH35)=0,\"\",SUMIF(BH6:BH35,\"<9\")/(COUNT(BH6:BH35)*BH5))","v":""}]
["Légende"]
[]
[null,null,null,null,null,null,null,null,null,"0/9",{"$f":"COUNTIF(K$5:K$34,\"<9,5%\")","v":0},null,"0/9",{"$f":"COUNTIF(N$5:N$34,\"<9,5%\")","v":0},"0/9",{"$f":"COUNTIF(P$5:P$34,\"<9,5%\")","v":0}]
["Incomplet",null,"Au moins un encodage (Encodage réponses Es) est manquant.",null,null,null,null,null,null,"10/19",{"$f":"COUNTIF(K$5:K$34,\"<19,5%\")-K40","v":0},null,"10/19",{"$f":"COUNTIF(N$5:N$34,\"<19,5%\")-N40","v":0},"10/19",{"$f":"COUNTIF(P$5:P$34,\"<19,5%\")-P40","v":0}]
[null,null,null,null,null,null,null,null,null,"20/29",{"$f":"COUNTIF(K$5:K$34,\"<29,5%\")-SUM(K40:K41)","v":0},null,"20/29",{"$f":"COUNTIF(N$5:N$34,\"<29,5%\")-SUM(N40:N41)","v":0},"20/29",{"$f":"COUNTIF(P$5:P$34,\"<29,5%\")-SUM(P40:P41)","v":0}]
[null,null,null,null,null,null,null,null,null,"30/39",{"$f":"COUNTIF(K$5:K$34,\"<39,5%\")-SUM(K40:K42)","v":0},null,"30/39",{"$f":"COUNTIF(N$5:N$34,\"<39,5%\")-SUM(N40:N42)","v":0},"30/39",{"$f":"COUNTIF(P$5:P$34,\"<39,5%\")-SUM(P40:P42)","v":0}]
[0.72,null,"Élèves qui ont réussi même en n'ayant pas présenté toute l'épreuve.",null,null,null,null,null,null,"40/49",{"$f":"COUNTIF(K$5:K$34,\"<49,5%\")-SUM(K40:K43)","v":0},null,"40/49",{"$f":"COUNTIF(N$5:N$34,\"<49,5%\")-SUM(N40:N43)","v":0},"40/49",{"$f":"COUNTIF(P$5:P$34,\"<49,5%\")-SUM(P40:P43)","v":0}]
[null,null,null,null,null,null,null,null,null,"50/59",{"$f":"COUNTIF(K$2:K$34,\"<59,5%\")-SUM(K40:K44)","v":0},null,"50/59",{"$f":"COUNTIF(N$2:N$34,\"<59,5%\")-SUM(N40:N44)","v":0},"50/59",{"$f":"COUNTIF(P$2:P$34,\"<59,5%\")-SUM(P40:P44)","v":0}]
[null,null,null,null,null,null,null,null,null,"60/69",{"$f":"COUNTIF(K$5:K$34,\"<69,5%\")-SUM(K40:K45)","v":0},null,"60/69",{"$f":"COUNTIF(N$5:N$34,\"<69,5%\")-SUM(N40:N45)","v":0},"60/69",{"$f":"COUNTIF(P$5:P$34,\"<69,5%\")-SUM(P40:P45)","v":0}]
["Absent(e)",null,"Élèves absents à la totalité de l'épreuve ou qui ont raté l'épreuve car ils n'ont pas présenté une partie de celle-ci.",null,null,null,null,null,null,"70/79",{"$f":"COUNTIF(K$5:K$34,\"<79,5%\")-SUM(K40:K46)","v":0},null,"70/79",{"$f":"COUNTIF(N$5:N$34,\"<79,5%\")-SUM(N40:N46)","v":0},"70/79",{"$f":"COUNTIF(P$5:P$34,\"<79,5%\")-SUM(P40:P46)","v":0}]
[null,null,null,null,null,null,null,null,null,"80/89",{"$f":"COUNTIF(K$5:K$34,\"<89,5%\")-SUM(K40:K47)","v":0},null,"80/89",{"$f":"COUNTIF(N$5:N$34,\"<89,5%\")-SUM(N40:N47)","v":0},"80/89",{"$f":"COUNTIF(P$5:P$34,\"<89,5%\")-SUM(P40:P47)","v":0}]
[null,null,null,null,null,null,null,null,null,"90/100",{"$f":"COUNTIF(K$5:K$34,\"<=100%\")-SUM(K40:K48)","v":0},null,"90/100",{"$f":"COUNTIF(N$5:N$34,\"<=100%\")-SUM(N40:N48)","v":0},"90/100",{"$f":"COUNTIF(P$5:P$34,\"<=100%\")-SUM(P40:P48)","v":0}]
[0.26,null,"Élèves qui ont raté l'épreuve."]
[]
[null,null,null,null,null,null,null,null,"Taux de réussite :",null,{"$f":"IF(OR(COUNTBLANK(K5:K34)=30,COUNT(K5:K34)=0),\"\",(COUNTIF(K5:K34,\">=0,5\"))/COUNT(K5:K34))","v":""}]

{"sheet":"Bilan","index":2,"n_rows":1164,"n_cols":16,"rows_kept":1164,"cut":false,"hidden":false,"merged":[[1154,9,1154,11],[1155,0,1155,4],[1155,7,1155,8],[1160,0,1160,6],[1160,7,1160,8],[1139,13,1139,15],[1141,9,1141,11],[1142,0,1142,4],[1142,7,1142,8],[1148,0,1148,4],[1148,7,1148,8],[1128,0,1128,15],[1129,0,1129,15],[1131,0,1131,15],[1133,1,1133,13],[1135,0,1135,10],[1135,12,1135,15],[1115,9,1115,11],[1116,0,1116,4],[1116,7,1116,8],[1121,0,1121,6],[1121,7,1121,8],[1100,13,1100,15],[1102,9,1102,11],[1103,0,1103,4],[1103,7,1103,8],[1109,0,1109,4],[1109,7,1109,8],[1089,0,1089,15],[1090,0,1090,15],[1092,0,1092,15],[1094,1,1094,13],[1096,0,1096,10],[1096,12,1096,15],[1076,9,1076,11],[1077,0,1077,4],[1077,7,1077,8],[1082,0,1082,6],[1082,7,1082,8],[1061,13,1061,15],[1063,9,1063,11],[1064,0,1064,4],[1064,7,1064,8],[1070,0,1070,4],[1070,7,1070,8],[1050,0,1050,15],[1051,0,1051,15],[1053,0,1053,15],[1055,1,1055,13],[1057,0,1057,10],[1057,12,1057,15],[1037,9,1037,11],[1038,0,1038,4],[1038,7,1038,8],[1043,0,1043,6],[1043,7,1043,8],[1022,13,1022,15],[1024,9,1024,11],[1025,0,1025,4],[1025,7,1025,8],[1031,0,1031,4],[1031,7,1031,8],[1011,0,1011,15],[1012,0,1012,15],[1014,0,1014,15],[1016,1,1016,13],[1018,0,1018,10],[1018,12,1018,15],[998,9,998,11],[999,0,999,4],[999,7,999,8],[1004,0,1004,6],[1004,7,1004,8],[983,13,983,15],[985,9,985,11],[986,0,986,4],[986,7,986,8],[992,0,992,4],[992,7,992,8],[972,0,972,15],[973,0,973,15],[975,0,975,15],[977,1,977,13],[979,0,979,10],[979,12,979,15],[959,9,959,11],[960,0,960,4],[960,7,960,8],[965,0,965,6],[965,7,965,8],[944,13,944,15],[946,9,946,11],[947,0,947,4],[947,7,947,8],[953,0,953,4],[953,7,953,8],[933,0,933,15],[934,0,934,15],[936,0,936,15],[938,1,938,13],[940,0,940,10],[940,12,940,15],[920,9,920,11],[921,0,921,4],[921,7,921,8],[926,0,926,6],[926,7,926,8],[905,13,905,15],[907,9,907,11],[908,0,908,4],[908,7,908,8],[914,0,914,4],[914,7,914,8],[894,0,894,15],[895,0,895,15],[897,0,897,15],[899,1,899,13],[901,0,901,10],[901,12,901,15],[881,9,881,11],[882,0,882,4],[882,7,882,8],[887,0,887,6],[887,7,887,8],[866,13,866,15],[868,9,868,11],[869,0,869,4],[869,7,869,8],[875,0,875,4],[875,7,875,8],[855,0,855,15],[856,0,856,15],[858,0,858,15],[860,1,860,13],[862,0,862,10],[862,12,862,15],[842,9,842,11],[843,0,843,4],[843,7,843,8],[848,0,848,6],[848,7,848,8],[827,13,827,15],[829,9,829,11],[830,0,830,4],[830,7,830,8],[836,0,836,4],[836,7,836,8],[816,0,816,15],[817,0,817,15],[819,0,819,15],[821,1,821,13],[823,0,823,10],[823,12,823,15],[803,9,803,11],[804,0,804,4],[804,7,804,8],[809,0,809,6],[809,7,809,8],[788,13,788,15],[790,9,790,11],[791,0,791,4],[791,7,791,8],[797,0,797,4],[797,7,797,8],[777,0,777,15],[778,0,778,15],[780,0,780,15],[782,1,782,13],[784,0,784,10],[784,12,784,15],[764,9,764,11],[765,0,765,4],[765,7,765,8],[770,0,770,6],[770,7,770,8],[749,13,749,15],[751,9,751,11],[752,0,752,4],[752,7,752,8],[758,0,758,4],[758,7,758,8],[738,0,738,15],[739,0,739,15],[741,0,741,15],[743,1,743,13],[745,0,745,10],[745,12,745,15],[725,9,725,11],[726,0,726,4],[726,7,726,8],[731,0,731,6],[731,7,731,8],[710,13,710,15],[712,9,712,11],[713,0,713,4],[713,7,713,8],[719,0,719,4],[719,7,719,8],[699,0,699,15],[700,0,700,15],[702,0,702,15],[704,1,704,13],[706,0,706,10],[706,12,706,15],[686,9,686,11],[687,0,687,4],[687,7,687,8],[692,0,692,6],[692,7,692,8],[671,13,671,15],[673,9,673,11],[674,0,674,4],[674,7,674,8],[680,0,680,4],[680,7,680,8],[660,0,660,15],[661,0,661,15],[663,0,663,15],[665,1,665,13],[667,0,667,10],[667,12,667,15],[647,9,647,11],[648,0,648,4],[648,7,648,8],[653,0,653,6],[653,7,653,8],[632,13,632,15],[634,9,634,11],[635,0,635,4],[635,7,635,8],[641,0,641,4],[641,7,641,8],[621,0,621,15],[622,0,622,15],[624,0,624,15],[626,1,626,13],[628,0,628,10],[628,12,628,15],[608,9,608,11],[609,0,609,4],[609,7,609,8],[614,0,614,6],[614,7,614,8],[593,13,593,15],[595,9,595,11],[596,0,596,4],[596,7,596,8],[602,0,602,4],[602,7,602,8],[582,0,582,15],[583,0,583,15],[585,0,585,15],[587,1,587,13],[589,0,589,10],[589,12,589,15],[569,9,569,11],[570,0,570,4],[570,7,570,8],[575,0,575,6],[575,7,575,8],[554,13,554,15],[556,9,556,11],[557,0,557,4],[557,7,557,8],[563,0,563,4],[563,7,563,8],[543,0,543,15],[544,0,544,15],[546,0,546,15],[548,1,548,13],[550,0,550,10],[550,12,550,15],[530,9,530,11],[531,0,531,4],[531,7,531,8],[536,0,536,6],[536,7,536,8],[515,13,515,15],[517,9,517,11],[518,0,518,4],[518,7,518,8],[524,0,524,4],[524,7,524,8],[504,0,504,15],[505,0,505,15],[507,0,507,15],[509,1,509,13],[511,0,511,10],[511,12,511,15],[491,9,491,11],[492,0,492,4],[492,7,492,8],[497,0,497,6],[497,7,497,8],[476,13,476,15],[478,9,478,11],[479,0,479,4],[479,7,479,8],[485,0,485,4],[485,7,485,8],[465,0,465,15],[466,0,466,15],[468,0,468,15],[470,1,470,13],[472,0,472,10],[472,12,472,15],[452,9,452,11],[453,0,453,4],[453,7,453,8],[458,0,458,6],[458,7,458,8],[437,13,437,15],[439,9,439,11],[440,0,440,4],[440,7,440,8],[446,0,446,4],[446,7,446,8],[426,0,426,15],[427,0,427,15],[429,0,429,15],[431,1,431,13],[433,0,433,10],[433,12,433,15],[413,9,413,11],[414,0,414,4],[414,7,414,8],[419,0,419,6],[419,7,419,8],[398,13,398,15],[400,9,400,11],[401,0,401,4],[401,7,401,8],[407,0,407,4],[407,7,407,8],[387,0,387,15],[388,0,388,15],[390,0,390,15],[392,1,392,13],[394,0,394,10],[394,12,394,15],[374,9,374,11],[375,0,375,4],[375,7,375,8],[380,0,380,6],[380,7,380,8],[359,13,359,15],[361,9,361,11],[362,0,362,4],[362,7,362,8],[368,0,368,4],[368,7,368,8],[348,0,348,15],[349,0,349,15],[351,0,351,15],[353,1,353,13],[355,0,355,10],[355,12,355,15],[335,9,335,11],[336,0,336,4],[336,7,336,8],[341,0,341,6],[341,7,341,8],[320,13,320,15],[322,9,322,11],[323,0,323,4],[323,7,323,8],[329,0,329,4],[329,7,329,8],[309,0,309,15],[310,0,310,15],[312,0,312,15],[314,1,314,13],[316,0,316,10],[316,12,316,15],[296,9,296,11],[297,0,297,4],[297,7,297,8],[302,0,302,6],[302,7,302,8],[281,13,281,15],[283,9,283,11],[284,0,284,4],[284,7,284,8],[290,0,290,4],[290,7,290,8],[270,0,270,15],[271,0,271,15],[273,0,273,15],[275,1,275,13],[277,0,277,10],[277,12,277,15],[257,9,257,11],[258,0,258,4],[258,7,258,8],[263,0,263,6],[263,7,263,8],[242,13,242,15],[244,9,244,11],[245,0,245,4],[245,7,245,8],[251,0,251,4],[251,7,251,8],[232,0,232,15],[234,0,234,15],[236,1,236,13],[238,0,238,10],[238,12,238,15],[219,0,219,4],[219,7,219,8],[224,0,224,6],[224,7,224,8],[231,0,231,15],[206,0,206,4],[206,7,206,8],[212,0,212,4],[212,7,212,8],[218,9,218,11],[197,1,197,13],[199,0,199,10],[199,12,199,15],[203,13,203,15],[205,9,205,11],[186,0,186,6],[186,7,186,8],[192,0,192,15],[193,0,193,15],[195,0,195,15],[174,0,174,4],[174,7,174,8],[180,9,180,11],[181,0,181,4],[181,7,181,8],[161,0,161,10],[161,12,161,15],[165,13,165,15],[167,9,167,11],[168,0,168,4],[168,7,168,8],[154,0,154,15],[155,0,155,15],[157,0,157,15],[159,1,159,13],[77,0,77,15],[78,0,78,15],[80,0,80,15],[90,9,90,11],[84,0,84,10],[82,1,82,13],[109,0,109,6],[109,7,109,8],[115,0,115,15],[116,0,116,15],[118,0,118,15],[122,0,122,10],[122,12,122,15],[126,13,126,15],[128,9,128,11],[129,0,129,4],[129,7,129,8],[147,0,147,6],[147,7,147,8],[152,0,153,15],[13,9,13,11],[14,0,14,4],[59,7,59,8],[46,0,46,10],[39,0,39,15],[52,9,52,11],[50,13,50,15],[53,0,53,4],[44,1,44,14],[0,0,0,15],[1,0,1,15],[3,0,3,15],[7,0,7,10],[7,12,7,15],[5,1,5,14],[65,9,65,11],[66,0,66,4],[66,7,66,8],[59,0,59,4],[21,0,21,4],[14,7,14,8],[21,7,21,8],[38,0,38,15],[53,7,53,8],[28,7,28,8],[27,9,27,11],[28,0,28,4],[33,7,33,8],[33,0,33,6],[46,12,46,15],[40,0,40,15],[42,0,42,15],[11,13,11,15],[135,0,135,4],[135,7,135,8],[141,9,141,11],[142,0,142,4],[142,7,142,8],[71,0,71,6],[71,7,71,8],[103,9,103,11],[104,0,104,4],[104,7,104,8],[75,0,76,15],[84,12,84,15],[88,13,88,15],[97,0,97,4],[91,7,91,8],[91,0,91,4],[97,7,97,8],[120,1,120,13]]}
[]
[""]
[]
["JUIN 2016   EDM"]
[]
[null,{"$f":"'Encodage réponses Es'!B1:I1","v":0}]
["Classe : ",{"$f":"'Encodage réponses Es'!C3","v":0}]
[{"$f":"CONCATENATE(\"Synthèse des résultats de l'élève : \",Résultats!$E5,\" \",Résultats!$F5)","v":"Synthèse des résultats de l'élève :  "},null,null,null,null,null,null,null,null,null,null,null,{"$f":"IF(Résultats!$J5=\"Absent(e)\",\"Absent(e)\",IF(Résultats!$J5=\"Incomplet\",\"Incomplet\",\"\"))","v":""}]
[]
["EDM",null,null,null,null,null,null,null,null,null,null,null,null,{"$f":"IF(OR(Résultats!$J5=\"Absent(e)\",Résultats!$J5=\"Incomplet\"),\"\",Résultats!$J5)","v":""},{"$f":"\"/\"","v":"/"},{"$f":"Résultats!$J$4","v":80}]
[]
[null,null,null,null,null,null,null,null,null,null,null,null,null,{"$f":"IF(N10=\"\",\"\",N10/P10)","v":""}]
[]
["Volet géographique",null,null,null,null,null,null,null,null,{"$f":"IF(Résultats!$M5=\"\",\"\",Résultats!$M5)","v":""},null,null,{"$f":"\"/\"","v":"/"},{"$f":"Résultats!$M$4","v":40},null,{"$f":"IF(OR(J14=\"\",J14=\"Absent(e)\",J14=\"Incomplet\"),\"\",J14/N14)","v":""}]
["Savoir-faire géographiques",null,null,null,null,null,null,{"$f":"IF(OR(Résultats!$AA5=\"Absent(e)\",Résultats!$AA5=\"Incomplet\"),\"\",Résultats!$AA5)","v":""},null,{"$f":"\"/\"","v":"/"},{"$f":"Résultats!$AA$2","v":19}]
["-  utiliser des repères spatiaux"]
["-  utiliser des représentations de l'espace"]
["-  localiser un lieu, un espace"]
["-  lire un paysage sur le terrain (pas mobilisé)"]
["-  lire une image géographique"]
[]
["Savoirs géographiques",null,null,null,null,null,null,{"$f":"IF(OR(Résultats!$AN5=\"Absent(e)\",Résultats!$AN5=\"Incomplet\"),\"\",Résultats!$AN5)","v":""},null,{"$f":"\"/\"","v":"/"},{"$f":"Résultats!$AN$2","v":21}]
["-  identifier et caractériser les composantes du paysage"]
["-  identifier et caractériser des milieux naturels et leurs atouts et contraintes"]
["-  caractériser l'organisation de l'espace (fonctions, structurations et évolution)"]
["-  identifier des interactions hommes-espace"]
[]
["Volet historique",null,null,null,null,null,null,null,null,{"$f":"IF(OR(Résultats!$O5=\"\",Résultats!$O5=\"Incomplet\"),\"\",Résultats!$O5)","v":""},null,null,{"$f":"\"/\"","v":"/"},{"$f":"Résultats!$O$4","v":40},null,{"$f":"IF(OR(J28=\"\",J28=\"Absent(e)\",J28=\"Incomplet\"),\"\",J28/N28)","v":""}]
["Savoir-faire historiques",null,null,null,null,null,null,{"$f":"IF(OR(Résultats!$AY5=\"a\",Résultats!$AY5=\"A\",Résultats!$AY5=\"\"),\"\",Résultats!$AY5)","v":""},null,{"$f":"\"/\"","v":"/"},{"$f":"Résultats!$AY$2","v":18}]
["-  utiliser des repères du temps"]
["-  utiliser des représentations du temps"]
["-  lire une trace du passé"]
["-  exploiter des sources historiques (pas mobilisé)"]
["Savoirs historiques",null,null,null,null,null,null,{"$f":"IF(OR(Résultats!$BK5=\"Absent(e)\",Résultats!$BK5=\"Incomplet\"),\"\",Résultats!$BK5)","v":""},null,{"$f":"\"/\"","v":"/"},{"$f":"Résultats!$BK$2","v":22}]
["-  organisation du temps"]
["-  identifier et caractériser le mode de vie des gens à une époque déterminée"]
["-  mettre en évidence la nature d'une trace du passé"]
[]
[]
[]
[""]
[]
["JUIN 2016  EDM"]
[]
[null,{"$f":"'Encodage réponses Es'!B1:I1","v":0}]
["Classe : ",{"$f":"'Encodage réponses Es'!C3","v":0}]
[{"$f":"CONCATENATE(\"Synthèse des résultats de l'élève : \",Résultats!$E6,\" \",Résultats!$F6)","v":"Synthèse des résultats de l'élève :  "},null,null,null,null,null,null,null,null,null,null,null,{"$f":"IF(Résultats!$J43=\"Absent(e)\",\"Absent(e)\",IF(Résultats!$J43=\"Incomplet\",\"Incomplet\",\"\"))","v":""}]
[]
["EDM",null,null,null,null,null,null,null,null,null,null,null,null,{"$f":"IF(OR(Résultats!$J6=\"Absent(e)\",Résultats!$J6=\"Incomplet\"),\"\",Résultats!$J6)","v":""},{"$f":"\"/\"","v":"/"},{"$f":"Résultats!$J$4","v":80}]
[]
[null,null,null,null,null,null,null,null,null,null,null,null,null,{"$f":"IF(N49=\"\",\"\",N49/P49)","v":""}]
[]
["Volet géographique",null,null,null,null,null,null,null,null,{"$f":"IF(Résultats!$M6=\"\",\"\",Résultats!$M6)","v":""},null,null,{"$f":"\"/\"","v":"/"},{"$f":"Résultats!$M$4","v":40},null,{"$f":"IF(OR(J53=\"\",J53=\"Absent(e)\",J53=\"Incomplet\"),\"\",J53/N53)","v":""}]
["Savoir-faire géographiques",null,null,null,null,null,null,{"$f":"IF(OR(Résultats!$AA6=\"Absent(e)\",Résultats!$AA6=\"Incomplet\"),\"\",Résultats!$AA6)","v":""},null,{"$f":"\"/\"","v":"/"},{"$f":"Résultats!$AA$2","v":19}]
["-  utiliser des repères spatiaux"]
["-  utiliser des représentations de l'espace"]
["-  localiser un lieu, un espace"]
["-  lire un paysage sur le terrain (pas mobilisé)"]
["-  lire une image géographique"]
["Savoirs géographiques",null,null,null,null,null,null,{"$f":"IF(OR(Résultats!$AN6=\"Absent(e)\",Résultats!$AN6=\"Incomplet\"),\"\",Résultats!$AN6)","v":""},null,{"$f":"\"/\"","v":"/"},{"$f":"Résultats!$AN$2","v":21}]
["-  identifier et caractériser les composantes du paysage"]
["-  identifier et caractériser des milieux naturels et leurs atouts et contraintes"]
["-  caractériser l'organisation de l'espace (fonctions, structurations et évolution)"]
["-  identifier des interactions hommes-espace"]
[]
["Volet historique",null,null,null,null,null,null,null,null,{"$f":"IF(OR(Résultats!$O6=\"\",Résultats!$O6=\"Incomplet\"),\"\",Résultats!$O6)","v":""},null,null,{"$f":"\"/\"","v":"/"},{"$f":"Résultats!$O$4","v":40},null,{"$f":"IF(OR(J66=\"\",J66=\"Absent(e)\",J66=\"Incomplet\"),\"\",J66/N66)","v":""}]
["Savoir-faire historiques",null,null,null,null,null,null,{"$f":"IF(OR(Résultats!$AY6=\"a\",Résultats!$AY6=\"A\",Résultats!$AY6=\"\"),\"\",Résultats!$AY6)","v":""},null,{"$f":"\"/\"","v":"/"},{"$f":"Résultats!$AY$2","v":18}]
["-  utiliser des repères du temps"]
["-  utiliser des représentations du temps"]
["-  lire une trace du passé"]
["-  exploiter des sources historiques (pas mobilisé)"]
["Savoirs historiques",null,null,null,null,null,null,{"$f":"IF(OR(Résultats!$BK6=\"Absent(e)\",Résultats!$BK6=\"Incomplet\"),\"\",Résultats!$BK6)","v":""},null,{"$f":"\"/\"","v":"/"},{"$f":"Résultats!$BK$2","v":22}]
["-  organisation du temps"]
["-  identifier et caractériser le mode de vie des gens à une époque déterminée"]
["-  mettre en évidence la nature d'une trace du passé"]
["Absent(e) : si l'élève a été absent à une partie de l'épreuve, le résultat global ne s'inscrit que s'il a obtenu 50/100 au moins.\nLes résultats des domaines où l'élève était partiellement absent n'apparaissent pas."]
[]
[]
[""]
[]
["JUIN 2016   EDM"]
[]
[null,{"$f":"'Encodage réponses Es'!B1:I1","v":0}]
["Classe : ",{"$f":"'Encodage réponses Es'!C3","v":0}]
[{"$f":"CONCATENATE(\"Synthèse des résultats de l'élève : \",Résultats!$E7,\" \",Résultats!$F7)","v":"Synthèse des résultats de l'élève :  "},null,null,null,null,null,null,null,null,null,null,null,{"$f":"IF(Résultats!$J81=\"Absent(e)\",\"Absent(e)\",IF(Résultats!$J81=\"Incomplet\",\"Incomplet\",\"\"))","v":""}]
[]
["EDM",null,null,null,null,null,null,null,null,null,null,null,null,{"$f":"IF(OR(Résultats!$J7=\"Absent(e)\",Résultats!$J7=\"Incomplet\"),\"\",Résultats!$J7)","v":""},{"$f":"\"/\"","v":"/"},{"$f":"Résultats!$J$4","v":80}]
[]
[null,null,null,null,null,null,null,null,null,null,null,null,null,{"$f":"IF(N87=\"\",\"\",N87/P87)","v":""}]
[]
["Volet géographique",null,null,null,null,null,null,null,null,{"$f":"IF(Résultats!$M7=\"\",\"\",Résultats!$M7)","v":""},null,null,{"$f":"\"/\"","v":"/"},{"$f":"Résultats!$M$4","v":40},null,{"$f":"IF(OR(J91=\"\",J91=\"Absent(e)\",J91=\"Incomplet\"),\"\",J91/N91)","v":""}]
["Savoir-faire géographiques",null,null,null,null,null,null,{"$f":"IF(OR(Résultats!$AA7=\"Absent(e)\",Résultats!$AA7=\"Incomplet\"),\"\",Résultats!$AA7)","v":""},null,{"$f":"\"/\"","v":"/"},{"$f":"Résultats!$AA$2","v":19}]
["-  utiliser des repères spatiaux"]
["-  utiliser des représentations de l'espace"]
["-  localiser un lieu, un espace"]
["-  lire un paysage sur le terrain (pas mobilisé)"]
["-  lire une image géographique"]
["Savoirs géographiques",null,null,null,null,null,null,{"$f":"IF(OR(Résultats!$AN7=\"Absent(e)\",Résultats!$AN74=\"Incomplet\"),\"\",Résultats!$AN7)","v":""},null,{"$f":"\"/\"","v":"/"},{"$f":"Résultats!$AN$2","v":21}]
["-  identifier et caractériser les composantes du paysage"]
["-  identifier et caractériser des milieux naturels et leurs atouts et contraintes"]
["-  caractériser l'organisation de l'espace (fonctions, structurations et évolution)"]
["-  identifier des interactions hommes-espace"]
[]
["Volet historique",null,null,null,null,null,null,null,null,{"$f":"IF(OR(Résultats!$O7=\"\",Résultats!$O7=\"Incomplet\"),\"\",Résultats!$O7)","v":""},null,null,{"$f":"\"/\"","v":"/"},{"$f":"Résultats!$O$4","v":40},null,{"$f":"IF(OR(J104=\"\",J104=\"Absent(e)\",J104=\"Incomplet\"),\"\",J104/N104)","v":""}]
["Savoir-faire historiques",null,null,null,null,null,null,{"$f":"IF(OR(Résultats!$AY7=\"a\",Résultats!$AY7=\"A\",Résultats!$AY7=\"\"),\"\",Résultats!$AY7)","v":""},null,{"$f":"\"/\"","v":"/"},{"$f":"Résultats!$AY$2","v":18}]
["-  utiliser des repères du temps"]
["-  utiliser des représentations du temps"]
["-  lire une trace du passé"]
["-  exploiter des sources historiques (pas mobilisé)"]
["Savoirs historiques",null,null,null,null,null,null,{"$f":"IF(OR(Résultats!$BK7=\"Absent(e)\",Résultats!$BK7=\"Incomplet\"),\"\",Résultats!$BK7)","v":""},null,{"$f":"\"/\"","v":"/"},{"$f":"Résultats!$BK$2","v":22}]
["-  organisation du temps"]
["-  identifier et caractériser le mode de vie des gens à une époque déterminée"]
["-  mettre en évidence la nature d'une trace du passé"]
[]
[]
[]
[""]
[]
["JUIN 2016   EDM"]
[]
[null,{"$f":"'Encodage réponses Es'!$B$1:$I$1","v":0}]
["Classe : ",{"$f":"'Encodage réponses Es'!$C$3","v":0}]
[{"$f":"CONCATENATE(\"Synthèse des résultats de l'élève : \",Résultats!$E8,\" \",Résultats!$F8)","v":"Synthèse des résultats de l'élève :  "},null,null,null,null,null,null,null,null,null,null,null,{"$f":"IF(Résultats!$J121=\"Absent(e)\",\"Absent(e)\",IF(Résultats!$J121=\"Incomplet\",\"Incomplet\",\"\"))","v":""}]
[]
["EDM",null,null,null,null,null,null,null,null,null,null,null,null,{"$f":"IF(OR(Résultats!$J8=\"Absent(e)\",Résultats!$J8=\"Incomplet\"),\"\",Résultats!$J8)","v":""},{"$f":"\"/\"","v":"/"},{"$f":"Résultats!$J$4","v":80}]
[]
[null,null,null,null,null,null,null,null,null,null,null,null,null,{"$f":"IF(N125=\"\",\"\",N125/P125)","v":""}]
[]
["Volet géographique",null,null,null,null,null,null,null,null,{"$f":"IF(Résultats!$M8=\"\",\"\",Résultats!$M8)","v":""},null,null,{"$f":"\"/\"","v":"/"},{"$f":"Résultats!$M$4","v":40},null,{"$f":"IF(OR(J129=\"\",J129=\"Absent(e)\",J129=\"Incomplet\"),\"\",J129/N129)","v":""}]
["Savoir-faire géographiques",null,null,null,null,null,null,{"$f":"IF(OR(Résultats!$AA8=\"Absent(e)\",Résultats!$AA8=\"Incomplet\"),\"\",Résultats!$AA8)","v":""},null,{"$f":"\"/\"","v":"/"},{"$f":"Résultats!$AA$2","v":19}]
["-  utiliser des repères spatiaux"]
["-  utiliser des représentations de l'espace"]
["-  localiser un lieu, un espace"]
["-  lire un paysage sur le terrain (pas mobilisé)"]
["-  lire une image géographique"]
["Savoirs géographiques",null,null,null,null,null,null,{"$f":"IF(OR(Résultats!$AN8=\"Absent(e)\",Résultats!$AN8=\"Incomplet\"),\"\",Résultats!$AN8)","v":""},null,{"$f":"\"/\"","v":"/"},{"$f":"Résultats!$AN$2","v":21}]
["-  identifier et caractériser les composantes du paysage"]
["-  identifier et caractériser des milieux naturels et leurs atouts et contraintes"]
["-  caractériser l'organisation de l'espace (fonctions, structurations et évolution)"]
["-  identifier des interactions hommes-espace"]
[]
["Volet historique",null,null,null,null,null,null,null,null,{"$f":"IF(OR(Résultats!$O8=\"\",Résultats!$O8=\"Incomplet\"),\"\",Résultats!$O8)","v":""},null,null,{"$f":"\"/\"","v":"/"},{"$f":"Résultats!$O$4","v":40},null,{"$f":"IF(OR(J142=\"\",J142=\"Absent(e)\",J142=\"Incomplet\"),\"\",J142/N142)","v":""}]
["Savoir-faire historiques",null,null,null,null,null,null,{"$f":"IF(OR(Résultats!$AY8=\"a\",Résultats!$AY8=\"A\",Résultats!$AY8=\"\"),\"\",Résultats!$AY8)","v":""},null,{"$f":"\"/\"","v":"/"},{"$f":"Résultats!$AY$2","v":18}]
["-  utiliser des repères du temps"]
["-  utiliser des représentations du temps"]
["-  lire une trace du passé"]
["-  exploiter des sources historiques (pas mobilisé)"]
["Savoirs historiques",null,null,null,null,null,null,{"$f":"IF(OR(Résultats!$BK8=\"Absent(e)\",Résultats!$BK8=\"Incomplet\"),\"\",Résultats!$BK8)","v":""},null,{"$f":"\"/\"","v":"/"},{"$f":"Résultats!$BK$2","v":22}]
["-  organisation du temps"]
["-  identifier et caractériser le mode de vie des gens à une époque déterminée"]
["-  mettre en évidence la nature d'une trace du passé"]
[]
["Absent(e) : si l'élève a été absent à une partie de l'épreuve, le résultat global ne s'inscrit que s'il a obtenu 50/100 au moins.\nLes résultats des domaines où l'élève était partiellement absent n'apparaissent pas."]
[]
[]
[""]
[]
["JUIN 2016   EDM"]
[]
[null,{"$f":"'Encodage réponses Es'!$B$1:$I$1","v":0}]
["Classe : ",{"$f":"'Encodage réponses Es'!$C$3","v":0}]
[{"$f":"CONCATENATE(\"Synthèse des résultats de l'élève : \",Résultats!$E9,\" \",Résultats!$F9)","v":"Synthèse des résultats de l'élève :  "},null,null,null,null,null,null,null,null,null,null,null,{"$f":"IF(Résultats!$J161=\"Absent(e)\",\"Absent(e)\",IF(Résultats!$J161=\"Incomplet\",\"Incomplet\",\"\"))","v":""}]
[]
["EDM",null,null,null,null,null,null,null,null,null,null,null,null,{"$f":"IF(OR(Résultats!$J9=\"Absent(e)\",Résultats!$J9=\"Incomplet\"),\"\",Résultats!$J9)","v":""},{"$f":"\"/\"","v":"/"},{"$f":"Résultats!$J$4","v":80}]
[]
[null,null,null,null,null,null,null,null,null,null,null,null,null,{"$f":"IF(N164=\"\",\"\",N164/P164)","v":""}]
[]
["Volet géographique",null,null,null,null,null,null,null,null,{"$f":"IF(Résultats!$M98=\"\",\"\",Résultats!$M9)","v":""},null,null,{"$f":"\"/\"","v":"/"},{"$f":"Résultats!$M$4","v":40},null,{"$f":"IF(OR(J168=\"\",J168=\"Absent(e)\",J168=\"Incomplet\"),\"\",J168/N168)","v":""}]
["Savoir-faire géographiques",null,null,null,null,null,null,{"$f":"IF(OR(Résultats!$AA9=\"Absent(e)\",Résultats!$AA9=\"Incomplet\"),\"\",Résultats!$AA9)","v":""},null,{"$f":"\"/\"","v":"/"},{"$f":"Résultats!$AA$2","v":19}]
["-  utiliser des repères spatiaux"]
["-  utiliser des représentations de l'espace"]
["-  localiser un lieu, un espace"]
["-  lire un paysage sur le terrain (pas mobilisé)"]
["-  lire une image géographique"]
["Savoirs géographiques",null,null,null,null,null,null,{"$f":"IF(OR(Résultats!$AN9=\"Absent(e)\",Résultats!$AN9=\"Incomplet\"),\"\",Résultats!$AN9)","v":""},null,{"$f":"\"/\"","v":"/"},{"$f":"Résultats!$AN$2","v":21}]
["-  identifier et caractériser les composantes du paysage"]
["-  identifier et caractériser des milieux naturels et leurs atouts et contraintes"]
["-  caractériser l'organisation de l'espace (fonctions, structurations et évolution)"]
["-  identifier des interactions hommes-espace"]
[]
["Volet historique",null,null,null,null,null,null,null,null,{"$f":"IF(OR(Résultats!$O9=\"\",Résultats!$O9=\"Incomplet\"),\"\",Résultats!$O9)","v":""},null,null,{"$f":"\"/\"","v":"/"},{"$f":"Résultats!$O$4","v":40},null,{"$f":"IF(OR(J181=\"\",J181=\"Absent(e)\",J181=\"Incomplet\"),\"\",J181/N181)","v":""}]
["Savoir-faire historiques",null,null,null,null,null,null,{"$f":"IF(OR(Résultats!$AY9=\"a\",Résultats!$AY9=\"A\",Résultats!$AY9=\"\"),\"\",Résultats!$AY9)","v":""},null,{"$f":"\"/\"","v":"/"},{"$f":"Résultats!$AY$2","v":18}]
["-  utiliser des repères du temps"]
["-  utiliser des représentations du temps"]
["-  lire une trace du passé"]
["-  exploiter des sources historiques (pas mobilisé)"]
["Savoirs historiques",null,null,null,null,null,null,{"$f":"IF(OR(Résultats!$BK9=\"Absent(e)\",Résultats!$BK9=\"Incomplet\"),\"\",Résultats!$BK9)","v":""},null,{"$f":"\"/\"","v":"/"},{"$f":"Résultats!$BK$2","v":22}]
["-  organisation du temps"]
["-  identifier et caractériser le mode de vie des gens à une époque déterminée"]
["-  mettre en évidence la nature d'une trace du passé"]
[]
[]
[]
[""]
[]
["JUIN 2016   EDM"]
[]
[null,{"$f":"'Encodage réponses Es'!$B$1:$I$1","v":0}]
["Classe : ",{"$f":"'Encodage réponses Es'!$C$3","v":0}]
[{"$f":"CONCATENATE(\"Synthèse des résultats de l'élève : \",Résultats!$E10,\" \",Résultats!$F10)","v":"Synthèse des résultats de l'élève :  "},null,null,null,null,null,null,null,null,null,null,null,{"$f":"IF(Résultats!$J199=\"Absent(e)\",\"Absent(e)\",IF(Résultats!$J199=\"Incomplet\",\"Incomplet\",\"\"))","v":""}]
[]
["EDM",null,null,null,null,null,null,null,null,null,null,null,null,{"$f":"IF(OR(Résultats!$J10=\"Absent(e)\",Résultats!$J10=\"Incomplet\"),\"\",Résultats!$J10)","v":""},{"$f":"\"/\"","v":"/"},{"$f":"Résultats!$J$4","v":80}]
[]
[null,null,null,null,null,null,null,null,null,null,null,null,null,{"$f":"IF(N202=\"\",\"\",N202/P202)","v":""}]
[]
["Volet géographique",null,null,null,null,null,null,null,null,{"$f":"IF(Résultats!$M10=\"\",\"\",Résultats!$M10)","v":""},null,null,{"$f":"\"/\"","v":"/"},{"$f":"Résultats!$M$4","v":40},null,{"$f":"IF(OR(J206=\"\",J206=\"Absent(e)\",J206=\"Incomplet\"),\"\",J206/N206)","v":""}]
["Savoir-faire géographiques",null,null,null,null,null,null,{"$f":"IF(OR(Résultats!$AA10=\"Absent(e)\",Résultats!$AA10=\"Incomplet\"),\"\",Résultats!$AA10)","v":""},null,{"$f":"\"/\"","v":"/"},{"$f":"Résultats!$AA$2","v":19}]
["-  utiliser des repères spatiaux"]
["-  utiliser des représentations de l'espace"]
["-  localiser un lieu, un espace"]
["-  lire un paysage sur le terrain (pas mobilisé)"]
["-  lire une image géographique"]
["Savoirs géographiques",null,null,null,null,null,null,{"$f":"IF(OR(Résultats!$AN10=\"Absent(e)\",Résultats!$AN10=\"Incomplet\"),\"\",Résultats!$AN10)","v":""},null,{"$f":"\"/\"","v":"/"},{"$f":"Résultats!$AN$2","v":21}]
["-  identifier et caractériser les composantes du paysage"]
["-  identifier et caractériser des milieux naturels et leurs atouts et contraintes"]
["-  caractériser l'organisation de l'espace (fonctions, structurations et évolution)"]
["-  identifier des interactions hommes-espace"]
[]
["Volet historique",null,null,null,null,null,null,null,null,{"$f":"IF(OR(Résultats!$O10=\"\",Résultats!$O10=\"Incomplet\"),\"\",Résultats!$O10)","v":""},null,null,{"$f":"\"/\"","v":"/"},{"$f":"Résultats!$O$4","v":40},null,{"$f":"IF(OR(J219=\"\",J219=\"Absent(e)\",J219=\"Incomplet\"),\"\",J219/N219)","v":""}]
["Savoir-faire historiques",null,null,null,null,null,null,{"$f":"IF(OR(Résultats!$AY10=\"a\",Résultats!$AY10=\"A\",Résultats!$AY10=\"\"),\"\",Résultats!$AY10)","v":""},null,{"$f":"\"/\"","v":"/"},{"$f":"Résultats!$AY$2","v":18}]
["-  utiliser des repères du temps"]
["-  utiliser des représentations du temps"]
["-  lire une trace du passé"]
["-  exploiter des sources historiques (pas mobilisé)"]
["Savoirs historiques",null,null,null,null,null,null,{"$f":"IF(OR(Résultats!$BK10=\"Absent(e)\",Résultats!$BK10=\"Incomplet\"),\"\",Résultats!$BK10)","v":""},null,{"$f":"\"/\"","v":"/"},{"$f":"Résultats!$BK$2","v":22}]
["-  organisation du temps"]
["-  identifier et caractériser le mode de vie des gens à une époque déterminée"]
["-  mettre en évidence la nature d'une trace du passé"]
[]
[]
[]
[]
[""]
[]
["JUIN 2016   EDM"]
[]
[null,{"$f":"'Encodage réponses Es'!$B$1:$I$1","v":0}]
["Classe : ",{"$f":"'Encodage réponses Es'!$C$3","v":0}]
[{"$f":"CONCATENATE(\"Synthèse des résultats de l'élève : \",Résultats!$E11,\" \",Résultats!$F11)","v":"Synthèse des résultats de l'élève :  "},null,null,null,null,null,null,null,null,null,null,null,{"$f":"IF(Résultats!$J238=\"Absent(e)\",\"Absent(e)\",IF(Résultats!$J238=\"Incomplet\",\"Incomplet\",\"\"))","v":""}]
[]
["EDM",null,null,null,null,null,null,null,null,null,null,null,null,{"$f":"IF(OR(Résultats!$J11=\"Absent(e)\",Résultats!$J11=\"Incomplet\"),\"\",Résultats!$J11)","v":""},{"$f":"\"/\"","v":"/"},{"$f":"Résultats!$J$4","v":80}]
[]
[null,null,null,null,null,null,null,null,null,null,null,null,null,{"$f":"IF(N241=\"\",\"\",N241/P241)","v":""}]
[]
["Volet géographique",null,null,null,null,null,null,null,null,{"$f":"IF(Résultats!$M11=\"\",\"\",Résultats!$M11)","v":""},null,null,{"$f":"\"/\"","v":"/"},{"$f":"Résultats!$M$4","v":40},null,{"$f":"IF(OR(J245=\"\",J245=\"Absent(e)\",J245=\"Incomplet\"),\"\",J245/N245)","v":""}]
["Savoir-faire géographiques",null,null,null,null,null,null,{"$f":"IF(OR(Résultats!$AA11=\"Absent(e)\",Résultats!$AA11=\"Incomplet\"),\"\",Résultats!$AA11)","v":""},null,{"$f":"\"/\"","v":"/"},{"$f":"Résultats!$AA$2","v":19}]
["-  utiliser des repères spatiaux"]
["-  utiliser des représentations de l'espace"]
["-  localiser un lieu, un espace"]
["-  lire un paysage sur le terrain (pas mobilisé)"]
["-  lire une image géographique"]
["Savoirs géographiques",null,null,null,null,null,null,{"$f":"IF(OR(Résultats!$AN11=\"Absent(e)\",Résultats!$AN11=\"Incomplet\"),\"\",Résultats!$AN11)","v":""},null,{"$f":"\"/\"","v":"/"},{"$f":"Résultats!$AN$2","v":21}]
["-  identifier et caractériser les composantes du paysage"]
["-  identifier et caractériser des milieux naturels et leurs atouts et contraintes"]
["-  caractériser l'organisation de l'espace (fonctions, structurations et évolution)"]
["-  identifier des interactions hommes-espace"]
[]
["Volet historique",null,null,null,null,null,null,null,null,{"$f":"IF(OR(Résultats!$O11=\"\",Résultats!$O11=\"Incomplet\"),\"\",Résultats!$O11)","v":""},null,null,{"$f":"\"/\"","v":"/"},{"$f":"Résultats!$O$4","v":40},null,{"$f":"IF(OR(J258=\"\",J258=\"Absent(e)\",J258=\"Incomplet\"),\"\",J258/N258)","v":""}]
["Savoir-faire historiques",null,null,null,null,null,null,{"$f":"IF(OR(Résultats!$AY11=\"a\",Résultats!$AY11=\"A\",Résultats!$AY11=\"\"),\"\",Résultats!$AY11)","v":""},null,{"$f":"\"/\"","v":"/"},{"$f":"Résultats!$AY$2","v":18}]
["-  utiliser des repères du temps"]
["-  utiliser des représentations du temps"]
["-  lire une trace du passé"]
["-  exploiter des sources historiques (pas mobilisé)"]
["Savoirs historiques",null,null,null,null,null,null,{"$f":"IF(OR(Résultats!$BK11=\"Absent(e)\",Résultats!$BK11=\"Incomplet\"),\"\",Résultats!$BK11)","v":""},null,{"$f":"\"/\"","v":"/"},{"$f":"Résultats!$BK$2","v":22}]
["-  organisation du temps"]
["-  identifier et caractériser le mode de vie des gens à une époque déterminée"]
["-  mettre en évidence la nature d'une trace du passé"]
[]
[]
[]
[]
[""]
[]
["JUIN 2016   EDM"]
[]
[null,{"$f":"'Encodage réponses Es'!$B$1:$I$1","v":0}]
["Classe : ",{"$f":"'Encodage réponses Es'!$C$3","v":0}]
[{"$f":"CONCATENATE(\"Synthèse des résultats de l'élève : \",Résultats!$E12,\" \",Résultats!$F12)","v":"Synthèse des résultats de l'élève :  "},null,null,null,null,null,null,null,null,null,null,null,{"$f":"IF(Résultats!$J277=\"Absent(e)\",\"Absent(e)\",IF(Résultats!$J277=\"Incomplet\",\"Incomplet\",\"\"))","v":""}]
[]
["EDM",null,null,null,null,null,null,null,null,null,null,null,null,{"$f":"IF(OR(Résultats!$J12=\"Absent(e)\",Résultats!$J12=\"Incomplet\"),\"\",Résultats!$J12)","v":""},{"$f":"\"/\"","v":"/"},{"$f":"Résultats!$J$4","v":80}]
[]
[null,null,null,null,null,null,null,null,null,null,null,null,null,{"$f":"IF(N280=\"\",\"\",N280/P280)","v":""}]
[]
["Volet géographique",null,null,null,null,null,null,null,null,{"$f":"IF(Résultats!$M12=\"\",\"\",Résultats!$M12)","v":""},null,null,{"$f":"\"/\"","v":"/"},{"$f":"Résultats!$M$4","v":40},null,{"$f":"IF(OR(J284=\"\",J284=\"Absent(e)\",J284=\"Incomplet\"),\"\",J284/N284)","v":""}]
["Savoir-faire géographiques",null,null,null,null,null,null,{"$f":"IF(OR(Résultats!$AA12=\"Absent(e)\",Résultats!$AA12=\"Incomplet\"),\"\",Résultats!$AA12)","v":""},null,{"$f":"\"/\"","v":"/"},{"$f":"Résultats!$AA$2","v":19}]
["-  utiliser des repères spatiaux"]
["-  utiliser des représentations de l'espace"]
["-  localiser un lieu, un espace"]
["-  lire un paysage sur le terrain (pas mobilisé)"]
["-  lire une image géographique"]
["Savoirs géographiques",null,null,null,null,null,null,{"$f":"IF(OR(Résultats!$AN12=\"Absent(e)\",Résultats!$AN12=\"Incomplet\"),\"\",Résultats!$AN12)","v":""},null,{"$f":"\"/\"","v":"/"},{"$f":"Résultats!$AN$2","v":21}]
["-  identifier et caractériser les composantes du paysage"]
["-  identifier et caractériser des milieux naturels et leurs atouts et contraintes"]
["-  caractériser l'organisation de l'espace (fonctions, structurations et évolution)"]
["-  identifier des interactions hommes-espace"]
[]
["Volet historique",null,null,null,null,null,null,null,null,{"$f":"IF(OR(Résultats!$O12=\"\",Résultats!$O12=\"Incomplet\"),\"\",Résultats!$O12)","v":""},null,null,{"$f":"\"/\"","v":"/"},{"$f":"Résultats!$O$4","v":40},null,{"$f":"IF(OR(J297=\"\",J297=\"Absent(e)\",J297=\"Incomplet\"),\"\",J297/N297)","v":""}]
["Savoir-faire historiques",null,null,null,null,null,null,{"$f":"IF(OR(Résultats!$AY12=\"a\",Résultats!$AY12=\"A\",Résultats!$AY12=\"\"),\"\",Résultats!$AY12)","v":""},null,{"$f":"\"/\"","v":"/"},{"$f":"Résultats!$AY$2","v":18}]
["-  utiliser des repères du temps"]
["-  utiliser des représentations du temps"]
["-  lire une trace du passé"]
["-  exploiter des sources historiques (pas mobilisé)"]
["Savoirs historiques",null,null,null,null,null,null,{"$f":"IF(OR(Résultats!$BK12=\"Absent(e)\",Résultats!$BK12=\"Incomplet\"),\"\",Résultats!$BK12)","v":""},null,{"$f":"\"/\"","v":"/"},{"$f":"Résultats!$BK$2","v":22}]
["-  organisation du temps"]
["-  identifier et caractériser le mode de vie des gens à une époque déterminée"]
["-  mettre en évidence la nature d'une trace du passé"]
[]
[]
[]
[]
[""]
[]
["JUIN 2016   EDM"]
[]
[null,{"$f":"'Encodage réponses Es'!$B$1:$I$1","v":0}]
["Classe : ",{"$f":"'Encodage réponses Es'!$C$3","v":0}]
[{"$f":"CONCATENATE(\"Synthèse des résultats de l'élève : \",Résultats!$E13,\" \",Résultats!$F13)","v":"Synthèse des résultats de l'élève :  "},null,null,null,null,null,null,null,null,null,null,null,{"$f":"IF(Résultats!$J316=\"Absent(e)\",\"Absent(e)\",IF(Résultats!$J316=\"Incomplet\",\"Incomplet\",\"\"))","v":""}]
[]
["EDM",null,null,null,null,null,null,null,null,null,null,null,null,{"$f":"IF(OR(Résultats!$J13=\"Absent(e)\",Résultats!$J13=\"Incomplet\"),\"\",Résultats!$J13)","v":""},{"$f":"\"/\"","v":"/"},{"$f":"Résultats!$J$4","v":80}]
[]
[null,null,null,null,null,null,null,null,null,null,null,null,null,{"$f":"IF(N319=\"\",\"\",N319/P319)","v":""}]
[]
["Volet géographique",null,null,null,null,null,null,null,null,{"$f":"IF(Résultats!$M13=\"\",\"\",Résultats!$M13)","v":""},null,null,{"$f":"\"/\"","v":"/"},{"$f":"Résultats!$M$4","v":40},null,{"$f":"IF(OR(J323=\"\",J323=\"Absent(e)\",J323=\"Incomplet\"),\"\",J323/N323)","v":""}]
["Savoir-faire géographiques",null,null,null,null,null,null,{"$f":"IF(OR(Résultats!$AA13=\"Absent(e)\",Résultats!$AA13=\"Incomplet\"),\"\",Résultats!$AA13)","v":""},null,{"$f":"\"/\"","v":"/"},{"$f":"Résultats!$AA$2","v":19}]
["-  utiliser des repères spatiaux"]
["-  utiliser des représentations de l'espace"]
["-  localiser un lieu, un espace"]
["-  lire un paysage sur le terrain (pas mobilisé)"]
["-  lire une image géographique"]
["Savoirs géographiques",null,null,null,null,null,null,{"$f":"IF(OR(Résultats!$AN13=\"Absent(e)\",Résultats!$AN13=\"Incomplet\"),\"\",Résultats!$AN13)","v":""},null,{"$f":"\"/\"","v":"/"},{"$f":"Résultats!$AN$2","v":21}]
["-  identifier et caractériser les composantes du paysage"]
["-  identifier et caractériser des milieux naturels et leurs atouts et contraintes"]
["-  caractériser l'organisation de l'espace (fonctions, structurations et évolution)"]
["-  identifier des interactions hommes-espace"]
[]
["Volet historique",null,null,null,null,null,null,null,null,{"$f":"IF(OR(Résultats!$O13=\"\",Résultats!$O13=\"Incomplet\"),\"\",Résultats!$O13)","v":""},null,null,{"$f":"\"/\"","v":"/"},{"$f":"Résultats!$O$4","v":40},null,{"$f":"IF(OR(J336=\"\",J336=\"Absent(e)\",J336=\"Incomplet\"),\"\",J336/N336)","v":""}]
["Savoir-faire historiques",null,null,null,null,null,null,{"$f":"IF(OR(Résultats!$AY13=\"a\",Résultats!$AY13=\"A\",Résultats!$AY13=\"\"),\"\",Résultats!$AY13)","v":""},null,{"$f":"\"/\"","v":"/"},{"$f":"Résultats!$AY$2","v":18}]
["-  utiliser des repères du temps"]
["-  utiliser des représentations du temps"]
["-  lire une trace du passé"]
["-  exploiter des sources historiques (pas mobilisé)"]
["Savoirs historiques",null,null,null,null,null,null,{"$f":"IF(OR(Résultats!$BK13=\"Absent(e)\",Résultats!$BK13=\"Incomplet\"),\"\",Résultats!$BK13)","v":""},null,{"$f":"\"/\"","v":"/"},{"$f":"Résultats!$BK$2","v":22}]
["-  organisation du temps"]
["-  identifier et caractériser le mode de vie des gens à une époque déterminée"]
["-  mettre en évidence la nature d'une trace du passé"]
[]
[]
[]
[]
[""]
[]
["JUIN 2016   EDM"]
[]
[null,{"$f":"'Encodage réponses Es'!$B$1:$I$1","v":0}]
["Classe : ",{"$f":"'Encodage réponses Es'!$C$3","v":0}]
[{"$f":"CONCATENATE(\"Synthèse des résultats de l'élève : \",Résultats!$E14,\" \",Résultats!$F14)","v":"Synthèse des résultats de l'élève :  "},null,null,null,null,null,null,null,null,null,null,null,{"$f":"IF(Résultats!$J355=\"Absent(e)\",\"Absent(e)\",IF(Résultats!$J355=\"Incomplet\",\"Incomplet\",\"\"))","v":""}]
[]
["EDM",null,null,null,null,null,null,null,null,null,null,null,null,{"$f":"IF(OR(Résultats!$J14=\"Absent(e)\",Résultats!$J14=\"Incomplet\"),\"\",Résultats!$J14)","v":""},{"$f":"\"/\"","v":"/"},{"$f":"Résultats!$J$4","v":80}]
[]
[null,null,null,null,null,null,null,null,null,null,null,null,null,{"$f":"IF(N358=\"\",\"\",N358/P358)","v":""}]
[]
["Volet géographique",null,null,null,null,null,null,null,null,{"$f":"IF(Résultats!$M14=\"\",\"\",Résultats!$M14)","v":""},null,null,{"$f":"\"/\"","v":"/"},{"$f":"Résultats!$M$4","v":40},null,{"$f":"IF(OR(J362=\"\",J362=\"Absent(e)\",J362=\"Incomplet\"),\"\",J362/N362)","v":""}]
["Savoir-faire géographiques",null,null,null,null,null,null,{"$f":"IF(OR(Résultats!$AA14=\"Absent(e)\",Résultats!$AA14=\"Incomplet\"),\"\",Résultats!$AA14)","v":""},null,{"$f":"\"/\"","v":"/"},{"$f":"Résultats!$AA$2","v":19}]
["-  utiliser des repères spatiaux"]
["-  utiliser des représentations de l'espace"]
["-  localiser un lieu, un espace"]
["-  lire un paysage sur le terrain (pas mobilisé)"]
["-  lire une image géographique"]
["Savoirs géographiques",null,null,null,null,null,null,{"$f":"IF(OR(Résultats!$AN14=\"Absent(e)\",Résultats!$AN14=\"Incomplet\"),\"\",Résultats!$AN14)","v":""},null,{"$f":"\"/\"","v":"/"},{"$f":"Résultats!$AN$2","v":21}]
["-  identifier et caractériser les composantes du paysage"]
["-  identifier et caractériser des milieux naturels et leurs atouts et contraintes"]
["-  caractériser l'organisation de l'espace (fonctions, structurations et évolution)"]
["-  identifier des interactions hommes-espace"]
[]
["Volet historique",null,null,null,null,null,null,null,null,{"$f":"IF(OR(Résultats!$O14=\"\",Résultats!$O14=\"Incomplet\"),\"\",Résultats!$O14)","v":""},null,null,{"$f":"\"/\"","v":"/"},{"$f":"Résultats!$O$4","v":40},null,{"$f":"IF(OR(J375=\"\",J375=\"Absent(e)\",J375=\"Incomplet\"),\"\",J375/N375)","v":""}]
["Savoir-faire historiques",null,null,null,null,null,null,{"$f":"IF(OR(Résultats!$AY14=\"a\",Résultats!$AY14=\"A\",Résultats!$AY14=\"\"),\"\",Résultats!$AY14)","v":""},null,{"$f":"\"/\"","v":"/"},{"$f":"Résultats!$AY$2","v":18}]
["-  utiliser des repères du temps"]
["-  utiliser des représentations du temps"]
["-  lire une trace du passé"]
["-  exploiter des sources historiques (pas mobilisé)"]
["Savoirs historiques",null,null,null,null,null,null,{"$f":"IF(OR(Résultats!$BK14=\"Absent(e)\",Résultats!$BK14=\"Incomplet\"),\"\",Résultats!$BK14)","v":""},null,{"$f":"\"/\"","v":"/"},{"$f":"Résultats!$BK$2","v":22}]
["-  organisation du temps"]
["-  identifier et caractériser le mode de vie des gens à une époque déterminée"]
["-  mettre en évidence la nature d'une trace du passé"]
[]
[]
[]
[]
[""]
[]
["JUIN 2016   EDM"]
[]
[null,{"$f":"'Encodage réponses Es'!$B$1:$I$1","v":0}]
["Classe : ",{"$f":"'Encodage réponses Es'!$C$3","v":0}]
[{"$f":"CONCATENATE(\"Synthèse des résultats de l'élève : \",Résultats!$E15,\" \",Résultats!$F15)","v":"Synthèse des résultats de l'élève :  "},null,null,null,null,null,null,null,null,null,null,null,{"$f":"IF(Résultats!$J394=\"Absent(e)\",\"Absent(e)\",IF(Résultats!$J394=\"Incomplet\",\"Incomplet\",\"\"))","v":""}]
[]
["EDM",null,null,null,null,null,null,null,null,null,null,null,null,{"$f":"IF(OR(Résultats!$J15=\"Absent(e)\",Résultats!$J15=\"Incomplet\"),\"\",Résultats!$J15)","v":""},{"$f":"\"/\"","v":"/"},{"$f":"Résultats!$J$4","v":80}]
[]
[null,null,null,null,null,null,null,null,null,null,null,null,null,{"$f":"IF(N397=\"\",\"\",N397/P397)","v":""}]
[]
["Volet géographique",null,null,null,null,null,null,null,null,{"$f":"IF(Résultats!$M15=\"\",\"\",Résultats!$M15)","v":""},null,null,{"$f":"\"/\"","v":"/"},{"$f":"Résultats!$M$4","v":40},null,{"$f":"IF(OR(J401=\"\",J401=\"Absent(e)\",J401=\"Incomplet\"),\"\",J401/N401)","v":""}]
["Savoir-faire géographiques",null,null,null,null,null,null,{"$f":"IF(OR(Résultats!$AA15=\"Absent(e)\",Résultats!$AA15=\"Incomplet\"),\"\",Résultats!$AA15)","v":""},null,{"$f":"\"/\"","v":"/"},{"$f":"Résultats!$AA$2","v":19}]
["-  utiliser des repères spatiaux"]
["-  utiliser des représentations de l'espace"]
["-  localiser un lieu, un espace"]
["-  lire un paysage sur le terrain (pas mobilisé)"]
["-  lire une image géographique"]
["Savoirs géographiques",null,null,null,null,null,null,{"$f":"IF(OR(Résultats!$AN15=\"Absent(e)\",Résultats!$AN15=\"Incomplet\"),\"\",Résultats!$AN15)","v":""},null,{"$f":"\"/\"","v":"/"},{"$f":"Résultats!$AN$2","v":21}]
["-  identifier et caractériser les composantes du paysage"]
["-  identifier et caractériser des milieux naturels et leurs atouts et contraintes"]
["-  caractériser l'organisation de l'espace (fonctions, structurations et évolution)"]
["-  identifier des interactions hommes-espace"]
[]
["Volet historique",null,null,null,null,null,null,null,null,{"$f":"IF(OR(Résultats!$O15=\"\",Résultats!$O15=\"Incomplet\"),\"\",Résultats!$O15)","v":""},null,null,{"$f":"\"/\"","v":"/"},{"$f":"Résultats!$O$4","v":40},null,{"$f":"IF(OR(J414=\"\",J414=\"Absent(e)\",J414=\"Incomplet\"),\"\",J414/N414)","v":""}]
["Savoir-faire historiques",null,null,null,null,null,null,{"$f":"IF(OR(Résultats!$AY15=\"a\",Résultats!$AY15=\"A\",Résultats!$AY15=\"\"),\"\",Résultats!$AY15)","v":""},null,{"$f":"\"/\"","v":"/"},{"$f":"Résultats!$AY$2","v":18}]
["-  utiliser des repères du temps"]
["-  utiliser des représentations du temps"]
["-  lire une trace du passé"]
["-  exploiter des sources historiques (pas mobilisé)"]
["Savoirs historiques",null,null,null,null,null,null,{"$f":"IF(OR(Résultats!$BK15=\"Absent(e)\",Résultats!$BK15=\"Incomplet\"),\"\",Résultats!$BK15)","v":""},null,{"$f":"\"/\"","v":"/"},{"$f":"Résultats!$BK$2","v":22}]
["-  organisation du temps"]
["-  identifier et caractériser le mode de vie des gens à une époque déterminée"]
["-  mettre en évidence la nature d'une trace du passé"]
[]
[]
[]
[]
[""]
[]
["JUIN 2016   EDM"]
[]
[null,{"$f":"'Encodage réponses Es'!$B$1:$I$1","v":0}]
["Classe : ",{"$f":"'Encodage réponses Es'!$C$3","v":0}]
[{"$f":"CONCATENATE(\"Synthèse des résultats de l'élève : \",Résultats!$E16,\" \",Résultats!$F16)","v":"Synthèse des résultats de l'élève :  "},null,null,null,null,null,null,null,null,null,null,null,{"$f":"IF(Résultats!$J433=\"Absent(e)\",\"Absent(e)\",IF(Résultats!$J433=\"Incomplet\",\"Incomplet\",\"\"))","v":""}]
[]
["EDM",null,null,null,null,null,null,null,null,null,null,null,null,{"$f":"IF(OR(Résultats!$J16=\"Absent(e)\",Résultats!$J16=\"Incomplet\"),\"\",Résultats!$J16)","v":""},{"$f":"\"/\"","v":"/"},{"$f":"Résultats!$J$4","v":80}]
[]
[null,null,null,null,null,null,null,null,null,null,null,null,null,{"$f":"IF(N436=\"\",\"\",N436/P436)","v":""}]
[]
["Volet géographique",null,null,null,null,null,null,null,null,{"$f":"IF(Résultats!$M16=\"\",\"\",Résultats!$M16)","v":""},null,null,{"$f":"\"/\"","v":"/"},{"$f":"Résultats!$M$4","v":40},null,{"$f":"IF(OR(J440=\"\",J440=\"Absent(e)\",J440=\"Incomplet\"),\"\",J440/N440)","v":""}]
["Savoir-faire géographiques",null,null,null,null,null,null,{"$f":"IF(OR(Résultats!$AA16=\"Absent(e)\",Résultats!$AA16=\"Incomplet\"),\"\",Résultats!$AA16)","v":""},null,{"$f":"\"/\"","v":"/"},{"$f":"Résultats!$AA$2","v":19}]
["-  utiliser des repères spatiaux"]
["-  utiliser des représentations de l'espace"]
["-  localiser un lieu, un espace"]
["-  lire un paysage sur le terrain (pas mobilisé)"]
["-  lire une image géographique"]
["Savoirs géographiques",null,null,null,null,null,null,{"$f":"IF(OR(Résultats!$AN16=\"Absent(e)\",Résultats!$AN16=\"Incomplet\"),\"\",Résultats!$AN16)","v":""},null,{"$f":"\"/\"","v":"/"},{"$f":"Résultats!$AN$2","v":21}]
["-  identifier et caractériser les composantes du paysage"]
["-  identifier et caractériser des milieux naturels et leurs atouts et contraintes"]
["-  caractériser l'organisation de l'espace (fonctions, structurations et évolution)"]
["-  identifier des interactions hommes-espace"]
[]
["Volet historique",null,null,null,null,null,null,null,null,{"$f":"IF(OR(Résultats!$O16=\"\",Résultats!$O16=\"Incomplet\"),\"\",Résultats!$O16)","v":""},null,null,{"$f":"\"/\"","v":"/"},{"$f":"Résultats!$O$4","v":40},null,{"$f":"IF(OR(J453=\"\",J453=\"Absent(e)\",J453=\"Incomplet\"),\"\",J453/N453)","v":""}]
["Savoir-faire historiques",null,null,null,null,null,null,{"$f":"IF(OR(Résultats!$AY16=\"a\",Résultats!$AY16=\"A\",Résultats!$AY16=\"\"),\"\",Résultats!$AY16)","v":""},null,{"$f":"\"/\"","v":"/"},{"$f":"Résultats!$AY$2","v":18}]
["-  utiliser des repères du temps"]
["-  utiliser des représentations du temps"]
["-  lire une trace du passé"]
["-  exploiter des sources historiques (pas mobilisé)"]
["Savoirs historiques",null,null,null,null,null,null,{"$f":"IF(OR(Résultats!$BK16=\"Absent(e)\",Résultats!$BK16=\"Incomplet\"),\"\",Résultats!$BK16)","v":""},null,{"$f":"\"/\"","v":"/"},{"$f":"Résultats!$BK$2","v":22}]
["-  organisation du temps"]
["-  identifier et caractériser le mode de vie des gens à une époque déterminée"]
["-  mettre en évidence la nature d'une trace du passé"]
[]
[]
[]
[]
[""]
[]
["JUIN 2016   EDM"]
[]
[null,{"$f":"'Encodage réponses Es'!$B$1:$I$1","v":0}]
["Classe : ",{"$f":"'Encodage réponses Es'!$C$3","v":0}]
[{"$f":"CONCATENATE(\"Synthèse des résultats de l'élève : \",Résultats!$E17,\" \",Résultats!$F17)","v":"Synthèse des résultats de l'élève :  "},null,null,null,null,null,null,null,null,null,null,null,{"$f":"IF(Résultats!$J472=\"Absent(e)\",\"Absent(e)\",IF(Résultats!$J472=\"Incomplet\",\"Incomplet\",\"\"))","v":""}]
[]
["EDM",null,null,null,null,null,null,null,null,null,null,null,null,{"$f":"IF(OR(Résultats!$J17=\"Absent(e)\",Résultats!$J17=\"Incomplet\"),\"\",Résultats!$J17)","v":""},{"$f":"\"/\"","v":"/"},{"$f":"Résultats!$J$4","v":80}]
[]
[null,null,null,null,null,null,null,null,null,null,null,null,null,{"$f":"IF(N475=\"\",\"\",N475/P475)","v":""}]
[]
["Volet géographique",null,null,null,null,null,null,null,null,{"$f":"IF(Résultats!$M17=\"\",\"\",Résultats!$M17)","v":""},null,null,{"$f":"\"/\"","v":"/"},{"$f":"Résultats!$M$4","v":40},null,{"$f":"IF(OR(J479=\"\",J479=\"Absent(e)\",J479=\"Incomplet\"),\"\",J479/N479)","v":""}]
["Savoir-faire géographiques",null,null,null,null,null,null,{"$f":"IF(OR(Résultats!$AA17=\"Absent(e)\",Résultats!$AA17=\"Incomplet\"),\"\",Résultats!$AA17)","v":""},null,{"$f":"\"/\"","v":"/"},{"$f":"Résultats!$AA$2","v":19}]
["-  utiliser des repères spatiaux"]
["-  utiliser des représentations de l'espace"]
["-  localiser un lieu, un espace"]
["-  lire un paysage sur le terrain (pas mobilisé)"]
["-  lire une image géographique"]
["Savoirs géographiques",null,null,null,null,null,null,{"$f":"IF(OR(Résultats!$AN17=\"Absent(e)\",Résultats!$AN17=\"Incomplet\"),\"\",Résultats!$AN17)","v":""},null,{"$f":"\"/\"","v":"/"},{"$f":"Résultats!$AN$2","v":21}]
["-  identifier et caractériser les composantes du paysage"]
["-  identifier et caractériser des milieux naturels et leurs atouts et contraintes"]
["-  caractériser l'organisation de l'espace (fonctions, structurations et évolution)"]
["-  identifier des interactions hommes-espace"]
[]
["Volet historique",null,null,null,null,null,null,null,null,{"$f":"IF(OR(Résultats!$O17=\"\",Résultats!$O17=\"Incomplet\"),\"\",Résultats!$O17)","v":""},null,null,{"$f":"\"/\"","v":"/"},{"$f":"Résultats!$O$4","v":40},null,{"$f":"IF(OR(J492=\"\",J492=\"Absent(e)\",J492=\"Incomplet\"),\"\",J492/N492)","v":""}]
["Savoir-faire historiques",null,null,null,null,null,null,{"$f":"IF(OR(Résultats!$AY17=\"a\",Résultats!$AY17=\"A\",Résultats!$AY17=\"\"),\"\",Résultats!$AY17)","v":""},null,{"$f":"\"/\"","v":"/"},{"$f":"Résultats!$AY$2","v":18}]
["-  utiliser des repères du temps"]
["-  utiliser des représentations du temps"]
["-  lire une trace du passé"]
["-  exploiter des sources historiques (pas mobilisé)"]
["Savoirs historiques",null,null,null,null,null,null,{"$f":"IF(OR(Résultats!$BK17=\"Absent(e)\",Résultats!$BK17=\"Incomplet\"),\"\",Résultats!$BK17)","v":""},null,{"$f":"\"/\"","v":"/"},{"$f":"Résultats!$BK$2","v":22}]
["-  organisation du temps"]
["-  identifier et caractériser le mode de vie des gens à une époque déterminée"]
["-  mettre en évidence la nature d'une trace du passé"]
[]
[]
[]
[]
[""]
[]
["JUIN 2016   EDM"]
[]
[null,{"$f":"'Encodage réponses Es'!$B$1:$I$1","v":0}]
["Classe : ",{"$f":"'Encodage réponses Es'!$C$3","v":0}]
[{"$f":"CONCATENATE(\"Synthèse des résultats de l'élève : \",Résultats!$E18,\" \",Résultats!$F18)","v":"Synthèse des résultats de l'élève :  "},null,null,null,null,null,null,null,null,null,null,null,{"$f":"IF(Résultats!$J511=\"Absent(e)\",\"Absent(e)\",IF(Résultats!$J511=\"Incomplet\",\"Incomplet\",\"\"))","v":""}]
[]
["EDM",null,null,null,null,null,null,null,null,null,null,null,null,{"$f":"IF(OR(Résultats!$J18=\"Absent(e)\",Résultats!$J18=\"Incomplet\"),\"\",Résultats!$J18)","v":""},{"$f":"\"/\"","v":"/"},{"$f":"Résultats!$J$4","v":80}]
[]
[null,null,null,null,null,null,null,null,null,null,null,null,null,{"$f":"IF(N514=\"\",\"\",N514/P514)","v":""}]
[]
["Volet géographique",null,null,null,null,null,null,null,null,{"$f":"IF(Résultats!$M18=\"\",\"\",Résultats!$M18)","v":""},null,null,{"$f":"\"/\"","v":"/"},{"$f":"Résultats!$M$4","v":40},null,{"$f":"IF(OR(J518=\"\",J518=\"Absent(e)\",J518=\"Incomplet\"),\"\",J518/N518)","v":""}]
["Savoir-faire géographiques",null,null,null,null,null,null,{"$f":"IF(OR(Résultats!$AA18=\"Absent(e)\",Résultats!$AA18=\"Incomplet\"),\"\",Résultats!$AA18)","v":""},null,{"$f":"\"/\"","v":"/"},{"$f":"Résultats!$AA$2","v":19}]
["-  utiliser des repères spatiaux"]
["-  utiliser des représentations de l'espace"]
["-  localiser un lieu, un espace"]
["-  lire un paysage sur le terrain (pas mobilisé)"]
["-  lire une image géographique"]
["Savoirs géographiques",null,null,null,null,null,null,{"$f":"IF(OR(Résultats!$AN18=\"Absent(e)\",Résultats!$AN18=\"Incomplet\"),\"\",Résultats!$AN18)","v":""},null,{"$f":"\"/\"","v":"/"},{"$f":"Résultats!$AN$2","v":21}]
["-  identifier et caractériser les composantes du paysage"]
["-  identifier et caractériser des milieux naturels et leurs atouts et contraintes"]
["-  caractériser l'organisation de l'espace (fonctions, structurations et évolution)"]
["-  identifier des interactions hommes-espace"]
[]
["Volet historique",null,null,null,null,null,null,null,null,{"$f":"IF(OR(Résultats!$O18=\"\",Résultats!$O18=\"Incomplet\"),\"\",Résultats!$O18)","v":""},null,null,{"$f":"\"/\"","v":"/"},{"$f":"Résultats!$O$4","v":40},null,{"$f":"IF(OR(J531=\"\",J531=\"Absent(e)\",J531=\"Incomplet\"),\"\",J531/N531)","v":""}]
["Savoir-faire historiques",null,null,null,null,null,null,{"$f":"IF(OR(Résultats!$AY18=\"a\",Résultats!$AY18=\"A\",Résultats!$AY18=\"\"),\"\",Résultats!$AY18)","v":""},null,{"$f":"\"/\"","v":"/"},{"$f":"Résultats!$AY$2","v":18}]
["-  utiliser des repères du temps"]
["-  utiliser des représentations du temps"]
["-  lire une trace du passé"]
["-  exploiter des sources historiques (pas mobilisé)"]
["Savoirs historiques",null,null,null,null,null,null,{"$f":"IF(OR(Résultats!$BK18=\"Absent(e)\",Résultats!$BK18=\"Incomplet\"),\"\",Résultats!$BK18)","v":""},null,{"$f":"\"/\"","v":"/"},{"$f":"Résultats!$BK$2","v":22}]
["-  organisation du temps"]
["-  identifier et caractériser le mode de vie des gens à une époque déterminée"]
["-  mettre en évidence la nature d'une trace du passé"]
[]
[]
[]
[]
[""]
[]
["JUIN 2016   EDM"]
[]
[null,{"$f":"'Encodage réponses Es'!$B$1:$I$1","v":0}]
["Classe : ",{"$f":"'Encodage réponses Es'!$C$3","v":0}]
[{"$f":"CONCATENATE(\"Synthèse des résultats de l'élève : \",Résultats!$E19,\" \",Résultats!$F19)","v":"Synthèse des résultats de l'élève :  "},null,null,null,null,null,null,null,null,null,null,null,{"$f":"IF(Résultats!$J550=\"Absent(e)\",\"Absent(e)\",IF(Résultats!$J550=\"Incomplet\",\"Incomplet\",\"\"))","v":""}]
[]
["EDM",null,null,null,null,null,null,null,null,null,null,null,null,{"$f":"IF(OR(Résultats!$J19=\"Absent(e)\",Résultats!$J19=\"Incomplet\"),\"\",Résultats!$J19)","v":""},{"$f":"\"/\"","v":"/"},{"$f":"Résultats!$J$4","v":80}]
[]
[null,null,null,null,null,null,null,null,null,null,null,null,null,{"$f":"IF(N553=\"\",\"\",N553/P553)","v":""}]
[]
["Volet géographique",null,null,null,null,null,null,null,null,{"$f":"IF(Résultats!$M19=\"\",\"\",Résultats!$M19)","v":""},null,null,{"$f":"\"/\"","v":"/"},{"$f":"Résultats!$M$4","v":40},null,{"$f":"IF(OR(J557=\"\",J557=\"Absent(e)\",J557=\"Incomplet\"),\"\",J557/N557)","v":""}]
["Savoir-faire géographiques",null,null,null,null,null,null,{"$f":"IF(OR(Résultats!$AA19=\"Absent(e)\",Résultats!$AA19=\"Incomplet\"),\"\",Résultats!$AA19)","v":""},null,{"$f":"\"/\"","v":"/"},{"$f":"Résultats!$AA$2","v":19}]
["-  utiliser des repères spatiaux"]
["-  utiliser des représentations de l'espace"]
["-  localiser un lieu, un espace"]
["-  lire un paysage sur le terrain (pas mobilisé)"]
["-  lire une image géographique"]
["Savoirs géographiques",null,null,null,null,null,null,{"$f":"IF(OR(Résultats!$AN19=\"Absent(e)\",Résultats!$AN19=\"Incomplet\"),\"\",Résultats!$AN19)","v":""},null,{"$f":"\"/\"","v":"/"},{"$f":"Résultats!$AN$2","v":21}]
["-  identifier et caractériser les composantes du paysage"]
["-  identifier et caractériser des milieux naturels et leurs atouts et contraintes"]
["-  caractériser l'organisation de l'espace (fonctions, structurations et évolution)"]
["-  identifier des interactions hommes-espace"]
[]
["Volet historique",null,null,null,null,null,null,null,null,{"$f":"IF(OR(Résultats!$O19=\"\",Résultats!$O19=\"Incomplet\"),\"\",Résultats!$O19)","v":""},null,null,{"$f":"\"/\"","v":"/"},{"$f":"Résultats!$O$4","v":40},null,{"$f":"IF(OR(J570=\"\",J570=\"Absent(e)\",J570=\"Incomplet\"),\"\",J570/N570)","v":""}]
["Savoir-faire historiques",null,null,null,null,null,null,{"$f":"IF(OR(Résultats!$AY19=\"a\",Résultats!$AY19=\"A\",Résultats!$AY19=\"\"),\"\",Résultats!$AY19)","v":""},null,{"$f":"\"/\"","v":"/"},{"$f":"Résultats!$AY$2","v":18}]
["-  utiliser des repères du temps"]
["-  utiliser des représentations du temps"]
["-  lire une trace du passé"]
["-  exploiter des sources historiques (pas mobilisé)"]
["Savoirs historiques",null,null,null,null,null,null,{"$f":"IF(OR(Résultats!$BK19=\"Absent(e)\",Résultats!$BK19=\"Incomplet\"),\"\",Résultats!$BK19)","v":""},null,{"$f":"\"/\"","v":"/"},{"$f":"Résultats!$BK$2","v":22}]
["-  organisation du temps"]
["-  identifier et caractériser le mode de vie des gens à une époque déterminée"]
["-  mettre en évidence la nature d'une trace du passé"]
[]
[]
[]
[]
[""]
[]
["JUIN 2016   EDM"]
[]
[null,{"$f":"'Encodage réponses Es'!$B$1:$I$1","v":0}]
["Classe : ",{"$f":"'Encodage réponses Es'!$C$3","v":0}]
[{"$f":"CONCATENATE(\"Synthèse des résultats de l'élève : \",Résultats!$E20,\" \",Résultats!$F20)","v":"Synthèse des résultats de l'élève :  "},null,null,null,null,null,null,null,null,null,null,null,{"$f":"IF(Résultats!$J589=\"Absent(e)\",\"Absent(e)\",IF(Résultats!$J589=\"Incomplet\",\"Incomplet\",\"\"))","v":""}]
[]
["EDM",null,null,null,null,null,null,null,null,null,null,null,null,{"$f":"IF(OR(Résultats!$J20=\"Absent(e)\",Résultats!$J20=\"Incomplet\"),\"\",Résultats!$J20)","v":""},{"$f":"\"/\"","v":"/"},{"$f":"Résultats!$J$4","v":80}]
[]
[null,null,null,null,null,null,null,null,null,null,null,null,null,{"$f":"IF(N592=\"\",\"\",N592/P592)","v":""}]
[]
["Volet géographique",null,null,null,null,null,null,null,null,{"$f":"IF(Résultats!$M20=\"\",\"\",Résultats!$M20)","v":""},null,null,{"$f":"\"/\"","v":"/"},{"$f":"Résultats!$M$4","v":40},null,{"$f":"IF(OR(J596=\"\",J596=\"Absent(e)\",J596=\"Incomplet\"),\"\",J596/N596)","v":""}]
["Savoir-faire géographiques",null,null,null,null,null,null,{"$f":"IF(OR(Résultats!$AA20=\"Absent(e)\",Résultats!$AA20=\"Incomplet\"),\"\",Résultats!$AA20)","v":""},null,{"$f":"\"/\"","v":"/"},{"$f":"Résultats!$AA$2","v":19}]
["-  utiliser des repères spatiaux"]
["-  utiliser des représentations de l'espace"]
["-  localiser un lieu, un espace"]
["-  lire un paysage sur le terrain (pas mobilisé)"]
["-  lire une image géographique"]
["Savoirs géographiques",null,null,null,null,null,null,{"$f":"IF(OR(Résultats!$AN20=\"Absent(e)\",Résultats!$AN20=\"Incomplet\"),\"\",Résultats!$AN20)","v":""},null,{"$f":"\"/\"","v":"/"},{"$f":"Résultats!$AN$2","v":21}]
["-  identifier et caractériser les composantes du paysage"]
["-  identifier et caractériser des milieux naturels et leurs atouts et contraintes"]
["-  caractériser l'organisation de l'espace (fonctions, structurations et évolution)"]
["-  identifier des interactions hommes-espace"]
[]
["Volet historique",null,null,null,null,null,null,null,null,{"$f":"IF(OR(Résultats!$O20=\"\",Résultats!$O20=\"Incomplet\"),\"\",Résultats!$O20)","v":""},null,null,{"$f":"\"/\"","v":"/"},{"$f":"Résultats!$O$4","v":40},null,{"$f":"IF(OR(J609=\"\",J609=\"Absent(e)\",J609=\"Incomplet\"),\"\",J609/N609)","v":""}]
["Savoir-faire historiques",null,null,null,null,null,null,{"$f":"IF(OR(Résultats!$AY20=\"a\",Résultats!$AY20=\"A\",Résultats!$AY20=\"\"),\"\",Résultats!$AY20)","v":""},null,{"$f":"\"/\"","v":"/"},{"$f":"Résultats!$AY$2","v":18}]
["-  utiliser des repères du temps"]
["-  utiliser des représentations du temps"]
["-  lire une trace du passé"]
["-  exploiter des sources historiques (pas mobilisé)"]
["Savoirs historiques",null,null,null,null,null,null,{"$f":"IF(OR(Résultats!$BK20=\"Absent(e)\",Résultats!$BK20=\"Incomplet\"),\"\",Résultats!$BK20)","v":""},null,{"$f":"\"/\"","v":"/"},{"$f":"Résultats!$BK$2","v":22}]
["-  organisation du temps"]
["-  identifier et caractériser le mode de vie des gens à une époque déterminée"]
["-  mettre en évidence la nature d'une trace du passé"]
[]
[]
[]
[]
[""]
[]
["JUIN 2016   EDM"]
[]
[null,{"$f":"'Encodage réponses Es'!$B$1:$I$1","v":0}]
["Classe : ",{"$f":"'Encodage réponses Es'!$C$3","v":0}]
[{"$f":"CONCATENATE(\"Synthèse des résultats de l'élève : \",Résultats!$E21,\" \",Résultats!$F21)","v":"Synthèse des résultats de l'élève :  "},null,null,null,null,null,null,null,null,null,null,null,{"$f":"IF(Résultats!$J628=\"Absent(e)\",\"Absent(e)\",IF(Résultats!$J628=\"Incomplet\",\"Incomplet\",\"\"))","v":""}]
[]
["EDM",null,null,null,null,null,null,null,null,null,null,null,null,{"$f":"IF(OR(Résultats!$J21=\"Absent(e)\",Résultats!$J21=\"Incomplet\"),\"\",Résultats!$J21)","v":""},{"$f":"\"/\"","v":"/"},{"$f":"Résultats!$J$4","v":80}]
[]
[null,null,null,null,null,null,null,null,null,null,null,null,null,{"$f":"IF(N631=\"\",\"\",N631/P631)","v":""}]
[]
["Volet géographique",null,null,null,null,null,null,null,null,{"$f":"IF(Résultats!$M21=\"\",\"\",Résultats!$M21)","v":""},null,null,{"$f":"\"/\"","v":"/"},{"$f":"Résultats!$M$4","v":40},null,{"$f":"IF(OR(J635=\"\",J635=\"Absent(e)\",J635=\"Incomplet\"),\"\",J635/N635)","v":""}]
["Savoir-faire géographiques",null,null,null,null,null,null,{"$f":"IF(OR(Résultats!$AA21=\"Absent(e)\",Résultats!$AA21=\"Incomplet\"),\"\",Résultats!$AA21)","v":""},null,{"$f":"\"/\"","v":"/"},{"$f":"Résultats!$AA$2","v":19}]
["-  utiliser des repères spatiaux"]
["-  utiliser des représentations de l'espace"]
["-  localiser un lieu, un espace"]
["-  lire un paysage sur le terrain (pas mobilisé)"]
["-  lire une image géographique"]
["Savoirs géographiques",null,null,null,null,null,null,{"$f":"IF(OR(Résultats!$AN21=\"Absent(e)\",Résultats!$AN21=\"Incomplet\"),\"\",Résultats!$AN21)","v":""},null,{"$f":"\"/\"","v":"/"},{"$f":"Résultats!$AN$2","v":21}]
["-  identifier et caractériser les composantes du paysage"]
["-  identifier et caractériser des milieux naturels et leurs atouts et contraintes"]
["-  caractériser l'organisation de l'espace (fonctions, structurations et évolution)"]
["-  identifier des interactions hommes-espace"]
[]
["Volet historique",null,null,null,null,null,null,null,null,{"$f":"IF(OR(Résultats!$O21=\"\",Résultats!$O21=\"Incomplet\"),\"\",Résultats!$O21)","v":""},null,null,{"$f":"\"/\"","v":"/"},{"$f":"Résultats!$O$4","v":40},null,{"$f":"IF(OR(J648=\"\",J648=\"Absent(e)\",J648=\"Incomplet\"),\"\",J648/N648)","v":""}]
["Savoir-faire historiques",null,null,null,null,null,null,{"$f":"IF(OR(Résultats!$AY21=\"a\",Résultats!$AY21=\"A\",Résultats!$AY21=\"\"),\"\",Résultats!$AY21)","v":""},null,{"$f":"\"/\"","v":"/"},{"$f":"Résultats!$AY$2","v":18}]
["-  utiliser des repères du temps"]
["-  utiliser des représentations du temps"]
["-  lire une trace du passé"]
["-  exploiter des sources historiques (pas mobilisé)"]
["Savoirs historiques",null,null,null,null,null,null,{"$f":"IF(OR(Résultats!$BK21=\"Absent(e)\",Résultats!$BK21=\"Incomplet\"),\"\",Résultats!$BK21)","v":""},null,{"$f":"\"/\"","v":"/"},{"$f":"Résultats!$BK$2","v":22}]
["-  organisation du temps"]
["-  identifier et caractériser le mode de vie des gens à une époque déterminée"]
["-  mettre en évidence la nature d'une trace du passé"]
[]
[]
[]
[]
[""]
[]
["JUIN 2016   EDM"]
[]
[null,{"$f":"'Encodage réponses Es'!$B$1:$I$1","v":0}]
["Classe : ",{"$f":"'Encodage réponses Es'!$C$3","v":0}]
[{"$f":"CONCATENATE(\"Synthèse des résultats de l'élève : \",Résultats!$E22,\" \",Résultats!$F22)","v":"Synthèse des résultats de l'élève :  "},null,null,null,null,null,null,null,null,null,null,null,{"$f":"IF(Résultats!$J667=\"Absent(e)\",\"Absent(e)\",IF(Résultats!$J667=\"Incomplet\",\"Incomplet\",\"\"))","v":""}]
[]
["EDM",null,null,null,null,null,null,null,null,null,null,null,null,{"$f":"IF(OR(Résultats!$J22=\"Absent(e)\",Résultats!$J22=\"Incomplet\"),\"\",Résultats!$J22)","v":""},{"$f":"\"/\"","v":"/"},{"$f":"Résultats!$J$4","v":80}]
[]
[null,null,null,null,null,null,null,null,null,null,null,null,null,{"$f":"IF(N670=\"\",\"\",N670/P670)","v":""}]
[]
["Volet géographique",null,null,null,null,null,null,null,null,{"$f":"IF(Résultats!$M22=\"\",\"\",Résultats!$M22)","v":""},null,null,{"$f":"\"/\"","v":"/"},{"$f":"Résultats!$M$4","v":40},null,{"$f":"IF(OR(J674=\"\",J674=\"Absent(e)\",J674=\"Incomplet\"),\"\",J674/N674)","v":""}]
["Savoir-faire géographiques",null,null,null,null,null,null,{"$f":"IF(OR(Résultats!$AA22=\"Absent(e)\",Résultats!$AA22=\"Incomplet\"),\"\",Résultats!$AA22)","v":""},null,{"$f":"\"/\"","v":"/"},{"$f":"Résultats!$AA$2","v":19}]
["-  utiliser des repères spatiaux"]
["-  utiliser des représentations de l'espace"]
["-  localiser un lieu, un espace"]
["-  lire un paysage sur le terrain (pas mobilisé)"]
["-  lire une image géographique"]
["Savoirs géographiques",null,null,null,null,null,null,{"$f":"IF(OR(Résultats!$AN22=\"Absent(e)\",Résultats!$AN22=\"Incomplet\"),\"\",Résultats!$AN22)","v":""},null,{"$f":"\"/\"","v":"/"},{"$f":"Résultats!$AN$2","v":21}]
["-  identifier et caractériser les composantes du paysage"]
["-  identifier et caractériser des milieux naturels et leurs atouts et contraintes"]
["-  caractériser l'organisation de l'espace (fonctions, structurations et évolution)"]
["-  identifier des interactions hommes-espace"]
[]
["Volet historique",null,null,null,null,null,null,null,null,{"$f":"IF(OR(Résultats!$O22=\"\",Résultats!$O22=\"Incomplet\"),\"\",Résultats!$O22)","v":""},null,null,{"$f":"\"/\"","v":"/"},{"$f":"Résultats!$O$4","v":40},null,{"$f":"IF(OR(J687=\"\",J687=\"Absent(e)\",J687=\"Incomplet\"),\"\",J687/N687)","v":""}]
["Savoir-faire historiques",null,null,null,null,null,null,{"$f":"IF(OR(Résultats!$AY22=\"a\",Résultats!$AY22=\"A\",Résultats!$AY22=\"\"),\"\",Résultats!$AY22)","v":""},null,{"$f":"\"/\"","v":"/"},{"$f":"Résultats!$AY$2","v":18}]
["-  utiliser des repères du temps"]
["-  utiliser des représentations du temps"]
["-  lire une trace du passé"]
["-  exploiter des sources historiques (pas mobilisé)"]
["Savoirs historiques",null,null,null,null,null,null,{"$f":"IF(OR(Résultats!$BK22=\"Absent(e)\",Résultats!$BK22=\"Incomplet\"),\"\",Résultats!$BK22)","v":""},null,{"$f":"\"/\"","v":"/"},{"$f":"Résultats!$BK$2","v":22}]
["-  organisation du temps"]
["-  identifier et caractériser le mode de vie des gens à une époque déterminée"]
["-  mettre en évidence la nature d'une trace du passé"]
[]
[]
[]
[]
[""]
[]
["JUIN 2016   EDM"]
[]
[null,{"$f":"'Encodage réponses Es'!$B$1:$I$1","v":0}]
["Classe : ",{"$f":"'Encodage réponses Es'!$C$3","v":0}]
[{"$f":"CONCATENATE(\"Synthèse des résultats de l'élève : \",Résultats!$E23,\" \",Résultats!$F23)","v":"Synthèse des résultats de l'élève :  "},null,null,null,null,null,null,null,null,null,null,null,{"$f":"IF(Résultats!$J706=\"Absent(e)\",\"Absent(e)\",IF(Résultats!$J706=\"Incomplet\",\"Incomplet\",\"\"))","v":""}]
[]
["EDM",null,null,null,null,null,null,null,null,null,null,null,null,{"$f":"IF(OR(Résultats!$J23=\"Absent(e)\",Résultats!$J23=\"Incomplet\"),\"\",Résultats!$J23)","v":""},{"$f":"\"/\"","v":"/"},{"$f":"Résultats!$J$4","v":80}]
[]
[null,null,null,null,null,null,null,null,null,null,null,null,null,{"$f":"IF(N709=\"\",\"\",N709/P709)","v":""}]
[]
["Volet géographique",null,null,null,null,null,null,null,null,{"$f":"IF(Résultats!$M23=\"\",\"\",Résultats!$M23)","v":""},null,null,{"$f":"\"/\"","v":"/"},{"$f":"Résultats!$M$4","v":40},null,{"$f":"IF(OR(J713=\"\",J713=\"Absent(e)\",J713=\"Incomplet\"),\"\",J713/N713)","v":""}]
["Savoir-faire géographiques",null,null,null,null,null,null,{"$f":"IF(OR(Résultats!$AA23=\"Absent(e)\",Résultats!$AA23=\"Incomplet\"),\"\",Résultats!$AA23)","v":""},null,{"$f":"\"/\"","v":"/"},{"$f":"Résultats!$AA$2","v":19}]
["-  utiliser des repères spatiaux"]
["-  utiliser des représentations de l'espace"]
["-  localiser un lieu, un espace"]
["-  lire un paysage sur le terrain (pas mobilisé)"]
["-  lire une image géographique"]
["Savoirs géographiques",null,null,null,null,null,null,{"$f":"IF(OR(Résultats!$AN23=\"Absent(e)\",Résultats!$AN23=\"Incomplet\"),\"\",Résultats!$AN23)","v":""},null,{"$f":"\"/\"","v":"/"},{"$f":"Résultats!$AN$2","v":21}]
["-  identifier et caractériser les composantes du paysage"]
["-  identifier et caractériser des milieux naturels et leurs atouts et contraintes"]
["-  caractériser l'organisation de l'espace (fonctions, structurations et évolution)"]
["-  identifier des interactions hommes-espace"]
[]
["Volet historique",null,null,null,null,null,null,null,null,{"$f":"IF(OR(Résultats!$O23=\"\",Résultats!$O23=\"Incomplet\"),\"\",Résultats!$O23)","v":""},null,null,{"$f":"\"/\"","v":"/"},{"$f":"Résultats!$O$4","v":40},null,{"$f":"IF(OR(J726=\"\",J726=\"Absent(e)\",J726=\"Incomplet\"),\"\",J726/N726)","v":""}]
["Savoir-faire historiques",null,null,null,null,null,null,{"$f":"IF(OR(Résultats!$AY23=\"a\",Résultats!$AY23=\"A\",Résultats!$AY23=\"\"),\"\",Résultats!$AY23)","v":""},null,{"$f":"\"/\"","v":"/"},{"$f":"Résultats!$AY$2","v":18}]
["-  utiliser des repères du temps"]
["-  utiliser des représentations du temps"]
["-  lire une trace du passé"]
["-  exploiter des sources historiques (pas mobilisé)"]
["Savoirs historiques",null,null,null,null,null,null,{"$f":"IF(OR(Résultats!$BK23=\"Absent(e)\",Résultats!$BK23=\"Incomplet\"),\"\",Résultats!$BK23)","v":""},null,{"$f":"\"/\"","v":"/"},{"$f":"Résultats!$BK$2","v":22}]
["-  organisation du temps"]
["-  identifier et caractériser le mode de vie des gens à une époque déterminée"]
["-  mettre en évidence la nature d'une trace du passé"]
[]
[]
[]
[]
[""]
[]
["JUIN 2016   EDM"]
[]
[null,{"$f":"'Encodage réponses Es'!$B$1:$I$1","v":0}]
["Classe : ",{"$f":"'Encodage réponses Es'!$C$3","v":0}]
[{"$f":"CONCATENATE(\"Synthèse des résultats de l'élève : \",Résultats!$E24,\" \",Résultats!$F24)","v":"Synthèse des résultats de l'élève :  "},null,null,null,null,null,null,null,null,null,null,null,{"$f":"IF(Résultats!$J745=\"Absent(e)\",\"Absent(e)\",IF(Résultats!$J745=\"Incomplet\",\"Incomplet\",\"\"))","v":""}]
[]
["EDM",null,null,null,null,null,null,null,null,null,null,null,null,{"$f":"IF(OR(Résultats!$J24=\"Absent(e)\",Résultats!$J24=\"Incomplet\"),\"\",Résultats!$J24)","v":""},{"$f":"\"/\"","v":"/"},{"$f":"Résultats!$J$4","v":80}]
[]
[null,null,null,null,null,null,null,null,null,null,null,null,null,{"$f":"IF(N748=\"\",\"\",N748/P748)","v":""}]
[]
["Volet géographique",null,null,null,null,null,null,null,null,{"$f":"IF(Résultats!$M24=\"\",\"\",Résultats!$M24)","v":""},null,null,{"$f":"\"/\"","v":"/"},{"$f":"Résultats!$M$4","v":40},null,{"$f":"IF(OR(J752=\"\",J752=\"Absent(e)\",J752=\"Incomplet\"),\"\",J752/N752)","v":""}]
["Savoir-faire géographiques",null,null,null,null,null,null,{"$f":"IF(OR(Résultats!$AA24=\"Absent(e)\",Résultats!$AA24=\"Incomplet\"),\"\",Résultats!$AA24)","v":""},null,{"$f":"\"/\"","v":"/"},{"$f":"Résultats!$AA$2","v":19}]
["-  utiliser des repères spatiaux"]
["-  utiliser des représentations de l'espace"]
["-  localiser un lieu, un espace"]
["-  lire un paysage sur le terrain (pas mobilisé)"]
["-  lire une image géographique"]
["Savoirs géographiques",null,null,null,null,null,null,{"$f":"IF(OR(Résultats!$AN24=\"Absent(e)\",Résultats!$AN24=\"Incomplet\"),\"\",Résultats!$AN24)","v":""},null,{"$f":"\"/\"","v":"/"},{"$f":"Résultats!$AN$2","v":21}]
["-  identifier et caractériser les composantes du paysage"]
["-  identifier et caractériser des milieux naturels et leurs atouts et contraintes"]
["-  caractériser l'organisation de l'espace (fonctions, structurations et évolution)"]
["-  identifier des interactions hommes-espace"]
[]
["Volet historique",null,null,null,null,null,null,null,null,{"$f":"IF(OR(Résultats!$O24=\"\",Résultats!$O24=\"Incomplet\"),\"\",Résultats!$O24)","v":""},null,null,{"$f":"\"/\"","v":"/"},{"$f":"Résultats!$O$4","v":40},null,{"$f":"IF(OR(J765=\"\",J765=\"Absent(e)\",J765=\"Incomplet\"),\"\",J765/N765)","v":""}]
["Savoir-faire historiques",null,null,null,null,null,null,{"$f":"IF(OR(Résultats!$AY24=\"a\",Résultats!$AY24=\"A\",Résultats!$AY24=\"\"),\"\",Résultats!$AY24)","v":""},null,{"$f":"\"/\"","v":"/"},{"$f":"Résultats!$AY$2","v":18}]
["-  utiliser des repères du temps"]
["-  utiliser des représentations du temps"]
["-  lire une trace du passé"]
["-  exploiter des sources historiques (pas mobilisé)"]
["Savoirs historiques",null,null,null,null,null,null,{"$f":"IF(OR(Résultats!$BK24=\"Absent(e)\",Résultats!$BK24=\"Incomplet\"),\"\",Résultats!$BK24)","v":""},null,{"$f":"\"/\"","v":"/"},{"$f":"Résultats!$BK$2","v":22}]
["-  organisation du temps"]
["-  identifier et caractériser le mode de vie des gens à une époque déterminée"]
["-  mettre en évidence la nature d'une trace du passé"]
[]
[]
[]
[]
[""]
[]
["JUIN 2016   EDM"]
[]
[null,{"$f":"'Encodage réponses Es'!$B$1:$I$1","v":0}]
["Classe : ",{"$f":"'Encodage réponses Es'!$C$3","v":0}]
[{"$f":"CONCATENATE(\"Synthèse des résultats de l'élève : \",Résultats!$E25,\" \",Résultats!$F25)","v":"Synthèse des résultats de l'élève :  "},null,null,null,null,null,null,null,null,null,null,null,{"$f":"IF(Résultats!$J784=\"Absent(e)\",\"Absent(e)\",IF(Résultats!$J784=\"Incomplet\",\"Incomplet\",\"\"))","v":""}]
[]
["EDM",null,null,null,null,null,null,null,null,null,null,null,null,{"$f":"IF(OR(Résultats!$J25=\"Absent(e)\",Résultats!$J25=\"Incomplet\"),\"\",Résultats!$J25)","v":""},{"$f":"\"/\"","v":"/"},{"$f":"Résultats!$J$4","v":80}]
[]
[null,null,null,null,null,null,null,null,null,null,null,null,null,{"$f":"IF(N787=\"\",\"\",N787/P787)","v":""}]
[]
["Volet géographique",null,null,null,null,null,null,null,null,{"$f":"IF(Résultats!$M25=\"\",\"\",Résultats!$M25)","v":""},null,null,{"$f":"\"/\"","v":"/"},{"$f":"Résultats!$M$4","v":40},null,{"$f":"IF(OR(J791=\"\",J791=\"Absent(e)\",J791=\"Incomplet\"),\"\",J791/N791)","v":""}]
["Savoir-faire géographiques",null,null,null,null,null,null,{"$f":"IF(OR(Résultats!$AA25=\"Absent(e)\",Résultats!$AA25=\"Incomplet\"),\"\",Résultats!$AA25)","v":""},null,{"$f":"\"/\"","v":"/"},{"$f":"Résultats!$AA$2","v":19}]
["-  utiliser des repères spatiaux"]
["-  utiliser des représentations de l'espace"]
["-  localiser un lieu, un espace"]
["-  lire un paysage sur le terrain (pas mobilisé)"]
["-  lire une image géographique"]
["Savoirs géographiques",null,null,null,null,null,null,{"$f":"IF(OR(Résultats!$AN25=\"Absent(e)\",Résultats!$AN25=\"Incomplet\"),\"\",Résultats!$AN25)","v":""},null,{"$f":"\"/\"","v":"/"},{"$f":"Résultats!$AN$2","v":21}]
["-  identifier et caractériser les composantes du paysage"]
["-  identifier et caractériser des milieux naturels et leurs atouts et contraintes"]
["-  caractériser l'organisation de l'espace (fonctions, structurations et évolution)"]
["-  identifier des interactions hommes-espace"]
[]
["Volet historique",null,null,null,null,null,null,null,null,{"$f":"IF(OR(Résultats!$O25=\"\",Résultats!$O25=\"Incomplet\"),\"\",Résultats!$O25)","v":""},null,null,{"$f":"\"/\"","v":"/"},{"$f":"Résultats!$O$4","v":40},null,{"$f":"IF(OR(J804=\"\",J804=\"Absent(e)\",J804=\"Incomplet\"),\"\",J804/N804)","v":""}]
["Savoir-faire historiques",null,null,null,null,null,null,{"$f":"IF(OR(Résultats!$AY25=\"a\",Résultats!$AY25=\"A\",Résultats!$AY25=\"\"),\"\",Résultats!$AY25)","v":""},null,{"$f":"\"/\"","v":"/"},{"$f":"Résultats!$AY$2","v":18}]
["-  utiliser des repères du temps"]
["-  utiliser des représentations du temps"]
["-  lire une trace du passé"]
["-  exploiter des sources historiques (pas mobilisé)"]
["Savoirs historiques",null,null,null,null,null,null,{"$f":"IF(OR(Résultats!$BK25=\"Absent(e)\",Résultats!$BK25=\"Incomplet\"),\"\",Résultats!$BK25)","v":""},null,{"$f":"\"/\"","v":"/"},{"$f":"Résultats!$BK$2","v":22}]
["-  organisation du temps"]
["-  identifier et caractériser le mode de vie des gens à une époque déterminée"]
["-  mettre en évidence la nature d'une trace du passé"]
[]
[]
[]
[]
[""]
[]
["JUIN 2016   EDM"]
[]
[null,{"$f":"'Encodage réponses Es'!$B$1:$I$1","v":0}]
["Classe : ",{"$f":"'Encodage réponses Es'!$C$3","v":0}]
[{"$f":"CONCATENATE(\"Synthèse des résultats de l'élève : \",Résultats!$E26,\" \",Résultats!$F26)","v":"Synthèse des résultats de l'élève :  "},null,null,null,null,null,null,null,null,null,null,null,{"$f":"IF(Résultats!$J823=\"Absent(e)\",\"Absent(e)\",IF(Résultats!$J823=\"Incomplet\",\"Incomplet\",\"\"))","v":""}]
[]
["EDM",null,null,null,null,null,null,null,null,null,null,null,null,{"$f":"IF(OR(Résultats!$J26=\"Absent(e)\",Résultats!$J26=\"Incomplet\"),\"\",Résultats!$J26)","v":""},{"$f":"\"/\"","v":"/"},{"$f":"Résultats!$J$4","v":80}]
[]
[null,null,null,null,null,null,null,null,null,null,null,null,null,{"$f":"IF(N826=\"\",\"\",N826/P826)","v":""}]
[]
["Volet géographique",null,null,null,null,null,null,null,null,{"$f":"IF(Résultats!$M26=\"\",\"\",Résultats!$M26)","v":""},null,null,{"$f":"\"/\"","v":"/"},{"$f":"Résultats!$M$4","v":40},null,{"$f":"IF(OR(J830=\"\",J830=\"Absent(e)\",J830=\"Incomplet\"),\"\",J830/N830)","v":""}]
["Savoir-faire géographiques",null,null,null,null,null,null,{"$f":"IF(OR(Résultats!$AA26=\"Absent(e)\",Résultats!$AA26=\"Incomplet\"),\"\",Résultats!$AA26)","v":""},null,{"$f":"\"/\"","v":"/"},{"$f":"Résultats!$AA$2","v":19}]
["-  utiliser des repères spatiaux"]
["-  utiliser des représentations de l'espace"]
["-  localiser un lieu, un espace"]
["-  lire un paysage sur le terrain (pas mobilisé)"]
["-  lire une image géographique"]
["Savoirs géographiques",null,null,null,null,null,null,{"$f":"IF(OR(Résultats!$AN26=\"Absent(e)\",Résultats!$AN26=\"Incomplet\"),\"\",Résultats!$AN26)","v":""},null,{"$f":"\"/\"","v":"/"},{"$f":"Résultats!$AN$2","v":21}]
["-  identifier et caractériser les composantes du paysage"]
["-  identifier et caractériser des milieux naturels et leurs atouts et contraintes"]
["-  caractériser l'organisation de l'espace (fonctions, structurations et évolution)"]
["-  identifier des interactions hommes-espace"]
[]
["Volet historique",null,null,null,null,null,null,null,null,{"$f":"IF(OR(Résultats!$O26=\"\",Résultats!$O26=\"Incomplet\"),\"\",Résultats!$O26)","v":""},null,null,{"$f":"\"/\"","v":"/"},{"$f":"Résultats!$O$4","v":40},null,{"$f":"IF(OR(J843=\"\",J843=\"Absent(e)\",J843=\"Incomplet\"),\"\",J843/N843)","v":""}]
["Savoir-faire historiques",null,null,null,null,null,null,{"$f":"IF(OR(Résultats!$AY26=\"a\",Résultats!$AY26=\"A\",Résultats!$AY26=\"\"),\"\",Résultats!$AY26)","v":""},null,{"$f":"\"/\"","v":"/"},{"$f":"Résultats!$AY$2","v":18}]
["-  utiliser des repères du temps"]
["-  utiliser des représentations du temps"]
["-  lire une trace du passé"]
["-  exploiter des sources historiques (pas mobilisé)"]
["Savoirs historiques",null,null,null,null,null,null,{"$f":"IF(OR(Résultats!$BK26=\"Absent(e)\",Résultats!$BK26=\"Incomplet\"),\"\",Résultats!$BK26)","v":""},null,{"$f":"\"/\"","v":"/"},{"$f":"Résultats!$BK$2","v":22}]
["-  organisation du temps"]
["-  identifier et caractériser le mode de vie des gens à une époque déterminée"]
["-  mettre en évidence la nature d'une trace du passé"]
[]
[]
[]
[]
[""]
[]
["JUIN 2016   EDM"]
[]
[null,{"$f":"'Encodage réponses Es'!$B$1:$I$1","v":0}]
["Classe : ",{"$f":"'Encodage réponses Es'!$C$3","v":0}]
[{"$f":"CONCATENATE(\"Synthèse des résultats de l'élève : \",Résultats!$E27,\" \",Résultats!$F27)","v":"Synthèse des résultats de l'élève :  "},null,null,null,null,null,null,null,null,null,null,null,{"$f":"IF(Résultats!$J862=\"Absent(e)\",\"Absent(e)\",IF(Résultats!$J862=\"Incomplet\",\"Incomplet\",\"\"))","v":""}]
[]
["EDM",null,null,null,null,null,null,null,null,null,null,null,null,{"$f":"IF(OR(Résultats!$J27=\"Absent(e)\",Résultats!$J27=\"Incomplet\"),\"\",Résultats!$J27)","v":""},{"$f":"\"/\"","v":"/"},{"$f":"Résultats!$J$4","v":80}]
[]
[null,null,null,null,null,null,null,null,null,null,null,null,null,{"$f":"IF(N865=\"\",\"\",N865/P865)","v":""}]
[]
["Volet géographique",null,null,null,null,null,null,null,null,{"$f":"IF(Résultats!$M27=\"\",\"\",Résultats!$M27)","v":""},null,null,{"$f":"\"/\"","v":"/"},{"$f":"Résultats!$M$4","v":40},null,{"$f":"IF(OR(J869=\"\",J869=\"Absent(e)\",J869=\"Incomplet\"),\"\",J869/N869)","v":""}]
["Savoir-faire géographiques",null,null,null,null,null,null,{"$f":"IF(OR(Résultats!$AA27=\"Absent(e)\",Résultats!$AA27=\"Incomplet\"),\"\",Résultats!$AA27)","v":""},null,{"$f":"\"/\"","v":"/"},{"$f":"Résultats!$AA$2","v":19}]
["-  utiliser des repères spatiaux"]
["-  utiliser des représentations de l'espace"]
["-  localiser un lieu, un espace"]
["-  lire un paysage sur le terrain (pas mobilisé)"]
["-  lire une image géographique"]
["Savoirs géographiques",null,null,null,null,null,null,{"$f":"IF(OR(Résultats!$AN27=\"Absent(e)\",Résultats!$AN27=\"Incomplet\"),\"\",Résultats!$AN27)","v":""},null,{"$f":"\"/\"","v":"/"},{"$f":"Résultats!$AN$2","v":21}]
["-  identifier et caractériser les composantes du paysage"]
["-  identifier et caractériser des milieux naturels et leurs atouts et contraintes"]
["-  caractériser l'organisation de l'espace (fonctions, structurations et évolution)"]
["-  identifier des interactions hommes-espace"]
[]
["Volet historique",null,null,null,null,null,null,null,null,{"$f":"IF(OR(Résultats!$O27=\"\",Résultats!$O27=\"Incomplet\"),\"\",Résultats!$O27)","v":""},null,null,{"$f":"\"/\"","v":"/"},{"$f":"Résultats!$O$4","v":40},null,{"$f":"IF(OR(J882=\"\",J882=\"Absent(e)\",J882=\"Incomplet\"),\"\",J882/N882)","v":""}]
["Savoir-faire historiques",null,null,null,null,null,null,{"$f":"IF(OR(Résultats!$AY27=\"a\",Résultats!$AY27=\"A\",Résultats!$AY27=\"\"),\"\",Résultats!$AY27)","v":""},null,{"$f":"\"/\"","v":"/"},{"$f":"Résultats!$AY$2","v":18}]
["-  utiliser des repères du temps"]
["-  utiliser des représentations du temps"]
["-  lire une trace du passé"]
["-  exploiter des sources historiques (pas mobilisé)"]
["Savoirs historiques",null,null,null,null,null,null,{"$f":"IF(OR(Résultats!$BK27=\"Absent(e)\",Résultats!$BK27=\"Incomplet\"),\"\",Résultats!$BK27)","v":""},null,{"$f":"\"/\"","v":"/"},{"$f":"Résultats!$BK$2","v":22}]
["-  organisation du temps"]
["-  identifier et caractériser le mode de vie des gens à une époque déterminée"]
["-  mettre en évidence la nature d'une trace du passé"]
[]
[]
[]
[]
[""]
[]
["JUIN 2016   EDM"]
[]
[null,{"$f":"'Encodage réponses Es'!$B$1:$I$1","v":0}]
["Classe : ",{"$f":"'Encodage réponses Es'!$C$3","v":0}]
[{"$f":"CONCATENATE(\"Synthèse des résultats de l'élève : \",Résultats!$E28,\" \",Résultats!$F28)","v":"Synthèse des résultats de l'élève :  "},null,null,null,null,null,null,null,null,null,null,null,{"$f":"IF(Résultats!$J901=\"Absent(e)\",\"Absent(e)\",IF(Résultats!$J901=\"Incomplet\",\"Incomplet\",\"\"))","v":""}]
[]
["EDM",null,null,null,null,null,null,null,null,null,null,null,null,{"$f":"IF(OR(Résultats!$J28=\"Absent(e)\",Résultats!$J28=\"Incomplet\"),\"\",Résultats!$J28)","v":""},{"$f":"\"/\"","v":"/"},{"$f":"Résultats!$J$4","v":80}]
[]
[null,null,null,null,null,null,null,null,null,null,null,null,null,{"$f":"IF(N904=\"\",\"\",N904/P904)","v":""}]
[]
["Volet géographique",null,null,null,null,null,null,null,null,{"$f":"IF(Résultats!$M28=\"\",\"\",Résultats!$M28)","v":""},null,null,{"$f":"\"/\"","v":"/"},{"$f":"Résultats!$M$4","v":40},null,{"$f":"IF(OR(J908=\"\",J908=\"Absent(e)\",J908=\"Incomplet\"),\"\",J908/N908)","v":""}]
["Savoir-faire géographiques",null,null,null,null,null,null,{"$f":"IF(OR(Résultats!$AA28=\"Absent(e)\",Résultats!$AA28=\"Incomplet\"),\"\",Résultats!$AA28)","v":""},null,{"$f":"\"/\"","v":"/"},{"$f":"Résultats!$AA$2","v":19}]
["-  utiliser des repères spatiaux"]
["-  utiliser des représentations de l'espace"]
["-  localiser un lieu, un espace"]
["-  lire un paysage sur le terrain (pas mobilisé)"]
["-  lire une image géographique"]
["Savoirs géographiques",null,null,null,null,null,null,{"$f":"IF(OR(Résultats!$AN28=\"Absent(e)\",Résultats!$AN28=\"Incomplet\"),\"\",Résultats!$AN28)","v":""},null,{"$f":"\"/\"","v":"/"},{"$f":"Résultats!$AN$2","v":21}]
["-  identifier et caractériser les composantes du paysage"]
["-  identifier et caractériser des milieux naturels et leurs atouts et contraintes"]
["-  caractériser l'organisation de l'espace (fonctions, structurations et évolution)"]
["-  identifier des interactions hommes-espace"]
[]
["Volet historique",null,null,null,null,null,null,null,null,{"$f":"IF(OR(Résultats!$O28=\"\",Résultats!$O28=\"Incomplet\"),\"\",Résultats!$O28)","v":""},null,null,{"$f":"\"/\"","v":"/"},{"$f":"Résultats!$O$4","v":40},null,{"$f":"IF(OR(J921=\"\",J921=\"Absent(e)\",J921=\"Incomplet\"),\"\",J921/N921)","v":""}]
["Savoir-faire historiques",null,null,null,null,null,null,{"$f":"IF(OR(Résultats!$AY28=\"a\",Résultats!$AY28=\"A\",Résultats!$AY28=\"\"),\"\",Résultats!$AY28)","v":""},null,{"$f":"\"/\"","v":"/"},{"$f":"Résultats!$AY$2","v":18}]
["-  utiliser des repères du temps"]
["-  utiliser des représentations du temps"]
["-  lire une trace du passé"]
["-  exploiter des sources historiques (pas mobilisé)"]
["Savoirs historiques",null,null,null,null,null,null,{"$f":"IF(OR(Résultats!$BK28=\"Absent(e)\",Résultats!$BK28=\"Incomplet\"),\"\",Résultats!$BK28)","v":""},null,{"$f":"\"/\"","v":"/"},{"$f":"Résultats!$BK$2","v":22}]
["-  organisation du temps"]
["-  identifier et caractériser le mode de vie des gens à une époque déterminée"]
["-  mettre en évidence la nature d'une trace du passé"]
[]
[]
[]
[]
[""]
[]
["JUIN 2016   EDM"]
[]
[null,{"$f":"'Encodage réponses Es'!$B$1:$I$1","v":0}]
["Classe : ",{"$f":"'Encodage réponses Es'!$C$3","v":0}]
[{"$f":"CONCATENATE(\"Synthèse des résultats de l'élève : \",Résultats!$E29,\" \",Résultats!$F29)","v":"Synthèse des résultats de l'élève :  "},null,null,null,null,null,null,null,null,null,null,null,{"$f":"IF(Résultats!$J940=\"Absent(e)\",\"Absent(e)\",IF(Résultats!$J940=\"Incomplet\",\"Incomplet\",\"\"))","v":""}]
[]
["EDM",null,null,null,null,null,null,null,null,null,null,null,null,{"$f":"IF(OR(Résultats!$J29=\"Absent(e)\",Résultats!$J29=\"Incomplet\"),\"\",Résultats!$J29)","v":""},{"$f":"\"/\"","v":"/"},{"$f":"Résultats!$J$4","v":80}]
[]
[null,null,null,null,null,null,null,null,null,null,null,null,null,{"$f":"IF(N943=\"\",\"\",N943/P943)","v":""}]
[]
["Volet géographique",null,null,null,null,null,null,null,null,{"$f":"IF(Résultats!$M29=\"\",\"\",Résultats!$M29)","v":""},null,null,{"$f":"\"/\"","v":"/"},{"$f":"Résultats!$M$4","v":40},null,{"$f":"IF(OR(J947=\"\",J947=\"Absent(e)\",J947=\"Incomplet\"),\"\",J947/N947)","v":""}]
["Savoir-faire géographiques",null,null,null,null,null,null,{"$f":"IF(OR(Résultats!$AA29=\"Absent(e)\",Résultats!$AA29=\"Incomplet\"),\"\",Résultats!$AA29)","v":""},null,{"$f":"\"/\"","v":"/"},{"$f":"Résultats!$AA$2","v":19}]
["-  utiliser des repères spatiaux"]
["-  utiliser des représentations de l'espace"]
["-  localiser un lieu, un espace"]
["-  lire un paysage sur le terrain (pas mobilisé)"]
["-  lire une image géographique"]
["Savoirs géographiques",null,null,null,null,null,null,{"$f":"IF(OR(Résultats!$AN29=\"Absent(e)\",Résultats!$AN29=\"Incomplet\"),\"\",Résultats!$AN29)","v":""},null,{"$f":"\"/\"","v":"/"},{"$f":"Résultats!$AN$2","v":21}]
["-  identifier et caractériser les composantes du paysage"]
["-  identifier et caractériser des milieux naturels et leurs atouts et contraintes"]
["-  caractériser l'organisation de l'espace (fonctions, structurations et évolution)"]
["-  identifier des interactions hommes-espace"]
[]
["Volet historique",null,null,null,null,null,null,null,null,{"$f":"IF(OR(Résultats!$O29=\"\",Résultats!$O29=\"Incomplet\"),\"\",Résultats!$O29)","v":""},null,null,{"$f":"\"/\"","v":"/"},{"$f":"Résultats!$O$4","v":40},null,{"$f":"IF(OR(J960=\"\",J960=\"Absent(e)\",J960=\"Incomplet\"),\"\",J960/N960)","v":""}]
["Savoir-faire historiques",null,null,null,null,null,null,{"$f":"IF(OR(Résultats!$AY29=\"a\",Résultats!$AY29=\"A\",Résultats!$AY29=\"\"),\"\",Résultats!$AY29)","v":""},null,{"$f":"\"/\"","v":"/"},{"$f":"Résultats!$AY$2","v":18}]
["-  utiliser des repères du temps"]
["-  utiliser des représentations du temps"]
["-  lire une trace du passé"]
["-  exploiter des sources historiques (pas mobilisé)"]
["Savoirs historiques",null,null,null,null,null,null,{"$f":"IF(OR(Résultats!$BK29=\"Absent(e)\",Résultats!$BK29=\"Incomplet\"),\"\",Résultats!$BK29)","v":""},null,{"$f":"\"/\"","v":"/"},{"$f":"Résultats!$BK$2","v":22}]
["-  organisation du temps"]
["-  identifier et caractériser le mode de vie des gens à une époque déterminée"]
["-  mettre en évidence la nature d'une trace du passé"]
[]
[]
[]
[]
[""]
[]
["JUIN 2016   EDM"]
[]
[null,{"$f":"'Encodage réponses Es'!$B$1:$I$1","v":0}]
["Classe : ",{"$f":"'Encodage réponses Es'!$C$3","v":0}]
[{"$f":"CONCATENATE(\"Synthèse des résultats de l'élève : \",Résultats!$E30,\" \",Résultats!$F30)","v":"Synthèse des résultats de l'élève :  "},null,null,null,null,null,null,null,null,null,null,null,{"$f":"IF(Résultats!$J979=\"Absent(e)\",\"Absent(e)\",IF(Résultats!$J979=\"Incomplet\",\"Incomplet\",\"\"))","v":""}]
[]
["EDM",null,null,null,null,null,null,null,null,null,null,null,null,{"$f":"IF(OR(Résultats!$J30=\"Absent(e)\",Résultats!$J30=\"Incomplet\"),\"\",Résultats!$J30)","v":""},{"$f":"\"/\"","v":"/"},{"$f":"Résultats!$J$4","v":80}]
[]
[null,null,null,null,null,null,null,null,null,null,null,null,null,{"$f":"IF(N982=\"\",\"\",N982/P982)","v":""}]
[]
["Volet géographique",null,null,null,null,null,null,null,null,{"$f":"IF(Résultats!$M30=\"\",\"\",Résultats!$M30)","v":""},null,null,{"$f":"\"/\"","v":"/"},{"$f":"Résultats!$M$4","v":40},null,{"$f":"IF(OR(J986=\"\",J986=\"Absent(e)\",J986=\"Incomplet\"),\"\",J986/N986)","v":""}]
["Savoir-faire géographiques",null,null,null,null,null,null,{"$f":"IF(OR(Résultats!$AA30=\"Absent(e)\",Résultats!$AA30=\"Incomplet\"),\"\",Résultats!$AA30)","v":""},null,{"$f":"\"/\"","v":"/"},{"$f":"Résultats!$AA$2","v":19}]
["-  utiliser des repères spatiaux"]
["-  utiliser des représentations de l'espace"]
["-  localiser un lieu, un espace"]
["-  lire un paysage sur le terrain (pas mobilisé)"]
["-  lire une image géographique"]
["Savoirs géographiques",null,null,null,null,null,null,{"$f":"IF(OR(Résultats!$AN30=\"Absent(e)\",Résultats!$AN30=\"Incomplet\"),\"\",Résultats!$AN30)","v":""},null,{"$f":"\"/\"","v":"/"},{"$f":"Résultats!$AN$2","v":21}]
["-  identifier et caractériser les composantes du paysage"]
["-  identifier et caractériser des milieux naturels et leurs atouts et contraintes"]
["-  caractériser l'organisation de l'espace (fonctions, structurations et évolution)"]
["-  identifier des interactions hommes-espace"]
[]
["Volet historique",null,null,null,null,null,null,null,null,{"$f":"IF(OR(Résultats!$O30=\"\",Résultats!$O30=\"Incomplet\"),\"\",Résultats!$O30)","v":""},null,null,{"$f":"\"/\"","v":"/"},{"$f":"Résultats!$O$4","v":40},null,{"$f":"IF(OR(J999=\"\",J999=\"Absent(e)\",J999=\"Incomplet\"),\"\",J999/N999)","v":""}]
["Savoir-faire historiques",null,null,null,null,null,null,{"$f":"IF(OR(Résultats!$AY30=\"a\",Résultats!$AY30=\"A\",Résultats!$AY30=\"\"),\"\",Résultats!$AY30)","v":""},null,{"$f":"\"/\"","v":"/"},{"$f":"Résultats!$AY$2","v":18}]
["-  utiliser des repères du temps"]
["-  utiliser des représentations du temps"]
["-  lire une trace du passé"]
["-  exploiter des sources historiques (pas mobilisé)"]
["Savoirs historiques",null,null,null,null,null,null,{"$f":"IF(OR(Résultats!$BK30=\"Absent(e)\",Résultats!$BK30=\"Incomplet\"),\"\",Résultats!$BK30)","v":""},null,{"$f":"\"/\"","v":"/"},{"$f":"Résultats!$BK$2","v":22}]
["-  organisation du temps"]
["-  identifier et caractériser le mode de vie des gens à une époque déterminée"]
["-  mettre en évidence la nature d'une trace du passé"]
[]
[]
[]
[]
[""]
[]
["JUIN 2016   EDM"]
[]
[null,{"$f":"'Encodage réponses Es'!$B$1:$I$1","v":0}]
["Classe : ",{"$f":"'Encodage réponses Es'!$C$3","v":0}]
[{"$f":"CONCATENATE(\"Synthèse des résultats de l'élève : \",Résultats!$E31,\" \",Résultats!$F31)","v":"Synthèse des résultats de l'élève :  "},null,null,null,null,null,null,null,null,null,null,null,{"$f":"IF(Résultats!$J1018=\"Absent(e)\",\"Absent(e)\",IF(Résultats!$J1018=\"Incomplet\",\"Incomplet\",\"\"))","v":""}]
[]
["EDM",null,null,null,null,null,null,null,null,null,null,null,null,{"$f":"IF(OR(Résultats!$J31=\"Absent(e)\",Résultats!$J31=\"Incomplet\"),\"\",Résultats!$J31)","v":""},{"$f":"\"/\"","v":"/"},{"$f":"Résultats!$J$4","v":80}]
[]
[null,null,null,null,null,null,null,null,null,null,null,null,null,{"$f":"IF(N1021=\"\",\"\",N1021/P1021)","v":""}]
[]
["Volet géographique",null,null,null,null,null,null,null,null,{"$f":"IF(Résultats!$M31=\"\",\"\",Résultats!$M31)","v":""},null,null,{"$f":"\"/\"","v":"/"},{"$f":"Résultats!$M$4","v":40},null,{"$f":"IF(OR(J1025=\"\",J1025=\"Absent(e)\",J1025=\"Incomplet\"),\"\",J1025/N1025)","v":""}]
["Savoir-faire géographiques",null,null,null,null,null,null,{"$f":"IF(OR(Résultats!$AA31=\"Absent(e)\",Résultats!$AA31=\"Incomplet\"),\"\",Résultats!$AA31)","v":""},null,{"$f":"\"/\"","v":"/"},{"$f":"Résultats!$AA$2","v":19}]
["-  utiliser des repères spatiaux"]
["-  utiliser des représentations de l'espace"]
["-  localiser un lieu, un espace"]
["-  lire un paysage sur le terrain (pas mobilisé)"]
["-  lire une image géographique"]
["Savoirs géographiques",null,null,null,null,null,null,{"$f":"IF(OR(Résultats!$AN31=\"Absent(e)\",Résultats!$AN31=\"Incomplet\"),\"\",Résultats!$AN31)","v":""},null,{"$f":"\"/\"","v":"/"},{"$f":"Résultats!$AN$2","v":21}]
["-  identifier et caractériser les composantes du paysage"]
["-  identifier et caractériser des milieux naturels et leurs atouts et contraintes"]
["-  caractériser l'organisation de l'espace (fonctions, structurations et évolution)"]
["-  identifier des interactions hommes-espace"]
[]
["Volet historique",null,null,null,null,null,null,null,null,{"$f":"IF(OR(Résultats!$O31=\"\",Résultats!$O31=\"Incomplet\"),\"\",Résultats!$O31)","v":""},null,null,{"$f":"\"/\"","v":"/"},{"$f":"Résultats!$O$4","v":40},null,{"$f":"IF(OR(J1038=\"\",J1038=\"Absent(e)\",J1038=\"Incomplet\"),\"\",J1038/N1038)","v":""}]
["Savoir-faire historiques",null,null,null,null,null,null,{"$f":"IF(OR(Résultats!$AY31=\"a\",Résultats!$AY31=\"A\",Résultats!$AY31=\"\"),\"\",Résultats!$AY31)","v":""},null,{"$f":"\"/\"","v":"/"},{"$f":"Résultats!$AY$2","v":18}]
["-  utiliser des repères du temps"]
["-  utiliser des représentations du temps"]
["-  lire une trace du passé"]
["-  exploiter des sources historiques (pas mobilisé)"]
["Savoirs historiques",null,null,null,null,null,null,{"$f":"IF(OR(Résultats!$BK31=\"Absent(e)\",Résultats!$BK31=\"Incomplet\"),\"\",Résultats!$BK31)","v":""},null,{"$f":"\"/\"","v":"/"},{"$f":"Résultats!$BK$2","v":22}]
["-  organisation du temps"]
["-  identifier et caractériser le mode de vie des gens à une époque déterminée"]
["-  mettre en évidence la nature d'une trace du passé"]
[]
[]
[]
[]
[""]
[]
["JUIN 2016   EDM"]
[]
[null,{"$f":"'Encodage réponses Es'!$B$1:$I$1","v":0}]
["Classe : ",{"$f":"'Encodage réponses Es'!$C$3","v":0}]
[{"$f":"CONCATENATE(\"Synthèse des résultats de l'élève : \",Résultats!$E32,\" \",Résultats!$F32)","v":"Synthèse des résultats de l'élève :  "},null,null,null,null,null,null,null,null,null,null,null,{"$f":"IF(Résultats!$J1057=\"Absent(e)\",\"Absent(e)\",IF(Résultats!$J1057=\"Incomplet\",\"Incomplet\",\"\"))","v":""}]
[]
["EDM",null,null,null,null,null,null,null,null,null,null,null,null,{"$f":"IF(OR(Résultats!$J32=\"Absent(e)\",Résultats!$J32=\"Incomplet\"),\"\",Résultats!$J32)","v":""},{"$f":"\"/\"","v":"/"},{"$f":"Résultats!$J$4","v":80}]
[]
[null,null,null,null,null,null,null,null,null,null,null,null,null,{"$f":"IF(N1060=\"\",\"\",N1060/P1060)","v":""}]
[]
["Volet géographique",null,null,null,null,null,null,null,null,{"$f":"IF(Résultats!$M32=\"\",\"\",Résultats!$M32)","v":""},null,null,{"$f":"\"/\"","v":"/"},{"$f":"Résultats!$M$4","v":40},null,{"$f":"IF(OR(J1064=\"\",J1064=\"Absent(e)\",J1064=\"Incomplet\"),\"\",J1064/N1064)","v":""}]
["Savoir-faire géographiques",null,null,null,null,null,null,{"$f":"IF(OR(Résultats!$AA32=\"Absent(e)\",Résultats!$AA32=\"Incomplet\"),\"\",Résultats!$AA32)","v":""},null,{"$f":"\"/\"","v":"/"},{"$f":"Résultats!$AA$2","v":19}]
["-  utiliser des repères spatiaux"]
["-  utiliser des représentations de l'espace"]
["-  localiser un lieu, un espace"]
["-  lire un paysage sur le terrain (pas mobilisé)"]
["-  lire une image géographique"]
["Savoirs géographiques",null,null,null,null,null,null,{"$f":"IF(OR(Résultats!$AN32=\"Absent(e)\",Résultats!$AN32=\"Incomplet\"),\"\",Résultats!$AN32)","v":""},null,{"$f":"\"/\"","v":"/"},{"$f":"Résultats!$AN$2","v":21}]
["-  identifier et caractériser les composantes du paysage"]
["-  identifier et caractériser des milieux naturels et leurs atouts et contraintes"]
["-  caractériser l'organisation de l'espace (fonctions, structurations et évolution)"]
["-  identifier des interactions hommes-espace"]
[]
["Volet historique",null,null,null,null,null,null,null,null,{"$f":"IF(OR(Résultats!$O32=\"\",Résultats!$O32=\"Incomplet\"),\"\",Résultats!$O32)","v":""},null,null,{"$f":"\"/\"","v":"/"},{"$f":"Résultats!$O$4","v":40},null,{"$f":"IF(OR(J1077=\"\",J1077=\"Absent(e)\",J1077=\"Incomplet\"),\"\",J1077/N1077)","v":""}]
["Savoir-faire historiques",null,null,null,null,null,null,{"$f":"IF(OR(Résultats!$AY32=\"a\",Résultats!$AY32=\"A\",Résultats!$AY32=\"\"),\"\",Résultats!$AY32)","v":""},null,{"$f":"\"/\"","v":"/"},{"$f":"Résultats!$AY$2","v":18}]
["-  utiliser des repères du temps"]
["-  utiliser des représentations du temps"]
["-  lire une trace du passé"]
["-  exploiter des sources historiques (pas mobilisé)"]
["Savoirs historiques",null,null,null,null,null,null,{"$f":"IF(OR(Résultats!$BK32=\"Absent(e)\",Résultats!$BK32=\"Incomplet\"),\"\",Résultats!$BK32)","v":""},null,{"$f":"\"/\"","v":"/"},{"$f":"Résultats!$BK$2","v":22}]
["-  organisation du temps"]
["-  identifier et caractériser le mode de vie des gens à une époque déterminée"]
["-  mettre en évidence la nature d'une trace du passé"]
[]
[]
[]
[]
[""]
[]
["JUIN 2016   EDM"]
[]
[null,{"$f":"'Encodage réponses Es'!$B$1:$I$1","v":0}]
["Classe : ",{"$f":"'Encodage réponses Es'!$C$3","v":0}]
[{"$f":"CONCATENATE(\"Synthèse des résultats de l'élève : \",Résultats!$E33,\" \",Résultats!$F33)","v":"Synthèse des résultats de l'élève :  "},null,null,null,null,null,null,null,null,null,null,null,{"$f":"IF(Résultats!$J1096=\"Absent(e)\",\"Absent(e)\",IF(Résultats!$J1096=\"Incomplet\",\"Incomplet\",\"\"))","v":""}]
[]
["EDM",null,null,null,null,null,null,null,null,null,null,null,null,{"$f":"IF(OR(Résultats!$J33=\"Absent(e)\",Résultats!$J33=\"Incomplet\"),\"\",Résultats!$J33)","v":""},{"$f":"\"/\"","v":"/"},{"$f":"Résultats!$J$4","v":80}]
[]
[null,null,null,null,null,null,null,null,null,null,null,null,null,{"$f":"IF(N1099=\"\",\"\",N1099/P1099)","v":""}]
[]
["Volet géographique",null,null,null,null,null,null,null,null,{"$f":"IF(Résultats!$M33=\"\",\"\",Résultats!$M33)","v":""},null,null,{"$f":"\"/\"","v":"/"},{"$f":"Résultats!$M$4","v":40},null,{"$f":"IF(OR(J1103=\"\",J1103=\"Absent(e)\",J1103=\"Incomplet\"),\"\",J1103/N1103)","v":""}]
["Savoir-faire géographiques",null,null,null,null,null,null,{"$f":"IF(OR(Résultats!$AA33=\"Absent(e)\",Résultats!$AA33=\"Incomplet\"),\"\",Résultats!$AA33)","v":""},null,{"$f":"\"/\"","v":"/"},{"$f":"Résultats!$AA$2","v":19}]
["-  utiliser des repères spatiaux"]
["-  utiliser des représentations de l'espace"]
["-  localiser un lieu, un espace"]
["-  lire un paysage sur le terrain (pas mobilisé)"]
["-  lire une image géographique"]
["Savoirs géographiques",null,null,null,null,null,null,{"$f":"IF(OR(Résultats!$AN33=\"Absent(e)\",Résultats!$AN33=\"Incomplet\"),\"\",Résultats!$AN33)","v":""},null,{"$f":"\"/\"","v":"/"},{"$f":"Résultats!$AN$2","v":21}]
["-  identifier et caractériser les composantes du paysage"]
["-  identifier et caractériser des milieux naturels et leurs atouts et contraintes"]
["-  caractériser l'organisation de l'espace (fonctions, structurations et évolution)"]
["-  identifier des interactions hommes-espace"]
[]
["Volet historique",null,null,null,null,null,null,null,null,{"$f":"IF(OR(Résultats!$O33=\"\",Résultats!$O33=\"Incomplet\"),\"\",Résultats!$O33)","v":""},null,null,{"$f":"\"/\"","v":"/"},{"$f":"Résultats!$O$4","v":40},null,{"$f":"IF(OR(J1116=\"\",J1116=\"Absent(e)\",J1116=\"Incomplet\"),\"\",J1116/N1116)","v":""}]
["Savoir-faire historiques",null,null,null,null,null,null,{"$f":"IF(OR(Résultats!$AY33=\"a\",Résultats!$AY33=\"A\",Résultats!$AY33=\"\"),\"\",Résultats!$AY33)","v":""},null,{"$f":"\"/\"","v":"/"},{"$f":"Résultats!$AY$2","v":18}]
["-  utiliser des repères du temps"]
["-  utiliser des représentations du temps"]
["-  lire une trace du passé"]
["-  exploiter des sources historiques (pas mobilisé)"]
["Savoirs historiques",null,null,null,null,null,null,{"$f":"IF(OR(Résultats!$BK33=\"Absent(e)\",Résultats!$BK33=\"Incomplet\"),\"\",Résultats!$BK33)","v":""},null,{"$f":"\"/\"","v":"/"},{"$f":"Résultats!$BK$2","v":22}]
["-  organisation du temps"]
["-  identifier et caractériser le mode de vie des gens à une époque déterminée"]
["-  mettre en évidence la nature d'une trace du passé"]
[]
[]
[]
[]
[""]
[]
["JUIN 2016   EDM"]
[]
[null,{"$f":"'Encodage réponses Es'!$B$1:$I$1","v":0}]
["Classe : ",{"$f":"'Encodage réponses Es'!$C$3","v":0}]
[{"$f":"CONCATENATE(\"Synthèse des résultats de l'élève : \",Résultats!$E34,\" \",Résultats!$F34)","v":"Synthèse des résultats de l'élève :  "},null,null,null,null,null,null,null,null,null,null,null,{"$f":"IF(Résultats!$J1135=\"Absent(e)\",\"Absent(e)\",IF(Résultats!$J1135=\"Incomplet\",\"Incomplet\",\"\"))","v":""}]
[]
["EDM",null,null,null,null,null,null,null,null,null,null,null,null,{"$f":"IF(OR(Résultats!$J34=\"Absent(e)\",Résultats!$J34=\"Incomplet\"),\"\",Résultats!$J34)","v":""},{"$f":"\"/\"","v":"/"},{"$f":"Résultats!$J$4","v":80}]
[]
[null,null,null,null,null,null,null,null,null,null,null,null,null,{"$f":"IF(N1138=\"\",\"\",N1138/P1138)","v":""}]
[]
["Volet géographique",null,null,null,null,null,null,null,null,{"$f":"IF(Résultats!$M34=\"\",\"\",Résultats!$M34)","v":""},null,null,{"$f":"\"/\"","v":"/"},{"$f":"Résultats!$M$4","v":40},null,{"$f":"IF(OR(J1142=\"\",J1142=\"Absent(e)\",J1142=\"Incomplet\"),\"\",J1142/N1142)","v":""}]
["Savoir-faire géographiques",null,null,null,null,null,null,{"$f":"IF(OR(Résultats!$AA34=\"Absent(e)\",Résultats!$AA34=\"Incomplet\"),\"\",Résultats!$AA34)","v":""},null,{"$f":"\"/\"","v":"/"},{"$f":"Résultats!$AA$2","v":19}]
["-  utiliser des repères spatiaux"]
["-  utiliser des représentations de l'espace"]
["-  localiser un lieu, un espace"]
["-  lire un paysage sur le terrain (pas mobilisé)"]
["-  lire une image géographique"]
["Savoirs géographiques",null,null,null,null,null,null,{"$f":"IF(OR(Résultats!$AN34=\"Absent(e)\",Résultats!$AN34=\"Incomplet\"),\"\",Résultats!$AN34)","v":""},null,{"$f":"\"/\"","v":"/"},{"$f":"Résultats!$AN$2","v":21}]
["-  identifier et caractériser les composantes du paysage"]
["-  identifier et caractériser des milieux naturels et leurs atouts et contraintes"]
["-  caractériser l'organisation de l'espace (fonctions, structurations et évolution)"]
["-  identifier des interactions hommes-espace"]
[]
["Volet historique",null,null,null,null,null,null,null,null,{"$f":"IF(OR(Résultats!$O34=\"\",Résultats!$O34=\"Incomplet\"),\"\",Résultats!$O34)","v":""},null,null,{"$f":"\"/\"","v":"/"},{"$f":"Résultats!$O$4","v":40},null,{"$f":"IF(OR(J1155=\"\",J1155=\"Absent(e)\",J1155=\"Incomplet\"),\"\",J1155/N1155)","v":""}]
["Savoir-faire historiques",null,null,null,null,null,null,{"$f":"IF(OR(Résultats!$AY34=\"a\",Résultats!$AY34=\"A\",Résultats!$AY34=\"\"),\"\",Résultats!$AY34)","v":""},null,{"$f":"\"/\"","v":"/"},{"$f":"Résultats!$AY$2","v":18}]
["-  utiliser des repères du temps"]
["-  utiliser des représentations du temps"]
["-  lire une trace du passé"]
["-  exploiter des sources historiques (pas mobilisé)"]
["Savoirs historiques",null,null,null,null,null,null,{"$f":"IF(OR(Résultats!$BK34=\"Absent(e)\",Résultats!$BK34=\"Incomplet\"),\"\",Résultats!$BK34)","v":""},null,{"$f":"\"/\"","v":"/"},{"$f":"Résultats!$BK$2","v":22}]
["-  organisation du temps"]
["-  identifier et caractériser le mode de vie des gens à une époque déterminée"]
["-  mettre en évidence la nature d'une trace du passé"]

{"sheet":"Résultats classe","index":3,"n_rows":50,"n_cols":15,"rows_kept":50,"cut":false,"hidden":false,"merged":[[49,9,49,10],[49,11,49,12],[44,14,44,16],[49,14,49,16],[47,9,47,10],[47,11,47,12],[48,9,48,10],[48,11,48,12],[20,0,20,1],[22,0,22,1],[20,2,20,3],[22,2,22,3],[20,5,20,7],[22,5,22,7],[48,14,48,16],[45,9,45,10],[45,11,45,12],[45,14,45,16],[46,9,46,10],[46,11,46,12],[46,14,46,16],[43,9,43,10],[43,11,43,12],[44,9,44,10],[32,9,32,10],[32,11,32,12],[32,14,32,16],[34,11,34,12],[34,13,34,16],[38,9,38,10],[38,11,38,12],[38,14,38,16],[39,9,39,10],[39,11,39,12],[39,13,39,16],[33,9,33,16],[34,9,34,10],[35,9,35,10],[35,11,35,12],[35,14,35,16],[36,9,36,10],[36,11,36,12],[36,14,36,16],[37,9,37,10],[37,11,37,12],[37,14,37,16],[28,9,28,10],[28,11,28,12],[28,13,28,16],[29,9,29,10],[29,11,29,12],[29,14,29,16],[31,9,31,10],[31,11,31,12],[31,14,31,16],[30,9,30,10],[30,11,30,12],[30,13,30,16],[16,9,16,16],[18,9,18,10],[18,11,18,12],[18,13,18,16],[19,9,19,10],[19,11,19,12],[19,14,19,16],[21,9,21,10],[21,11,21,12],[21,14,21,16],[20,9,20,10],[20,11,20,12],[20,14,20,16],[17,9,17,16],[34,4,34,7],[28,2,28,3],[28,4,28,7],[30,0,30,1],[30,2,30,3],[30,4,30,7],[43,0,43,1],[43,2,43,3],[31,5,31,7],[33,0,33,7],[37,0,37,1],[37,2,37,3],[37,5,37,7],[35,0,35,1],[35,2,35,3],[35,5,35,7],[36,0,36,1],[36,2,36,3],[36,5,36,7],[9,0,9,4],[9,5,9,7],[18,4,18,7],[18,0,18,1],[18,2,18,3],[7,5,7,7],[8,5,8,7],[7,0,7,4],[8,0,8,4],[10,5,10,7],[16,0,16,7],[17,0,17,7],[0,0,0,7],[21,5,21,7],[11,0,11,4],[12,0,12,4],[24,0,24,1],[24,2,24,3],[2,0,2,4],[3,0,3,4],[5,0,5,7],[2,5,2,7],[3,5,3,7],[23,5,23,7],[10,0,10,4],[11,5,11,7],[21,0,21,1],[21,2,21,3],[23,2,23,3],[19,2,19,3],[23,0,23,1],[19,5,19,7],[12,5,12,7],[19,0,19,1],[1,0,1,7],[24,4,24,7],[4,0,4,7],[49,0,49,1],[49,2,49,3],[48,0,48,1],[48,2,48,3],[34,0,34,1],[34,2,34,3],[38,5,38,7],[39,0,39,1],[31,0,31,1],[31,2,31,3],[39,2,39,3],[38,0,38,1],[38,2,38,3],[39,4,39,7],[6,0,6,4],[29,0,29,1],[29,2,29,3],[25,0,25,1],[25,2,25,3],[25,5,25,7],[28,0,28,1],[29,5,29,7],[6,5,6,7],[48,5,48,7],[49,5,49,7],[44,0,44,1],[44,2,44,3],[44,5,44,7],[47,4,47,7],[45,2,45,3],[47,0,47,1],[47,2,47,3],[45,4,45,7],[46,0,46,1],[46,2,46,3],[46,5,46,7],[45,0,45,1],[22,9,22,10],[22,11,22,12],[22,14,22,16],[26,9,26,10],[26,11,26,12],[26,14,26,16],[27,9,27,10],[27,11,27,12],[27,14,27,16],[23,9,23,10],[23,11,23,12],[23,14,23,16],[24,9,24,10],[24,11,24,12],[24,13,24,16],[25,9,25,10],[25,11,25,12],[25,14,25,16],[47,13,47,16],[43,14,43,16],[40,0,40,1],[40,2,40,3],[40,5,40,7],[41,0,41,1],[41,2,41,3],[41,5,41,7],[42,0,42,1],[42,2,42,3],[42,5,42,7],[40,9,40,10],[40,11,40,12],[40,14,40,16],[41,9,41,10],[41,11,41,12],[41,14,41,16],[42,9,42,10],[42,11,42,12],[42,14,42,16],[43,5,43,7],[44,11,44,12]]}
["Bilan de participation et réussite par classe"]
[{"$f":"'Encodage réponses Es'!C3","v":0}]
["Passation",null,null,null,null,{"$f":"IF(Résultats!J$36=0,\"\",Résultats!J$36)","v":""}]
["Taux de réussite complète",null,null,null,null,{"$f":"IF(Résultats!K37=\"\",\"\",Résultats!K37)","v":""}]
[]
["Score par domaine disciplinaire"]
["Volet géographique",null,null,null,null,{"$f":"IF(Résultats!N37=\"\",\"\",Résultats!N37)","v":""},null,null,null,null,null,null,null,"Synthèse par classe des résultats de l'évaluation en EDM"]
["Savoir-faire géographiques",null,null,null,null,{"$f":"IF(Résultats!AA36=\"\",\"\",Résultats!AA36)","v":""},null,null,null,null,null,null,null,"2016-06-01"]
["Savoirs géographiques",null,null,null,null,{"$f":"IF(Résultats!AN36=\"\",\"\",Résultats!AN36)","v":""}]
["Volet historique",null,null,null,null,{"$f":"IF(Résultats!P37=\"\",\"\",Résultats!P37)","v":""}]
["Savoir-faire historiques",null,null,null,null,{"$f":"IF(Résultats!AY36=\"\",\"\",Résultats!AY36)","v":""}]
["Savoirs historiques",null,null,null,null,{"$f":"IF(Résultats!BK36=\"\",\"\",Résultats!BK36)","v":""}]
["Total EDM",null,null,null,null,{"$f":"IF(Résultats!K37=\"\",\"\",Résultats!K37)","v":""}]
[]
[]
[]
["Volet géographique",null,null,null,null,null,null,null,null,"Volet historique"]
["Savoir-faire géographiques",null,null,null,null,null,null,null,null,"Savoir-faire historiques"]
["Items",null,"Pondération",null,"Utiliser des repères spatiaux",null,null,null,null,"Items",null,"Pondération",null,"Utiliser des repères du temps"]
[1,null,{"$f":"Résultats!S4","v":7},null,null,{"$f":"IF(Résultats!S36=\"\",\"\",Résultats!S36)","v":""},null,null,null,"1b",null,{"$f":"Résultats!AO4","v":1},null,null,{"$f":"IF(Résultats!AO36=\"\",\"\",Résultats!AO36)","v":""}]
[2,null,{"$f":"Résultats!T4","v":1},null,null,{"$f":"IF(Résultats!T36=\"\",\"\",Résultats!T36)","v":""},null,null,null,"1c",null,{"$f":"Résultats!AP4","v":1},null,null,{"$f":"IF(Résultats!AP36=\"\",\"\",Résultats!AP36)","v":""}]
[4,null,{"$f":"Résultats!U4","v":1},null,null,{"$f":"IF(Résultats!U36=\"\",\"\",Résultats!U36)","v":""},null,null,null,5,null,{"$f":"Résultats!AQ4","v":3},null,null,{"$f":"IF(Résultats!AQ36=\"\",\"\",Résultats!AQ36)","v":""}]
[5,null,{"$f":"Résultats!V4","v":3},null,null,{"$f":"IF(Résultats!V36=\"\",\"\",Résultats!V36)","v":""},null,null,null,"11c",null,{"$f":"Résultats!AR4","v":2},null,null,{"$f":"IF(Résultats!AR36=\"\",\"\",Résultats!AR36)","v":""}]
[10,null,{"$f":"Résultats!W4","v":1},null,null,{"$f":"IF(Résultats!W36=\"\",\"\",Résultats!W36)","v":""}]
["Items",null,"Pondération",null,"Utiliser des représentations de l'espace",null,null,null,null,"Items",null,"Pondération",null,"Utiliser des représentations du temps"]
[3,null,{"$f":"Résultats!X4","v":1},null,null,{"$f":"IF(Résultats!X36=\"\",\"\",Résultats!X36)","v":""},null,null,null,"1a",null,{"$f":"Résultats!AS4","v":2},null,null,{"$f":"IF(Résultats!AS36=\"\",\"\",Résultats!AS36)","v":""}]
[null,null,null,null,null,null,null,null,null,"10b",null,{"$f":"Résultats!AT4","v":1},null,null,{"$f":"IF(Résultats!AT36=\"\",\"\",Résultats!AT36)","v":""}]
[null,null,null,null,null,null,null,null,null,"10c",null,{"$f":"Résultats!AU4","v":1},null,null,{"$f":"IF(Résultats!AU36=\"\",\"\",Résultats!AU36)","v":""}]
["Items",null,"Pondération",null,"Localiser un lieu, un espace",null,null,null,null,"Items",null,"Pondération",null,"Lire une trace du passé"]
[6,null,{"$f":"Résultats!Y4","v":2},null,null,{"$f":"IF(Résultats!Y36=\"\",\"\",Résultats!Y36)","v":""},null,null,null,"2b",null,{"$f":"Résultats!AV4","v":1},null,null,{"$f":"IF(Résultats!AV36=\"\",\"\",Résultats!AV36)","v":""}]
["Items",null,"Pondération",null,"Lire une image géographique",null,null,null,null,"Items",null,"Pondération",null,"Exploiter des sources historiques"]
[19,null,{"$f":"Résultats!Z4","v":3},null,null,{"$f":"IF(Résultats!Z36=\"\",\"\",Résultats!Z36)","v":""},null,null,null,"2c",null,{"$f":"Résultats!AW4","v":3},null,null,{"$f":"IF(Résultats!AW36=\"\",\"\",Résultats!AW36)","v":""}]
[null,null,null,null,null,null,null,null,null,3,null,{"$f":"Résultats!AX4","v":3},null,null,{"$f":"IF(Résultats!AX36=\"\",\"\",Résultats!AX36)","v":""}]
["Savoirs géographiques",null,null,null,null,null,null,null,null,"Savoirs historiques"]
["Items",null,"Pondération",null,"Les composantes du paysage",null,null,null,null,"Items",null,"Pondération",null,"Mettre en évidence l'organisation du temps"]
[13,null,{"$f":"Résultats!AB4","v":7},null,null,{"$f":"IF(Résultats!AB36=\"\",\"\",Résultats!AB36)","v":""},null,null,null,"1d",null,{"$f":"Résultats!AZ4","v":1},null,null,{"$f":"IF(Résultats!AZ36=\"\",\"\",Résultats!AZ36)","v":""}]
[15,null,{"$f":"Résultats!AD4","v":1},null,null,{"$f":"IF(Résultats!AD36=\"\",\"\",Résultats!AD36)","v":""},null,null,null,9,null,{"$f":"Résultats!BA4","v":6},null,null,{"$f":"IF(Résultats!BA36=\"\",\"\",Résultats!BA36)","v":""}]
[16,null,{"$f":"Résultats!AE4","v":1},null,null,{"$f":"IF(Résultats!AE36=\"\",\"\",Résultats!AE36)","v":""}]
[17,null,{"$f":"Résultats!AF4","v":1},null,null,{"$f":"IF(Résultats!AF36=\"\",\"\",Résultats!AF36)","v":""}]
["Items",null,"Pondération",null,"Des milieux naturels",null,null,null,null,"Items",null,"Pondération",null,"Mettre en évidence le mode de vie des gens à une époque déterminée"]
[7,null,{"$f":"Résultats!AG4","v":3},null,null,{"$f":"IF(Résultats!AG36=\"\",\"\",Résultats!AG36)","v":""},null,null,null,4,null,{"$f":"Résultats!BB4","v":3},null,null,{"$f":"IF(Résultats!BB36=\"\",\"\",Résultats!BB36)","v":""}]
[8,null,{"$f":"Résultats!AH4","v":1},null,null,{"$f":"IF(Résultats!AH36=\"\",\"\",Résultats!AH36)","v":""},null,null,null,6,null,{"$f":"Résultats!BC4","v":2},null,null,{"$f":"IF(Résultats!BC36=\"\",\"\",Résultats!BC36)","v":""}]
[9,null,{"$f":"Résultats!AI4","v":1},null,null,{"$f":"IF(Résultats!AI36=\"\",\"\",Résultats!AI36)","v":""},null,null,null,7,null,{"$f":"Résultats!BD4","v":4},null,null,{"$f":"IF(Résultats!BD36=\"\",\"\",Résultats!BD36)","v":""}]
[12,null,{"$f":"Résultats!AJ4","v":2},null,null,{"$f":"IF(Résultats!AJ36=\"\",\"\",Résultats!AJ36)","v":""},null,null,null,8,null,{"$f":"Résultats!BE4","v":1},null,null,{"$f":"IF(Résultats!BE36=\"\",\"\",Résultats!BE36)","v":""}]
[14,null,{"$f":"Résultats!AK4","v":1},null,null,{"$f":"IF(Résultats!AK36=\"\",\"\",Résultats!AK36)","v":""},null,null,null,"10a",null,{"$f":"Résultats!BF4","v":1},null,null,{"$f":"IF(Résultats!BF36=\"\",\"\",Résultats!BF36)","v":""}]
["Items",null,"Pondération",null,"L'organisation de l'espace",null,null,null,null,8,null,{"$f":"Résultats!BG4","v":1},null,null,{"$f":"IF(Résultats!BG36=\"\",\"\",Résultats!BG36)","v":""}]
[null,null,null,null,null,null,null,null,null,"11b",null,{"$f":"Résultats!BH4","v":1},null,null,{"$f":"IF(Résultats!BH36=\"\",\"\",Résultats!BH36)","v":""}]
["Items",null,"Pondération",null,"Interactions hommes-espace",null,null,null,null,"Items",null,"Pondération",null,"Mettre en évidence la nature d'une trace du passé"]
[11,null,{"$f":"Résultats!AL4","v":2},null,null,{"$f":"IF(Résultats!AL36=\"\",\"\",Résultats!AL36)","v":""},null,null,null,"2a",null,{"$f":"Résultats!BI4","v":2},null,null,{"$f":"IF(Résultats!BI36=\"\",\"\",Résultats!BI36)","v":""}]
[18,null,{"$f":"Résultats!AM4","v":1},null,null,{"$f":"IF(Résultats!AM36=\"\",\"\",Résultats!AM36)","v":""}]

{"sheet":"Info","index":4,"n_rows":208,"n_cols":3,"rows_kept":208,"cut":false,"hidden":false,"merged":[[15,0,15,4]]}
["EDM",null,"2e secondaire"]
[]
["Cette grille est prévue pour l'outil d'évaluation proposé en juin 2016 pour l'EDM."]
["Elle est proposée à titre indicatif. Elle permet à l'enseignant de dresser un bilan des compétences sur base de cette évaluation."]
["Afin d'améliorer la qualité des futures évaluations, il vous est demandé de renvoyer ce document complété à marc.deprez@segec.be."]
["Fichier --> enregistrer sous… et adapter le nom du fichier \"Nomecole_localite_classe_edm2016.xlsm\", par exemple \"stjoseph_chimay_2C2_edm2016.xlsm\""]
["Aucune information relative aux écoles ne sera utilisée, aucun traitement permettant la comparaison des écoles ne sera effectué."]
["Les résultats globaux seront envoyés aux écoles qui participent à la communication des informations."]
[]
["En cas de problème"]
[]
["Marc Deprez - marc.deprez@segec.be - 0495 284599"]
["Marianne Quitin - marianne.quitin@segec.be - 0497 326203"]
["Céline Demoustier - celine.demoustier@segec.be"]
[]
["Cliquez ici pour commencer l'encodage"]
[]
["Informations à propos de la feuille \"Encodage réponses Es\""]
[]
[]
[]
[]
[]
[]
[]
[]
[]
[]
[]
[]
[]
[]
[]
[]
[]
[]
[]
[]
[]
[]
[]
[]
[]
[]
[]
[]
[]
[]
[]
[]
[]
[]
[]
[]
["Informations à propos de la feuille \"Résultats\""]
[]
[]
[]
[]
[]
[]
[]
[]
[]
[]
[]
[]
[]
[]
[]
[]
[]
[]
[]
[]
[]
[]
[]
[]
[]
[]
[]
[]
[]
[]
[]
[]
[]
["Informations à propos de la feuille \"Bilan\""]
[]
[]
[]
[]
[]
[]
[]
[]
[]
[]
[]
[]
[]
[]
[]
[]
[]
[]
[]
[]
[]
[]
[]
[]
[]
[]
[]
[]
[]
[]
[]
[]
[]
[]
[]
[]
[]
[]
[]
[]
["Informations à propos de la feuille \"Résultats classe\""]
[]
[]
[]
[]
[]
[]
[]
[]
[]
[]
[]
[]
[]
[]
[]
[]
[]
[]
[]
[]
[]
[]
[]
[]
[]
[]
[]
[]
[]
[]
[]
[]
[]
[]
[]
[]
[]
[]
[]
["Informations à propos de la feuille \"indicateurs réussite\""]
["Cette feuille dresse la liste des indicateurs de réussite. Elle peut être utilisées pour faciliter la correction ou pour communiquer les résultats pour chaque élève"]
[]
[]
[]
[]
[]
[]
[]
[]
[]
[]
[]
[]
[]
[]
[]
[]
[]
[]
[]
[]
[]
[]
[]
[]
[]
[]
[]
[]
[]
[]
[]
[]
[]
[]
[]
[]
["Informations à propos de la feuille \"Tableaux apprentissages\""]

{"sheet":"indicateurs réussite","index":5,"n_rows":54,"n_cols":5,"rows_kept":54,"cut":false,"hidden":false,"merged":[[5,0,16,0],[0,2,0,4],[48,0,48,2],[3,3,3,4],[3,0,3,2],[17,0,23,0],[24,0,24,2],[26,0,26,4],[27,0,33,0],[34,0,39,0],[40,0,47,0],[41,1,42,1],[4,0,4,4]]}
[null,null,"Étude du milieu – évaluation fin du 1er degré – juin 2016 – indicateurs de réussite"]
[]
[null,null,"Nom, Prénom: "]
["la formulation générique des indicateurs doit permettre de prendre en compte des spécificités liées aux apprentissages réalisés (vocabulaire, exemples pour illustrer les concepts, repères temporels ou spatiaux spécifiques …)",null,null,"Points et complexité*"]
["CADRE SPATIAL"]
["I. Le cadre spatial d'Herbeumont à l'échelle de la Belgique",1,"Les 7 villes sont correctement associées aux numéros de la carte.",7,"S"]
[null,2,"Province du Luxembourg",1,"S"]
[null,3,"Estimation : entre 25 et 35 km (la frontière orientale ou occidentale de la commune)",1,"SF"]
[null,4,"France",1,"S"]
[null,5,"a. Région flamande et Région de Bruxelles-Capitale\nb. Région wallonnne","2\n1","S"]
[null,6,"Espace 1: fait référence aux trois villes concernées en termes d'espace ou de triangle… (en fonction des repères appris en classe)\nEspace 2: fait référence aux villes (Mons, Charleroi, Namur et Liège ou Sillon Sammbre-Meuse ou … (en fonction des repères appris en classe)","1\n\n1","C\nC"]
[null,7,"Vrai: l'amplitude thermique à Herbeumont est semblable que celle de Bruxelles (à +/- 1°C)\nFaux car la température moyenne annuelle à Herbeumont est inférieure à celle de Bruges\nFaux car les précipitations mensuelles à  Herbeumont sont toujours supérieures à celles de Bruges ","1\n1\n1\n","SF"]
[null,8,"Zone climatique tempérée\nde l'hémisphère nord","0,5\n0,5","C"]
[null,9,"Un plateau",1,"S"]
[null,10,"Escaut",1,"S"]
[null,11,"Les deux propositions qui montrent des liens en mobilisant les infos des deux cartes sont:\nLa population est plus importante là où le relief est moins élevé\nLa population est plus importante dans les plaines\nLe lien de la proposition 2 est incorrect - les propositions 3 et 4 ne mobilisent pas des liens entre les deux cartes.",2,"C"]
[null,12,"Plusieurs facteurs sont identifiables dans les questions ou les supports documentaires:\nL'altitude plus importante (sachant que les autres espaces sont des bas-plateaux ou des plaines)\nDes températures annuelles moyennes plus basses (environ 2°C en moins qu'à Bruxelles)\nDes précipitations plus abondantes (sachant que l'ensemble du territoire est en zone tempérée)\nL'élève pourrait aussi faire référence à l'éloignement des principaux fleuves ou à l'éloignement de la mer ",2,"C"]
["II. Le cadre spatial d'Herbeumont à l'échelle locale",13,"1: Forêt           5: Espace villageaois\n2: Semois        6: Espace de prairies/cultures\n3: Semois        7: Forêt\n4: Château",7,"C"]
[null,14,"L'élève doit au moins faire référence à l'orientation du versant 2 qui est exposé au soleil alors que le versant 1 l'est beaucoup moins (certains pourraient évoquer la notion d'adret et d'ubac ou préciser l'orintation SW du versant 2 par rapport à l'orientation NE du versant 1)",1,"C"]
[null,15,"Méandres ou sinuosités  (en fonction du vocabulaire appris en classe)",1,"S"]
[null,16,"La croix doit se trouver aux environs de la borne 1km du profil",1,"S"]
[null,17,"Rive droite",1,"C"]
[null,18,"Le village est situé à environ 25 m au-dessus du lit de la rivière (ou vallée encaissée)",1,"C"]
[null,19,"a. Le photographe regarde en direction du NE.\nb. au 20e s., l'arrière plan esty dominé par des cultures/champs/espaces cultivés…\nc. au 21e s., l'arrière plan est dominé par des arbes/espaces boisés…","1\n1\n1","S"]
["Total de la partie géographique",null,null,40]
[]
["CADRE TEMPOREL"]
["I. Herbeumont, un milieu rural ancien","1a","Le coloriage est correct (avant JC et le -68 est bien à gauche du -60) ",2,"S/SF"]
[null,"1b","1er et 2e siècle avant JC",1,"S"]
[null,"1c","Antiquité",1,"S"]
[null,"1d","23 siècles",1,"SF"]
[null,"2a","1: Trace =   premiers textes                 Nature= document écrit\n2: Trace=  château                   Nature = vestige archéologique (monument)",2,"S/SF"]
[null,"2b","Abandon du château",1,"SF"]
[null,"2C","Exemples (d'autres réponses sont possibles)\nFait=  \"l'activité minière diminue à partir de 1928 pour s'arrêter complètement en 1977\"\nOpinion=  \"peut-être les plus beaux de la vallée de la Semois\", selon Marcel Leroy\nHypothèse= \"existait-il déjà au temps des Romains? On le pense, mais on n'a aucune preuve\"","1\n1\n1","S/SF"]
["II. L'exploitation du milieu depuis la fin du XIXe siècle",3,"a. original --> n° 2, 3\nb. reconstitué --> n° 1\nc. qui est un témoignage --> n° 6","1\n1\n1","S/SF"]
[null,4,"Activité 1 :  ardoisières                        --> secteur d'activité: primaire (extraction dans le document)\nActivité 2 :  culture du tabac               --> secteur d'activité: primaire\nActivité 3 :  tourisme                            --> secteur d'activité: tertiaire","1\n1\n1","S/SF"]
[null,5,"La Révolution industrielle -> OUI\nLa découverte des Amériques --> NON\nLe développement du chemin de fer --> OUI\nL'indépendance de la Belgique --> NON\nLa Révolution française --> NON\nLa chute du mur de Berlin --> NON","0,5\n0,5\n0,5\n0,5\n0,5\n0,5","S"]
[null,6,"manuel --> mécanisation ; sous terre --> à ciel ouvert (extérieur)",2,"C"]
[null,7,"Métier fin 19e s. : ardoisier                                               --> aujourd'hui: agriculteur\nActivité complémentaire fin 19e s.:  culture/élevage     --> aujourd'hui: gestion d'un camping","2\n2","SF"]
[null,8,"Depuis la fin du XIXe s., comme c'est le cas à Herbeumont, le tourisme se développe en milieu rural",1]
["III. Evolution de la population à Herbeumont",9,"1: de  1880                  à      1890                   : diminue\n2: de   1890                 à      1910                   : augmente\n3: de   1920                 à       1980                  : diminue","2\n2\n2","SF"]
[null,"10.a","La définition fait au moins référence au mouvement migratoire d'une population de la campagne vers la ville",1,"S"]
[]
[null,"10.b","Période 3",1,"S"]
[null,"10.c","Plusieurs réponses sont possibles. P.ex. développement de la voiture - développement du réseau routier - désindustrialisation - ... ",1,"C"]
[null,"11.a","La définition fait au moins référence à la fermeture d'usines ou la diminution de l'emploi industriel",1,"S"]
[null,"11.b","P.ex. la fermeture des usines dans le Sillon Sambre-Meuse ou la délocalisation d'usines ou … (en fonction des apprentissages réalisés)",1,"C"]
[null,"11.c","L'activité minière diminue à partir de 1928 pour s'arrêter complètement en 1977",2,"C"]
["Total de la partie historique",null,null,40]
["Total de l'ensemble",null,null,80]
["*Les indications S/SF et C donnent des informations sur le degré de complexité des questions."]
["·         S = savoir exprimé de manière déclarative"]
["·         SF = exécution d’un savoir-faire dans le cadre d’une application explicite"]
["·         C = réalisation d’une tâche qui fait implicitement appel à des S et/ou SF (compétence)"]

{"sheet":"Tableaux apprentissages","index":6,"n_rows":46,"n_cols":4,"rows_kept":46,"cut":false,"hidden":false,"merged":[[60,1,61,2],[62,1,62,2],[28,3,32,3],[33,3,36,3],[37,3,45,3],[56,1,57,2],[58,1,59,2],[51,1,51,2],[52,1,52,2],[53,1,53,2],[54,1,55,2],[34,1,36,1],[58,3,59,3],[48,3,50,3],[13,1,16,1],[8,1,12,1],[17,1,22,1],[25,1,30,1],[25,3,27,3],[13,3,19,3],[20,2,22,2],[20,3,22,3],[54,0,57,0],[48,1,48,2],[49,1,49,2],[50,1,50,2],[23,0,23,3],[46,0,46,2],[31,0,33,0],[37,0,39,0],[40,0,41,0],[31,1,33,1],[37,1,39,1],[47,1,47,2],[47,0,53,0],[40,1,43,1],[0,0,0,3],[1,0,1,2],[8,3,12,3],[5,3,7,3],[5,1,7,1],[10,0,12,0],[3,0,3,3],[5,2,7,2]]}
["Tableau synoptique des acquis d’apprentissage en EDM –  Juin 2016"]
["en italique : ce qui est déjà certifié au terme de l’enseignement fondamental"]
[]
["Pour formation historique (les regroupements en S et SF sont ceux des socles de compétences)"]
["SF spécifiques à référence au programme P14/15","Q","Savoirs spécifiques à  référence au programme P10/12/13","Q"]
["3.1.1 Utiliser des repères du temps ","1b\n1c\n5\n11a","3.2.1 mettre en évidence l’organisation du temps (p14)à situer des faits vécus par soi ou d’autres personnes (chronologie, fréquence, durée, ancienneté) et l’évolution de ces situations.","9\n1d"]
["·         … pour se situer soi-même et situer des faits dans le temps"]
["·         les périodes conventionnelles en y incluant un ensemble de repères à travers la Préhistoire/l’Antiquité/le MA/les Temps modernes/la Période contemporaine"]
[" 3.1.1 Utiliser des représentations du temps","1a\n10c\n10b","3.2.2 mettre en évidence le mode de vie des gens à une époque déterminée à ","4\n6\n7\n8\n10\n11"]
["·         … pour se situer soi-même et situer des faits dans le temps",null,"·         Identifier et comparer des aspects concrets du mode de vie dans nos régions et dans d’autres en tenant compte du fait que notre société est multiculturelle "]
["·         Ligne du temps reprenant : la naissance du christ, les millénaires et siècles, les ères romaine, chrétienne et musulmane, les périodes conventionnelles et ses repères prévus plus haut",null,"·         Caractériser "]
[null,null,"o    les activités et les techniques pour s’alimenter, se loger, se déplacer, se vêtir, se soigner, produire, s’instruire, communiquer, s’exprimer, se distraire, échanger et s’organiser, se représenter le monde"]
[null,null,"o    le travail et vie en communauté : organisation, différences sociales qui en découlent, modes d’oppression ou d’exclusion, luttes pour les combattre (en considérant les relations qui lient ces aspects)"]
["3.1.2 Lire une trace du passé :","2b","3.2.3 de mettre en évidence la nature d’une trace du passé à","2a"]
["·         Objets, monuments, habitat, éléments du paysage, toponymie, anciennes photos ou cartes postales, témoignages, usages …",null,"Identifier et classer :"]
["o    L’identifier et la classer en fonction de sa nature (voir les natures en 3.2.3)",null,"-          vestige archéologique (objet, monument, habitat, élément du paysage) et toponymie"]
["o    Déterminer son origine et la rattacher à son contexte (voir mode de vie des gens à une époque déterminée 3.2.2)",null,"-          document écrit (original ou reconstitué, source officielle, non officielle, texte scientifique)"]
["3.1.3 Exploiter des sources historiques :","2c\n3","-          document iconographique (gravure, sculpture, peinture, photographie)"]
["o    Distinguer document original ou reconstitué / témoin ou spécialiste / fait ou opinion",null,"-          document sous forme schématique (plan, carte, graphique)"]
["o    Interpréter en distinguant ce qui est certain et ce qui est hypothétique",null,"-          document audiovisuel (original ou reconstitué)"]
["o    Comparer…"]
["§  deux documents (iconographiques ou objets) traitant d’un même sujet ;"]
["§  deux documents de nature différente traitant d’un même sujet"]
["Pour la formation géographique (les regroupements en S et SF sont ceux des socles de compétences)"]
["SF spécifiques à référence au programme P14/15","Q","Savoirs spécifiques à référence au programme P11","Q"]
["4.1.1 Utiliser des repères spatiaux : ","1\n2\n4\n5\n10","4.2.1 Les composantes du paysage rural, urbain, industriel et mixte comme éléments-clés qui composent le paysage (éléments naturels ou humains, paysage peu ou très humanisé, rural, urbain ou industriel)","13\n15\n16\n17"]
["…pour se situer soi-même et situer des faits dans l’espace",null,"Identifier le relief, la végétation et les éléments issus de l’impact de l’action humaine (bâtiments, champs, prairies, espaces boisés, voies de communication, surface plane ou accidentée, cours d’eau, vallée)"]
["…pour se déplacer",null,"Caractériser : rural, urbain, industriel et mixte comme éléments-clés qui composent le paysage (éléments naturels ou humains, paysage peu ou très humanisé, rural, urbain ou industriel)"]
["·         sur la carte de la Belgique : commune, Régions, Communautés, Provinces, Meuse, Sambre, Escaut et autres cours d’eau proches de sa commune, principales villes)",null,"4.2.2 Des milieux naturels en identifier et en caractériser quelques-uns\n-->  identifier et caractériser : forêt, montagne, désert, mers et océans\n-->  les associer aux 5 zones climatiques : 2 polaires, 2 tempérées et une intertrop.\n--> Identifier leurs atouts et contraintes en lien avec","7\n8\n9\n12\n14\n18"]
["·         sur une carte de l’Europe : Belgique, États de l’UE, mer du Nord, Méditerranée, Baltique, Alpes et Pyrénées)",null,"-          l’altitude (pente) et les principales formes du relief (plaine, plateau, montagne, vallée), avec les éléments d’hydrographie (bassin hydrographique et crues, cours d’eau) ;"]
["·         sur le planisphère et le globe terrestre : continents, océans, équateur, méridien Greenwich, tropiques, cercles polaires, hémisphères N et S)",null,"-          la température moyenne, l’amplitude thermique et les précipitations (temps qu’il fait)"]
["4.1.1 Utiliser des représentations de l’espace : plan de la commune, Belgique avec Régions, Europe avec délimitation des États de l’Union, planisphère et globe terrestre",3,"-          l’exubérance ou la rareté de la végétation "]
[null,null,"-          et leur transformation en espaces"]
[null,null,"4.2.3 L’organisation de l’espace à l’échelle de la commune, une des deux Régions de la CF, l’état fédéral, l’UE et le monde :"]
["4.1.2 Localiser un lieu, un espace",6,"è  caractériser les fonctions de résidence, administrative, production (3 secteurs) et de consommation et d’échanges"]
["Situer par rapport aux repères à connaitre",null,"è  caractériser ses structurations sur base : parcelle, bocage, paysage ouvert, remembrement (surface bâtie, non bâtie, ville, village) ainsi que frontières politiques et limites naturelles (limites régionales, nationales, et de l’UE)"]
["Orienter selon les 8 directions cardinales",null,"è caractériser l’évolution de l’utilisation de l’espace : lotissements, parcs industriels et commerciaux"]
["4.1.3 Lire un paysage sur le terrain : le délimiter, déterminer les différents plans et repérer la ligne d’horizon, rechercher les éléments dominants et identifier à quel type d’espace il appartient.",null,"4.2.4 Interactions hommes-espace :identifier une série d’objets sur base des caractères précisés:","11\n18"]
[null,null,"o    population : nombre, espace peu ou très peuplé, densité, citadins ou ruraux, urbanisation"]
[null,null,"o    déplacement : migration, navetteur"]
["4.1.3 Lire une image géographique : reconnaitre la nature du document, préciser l’angle de vue (distinguer photo aérienne et au sol), déterminer les différents plans et repérer la ligne d’horizon, rechercher les éléments dominants et identifier à quel type d’espace il appartient",19,"o    communication : voies et moyens de communication, de télécommunications"]
[null,null,"o    espaces à risque : installation de l’homme"]
["différents plans et repérer la ligne d’horizon, rechercher les éléments",null,"o    activités économiques : agriculture, industrie, commerce et services"]
[" dominants et identifier à quel type d’espace il appartient.",null,"o    organisation sociale : école, commune, vie associative"]
[null,null,"o    exploitation et exclusion "]
[null,null,"o    Implication sur la vie sociale de la succession des saisons et l’alternance jour/nuit"]